Workbook

Sheet Explanation (hidden)
B2: User Instructions
A4: (1) | B4: Data only needs to be entered in the "Athlete Input" worksheet
A6: (2) | B6: Times should be enterd as follows:
B8: Times < 1 hour | C8: xx.xx | D8: e.g. 18.45
B9: Times > 1 hour | C9: x.xx.xx | D9: e.g. 1.20.30
B11: The spreadsheet will automatically convert this to a suitable format to calculate averages / improvements etc..
B12: e.g. 1.20.30 for the half marathon will be converted to 80.5
A14: (3) | B14: Atheletes full name and surname need to be entered seperatly in columns B & C in "Athelete Input" woksheet.
B15: There is no requirement to enter names in alphabetical order in this input worksheet (macro will sort alphabeticaly in the "By Athelete" worksheet)
A17: (4) | B17: After data has been updated, simply run the macro by clicking on the button in the top left hand corner of "Athlete Input" worksheet
A19: (5) | B19: For each distance the macro will sort by:
B21: (1) times run in current year
B22: (2) times run in previous year
A24: (6) | B24: The "By Athlete" worksheet will sort all times for all distances in alphabetical order
A26: (7) | B26: Summary Stats are shown as follows for each distance
B29: Summary Stats - East District Relay
B30: Number of athletes running in 2009 | C30: 28
B31: Number of athletes running in 2008 | C31: 18
B32: Best 2009 time | C32: 12.14
B33: Average 2009 time | C33: 14.32
B34: Best 2008 time | C34: 13.27
B35: Average 2008 time | C35: 14.54
A37: (8) | B37: Note, currently only been set up for 100 athletes.

Sheet Inputs>>

Sheet Fixtures
B2: Short Events | G2: Medium Events | L2: Long Events
B4: Day | C4: Date | D4: Event | E4: Category | G4: Day | H4: Date | I4: Event | J4: Category | L4: Day | M4: Date | N4: Event | O4: Category
B5: =IF(C5="","",C5) -> 2016-03-12 | C5: 2016-03-12 | D5: Cupar 5 mile | E5: Short | G5: =IF(H5="","",H5) -> 2016-03-06 | H5: 2016-03-06 | I5: Lasswade 10 mile | J5: Medium | L5: =IF(M5="","",M5) -> 2016-03-13 | M5: 2016-03-13 | N5: Inverness Half Marathon | O5: Long
B6: =IF(C6="","",C6) ->  | D6: King's Buildings 5 mile | E6: Short | G6: =IF(H6="","",H6) -> 2016-04-02 | H6: 2016-04-02 | I6: Dunbar 10k | J6: Medium | L6: =IF(M6="","",M6) -> 2016-03-20 | M6: 2016-03-20 | N6: Alloa Half Marathon | O6: Long
B7: 2016-04-03 | C7: 2016-04-03 | D7: SA Road Relays - Short | E7: Short | G7: =IF(H7="","",H7) -> 2016-04-03 | H7: 2016-04-03 | I7: SA Road Relays - Long | J7: Medium | L7: 2016-04-24 | M7: 2016-04-24 | N7: London Marathon | O7: Long
B8: 2016-05-06 | C8: 2016-05-06 | D8: Scottish 5k Road Champs | E8: Short | G8: =IF(H8="","",H8) -> 2016-04-10 | H8: 2016-04-10 | I8: Tom Scott 10 mile | J8: Medium | L8: 2016-05-14 | M8: 2016-05-14 | N8: Loch Leven Half | O8: Long
B9: 2016-05-28 | C9: 2016-05-28 | D9: EMF 5k | E9: Short | G9: 2016-04-10 | H9: 2016-04-10 | I9: Grangemouth 10k | J9: Medium | L9: 2016-05-29 | M9: 2016-05-29 | N9: EMF Half | O9: Long
B10: 2016-06-01 | C10: 2016-06-01 | D10: CAAC 5 mile | E10: Short | G10: 2016-04-17 | H10: 2016-04-17 | I10: Great Edinburgh 10 mile | J10: Medium | L10: 2016-05-29 | M10: 2016-05-29 | N10: EMF Marathon | O10: Long
D11: Self Tran 5k - Meadows (June) | E11: Short | G11: 2016-05-08 | H11: 2016-05-08 | I11: Gala 10k | J11: Medium | L11: =IF(M11="","",M11) ->  | N11: Haddington Half | O11: Long
D12: Brig Bash 5 mile | E12: Short | G12: =IF(H12="","",H12) -> 2016-05-28 | H12: 2016-05-28 | I12: EMF 10k | J12: Medium | L12: =IF(M12="","",M12) -> 2016-09-18 | M12: 2016-09-18 | N12: Scottish Half - Edinburgh | O12: Long
D13: Self Tran 5k - Meadows (July) | E13: Short | I13: Haddington 10k | J13: Medium | L13: =IF(M13="","",M13) -> 2016-09-25 | M13: 2016-09-25 | N13: Loch Ness Marathon | O13: Long
D14: Self Tran 5k - Meadows (Sept) | E14: Short | I14: Musselburgh 10k | J14: Medium | L14: =IF(M14="","",M14) -> 2016-10-02 | M14: 2016-10-02 | N14: Great Scottish Run - Glasgow Half | O14: Long
D15: Parkrun - Silverknowles (Sept) | E15: Short | I15: Forfar 10k | J15: Medium
D16: Parkrun - Portobello (Oct) | E16: Short | I16: Forth Road Bridge 10k | J16: Medium
G17: 2016-09-18 | H17: 2016-09-18 | I17: Scottish 10k - Edinburgh | J17: Medium
I18: Stirling 10k | J18: Medium

Sheet Points
B2: Pace | C2: 5k | D2: Points | E2: NRR short (3.15 miles) | F2: Points | G2: 5 mile | H2: Points | I2: NRR long (5.8 miles) | J2: Points | K2: 10k | L2: Points | M2: 10 mile | N2: Points | O2: Half marathon | P2: Points | Q2: Marathon | R2: Points | T2: Pace | U2: 5k | V2: Points | W2: NRR short (3.15 miles) | X2: Points | Y2: 5 mile | Z2: Points | AA2: NRR long (5.8 miles) | AB2: Points | AC2: 10k | AD2: Points | AE2: 10 mile | AF2: Points | AG2: Half marathon | AH2: Points | AI2: Marathon | AJ2: Points
B3: 00:04:40 | C3: 00:14:30 | D3: 144 | E3: 00:14:43 | F3: 144 | G3: 00:23:20 | H3: 148 | I3: 00:27:21 | J3: 148 | K3: 00:29:00 | L3: 150 | M3: 00:46:40 | N3: 156 | O3: 01:01:11 | P3: 160 | Q3: 02:12:00 | R3: 160 | T3: =B3 -> 00:04:40 | U3: =LEFT(C3,2)*60+MID(C3,4,2)+RIGHT(C3,2)/60 -> 14.5 | V3: =D3 -> 144 | W3: =LEFT(E3,2)*60+MID(E3,4,2)+RIGHT(E3,2)/60 -> 14.71666667 | X3: =F3 -> 144 | Y3: =LEFT(G3,2)*60+MID(G3,4,2)+RIGHT(G3,2)/60 -> 23.33333333 | Z3: =H3 -> 148 | AA3: =LEFT(I3,2)*60+MID(I3,4,2)+RIGHT(I3,2)/60 -> 27.35 | AB3: =J3 -> 148 | AC3: =LEFT(K3,2)*60+MID(K3,4,2)+RIGHT(K3,2)/60 -> 29 | AD3: =L3 -> 150 | AE3: =LEFT(M3,2)*60+MID(M3,4,2)+RIGHT(M3,2)/60 -> 46.66666667 | AF3: =N3 -> 156 | AG3: =LEFT(O3,2)*60+MID(O3,4,2)+RIGHT(O3,2)/60 -> 61.18333333 | AH3: =P3 -> 160 | AI3: =LEFT(Q3,2)*60+MID(Q3,4,2)+RIGHT(Q3,2)/60 -> 132 | AJ3: =R3 -> 160
B4: 00:04:42 | C4: 00:14:36 | D4: 143 | E4: 00:14:49 | F4: 143 | G4: 00:23:30 | H4: 147 | I4: 00:27:32 | J4: 147 | K4: 00:29:12 | L4: 149 | M4: 00:47:00 | N4: 155 | O4: 01:01:37 | P4: 159 | Q4: 02:13:00 | R4: 159 | T4: =B4 -> 00:04:42 | U4: =LEFT(C4,2)*60+MID(C4,4,2)+RIGHT(C4,2)/60 -> 14.6 | V4: =D4 -> 143 | W4: 14.81666667 | X4: 143 | Y4: 23.5 | Z4: 147 | AA4: 27.53333333 | AB4: 147 | AC4: =LEFT(K4,2)*60+MID(K4,4,2)+RIGHT(K4,2)/60 -> 29.2 | AD4: =L4 -> 149 | AE4: =LEFT(M4,2)*60+MID(M4,4,2)+RIGHT(M4,2)/60 -> 47 | AF4: =N4 -> 155 | AG4: =LEFT(O4,2)*60+MID(O4,4,2)+RIGHT(O4,2)/60 -> 61.61666667 | AH4: =P4 -> 159 | AI4: =LEFT(Q4,2)*60+MID(Q4,4,2)+RIGHT(Q4,2)/60 -> 133 | AJ4: =R4 -> 159
B5: 00:04:44 | C5: 00:14:42 | D5: 142 | E5: 00:14:55 | F5: 142 | G5: 00:23:40 | H5: 146 | I5: 00:27:44 | J5: 146 | K5: 00:29:25 | L5: 148 | M5: 00:47:20 | N5: 154 | O5: 01:02:03 | P5: 158 | Q5: 02:14:00 | R5: 158 | T5: 00:04:44 | U5: 14.7 | V5: 142 | W5: 14.91666667 | X5: 142 | Y5: 23.66666667 | Z5: 146 | AA5: 27.73333333 | AB5: 146 | AC5: 29.41666667 | AD5: 148 | AE5: 47.33333333 | AF5: 154 | AG5: 62.05 | AH5: 158 | AI5: 134 | AJ5: 158
B6: 00:04:46 | C6: 00:14:49 | D6: 141 | E6: 00:15:02 | F6: 141 | G6: 00:23:50 | H6: 145 | I6: 00:27:55 | J6: 145 | K6: 00:29:37 | L6: 147 | M6: 00:47:40 | N6: 153 | O6: 01:02:29 | P6: 157 | Q6: 02:15:00 | R6: 157 | T6: 00:04:46 | U6: 14.81666667 | V6: 141 | W6: 15.03333333 | X6: 141 | Y6: 23.83333333 | Z6: 145 | AA6: 27.91666667 | AB6: 145 | AC6: 29.61666667 | AD6: 147 | AE6: 47.66666667 | AF6: 153 | AG6: 62.48333333 | AH6: 157 | AI6: 135 | AJ6: 157
B7: 00:04:48 | C7: 00:14:55 | D7: 140 | E7: 00:15:08 | F7: 140 | G7: 00:24:00 | H7: 144 | I7: 00:28:06 | J7: 144 | K7: 00:29:50 | L7: 146 | M7: 00:48:00 | N7: 152 | O7: 01:02:55 | P7: 156 | Q7: 02:16:00 | R7: 156 | T7: 00:04:48 | U7: 14.91666667 | V7: 140 | W7: 15.13333333 | X7: 140 | Y7: 24 | Z7: 144 | AA7: 28.1 | AB7: 144 | AC7: 29.83333333 | AD7: 146 | AE7: 48 | AF7: 152 | AG7: 62.91666667 | AH7: 156 | AI7: 136 | AJ7: 156
B8: 00:04:50 | C8: 00:15:01 | D8: 139 | E8: 00:15:14 | F8: 139 | G8: 00:24:10 | H8: 143 | I8: 00:28:18 | J8: 143 | K8: 00:30:02 | L8: 145 | M8: 00:48:20 | N8: 151 | O8: 01:03:22 | P8: 155 | Q8: 02:17:00 | R8: 155 | T8: 00:04:50 | U8: 15.01666667 | V8: 139 | W8: 15.23333333 | X8: 139 | Y8: 24.16666667 | Z8: 143 | AA8: 28.3 | AB8: 143 | AC8: 30.03333333 | AD8: 145 | AE8: 48.33333333 | AF8: 151 | AG8: 63.36666667 | AH8: 155 | AI8: 137 | AJ8: 155
B9: 00:04:52 | C9: 00:15:07 | D9: 138 | E9: 00:15:20 | F9: 138 | G9: 00:24:20 | H9: 142 | I9: 00:28:30 | J9: 142 | K9: 00:30:14 | L9: 144 | M9: 00:48:40 | N9: 150 | O9: 01:03:48 | P9: 154 | Q9: 02:18:00 | R9: 154 | T9: 00:04:52 | U9: 15.11666667 | V9: 138 | W9: 15.33333333 | X9: 138 | Y9: 24.33333333 | Z9: 142 | AA9: 28.5 | AB9: 142 | AC9: 30.23333333 | AD9: 144 | AE9: 48.66666667 | AF9: 150 | AG9: 63.8 | AH9: 154 | AI9: 138 | AJ9: 154
B10: 00:04:54 | C10: 00:15:13 | D10: 137 | E10: 00:15:27 | F10: 137 | G10: 00:24:30 | H10: 141 | I10: 00:28:42 | J10: 141 | K10: 00:30:27 | L10: 143 | M10: 00:49:00 | N10: 149 | O10: 01:04:14 | P10: 153 | Q10: 02:19:00 | R10: 153 | T10: 00:04:54 | U10: 15.21666667 | V10: 137 | W10: 15.45 | X10: 137 | Y10: 24.5 | Z10: 141 | AA10: 28.7 | AB10: 141 | AC10: 30.45 | AD10: 143 | AE10: 49 | AF10: 149 | AG10: 64.23333333 | AH10: 153 | AI10: 139 | AJ10: 153
B11: 00:04:56 | C11: 00:15:20 | D11: 136 | E11: 00:15:34 | F11: 136 | G11: 00:24:40 | H11: 140 | I11: 00:28:53 | J11: 140 | K11: 00:30:39 | L11: 142 | M11: 00:49:20 | N11: 148 | O11: 01:04:40 | P11: 152 | Q11: 02:20:00 | R11: 152 | T11: 00:04:56 | U11: 15.33333333 | V11: 136 | W11: 15.56666667 | X11: 136 | Y11: 24.66666667 | Z11: 140 | AA11: 28.88333333 | AB11: 140 | AC11: 30.65 | AD11: 142 | AE11: 49.33333333 | AF11: 148 | AG11: 64.66666667 | AH11: 152 | AI11: 140 | AJ11: 152
B12: 00:04:58 | C12: 00:15:26 | D12: 135 | E12: 00:15:40 | F12: 135 | G12: 00:24:50 | H12: 139 | I12: 00:29:05 | J12: 139 | K12: 00:30:52 | L12: 141 | M12: 00:49:40 | N12: 147 | O12: 01:05:06 | P12: 151 | Q12: 02:21:00 | R12: 151 | T12: 00:04:58 | U12: 15.43333333 | V12: 135 | W12: 15.66666667 | X12: 135 | Y12: 24.83333333 | Z12: 139 | AA12: 29.08333333 | AB12: 139 | AC12: 30.86666667 | AD12: 141 | AE12: 49.66666667 | AF12: 147 | AG12: 65.1 | AH12: 151 | AI12: 141 | AJ12: 151
B13: 00:05:00 | C13: 00:15:32 | D13: 134 | E13: 00:15:46 | F13: 134 | G13: 00:25:00 | H13: 138 | I13: 00:29:16 | J13: 138 | K13: 00:31:04 | L13: 140 | M13: 00:50:00 | N13: 146 | O13: 01:05:33 | P13: 150 | Q13: 02:22:00 | R13: 150 | T13: 00:05:00 | U13: 15.53333333 | V13: 134 | W13: 15.76666667 | X13: 134 | Y13: 25 | Z13: 138 | AA13: 29.26666667 | AB13: 138 | AC13: 31.06666667 | AD13: 140 | AE13: 50 | AF13: 146 | AG13: 65.55 | AH13: 150 | AI13: 142 | AJ13: 150
B14: 00:05:02 | C14: 00:15:38 | D14: 133 | E14: 00:15:52 | F14: 133 | G14: 00:25:10 | H14: 137 | I14: 00:29:28 | J14: 137 | K14: 00:31:17 | L14: 139 | M14: 00:50:20 | N14: 145 | O14: 01:05:59 | P14: 149 | Q14: 02:23:00 | R14: 149 | T14: 00:05:02 | U14: 15.63333333 | V14: 133 | W14: 15.86666667 | X14: 133 | Y14: 25.16666667 | Z14: 137 | AA14: 29.46666667 | AB14: 137 | AC14: 31.28333333 | AD14: 139 | AE14: 50.33333333 | AF14: 145 | AG14: 65.98333333 | AH14: 149 | AI14: 143 | AJ14: 149
B15: 00:05:04 | C15: 00:15:45 | D15: 132 | E15: 00:15:59 | F15: 132 | G15: 00:25:20 | H15: 136 | I15: 00:29:40 | J15: 136 | K15: 00:31:29 | L15: 138 | M15: 00:50:40 | N15: 144 | O15: 01:06:25 | P15: 148 | Q15: 02:24:00 | R15: 148 | T15: 00:05:04 | U15: 15.75 | V15: 132 | W15: 15.98333333 | X15: 132 | Y15: 25.33333333 | Z15: 136 | AA15: 29.66666667 | AB15: 136 | AC15: 31.48333333 | AD15: 138 | AE15: 50.66666667 | AF15: 144 | AG15: 66.41666667 | AH15: 148 | AI15: 144 | AJ15: 148
B16: 00:05:06 | C16: 00:15:51 | D16: 131 | E16: 00:16:05 | F16: 131 | G16: 00:25:30 | H16: 135 | I16: 00:29:51 | J16: 135 | K16: 00:31:41 | L16: 137 | M16: 00:51:00 | N16: 143 | O16: 01:06:51 | P16: 147 | Q16: 02:25:00 | R16: 147 | T16: 00:05:06 | U16: 15.85 | V16: 131 | W16: 16.08333333 | X16: 131 | Y16: 25.5 | Z16: 135 | AA16: 29.85 | AB16: 135 | AC16: 31.68333333 | AD16: 137 | AE16: 51 | AF16: 143 | AG16: 66.85 | AH16: 147 | AI16: 145 | AJ16: 147
B17: 00:05:08 | C17: 00:15:57 | D17: 130 | E17: 00:16:11 | F17: 130 | G17: 00:25:40 | H17: 134 | I17: 00:30:03 | J17: 134 | K17: 00:31:54 | L17: 136 | M17: 00:51:20 | N17: 142 | O17: 01:07:18 | P17: 146 | Q17: 02:26:00 | R17: 146 | T17: 00:05:08 | U17: 15.95 | V17: 130 | W17: 16.18333333 | X17: 130 | Y17: 25.66666667 | Z17: 134 | AA17: 30.05 | AB17: 134 | AC17: 31.9 | AD17: 136 | AE17: 51.33333333 | AF17: 142 | AG17: 67.3 | AH17: 146 | AI17: 146 | AJ17: 146
B18: 00:05:10 | C18: 00:16:03 | D18: 129 | E18: 00:16:17 | F18: 129 | G18: 00:25:50 | H18: 133 | I18: 00:30:14 | J18: 133 | K18: 00:32:06 | L18: 135 | M18: 00:51:40 | N18: 141 | O18: 01:07:44 | P18: 145 | Q18: 02:27:00 | R18: 145 | T18: 00:05:10 | U18: 16.05 | V18: 129 | W18: 16.28333333 | X18: 129 | Y18: 25.83333333 | Z18: 133 | AA18: 30.23333333 | AB18: 133 | AC18: 32.1 | AD18: 135 | AE18: 51.66666667 | AF18: 141 | AG18: 67.73333333 | AH18: 145 | AI18: 147 | AJ18: 145
B19: 00:05:12 | C19: 00:16:09 | D19: 128 | E19: 00:16:23 | F19: 128 | G19: 00:26:00 | H19: 132 | I19: 00:30:26 | J19: 132 | K19: 00:32:19 | L19: 134 | M19: 00:52:00 | N19: 140 | O19: 01:08:10 | P19: 144 | Q19: 02:28:00 | R19: 144 | T19: 00:05:12 | U19: 16.15 | V19: 128 | W19: 16.38333333 | X19: 128 | Y19: 26 | Z19: 132 | AA19: 30.43333333 | AB19: 132 | AC19: 32.31666667 | AD19: 134 | AE19: 52 | AF19: 140 | AG19: 68.16666667 | AH19: 144 | AI19: 148 | AJ19: 144
B20: 00:05:14 | C20: 00:16:16 | D20: 127 | E20: 00:16:30 | F20: 127 | G20: 00:26:10 | H20: 131 | I20: 00:30:38 | J20: 131 | K20: 00:32:31 | L20: 133 | M20: 00:52:20 | N20: 139 | O20: 01:08:36 | P20: 143 | Q20: 02:29:00 | R20: 143 | T20: 00:05:14 | U20: 16.26666667 | V20: 127 | W20: 16.5 | X20: 127 | Y20: 26.16666667 | Z20: 131 | AA20: 30.63333333 | AB20: 131 | AC20: 32.51666667 | AD20: 133 | AE20: 52.33333333 | AF20: 139 | AG20: 68.6 | AH20: 143 | AI20: 149 | AJ20: 143
B21: 00:05:16 | C21: 00:16:22 | D21: 126 | E21: 00:16:36 | F21: 126 | G21: 00:26:20 | H21: 130 | I21: 00:30:49 | J21: 130 | K21: 00:32:44 | L21: 132 | M21: 00:52:40 | N21: 138 | O21: 01:09:02 | P21: 142 | Q21: 02:30:00 | R21: 142 | T21: 00:05:16 | U21: 16.36666667 | V21: 126 | W21: 16.6 | X21: 126 | Y21: 26.33333333 | Z21: 130 | AA21: 30.81666667 | AB21: 130 | AC21: 32.73333333 | AD21: 132 | AE21: 52.66666667 | AF21: 138 | AG21: 69.03333333 | AH21: 142 | AI21: 150 | AJ21: 142
B22: 00:05:18 | C22: 00:16:28 | D22: 125 | E22: 00:16:43 | F22: 125 | G22: 00:26:30 | H22: 129 | I22: 00:31:01 | J22: 129 | K22: 00:32:56 | L22: 131 | M22: 00:53:00 | N22: 137 | O22: 01:09:29 | P22: 141 | Q22: 02:31:00 | R22: 141 | T22: 00:05:18 | U22: 16.46666667 | V22: 125 | W22: 16.71666667 | X22: 125 | Y22: 26.5 | Z22: 129 | AA22: 31.01666667 | AB22: 129 | AC22: 32.93333333 | AD22: 131 | AE22: 53 | AF22: 137 | AG22: 69.48333333 | AH22: 141 | AI22: 151 | AJ22: 141
B23: 00:05:20 | C23: 00:16:34 | D23: 124 | E23: 00:16:49 | F23: 124 | G23: 00:26:40 | H23: 128 | I23: 00:31:12 | J23: 128 | K23: 00:33:08 | L23: 130 | M23: 00:53:20 | N23: 136 | O23: 01:09:55 | P23: 140 | Q23: 02:32:00 | R23: 140 | T23: 00:05:20 | U23: 16.56666667 | V23: 124 | W23: 16.81666667 | X23: 124 | Y23: 26.66666667 | Z23: 128 | AA23: 31.2 | AB23: 128 | AC23: 33.13333333 | AD23: 130 | AE23: 53.33333333 | AF23: 136 | AG23: 69.91666667 | AH23: 140 | AI23: 152 | AJ23: 140
B24: 00:05:22 | C24: 00:16:40 | D24: 123 | E24: 00:16:55 | F24: 123 | G24: 00:26:50 | H24: 127 | I24: 00:31:24 | J24: 127 | K24: 00:33:21 | L24: 129 | M24: 00:53:40 | N24: 135 | O24: 01:10:21 | P24: 139 | Q24: 02:33:00 | R24: 139 | T24: 00:05:22 | U24: 16.66666667 | V24: 123 | W24: 16.91666667 | X24: 123 | Y24: 26.83333333 | Z24: 127 | AA24: 31.4 | AB24: 127 | AC24: 33.35 | AD24: 129 | AE24: 53.66666667 | AF24: 135 | AG24: 70.35 | AH24: 139 | AI24: 153 | AJ24: 139
B25: 00:05:24 | C25: 00:16:47 | D25: 122 | E25: 00:17:02 | F25: 122 | G25: 00:27:00 | H25: 126 | I25: 00:31:35 | J25: 126 | K25: 00:33:33 | L25: 128 | M25: 00:54:00 | N25: 134 | O25: 01:10:47 | P25: 138 | Q25: 02:34:00 | R25: 138 | T25: 00:05:24 | U25: 16.78333333 | V25: 122 | W25: 17.03333333 | X25: 122 | Y25: 27 | Z25: 126 | AA25: 31.58333333 | AB25: 126 | AC25: 33.55 | AD25: 128 | AE25: 54 | AF25: 134 | AG25: 70.78333333 | AH25: 138 | AI25: 154 | AJ25: 138
B26: 00:05:26 | C26: 00:16:53 | D26: 121 | E26: 00:17:08 | F26: 121 | G26: 00:27:10 | H26: 125 | I26: 00:31:47 | J26: 125 | K26: 00:33:46 | L26: 127 | M26: 00:54:20 | N26: 133 | O26: 01:11:14 | P26: 137 | Q26: 02:35:00 | R26: 137 | T26: 00:05:26 | U26: 16.88333333 | V26: 121 | W26: 17.13333333 | X26: 121 | Y26: 27.16666667 | Z26: 125 | AA26: 31.78333333 | AB26: 125 | AC26: 33.76666667 | AD26: 127 | AE26: 54.33333333 | AF26: 133 | AG26: 71.23333333 | AH26: 137 | AI26: 155 | AJ26: 137
B27: 00:05:28 | C27: 00:16:59 | D27: 120 | E27: 00:17:14 | F27: 120 | G27: 00:27:20 | H27: 124 | I27: 00:31:59 | J27: 124 | K27: 00:33:58 | L27: 126 | M27: 00:54:40 | N27: 132 | O27: 01:11:40 | P27: 136 | Q27: 02:36:00 | R27: 136 | T27: 00:05:28 | U27: 16.98333333 | V27: 120 | W27: 17.23333333 | X27: 120 | Y27: 27.33333333 | Z27: 124 | AA27: 31.98333333 | AB27: 124 | AC27: 33.96666667 | AD27: 126 | AE27: 54.66666667 | AF27: 132 | AG27: 71.66666667 | AH27: 136 | AI27: 156 | AJ27: 136
B28: 00:05:30 | C28: 00:17:05 | D28: 119 | E28: 00:17:20 | F28: 119 | G28: 00:27:30 | H28: 123 | I28: 00:32:10 | J28: 123 | K28: 00:34:11 | L28: 125 | M28: 00:55:00 | N28: 131 | O28: 01:12:06 | P28: 135 | Q28: 02:37:00 | R28: 135 | T28: 00:05:30 | U28: 17.08333333 | V28: 119 | W28: 17.33333333 | X28: 119 | Y28: 27.5 | Z28: 123 | AA28: 32.16666667 | AB28: 123 | AC28: 34.18333333 | AD28: 125 | AE28: 55 | AF28: 131 | AG28: 72.1 | AH28: 135 | AI28: 157 | AJ28: 135
B29: 00:05:32 | C29: 00:17:12 | D29: 118 | E29: 00:17:27 | F29: 118 | G29: 00:27:40 | H29: 122 | I29: 00:32:22 | J29: 122 | K29: 00:34:23 | L29: 124 | M29: 00:55:20 | N29: 130 | O29: 01:12:32 | P29: 134 | Q29: 02:38:00 | R29: 134 | T29: 00:05:32 | U29: 17.2 | V29: 118 | W29: 17.45 | X29: 118 | Y29: 27.66666667 | Z29: 122 | AA29: 32.36666667 | AB29: 122 | AC29: 34.38333333 | AD29: 124 | AE29: 55.33333333 | AF29: 130 | AG29: 72.53333333 | AH29: 134 | AI29: 158 | AJ29: 134
B30: 00:05:34 | C30: 00:17:18 | D30: 117 | E30: 00:17:33 | F30: 117 | G30: 00:27:50 | H30: 121 | I30: 00:32:33 | J30: 121 | K30: 00:34:35 | L30: 123 | M30: 00:55:40 | N30: 129 | O30: 01:12:58 | P30: 133 | Q30: 02:39:00 | R30: 133 | T30: 00:05:34 | U30: 17.3 | V30: 117 | W30: 17.55 | X30: 117 | Y30: 27.83333333 | Z30: 121 | AA30: 32.55 | AB30: 121 | AC30: 34.58333333 | AD30: 123 | AE30: 55.66666667 | AF30: 129 | AG30: 72.96666667 | AH30: 133 | AI30: 159 | AJ30: 133
B31: 00:05:36 | C31: 00:17:24 | D31: 116 | E31: 00:17:39 | F31: 116 | G31: 00:28:00 | H31: 120 | I31: 00:32:45 | J31: 120 | K31: 00:34:48 | L31: 122 | M31: 00:56:00 | N31: 128 | O31: 01:13:25 | P31: 132 | Q31: 02:40:00 | R31: 132 | T31: 00:05:36 | U31: 17.4 | V31: 116 | W31: 17.65 | X31: 116 | Y31: 28 | Z31: 120 | AA31: 32.75 | AB31: 120 | AC31: 34.8 | AD31: 122 | AE31: 56 | AF31: 128 | AG31: 73.41666667 | AH31: 132 | AI31: 160 | AJ31: 132
B32: 00:05:38 | C32: 00:17:30 | D32: 115 | E32: 00:17:45 | F32: 115 | G32: 00:28:10 | H32: 119 | I32: 00:32:57 | J32: 119 | K32: 00:35:00 | L32: 121 | M32: 00:56:20 | N32: 127 | O32: 01:13:51 | P32: 131 | Q32: 02:41:00 | R32: 131 | T32: 00:05:38 | U32: 17.5 | V32: 115 | W32: 17.75 | X32: 115 | Y32: 28.16666667 | Z32: 119 | AA32: 32.95 | AB32: 119 | AC32: 35 | AD32: 121 | AE32: 56.33333333 | AF32: 127 | AG32: 73.85 | AH32: 131 | AI32: 161 | AJ32: 131
B33: 00:05:40 | C33: 00:17:36 | D33: 114 | E33: 00:17:52 | F33: 114 | G33: 00:28:20 | H33: 118 | I33: 00:33:09 | J33: 118 | K33: 00:35:13 | L33: 120 | M33: 00:56:40 | N33: 126 | O33: 01:14:17 | P33: 130 | Q33: 02:42:00 | R33: 130 | T33: 00:05:40 | U33: 17.6 | V33: 114 | W33: 17.86666667 | X33: 114 | Y33: 28.33333333 | Z33: 118 | AA33: 33.15 | AB33: 118 | AC33: 35.21666667 | AD33: 120 | AE33: 56.66666667 | AF33: 126 | AG33: 74.28333333 | AH33: 130 | AI33: 162 | AJ33: 130
B34: 00:05:42 | C34: 00:17:43 | D34: 113 | E34: 00:17:59 | F34: 113 | G34: 00:28:30 | H34: 117 | I34: 00:33:20 | J34: 117 | K34: 00:35:25 | L34: 119 | M34: 00:57:00 | N34: 125 | O34: 01:14:43 | P34: 129 | Q34: 02:43:00 | R34: 129 | T34: 00:05:42 | U34: 17.71666667 | V34: 113 | W34: 17.98333333 | X34: 113 | Y34: 28.5 | Z34: 117 | AA34: 33.33333333 | AB34: 117 | AC34: 35.41666667 | AD34: 119 | AE34: 57 | AF34: 125 | AG34: 74.71666667 | AH34: 129 | AI34: 163 | AJ34: 129
B35: 00:05:44 | C35: 00:17:49 | D35: 112 | E35: 00:18:05 | F35: 112 | G35: 00:28:40 | H35: 116 | I35: 00:33:31 | J35: 116 | K35: 00:35:38 | L35: 118 | M35: 00:57:20 | N35: 124 | O35: 01:15:09 | P35: 128 | Q35: 02:44:00 | R35: 128 | T35: 00:05:44 | U35: 17.81666667 | V35: 112 | W35: 18.08333333 | X35: 112 | Y35: 28.66666667 | Z35: 116 | AA35: 33.51666667 | AB35: 116 | AC35: 35.63333333 | AD35: 118 | AE35: 57.33333333 | AF35: 124 | AG35: 75.15 | AH35: 128 | AI35: 164 | AJ35: 128
B36: 00:05:46 | C36: 00:17:55 | D36: 111 | E36: 00:18:11 | F36: 111 | G36: 00:28:50 | H36: 115 | I36: 00:33:43 | J36: 115 | K36: 00:35:50 | L36: 117 | M36: 00:57:40 | N36: 123 | O36: 01:15:36 | P36: 127 | Q36: 02:45:00 | R36: 127 | T36: 00:05:46 | U36: 17.91666667 | V36: 111 | W36: 18.18333333 | X36: 111 | Y36: 28.83333333 | Z36: 115 | AA36: 33.71666667 | AB36: 115 | AC36: 35.83333333 | AD36: 117 | AE36: 57.66666667 | AF36: 123 | AG36: 75.6 | AH36: 127 | AI36: 165 | AJ36: 127
B37: 00:05:48 | C37: 00:18:01 | D37: 110 | E37: 00:18:17 | F37: 110 | G37: 00:29:00 | H37: 114 | I37: 00:33:55 | J37: 114 | K37: 00:36:02 | L37: 116 | M37: 00:58:00 | N37: 122 | O37: 01:16:02 | P37: 126 | Q37: 02:46:00 | R37: 126 | T37: 00:05:48 | U37: 18.01666667 | V37: 110 | W37: 18.28333333 | X37: 110 | Y37: 29 | Z37: 114 | AA37: 33.91666667 | AB37: 114 | AC37: 36.03333333 | AD37: 116 | AE37: 58 | AF37: 122 | AG37: 76.03333333 | AH37: 126 | AI37: 166 | AJ37: 126
B38: 00:05:50 | C38: 00:18:07 | D38: 109 | E38: 00:18:23 | F38: 109 | G38: 00:29:10 | H38: 113 | I38: 00:34:07 | J38: 113 | K38: 00:36:15 | L38: 115 | M38: 00:58:20 | N38: 121 | O38: 01:16:28 | P38: 125 | Q38: 02:47:00 | R38: 125 | T38: 00:05:50 | U38: 18.11666667 | V38: 109 | W38: 18.38333333 | X38: 109 | Y38: 29.16666667 | Z38: 113 | AA38: 34.11666667 | AB38: 113 | AC38: 36.25 | AD38: 115 | AE38: 58.33333333 | AF38: 121 | AG38: 76.46666667 | AH38: 125 | AI38: 167 | AJ38: 125
B39: 00:05:52 | C39: 00:18:14 | D39: 108 | E39: 00:18:30 | F39: 108 | G39: 00:29:20 | H39: 112 | I39: 00:34:18 | J39: 112 | K39: 00:36:27 | L39: 114 | M39: 00:58:40 | N39: 120 | O39: 01:16:54 | P39: 124 | Q39: 02:48:00 | R39: 124 | T39: 00:05:52 | U39: 18.23333333 | V39: 108 | W39: 18.5 | X39: 108 | Y39: 29.33333333 | Z39: 112 | AA39: 34.3 | AB39: 112 | AC39: 36.45 | AD39: 114 | AE39: 58.66666667 | AF39: 120 | AG39: 76.9 | AH39: 124 | AI39: 168 | AJ39: 124
B40: 00:05:54 | C40: 00:18:20 | D40: 107 | E40: 00:18:36 | F40: 107 | G40: 00:29:30 | H40: 111 | I40: 00:34:30 | J40: 111 | K40: 00:36:40 | L40: 113 | M40: 00:59:00 | N40: 119 | O40: 01:17:21 | P40: 123 | Q40: 02:49:00 | R40: 123 | T40: 00:05:54 | U40: 18.33333333 | V40: 107 | W40: 18.6 | X40: 107 | Y40: 29.5 | Z40: 111 | AA40: 34.5 | AB40: 111 | AC40: 36.66666667 | AD40: 113 | AE40: 59 | AF40: 119 | AG40: 77.35 | AH40: 123 | AI40: 169 | AJ40: 123
B41: 00:05:56 | C41: 00:18:26 | D41: 106 | E41: 00:18:42 | F41: 106 | G41: 00:29:40 | H41: 110 | I41: 00:34:41 | J41: 110 | K41: 00:36:52 | L41: 112 | M41: 00:59:20 | N41: 118 | O41: 01:17:47 | P41: 122 | Q41: 02:50:00 | R41: 122 | T41: 00:05:56 | U41: 18.43333333 | V41: 106 | W41: 18.7 | X41: 106 | Y41: 29.66666667 | Z41: 110 | AA41: 34.68333333 | AB41: 110 | AC41: 36.86666667 | AD41: 112 | AE41: 59.33333333 | AF41: 118 | AG41: 77.78333333 | AH41: 122 | AI41: 170 | AJ41: 122
B42: 00:05:58 | C42: 00:18:32 | D42: 105 | E42: 00:18:48 | F42: 105 | G42: 00:29:50 | H42: 109 | I42: 00:34:52 | J42: 109 | K42: 00:37:05 | L42: 111 | M42: 00:59:40 | N42: 117 | O42: 01:18:13 | P42: 121 | Q42: 02:51:00 | R42: 121 | T42: 00:05:58 | U42: 18.53333333 | V42: 105 | W42: 18.8 | X42: 105 | Y42: 29.83333333 | Z42: 109 | AA42: 34.86666667 | AB42: 109 | AC42: 37.08333333 | AD42: 111 | AE42: 59.66666667 | AF42: 117 | AG42: 78.21666667 | AH42: 121 | AI42: 171 | AJ42: 121
B43: 00:06:00 | C43: 00:18:38 | D43: 104 | E43: 00:18:54 | F43: 104 | G43: 00:30:00 | H43: 108 | I43: 00:35:04 | J43: 108 | K43: 00:37:17 | L43: 110 | M43: 01:00:00 | N43: 116 | O43: 01:18:39 | P43: 120 | Q43: 02:52:00 | R43: 120 | T43: 00:06:00 | U43: 18.63333333 | V43: 104 | W43: 18.9 | X43: 104 | Y43: 30 | Z43: 108 | AA43: 35.06666667 | AB43: 108 | AC43: 37.28333333 | AD43: 110 | AE43: 60 | AF43: 116 | AG43: 78.65 | AH43: 120 | AI43: 172 | AJ43: 120
B44: 00:06:02 | C44: 00:18:45 | D44: 103 | E44: 00:19:01 | F44: 103 | G44: 00:30:10 | H44: 107 | I44: 00:35:16 | J44: 107 | K44: 00:37:29 | L44: 109 | M44: 01:00:20 | N44: 115 | O44: 01:19:05 | P44: 119 | Q44: 02:53:00 | R44: 119 | T44: 00:06:02 | U44: 18.75 | V44: 103 | W44: 19.01666667 | X44: 103 | Y44: 30.16666667 | Z44: 107 | AA44: 35.26666667 | AB44: 107 | AC44: 37.48333333 | AD44: 109 | AE44: 60.33333333 | AF44: 115 | AG44: 79.08333333 | AH44: 119 | AI44: 173 | AJ44: 119
B45: 00:06:04 | C45: 00:18:51 | D45: 102 | E45: 00:19:08 | F45: 102 | G45: 00:30:20 | H45: 106 | I45: 00:35:28 | J45: 106 | K45: 00:37:42 | L45: 108 | M45: 01:00:40 | N45: 114 | O45: 01:19:32 | P45: 118 | Q45: 02:54:00 | R45: 118 | T45: 00:06:04 | U45: 18.85 | V45: 102 | W45: 19.13333333 | X45: 102 | Y45: 30.33333333 | Z45: 106 | AA45: 35.46666667 | AB45: 106 | AC45: 37.7 | AD45: 108 | AE45: 60.66666667 | AF45: 114 | AG45: 79.53333333 | AH45: 118 | AI45: 174 | AJ45: 118
B46: 00:06:06 | C46: 00:18:57 | D46: 101 | E46: 00:19:14 | F46: 101 | G46: 00:30:30 | H46: 105 | I46: 00:35:39 | J46: 105 | K46: 00:37:54 | L46: 107 | M46: 01:01:00 | N46: 113 | O46: 01:19:58 | P46: 117 | Q46: 02:55:00 | R46: 117 | T46: 00:06:06 | U46: 18.95 | V46: 101 | W46: 19.23333333 | X46: 101 | Y46: 30.5 | Z46: 105 | AA46: 35.65 | AB46: 105 | AC46: 37.9 | AD46: 107 | AE46: 61 | AF46: 113 | AG46: 79.96666667 | AH46: 117 | AI46: 175 | AJ46: 117
B47: 00:06:08 | C47: 00:19:03 | D47: 100 | E47: 00:19:20 | F47: 100 | G47: 00:30:40 | H47: 104 | I47: 00:35:51 | J47: 104 | K47: 00:38:07 | L47: 106 | M47: 01:01:20 | N47: 112 | O47: 01:20:24 | P47: 116 | Q47: 02:56:00 | R47: 116 | T47: 00:06:08 | U47: 19.05 | V47: 100 | W47: 19.33333333 | X47: 100 | Y47: 30.66666667 | Z47: 104 | AA47: 35.85 | AB47: 104 | AC47: 38.11666667 | AD47: 106 | AE47: 61.33333333 | AF47: 112 | AG47: 80.4 | AH47: 116 | AI47: 176 | AJ47: 116
B48: 00:06:10 | C48: 00:19:10 | D48: 99 | E48: 00:19:27 | F48: 99 | G48: 00:30:50 | H48: 103 | I48: 00:36:02 | J48: 103 | K48: 00:38:19 | L48: 105 | M48: 01:01:40 | N48: 111 | O48: 01:20:50 | P48: 115 | Q48: 02:57:00 | R48: 115 | T48: 00:06:10 | U48: 19.16666667 | V48: 99 | W48: 19.45 | X48: 99 | Y48: 30.83333333 | Z48: 103 | AA48: 36.03333333 | AB48: 103 | AC48: 38.31666667 | AD48: 105 | AE48: 61.66666667 | AF48: 111 | AG48: 80.83333333 | AH48: 115 | AI48: 177 | AJ48: 115
B49: 00:06:12 | C49: 00:19:16 | D49: 98 | E49: 00:19:33 | F49: 98 | G49: 00:31:00 | H49: 102 | I49: 00:36:14 | J49: 102 | K49: 00:38:32 | L49: 104 | M49: 01:02:00 | N49: 110 | O49: 01:21:17 | P49: 114 | Q49: 02:58:00 | R49: 114 | T49: 00:06:12 | U49: 19.26666667 | V49: 98 | W49: 19.55 | X49: 98 | Y49: 31 | Z49: 102 | AA49: 36.23333333 | AB49: 102 | AC49: 38.53333333 | AD49: 104 | AE49: 62 | AF49: 110 | AG49: 81.28333333 | AH49: 114 | AI49: 178 | AJ49: 114
B50: 00:06:14 | C50: 00:19:22 | D50: 97 | E50: 00:19:39 | F50: 97 | G50: 00:31:10 | H50: 101 | I50: 00:36:26 | J50: 101 | K50: 00:38:44 | L50: 103 | M50: 01:02:20 | N50: 109 | O50: 01:21:43 | P50: 113 | Q50: 02:59:00 | R50: 113 | T50: 00:06:14 | U50: 19.36666667 | V50: 97 | W50: 19.65 | X50: 97 | Y50: 31.16666667 | Z50: 101 | AA50: 36.43333333 | AB50: 101 | AC50: 38.73333333 | AD50: 103 | AE50: 62.33333333 | AF50: 109 | AG50: 81.71666667 | AH50: 113 | AI50: 179 | AJ50: 113
B51: 00:06:16 | C51: 00:19:28 | D51: 96 | E51: 00:19:45 | F51: 96 | G51: 00:31:20 | H51: 100 | I51: 00:36:37 | J51: 100 | K51: 00:38:56 | L51: 102 | M51: 01:02:40 | N51: 108 | O51: 01:22:09 | P51: 112 | Q51: 03:00:00 | R51: 112 | T51: 00:06:16 | U51: 19.46666667 | V51: 96 | W51: 19.75 | X51: 96 | Y51: 31.33333333 | Z51: 100 | AA51: 36.61666667 | AB51: 100 | AC51: 38.93333333 | AD51: 102 | AE51: 62.66666667 | AF51: 108 | AG51: 82.15 | AH51: 112 | AI51: 180 | AJ51: 112
B52: 00:06:18 | C52: 00:19:34 | D52: 95 | E52: 00:19:51 | F52: 95 | G52: 00:31:30 | H52: 99 | I52: 00:36:49 | J52: 99 | K52: 00:39:09 | L52: 101 | M52: 01:03:00 | N52: 107 | O52: 01:22:35 | P52: 111 | Q52: 03:01:00 | R52: 111 | T52: 00:06:18 | U52: 19.56666667 | V52: 95 | W52: 19.85 | X52: 95 | Y52: 31.5 | Z52: 99 | AA52: 36.81666667 | AB52: 99 | AC52: 39.15 | AD52: 101 | AE52: 63 | AF52: 107 | AG52: 82.58333333 | AH52: 111 | AI52: 181 | AJ52: 111
B53: 00:06:20 | C53: 00:19:41 | D53: 94 | E53: 00:19:58 | F53: 94 | G53: 00:31:40 | H53: 98 | I53: 00:37:00 | J53: 98 | K53: 00:39:21 | L53: 100 | M53: 01:03:20 | N53: 106 | O53: 01:23:01 | P53: 110 | Q53: 03:02:00 | R53: 110 | T53: 00:06:20 | U53: 19.68333333 | V53: 94 | W53: 19.96666667 | X53: 94 | Y53: 31.66666667 | Z53: 98 | AA53: 37 | AB53: 98 | AC53: 39.35 | AD53: 100 | AE53: 63.33333333 | AF53: 106 | AG53: 83.01666667 | AH53: 110 | AI53: 182 | AJ53: 110
B54: 00:06:22 | C54: 00:19:47 | D54: 93 | E54: 00:20:04 | F54: 93 | G54: 00:31:50 | H54: 97 | I54: 00:37:12 | J54: 97 | K54: 00:39:34 | L54: 99 | M54: 01:03:40 | N54: 105 | O54: 01:23:28 | P54: 109 | Q54: 03:03:00 | R54: 109 | T54: 00:06:22 | U54: 19.78333333 | V54: 93 | W54: 20.06666667 | X54: 93 | Y54: 31.83333333 | Z54: 97 | AA54: 37.2 | AB54: 97 | AC54: 39.56666667 | AD54: 99 | AE54: 63.66666667 | AF54: 105 | AG54: 83.46666667 | AH54: 109 | AI54: 183 | AJ54: 109
B55: 00:06:24 | C55: 00:19:53 | D55: 92 | E55: 00:20:10 | F55: 92 | G55: 00:32:00 | H55: 96 | I55: 00:37:24 | J55: 96 | K55: 00:39:46 | L55: 98 | M55: 01:04:00 | N55: 104 | O55: 01:23:54 | P55: 108 | Q55: 03:04:00 | R55: 108 | T55: 00:06:24 | U55: 19.88333333 | V55: 92 | W55: 20.16666667 | X55: 92 | Y55: 32 | Z55: 96 | AA55: 37.4 | AB55: 96 | AC55: 39.76666667 | AD55: 98 | AE55: 64 | AF55: 104 | AG55: 83.9 | AH55: 108 | AI55: 184 | AJ55: 108
B56: 00:06:26 | C56: 00:19:59 | D56: 91 | E56: 00:20:17 | F56: 91 | G56: 00:32:10 | H56: 95 | I56: 00:37:35 | J56: 95 | K56: 00:39:59 | L56: 97 | M56: 01:04:20 | N56: 103 | O56: 01:24:20 | P56: 107 | Q56: 03:05:00 | R56: 107 | T56: 00:06:26 | U56: 19.98333333 | V56: 91 | W56: 20.28333333 | X56: 91 | Y56: 32.16666667 | Z56: 95 | AA56: 37.58333333 | AB56: 95 | AC56: 39.98333333 | AD56: 97 | AE56: 64.33333333 | AF56: 103 | AG56: 84.33333333 | AH56: 107 | AI56: 185 | AJ56: 107
B57: 00:06:28 | C57: 00:20:05 | D57: 90 | E57: 00:20:23 | F57: 90 | G57: 00:32:20 | H57: 94 | I57: 00:37:47 | J57: 94 | K57: 00:40:11 | L57: 96 | M57: 01:04:40 | N57: 102 | O57: 01:24:46 | P57: 106 | Q57: 03:06:00 | R57: 106 | T57: 00:06:28 | U57: 20.08333333 | V57: 90 | W57: 20.38333333 | X57: 90 | Y57: 32.33333333 | Z57: 94 | AA57: 37.78333333 | AB57: 94 | AC57: 40.18333333 | AD57: 96 | AE57: 64.66666667 | AF57: 102 | AG57: 84.76666667 | AH57: 106 | AI57: 186 | AJ57: 106
B58: 00:06:30 | C58: 00:20:12 | D58: 89 | E58: 00:20:30 | F58: 89 | G58: 00:32:30 | H58: 93 | I58: 00:37:58 | J58: 93 | K58: 00:40:23 | L58: 95 | M58: 01:05:00 | N58: 101 | O58: 01:25:13 | P58: 105 | Q58: 03:07:00 | R58: 105 | T58: 00:06:30 | U58: 20.2 | V58: 89 | W58: 20.5 | X58: 89 | Y58: 32.5 | Z58: 93 | AA58: 37.96666667 | AB58: 93 | AC58: 40.38333333 | AD58: 95 | AE58: 65 | AF58: 101 | AG58: 85.21666667 | AH58: 105 | AI58: 187 | AJ58: 105
B59: 00:06:32 | C59: 00:20:18 | D59: 88 | E59: 00:20:36 | F59: 88 | G59: 00:32:40 | H59: 92 | I59: 00:38:10 | J59: 92 | K59: 00:40:36 | L59: 94 | M59: 01:05:20 | N59: 100 | O59: 01:25:39 | P59: 104 | Q59: 03:08:00 | R59: 104 | T59: 00:06:32 | U59: 20.3 | V59: 88 | W59: 20.6 | X59: 88 | Y59: 32.66666667 | Z59: 92 | AA59: 38.16666667 | AB59: 92 | AC59: 40.6 | AD59: 94 | AE59: 65.33333333 | AF59: 100 | AG59: 85.65 | AH59: 104 | AI59: 188 | AJ59: 104
B60: 00:06:34 | C60: 00:20:24 | D60: 87 | E60: 00:20:42 | F60: 87 | G60: 00:32:50 | H60: 91 | I60: 00:38:21 | J60: 91 | K60: 00:40:48 | L60: 93 | M60: 01:05:40 | N60: 99 | O60: 01:26:05 | P60: 103 | Q60: 03:09:00 | R60: 103 | T60: 00:06:34 | U60: 20.4 | V60: 87 | W60: 20.7 | X60: 87 | Y60: 32.83333333 | Z60: 91 | AA60: 38.35 | AB60: 91 | AC60: 40.8 | AD60: 93 | AE60: 65.66666667 | AF60: 99 | AG60: 86.08333333 | AH60: 103 | AI60: 189 | AJ60: 103
B61: 00:06:36 | C61: 00:20:30 | D61: 86 | E61: 00:20:48 | F61: 86 | G61: 00:33:00 | H61: 90 | I61: 00:38:33 | J61: 90 | K61: 00:41:01 | L61: 92 | M61: 01:06:00 | N61: 98 | O61: 01:26:31 | P61: 102 | Q61: 03:10:00 | R61: 102 | T61: 00:06:36 | U61: 20.5 | V61: 86 | W61: 20.8 | X61: 86 | Y61: 33 | Z61: 90 | AA61: 38.55 | AB61: 90 | AC61: 41.01666667 | AD61: 92 | AE61: 66 | AF61: 98 | AG61: 86.51666667 | AH61: 102 | AI61: 190 | AJ61: 102
B62: 00:06:38 | C62: 00:20:37 | D62: 85 | E62: 00:20:55 | F62: 85 | G62: 00:33:10 | H62: 89 | I62: 00:38:45 | J62: 89 | K62: 00:41:13 | L62: 91 | M62: 01:06:20 | N62: 97 | O62: 01:26:57 | P62: 101 | Q62: 03:11:00 | R62: 101 | T62: 00:06:38 | U62: 20.61666667 | V62: 85 | W62: 20.91666667 | X62: 85 | Y62: 33.16666667 | Z62: 89 | AA62: 38.75 | AB62: 89 | AC62: 41.21666667 | AD62: 91 | AE62: 66.33333333 | AF62: 97 | AG62: 86.95 | AH62: 101 | AI62: 191 | AJ62: 101
B63: 00:06:40 | C63: 00:20:43 | D63: 84 | E63: 00:21:01 | F63: 84 | G63: 00:33:20 | H63: 88 | I63: 00:38:56 | J63: 88 | K63: 00:41:26 | L63: 90 | M63: 01:06:40 | N63: 96 | O63: 01:27:24 | P63: 100 | Q63: 03:12:00 | R63: 100 | T63: 00:06:40 | U63: 20.71666667 | V63: 84 | W63: 21.01666667 | X63: 84 | Y63: 33.33333333 | Z63: 88 | AA63: 38.93333333 | AB63: 88 | AC63: 41.43333333 | AD63: 90 | AE63: 66.66666667 | AF63: 96 | AG63: 87.4 | AH63: 100 | AI63: 192 | AJ63: 100
B64: 00:06:42 | C64: 00:20:49 | D64: 83 | E64: 00:21:07 | F64: 83 | G64: 00:33:30 | H64: 87 | I64: 00:39:08 | J64: 87 | K64: 00:41:38 | L64: 89 | M64: 01:07:00 | N64: 95 | O64: 01:27:50 | P64: 99 | Q64: 03:13:00 | R64: 99 | T64: 00:06:42 | U64: 20.81666667 | V64: 83 | W64: 21.11666667 | X64: 83 | Y64: 33.5 | Z64: 87 | AA64: 39.13333333 | AB64: 87 | AC64: 41.63333333 | AD64: 89 | AE64: 67 | AF64: 95 | AG64: 87.83333333 | AH64: 99 | AI64: 193 | AJ64: 99
B65: 00:06:44 | C65: 00:20:55 | D65: 82 | E65: 00:21:13 | F65: 82 | G65: 00:33:40 | H65: 86 | I65: 00:39:19 | J65: 86 | K65: 00:41:50 | L65: 88 | M65: 01:07:20 | N65: 94 | O65: 01:28:16 | P65: 98 | Q65: 03:14:00 | R65: 98 | T65: 00:06:44 | U65: 20.91666667 | V65: 82 | W65: 21.21666667 | X65: 82 | Y65: 33.66666667 | Z65: 86 | AA65: 39.31666667 | AB65: 86 | AC65: 41.83333333 | AD65: 88 | AE65: 67.33333333 | AF65: 94 | AG65: 88.26666667 | AH65: 98 | AI65: 194 | AJ65: 98
B66: 00:06:46 | C66: 00:21:01 | D66: 81 | E66: 00:21:19 | F66: 81 | G66: 00:33:50 | H66: 85 | I66: 00:39:31 | J66: 85 | K66: 00:42:03 | L66: 87 | M66: 01:07:40 | N66: 93 | O66: 01:28:42 | P66: 97 | Q66: 03:15:00 | R66: 97 | T66: 00:06:46 | U66: 21.01666667 | V66: 81 | W66: 21.31666667 | X66: 81 | Y66: 33.83333333 | Z66: 85 | AA66: 39.51666667 | AB66: 85 | AC66: 42.05 | AD66: 87 | AE66: 67.66666667 | AF66: 93 | AG66: 88.7 | AH66: 97 | AI66: 195 | AJ66: 97
B67: 00:06:48 | C67: 00:21:08 | D67: 80 | E67: 00:21:26 | F67: 80 | G67: 00:34:00 | H67: 84 | I67: 00:39:43 | J67: 84 | K67: 00:42:15 | L67: 86 | M67: 01:08:00 | N67: 92 | O67: 01:29:08 | P67: 96 | Q67: 03:16:00 | R67: 96 | T67: 00:06:48 | U67: 21.13333333 | V67: 80 | W67: 21.43333333 | X67: 80 | Y67: 34 | Z67: 84 | AA67: =LEFT(I67,2)*60+MID(I67,4,2)+RIGHT(I67,2)/60 -> 39.71666667 | AB67: =J67 -> 84 | AC67: 42.25 | AD67: 86 | AE67: 68 | AF67: 92 | AG67: 89.13333333 | AH67: 96 | AI67: 196 | AJ67: 96
B68: 00:06:50 | C68: 00:21:14 | D68: 79 | E68: 00:21:33 | F68: 79 | G68: 00:34:10 | H68: 83 | I68: 00:39:55 | J68: 83 | K68: 00:42:28 | L68: 85 | M68: 01:08:20 | N68: 91 | O68: 01:29:35 | P68: 95 | Q68: 03:17:00 | R68: 95 | T68: =B68 -> 00:06:50 | U68: =LEFT(C68,2)*60+MID(C68,4,2)+RIGHT(C68,2)/60 -> 21.23333333 | V68: =D68 -> 79 | W68: 21.55 | X68: 79 | Y68: 34.16666667 | Z68: 83 | AA68: 39.91666667 | AB68: 83 | AC68: =LEFT(K68,2)*60+MID(K68,4,2)+RIGHT(K68,2)/60 -> 42.46666667 | AD68: =L68 -> 85 | AE68: =LEFT(M68,2)*60+MID(M68,4,2)+RIGHT(M68,2)/60 -> 68.33333333 | AF68: =N68 -> 91 | AG68: =LEFT(O68,2)*60+MID(O68,4,2)+RIGHT(O68,2)/60 -> 89.58333333 | AH68: =P68 -> 95 | AI68: =LEFT(Q68,2)*60+MID(Q68,4,2)+RIGHT(Q68,2)/60 -> 197 | AJ68: =R68 -> 95
B69: 00:06:52 | C69: 00:21:20 | D69: 78 | E69: 00:21:39 | F69: 78 | G69: 00:34:20 | H69: 82 | I69: 00:40:06 | J69: 82 | K69: 00:42:40 | L69: 84 | M69: 01:08:40 | N69: 90 | O69: 01:30:01 | P69: 94 | Q69: 03:18:00 | R69: 94 | T69: 00:06:52 | U69: 21.33333333 | V69: 78 | W69: 21.65 | X69: 78 | Y69: 34.33333333 | Z69: 82 | AA69: 40.1 | AB69: 82 | AC69: 42.66666667 | AD69: 84 | AE69: 68.66666667 | AF69: 90 | AG69: 90.01666667 | AH69: 94 | AI69: 198 | AJ69: 94
B70: 00:06:54 | C70: 00:21:26 | D70: 77 | E70: 00:21:45 | F70: 77 | G70: 00:34:30 | H70: 81 | I70: 00:40:17 | J70: 81 | K70: 00:42:53 | L70: 83 | M70: 01:09:00 | N70: 89 | O70: 01:30:27 | P70: 93 | Q70: 03:19:00 | R70: 93 | T70: 00:06:54 | U70: 21.43333333 | V70: 77 | W70: 21.75 | X70: 77 | Y70: 34.5 | Z70: 81 | AA70: 40.28333333 | AB70: 81 | AC70: 42.88333333 | AD70: 83 | AE70: 69 | AF70: 89 | AG70: 90.45 | AH70: 93 | AI70: 199 | AJ70: 93
B71: 00:06:56 | C71: 00:21:32 | D71: 76 | E71: 00:21:51 | F71: 76 | G71: 00:34:40 | H71: 80 | I71: 00:40:29 | J71: 80 | K71: 00:43:05 | L71: 82 | M71: 01:09:20 | N71: 88 | O71: 01:30:53 | P71: 92 | Q71: 03:20:00 | R71: 92 | T71: 00:06:56 | U71: 21.53333333 | V71: 76 | W71: 21.85 | X71: 76 | Y71: 34.66666667 | Z71: 80 | AA71: 40.48333333 | AB71: 80 | AC71: 43.08333333 | AD71: 82 | AE71: 69.33333333 | AF71: 88 | AG71: 90.88333333 | AH71: 92 | AI71: 200 | AJ71: 92
B72: 00:06:58 | C72: 00:21:39 | D72: 75 | E72: 00:21:58 | F72: 75 | G72: 00:34:50 | H72: 79 | I72: 00:40:41 | J72: 79 | K72: 00:43:17 | L72: 81 | M72: 01:09:40 | N72: 87 | O72: 01:31:20 | P72: 91 | Q72: 03:21:00 | R72: 91 | T72: 00:06:58 | U72: 21.65 | V72: 75 | W72: 21.96666667 | X72: 75 | Y72: 34.83333333 | Z72: 79 | AA72: 40.68333333 | AB72: 79 | AC72: 43.28333333 | AD72: 81 | AE72: 69.66666667 | AF72: 87 | AG72: 91.33333333 | AH72: 91 | AI72: 201 | AJ72: 91
B73: 00:07:00 | C73: 00:21:45 | D73: 74 | E73: 00:22:04 | F73: 74 | G73: 00:35:00 | H73: 78 | I73: 00:40:53 | J73: 78 | K73: 00:43:30 | L73: 80 | M73: 01:10:00 | N73: 86 | O73: 01:31:46 | P73: 90 | Q73: 03:22:00 | R73: 90 | T73: 00:07:00 | U73: 21.75 | V73: 74 | W73: 22.06666667 | X73: 74 | Y73: 35 | Z73: 78 | AA73: 40.88333333 | AB73: 78 | AC73: 43.5 | AD73: 80 | AE73: 70 | AF73: 86 | AG73: 91.76666667 | AH73: 90 | AI73: 202 | AJ73: 90
B74: 00:07:02 | C74: 00:21:51 | D74: 73 | E74: 00:22:10 | F74: 73 | G74: 00:35:10 | H74: 77 | I74: 00:41:04 | J74: 77 | K74: 00:43:42 | L74: 79 | M74: 01:10:20 | N74: 85 | O74: 01:32:12 | P74: 89 | Q74: 03:23:00 | R74: 89 | T74: 00:07:02 | U74: 21.85 | V74: 73 | W74: 22.16666667 | X74: 73 | Y74: 35.16666667 | Z74: 77 | AA74: 41.06666667 | AB74: 77 | AC74: 43.7 | AD74: 79 | AE74: 70.33333333 | AF74: 85 | AG74: 92.2 | AH74: 89 | AI74: 203 | AJ74: 89
B75: 00:07:04 | C75: 00:21:57 | D75: 72 | E75: 00:22:16 | F75: 72 | G75: 00:35:20 | H75: 76 | I75: 00:41:16 | J75: 76 | K75: 00:43:55 | L75: 78 | M75: 01:10:40 | N75: 84 | O75: 01:32:38 | P75: 88 | Q75: 03:24:00 | R75: 88 | T75: 00:07:04 | U75: 21.95 | V75: 72 | W75: 22.26666667 | X75: 72 | Y75: 35.33333333 | Z75: 76 | AA75: 41.26666667 | AB75: 76 | AC75: 43.91666667 | AD75: 78 | AE75: 70.66666667 | AF75: 84 | AG75: 92.63333333 | AH75: 88 | AI75: 204 | AJ75: 88
B76: 00:07:06 | C76: 00:22:04 | D76: 71 | E76: 00:22:23 | F76: 71 | G76: 00:35:30 | H76: 75 | I76: 00:41:27 | J76: 75 | K76: 00:44:07 | L76: 77 | M76: 01:11:00 | N76: 83 | O76: 01:33:04 | P76: 87 | Q76: 03:25:00 | R76: 87 | T76: 00:07:06 | U76: 22.06666667 | V76: 71 | W76: 22.38333333 | X76: 71 | Y76: 35.5 | Z76: 75 | AA76: 41.45 | AB76: 75 | AC76: 44.11666667 | AD76: 77 | AE76: 71 | AF76: 83 | AG76: 93.06666667 | AH76: 87 | AI76: 205 | AJ76: 87
B77: 00:07:08 | C77: 00:22:10 | D77: 70 | E77: 00:22:29 | F77: 70 | G77: 00:35:40 | H77: 74 | I77: 00:41:38 | J77: 74 | K77: 00:44:20 | L77: 76 | M77: 01:11:20 | N77: 82 | O77: 01:33:31 | P77: 86 | Q77: 03:26:00 | R77: 86 | T77: 00:07:08 | U77: 22.16666667 | V77: 70 | W77: 22.48333333 | X77: 70 | Y77: 35.66666667 | Z77: 74 | AA77: 41.63333333 | AB77: 74 | AC77: 44.33333333 | AD77: 76 | AE77: 71.33333333 | AF77: 82 | AG77: 93.51666667 | AH77: 86 | AI77: 206 | AJ77: 86
B78: 00:07:10 | C78: 00:22:16 | D78: 69 | E78: 00:22:35 | F78: 69 | G78: 00:35:50 | H78: 73 | I78: 00:41:50 | J78: 73 | K78: 00:44:32 | L78: 75 | M78: 01:11:40 | N78: 81 | O78: 01:33:57 | P78: 85 | Q78: 03:27:00 | R78: 85 | T78: 00:07:10 | U78: 22.26666667 | V78: 69 | W78: 22.58333333 | X78: 69 | Y78: 35.83333333 | Z78: 73 | AA78: 41.83333333 | AB78: 73 | AC78: 44.53333333 | AD78: 75 | AE78: 71.66666667 | AF78: 81 | AG78: 93.95 | AH78: 85 | AI78: 207 | AJ78: 85
B79: 00:07:12 | C79: 00:22:22 | D79: 68 | E79: 00:22:41 | F79: 68 | G79: 00:36:00 | H79: 72 | I79: 00:42:02 | J79: 72 | K79: 00:44:44 | L79: 74 | M79: 01:12:00 | N79: 80 | O79: 01:34:23 | P79: 84 | Q79: 03:28:00 | R79: 84 | T79: 00:07:12 | U79: 22.36666667 | V79: 68 | W79: 22.68333333 | X79: 68 | Y79: 36 | Z79: 72 | AA79: 42.03333333 | AB79: 72 | AC79: 44.73333333 | AD79: 74 | AE79: 72 | AF79: 80 | AG79: 94.38333333 | AH79: 84 | AI79: 208 | AJ79: 84
B80: 00:07:14 | C80: 00:22:28 | D80: 67 | E80: 00:22:48 | F80: 67 | G80: 00:36:10 | H80: 71 | I80: 00:42:14 | J80: 71 | K80: 00:44:57 | L80: 73 | M80: 01:12:20 | N80: 79 | O80: 01:34:49 | P80: 83 | Q80: 03:29:00 | R80: 83 | T80: 00:07:14 | U80: 22.46666667 | V80: 67 | W80: 22.8 | X80: 67 | Y80: 36.16666667 | Z80: 71 | AA80: 42.23333333 | AB80: 71 | AC80: 44.95 | AD80: 73 | AE80: 72.33333333 | AF80: 79 | AG80: 94.81666667 | AH80: 83 | AI80: 209 | AJ80: 83
B81: 00:07:16 | C81: 00:22:35 | D81: 66 | E81: 00:22:55 | F81: 66 | G81: 00:36:20 | H81: 70 | I81: 00:42:25 | J81: 70 | K81: 00:45:09 | L81: 72 | M81: 01:12:40 | N81: 78 | O81: 01:35:16 | P81: 82 | Q81: 03:30:00 | R81: 82 | T81: 00:07:16 | U81: 22.58333333 | V81: 66 | W81: 22.91666667 | X81: 66 | Y81: 36.33333333 | Z81: 70 | AA81: 42.41666667 | AB81: 70 | AC81: 45.15 | AD81: 72 | AE81: 72.66666667 | AF81: 78 | AG81: 95.26666667 | AH81: 82 | AI81: 210 | AJ81: 82
B82: 00:07:18 | C82: 00:22:41 | D82: 65 | E82: 00:23:01 | F82: 65 | G82: 00:36:30 | H82: 69 | I82: 00:42:37 | J82: 69 | K82: 00:45:22 | L82: 71 | M82: 01:13:00 | N82: 77 | O82: 01:35:42 | P82: 81 | Q82: 03:31:00 | R82: 81 | T82: 00:07:18 | U82: 22.68333333 | V82: 65 | W82: 23.01666667 | X82: 65 | Y82: 36.5 | Z82: 69 | AA82: 42.61666667 | AB82: 69 | AC82: 45.36666667 | AD82: 71 | AE82: 73 | AF82: 77 | AG82: 95.7 | AH82: 81 | AI82: 211 | AJ82: 81
B83: 00:07:20 | C83: 00:22:47 | D83: 64 | E83: 00:23:07 | F83: 64 | G83: 00:36:40 | H83: 68 | I83: 00:42:48 | J83: 68 | K83: 00:45:34 | L83: 70 | M83: 01:13:20 | N83: 76 | O83: 01:36:08 | P83: 80 | Q83: 03:32:00 | R83: 80 | T83: 00:07:20 | U83: 22.78333333 | V83: 64 | W83: 23.11666667 | X83: 64 | Y83: 36.66666667 | Z83: 68 | AA83: 42.8 | AB83: 68 | AC83: 45.56666667 | AD83: 70 | AE83: 73.33333333 | AF83: 76 | AG83: 96.13333333 | AH83: 80 | AI83: 212 | AJ83: 80
B84: 00:07:22 | C84: 00:22:53 | D84: 63 | E84: 00:23:13 | F84: 63 | G84: 00:36:50 | H84: 67 | I84: 00:43:00 | J84: 67 | K84: 00:45:47 | L84: 69 | M84: 01:13:40 | N84: 75 | O84: 01:36:34 | P84: 79 | Q84: 03:33:00 | R84: 79 | T84: 00:07:22 | U84: 22.88333333 | V84: 63 | W84: 23.21666667 | X84: 63 | Y84: 36.83333333 | Z84: 67 | AA84: 43 | AB84: 67 | AC84: 45.78333333 | AD84: 69 | AE84: 73.66666667 | AF84: 75 | AG84: 96.56666667 | AH84: 79 | AI84: 213 | AJ84: 79
B85: 00:07:24 | C85: 00:22:59 | D85: 62 | E85: 00:23:19 | F85: 62 | G85: 00:37:00 | H85: 66 | I85: 00:43:12 | J85: 66 | K85: 00:45:59 | L85: 68 | M85: 01:14:00 | N85: 74 | O85: 01:37:00 | P85: 78 | Q85: 03:34:00 | R85: 78 | T85: 00:07:24 | U85: 22.98333333 | V85: 62 | W85: 23.31666667 | X85: 62 | Y85: 37 | Z85: 66 | AA85: 43.2 | AB85: 66 | AC85: 45.98333333 | AD85: 68 | AE85: 74 | AF85: 74 | AG85: 97 | AH85: 78 | AI85: 214 | AJ85: 78
B86: 00:07:26 | C86: 00:23:06 | D86: 61 | E86: 00:23:26 | F86: 61 | G86: 00:37:10 | H86: 65 | I86: 00:43:23 | J86: 65 | K86: 00:46:11 | L86: 67 | M86: 01:14:20 | N86: 73 | O86: 01:37:27 | P86: 77 | Q86: 03:35:00 | R86: 77 | T86: 00:07:26 | U86: 23.1 | V86: 61 | W86: 23.43333333 | X86: 61 | Y86: 37.16666667 | Z86: 65 | AA86: 43.38333333 | AB86: 65 | AC86: 46.18333333 | AD86: 67 | AE86: 74.33333333 | AF86: 73 | AG86: 97.45 | AH86: 77 | AI86: 215 | AJ86: 77
B87: 00:07:28 | C87: 00:23:12 | D87: 60 | E87: 00:23:32 | F87: 60 | G87: 00:37:20 | H87: 64 | I87: 00:43:35 | J87: 64 | K87: 00:46:24 | L87: 66 | M87: 01:14:40 | N87: 72 | O87: 01:37:53 | P87: 76 | Q87: 03:36:00 | R87: 76 | T87: 00:07:28 | U87: 23.2 | V87: 60 | W87: 23.53333333 | X87: 60 | Y87: 37.33333333 | Z87: 64 | AA87: 43.58333333 | AB87: 64 | AC87: 46.4 | AD87: 66 | AE87: 74.66666667 | AF87: 72 | AG87: 97.88333333 | AH87: 76 | AI87: 216 | AJ87: 76
B88: 00:07:30 | C88: 00:23:18 | D88: 59 | E88: 00:23:38 | F88: 59 | G88: 00:37:30 | H88: 63 | I88: 00:43:46 | J88: 63 | K88: 00:46:36 | L88: 65 | M88: 01:15:00 | N88: 71 | O88: 01:38:19 | P88: 75 | Q88: 03:37:00 | R88: 75 | T88: 00:07:30 | U88: 23.3 | V88: 59 | W88: 23.63333333 | X88: 59 | Y88: 37.5 | Z88: 63 | AA88: 43.76666667 | AB88: 63 | AC88: 46.6 | AD88: 65 | AE88: 75 | AF88: 71 | AG88: 98.31666667 | AH88: 75 | AI88: 217 | AJ88: 75
B89: 00:07:32 | C89: 00:23:24 | D89: 58 | E89: 00:23:44 | F89: 58 | G89: 00:37:40 | H89: 62 | I89: 00:43:58 | J89: 62 | K89: 00:46:49 | L89: 64 | M89: 01:15:20 | N89: 70 | O89: 01:38:45 | P89: 74 | Q89: 03:38:00 | R89: 74 | T89: 00:07:32 | U89: 23.4 | V89: 58 | W89: 23.73333333 | X89: 58 | Y89: 37.66666667 | Z89: 62 | AA89: 43.96666667 | AB89: 62 | AC89: 46.81666667 | AD89: 64 | AE89: 75.33333333 | AF89: 70 | AG89: 98.75 | AH89: 74 | AI89: 218 | AJ89: 74
B90: 00:07:34 | C90: 00:23:31 | D90: 57 | E90: 00:23:51 | F90: 57 | G90: 00:37:50 | H90: 61 | I90: 00:44:10 | J90: 61 | K90: 00:47:01 | L90: 63 | M90: 01:15:40 | N90: 69 | O90: 01:39:11 | P90: 73 | Q90: 03:39:00 | R90: 73 | T90: 00:07:34 | U90: 23.51666667 | V90: 57 | W90: 23.85 | X90: 57 | Y90: 37.83333333 | Z90: 61 | AA90: 44.16666667 | AB90: 61 | AC90: 47.01666667 | AD90: 63 | AE90: 75.66666667 | AF90: 69 | AG90: 99.18333333 | AH90: 73 | AI90: 219 | AJ90: 73
B91: 00:07:36 | C91: 00:23:37 | D91: 56 | E91: 00:23:58 | F91: 56 | G91: 00:38:00 | H91: 60 | I91: 00:44:21 | J91: 60 | K91: 00:47:14 | L91: 62 | M91: 01:16:00 | N91: 68 | O91: 01:39:38 | P91: 72 | Q91: 03:40:00 | R91: 72 | T91: 00:07:36 | U91: 23.61666667 | V91: 56 | W91: 23.96666667 | X91: 56 | Y91: 38 | Z91: 60 | AA91: 44.35 | AB91: 60 | AC91: 47.23333333 | AD91: 62 | AE91: 76 | AF91: 68 | AG91: 99.63333333 | AH91: 72 | AI91: 220 | AJ91: 72
B92: 00:07:38 | C92: 00:23:43 | D92: 55 | E92: 00:24:04 | F92: 55 | G92: 00:38:10 | H92: 59 | I92: 00:44:33 | J92: 59 | K92: 00:47:26 | L92: 61 | M92: 01:16:20 | N92: 67 | O92: 01:40:04 | P92: 71 | Q92: 03:41:00 | R92: 71 | T92: 00:07:38 | U92: 23.71666667 | V92: 55 | W92: 24.06666667 | X92: 55 | Y92: 38.16666667 | Z92: 59 | AA92: 44.55 | AB92: 59 | AC92: 47.43333333 | AD92: 61 | AE92: 76.33333333 | AF92: 67 | AG92: 100.0666667 | AH92: 71 | AI92: 221 | AJ92: 71
B93: 00:07:40 | C93: 00:23:49 | D93: 54 | E93: 00:24:10 | F93: 54 | G93: 00:38:20 | H93: 58 | I93: 00:44:44 | J93: 58 | K93: 00:47:38 | L93: 60 | M93: 01:16:40 | N93: 66 | O93: 01:40:30 | P93: 70 | Q93: 03:42:00 | R93: 70 | T93: 00:07:40 | U93: 23.81666667 | V93: 54 | W93: 24.16666667 | X93: 54 | Y93: 38.33333333 | Z93: 58 | AA93: 44.73333333 | AB93: 58 | AC93: 47.63333333 | AD93: 60 | AE93: 76.66666667 | AF93: 66 | AG93: 100.5 | AH93: 70 | AI93: 222 | AJ93: 70
B94: 00:07:42 | C94: 00:23:55 | D94: 53 | E94: 00:24:16 | F94: 53 | G94: 00:38:30 | H94: 57 | I94: 00:44:56 | J94: 57 | K94: 00:47:51 | L94: 59 | M94: 01:17:00 | N94: 65 | O94: 01:40:56 | P94: 69 | Q94: 03:43:00 | R94: 69 | T94: 00:07:42 | U94: 23.91666667 | V94: 53 | W94: 24.26666667 | X94: 53 | Y94: 38.5 | Z94: 57 | AA94: 44.93333333 | AB94: 57 | AC94: 47.85 | AD94: 59 | AE94: 77 | AF94: 65 | AG94: 100.9333333 | AH94: 69 | AI94: 223 | AJ94: 69
B95: 00:07:44 | C95: 00:24:02 | D95: 52 | E95: 00:24:23 | F95: 52 | G95: 00:38:40 | H95: 56 | I95: 00:45:07 | J95: 56 | K95: 00:48:03 | L95: 58 | M95: 01:17:20 | N95: 64 | O95: 01:41:23 | P95: 68 | Q95: 03:44:00 | R95: 68 | T95: 00:07:44 | U95: 24.03333333 | V95: 52 | W95: 24.38333333 | X95: 52 | Y95: 38.66666667 | Z95: 56 | AA95: 45.11666667 | AB95: 56 | AC95: 48.05 | AD95: 58 | AE95: 77.33333333 | AF95: 64 | AG95: 101.3833333 | AH95: 68 | AI95: 224 | AJ95: 68
B96: 00:07:46 | C96: 00:24:08 | D96: 51 | E96: 00:24:29 | F96: 51 | G96: 00:38:50 | H96: 55 | I96: 00:45:19 | J96: 55 | K96: 00:48:16 | L96: 57 | M96: 01:17:40 | N96: 63 | O96: 01:41:49 | P96: 67 | Q96: 03:45:00 | R96: 67 | T96: 00:07:46 | U96: 24.13333333 | V96: 51 | W96: 24.48333333 | X96: 51 | Y96: 38.83333333 | Z96: 55 | AA96: 45.31666667 | AB96: 55 | AC96: 48.26666667 | AD96: 57 | AE96: 77.66666667 | AF96: 63 | AG96: 101.8166667 | AH96: 67 | AI96: 225 | AJ96: 67
B97: 00:07:48 | C97: 00:24:14 | D97: 50 | E97: 00:24:35 | F97: 50 | G97: 00:39:00 | H97: 54 | I97: 00:45:31 | J97: 54 | K97: 00:48:28 | L97: 56 | M97: 01:18:00 | N97: 62 | O97: 01:42:15 | P97: 66 | Q97: 03:46:00 | R97: 66 | T97: 00:07:48 | U97: 24.23333333 | V97: 50 | W97: 24.58333333 | X97: 50 | Y97: 39 | Z97: 54 | AA97: 45.51666667 | AB97: 54 | AC97: 48.46666667 | AD97: 56 | AE97: 78 | AF97: 62 | AG97: 102.25 | AH97: 66 | AI97: 226 | AJ97: 66
B98: 00:07:50 | C98: 00:24:20 | D98: 49 | E98: 00:24:41 | F98: 49 | G98: 00:39:10 | H98: 53 | I98: 00:45:42 | J98: 53 | K98: 00:48:41 | L98: 55 | M98: 01:18:20 | N98: 61 | O98: 01:42:41 | P98: 65 | Q98: 03:47:00 | R98: 65 | T98: 00:07:50 | U98: 24.33333333 | V98: 49 | W98: 24.68333333 | X98: 49 | Y98: 39.16666667 | Z98: 53 | AA98: 45.7 | AB98: 53 | AC98: 48.68333333 | AD98: 55 | AE98: 78.33333333 | AF98: 61 | AG98: 102.6833333 | AH98: 65 | AI98: 227 | AJ98: 65
B99: 00:07:52 | C99: 00:24:26 | D99: 48 | E99: 00:24:47 | F99: 48 | G99: 00:39:20 | H99: 52 | I99: 00:45:54 | J99: 52 | K99: 00:48:53 | L99: 54 | M99: 01:18:40 | N99: 60 | O99: 01:43:07 | P99: 64 | Q99: 03:48:00 | R99: 64 | T99: 00:07:52 | U99: 24.43333333 | V99: 48 | W99: 24.78333333 | X99: 48 | Y99: 39.33333333 | Z99: 52 | AA99: 45.9 | AB99: 52 | AC99: 48.88333333 | AD99: 54 | AE99: 78.66666667 | AF99: 60 | AG99: 103.1166667 | AH99: 64 | AI99: 228 | AJ99: 64
B100: 00:07:54 | C100: 00:24:33 | D100: 47 | E100: 00:24:54 | F100: 47 | G100: 00:39:30 | H100: 51 | I100: 00:46:05 | J100: 51 | K100: 00:49:05 | L100: 53 | M100: 01:19:00 | N100: 59 | O100: 01:43:34 | P100: 63 | Q100: 03:49:00 | R100: 63 | T100: 00:07:54 | U100: 24.55 | V100: 47 | W100: 24.9 | X100: 47 | Y100: 39.5 | Z100: 51 | AA100: 46.08333333 | AB100: 51 | AC100: 49.08333333 | AD100: 53 | AE100: 79 | AF100: 59 | AG100: 103.5666667 | AH100: 63 | AI100: 229 | AJ100: 63
B101: 00:07:56 | C101: 00:24:39 | D101: 46 | E101: 00:25:00 | F101: 46 | G101: 00:39:40 | H101: 50 | I101: 00:46:17 | J101: 50 | K101: 00:49:18 | L101: 52 | M101: 01:19:20 | N101: 58 | O101: 01:44:00 | P101: 62 | Q101: 03:50:00 | R101: 62 | T101: 00:07:56 | U101: 24.65 | V101: 46 | W101: 25 | X101: 46 | Y101: 39.66666667 | Z101: 50 | AA101: 46.28333333 | AB101: 50 | AC101: 49.3 | AD101: 52 | AE101: 79.33333333 | AF101: 58 | AG101: 104 | AH101: 62 | AI101: 230 | AJ101: 62
B102: 00:07:58 | C102: 00:24:45 | D102: 45 | E102: 00:25:06 | F102: 45 | G102: 00:39:50 | H102: 49 | I102: 00:46:29 | J102: 49 | K102: 00:49:30 | L102: 51 | M102: 01:19:40 | N102: 57 | O102: 01:44:26 | P102: 61 | Q102: 03:51:00 | R102: 61 | T102: 00:07:58 | U102: 24.75 | V102: 45 | W102: 25.1 | X102: 45 | Y102: 39.83333333 | Z102: 49 | AA102: 46.48333333 | AB102: 49 | AC102: 49.5 | AD102: 51 | AE102: 79.66666667 | AF102: 57 | AG102: 104.4333333 | AH102: 61 | AI102: 231 | AJ102: 61
B103: 00:08:00 | C103: 00:24:51 | D103: 44 | E103: 00:25:13 | F103: 44 | G103: 00:40:00 | H103: 48 | I103: 00:46:41 | J103: 48 | K103: 00:49:43 | L103: 50 | M103: 01:20:00 | N103: 56 | O103: 01:44:52 | P103: 60 | Q103: 03:52:00 | R103: 60 | T103: 00:08:00 | U103: 24.85 | V103: 44 | W103: 25.21666667 | X103: 44 | Y103: 40 | Z103: 48 | AA103: 46.68333333 | AB103: 48 | AC103: 49.71666667 | AD103: 50 | AE103: 80 | AF103: 56 | AG103: 104.8666667 | AH103: 60 | AI103: 232 | AJ103: 60
B104: 00:08:02 | C104: 00:24:58 | D104: 43 | E104: 00:25:20 | F104: 43 | G104: 00:40:10 | H104: 47 | I104: 00:46:52 | J104: 47 | K104: 00:49:55 | L104: 49 | M104: 01:20:20 | N104: 55 | O104: 01:45:19 | P104: 59 | Q104: 03:53:00 | R104: 59 | T104: 00:08:02 | U104: 24.96666667 | V104: 43 | W104: 25.33333333 | X104: 43 | Y104: 40.16666667 | Z104: 47 | AA104: 46.86666667 | AB104: 47 | AC104: 49.91666667 | AD104: 49 | AE104: 80.33333333 | AF104: 55 | AG104: 105.3166667 | AH104: 59 | AI104: 233 | AJ104: 59
B105: 00:08:04 | C105: 00:25:04 | D105: 42 | E105: 00:25:26 | F105: 42 | G105: 00:40:20 | H105: 46 | I105: 00:47:03 | J105: 46 | K105: 00:50:08 | L105: 48 | M105: 01:20:40 | N105: 54 | O105: 01:45:45 | P105: 58 | Q105: 03:54:00 | R105: 58 | T105: 00:08:04 | U105: 25.06666667 | V105: 42 | W105: 25.43333333 | X105: 42 | Y105: 40.33333333 | Z105: 46 | AA105: 47.05 | AB105: 46 | AC105: 50.13333333 | AD105: 48 | AE105: 80.66666667 | AF105: 54 | AG105: 105.75 | AH105: 58 | AI105: 234 | AJ105: 58
B106: 00:08:06 | C106: 00:25:10 | D106: 41 | E106: 00:25:32 | F106: 41 | G106: 00:40:30 | H106: 45 | I106: 00:47:15 | J106: 45 | K106: 00:50:20 | L106: 47 | M106: 01:21:00 | N106: 53 | O106: 01:46:11 | P106: 57 | Q106: 03:55:00 | R106: 57 | T106: 00:08:06 | U106: 25.16666667 | V106: 41 | W106: 25.53333333 | X106: 41 | Y106: 40.5 | Z106: 45 | AA106: 47.25 | AB106: 45 | AC106: 50.33333333 | AD106: 47 | AE106: 81 | AF106: 53 | AG106: 106.1833333 | AH106: 57 | AI106: 235 | AJ106: 57
B107: 00:08:08 | C107: 00:25:16 | D107: 40 | E107: 00:25:38 | F107: 40 | G107: 00:40:40 | H107: 44 | I107: 00:47:27 | J107: 44 | K107: 00:50:32 | L107: 46 | M107: 01:21:20 | N107: 52 | O107: 01:46:37 | P107: 56 | Q107: 03:56:00 | R107: 56 | T107: 00:08:08 | U107: 25.26666667 | V107: 40 | W107: 25.63333333 | X107: 40 | Y107: 40.66666667 | Z107: 44 | AA107: 47.45 | AB107: 44 | AC107: 50.53333333 | AD107: 46 | AE107: 81.33333333 | AF107: 52 | AG107: 106.6166667 | AH107: 56 | AI107: 236 | AJ107: 56
B108: 00:08:10 | C108: 00:25:22 | D108: 39 | E108: 00:25:44 | F108: 39 | G108: 00:40:50 | H108: 43 | I108: 00:47:39 | J108: 43 | K108: 00:50:45 | L108: 45 | M108: 01:21:40 | N108: 51 | O108: 01:47:03 | P108: 55 | Q108: 03:57:00 | R108: 55 | T108: 00:08:10 | U108: 25.36666667 | V108: 39 | W108: 25.73333333 | X108: 39 | Y108: 40.83333333 | Z108: 43 | AA108: 47.65 | AB108: 43 | AC108: 50.75 | AD108: 45 | AE108: 81.66666667 | AF108: 51 | AG108: 107.05 | AH108: 55 | AI108: 237 | AJ108: 55
B109: 00:08:12 | C109: 00:25:29 | D109: 38 | E109: 00:25:51 | F109: 38 | G109: 00:41:00 | H109: 42 | I109: 00:47:50 | J109: 42 | K109: 00:50:57 | L109: 44 | M109: 01:22:00 | N109: 50 | O109: 01:47:30 | P109: 54 | Q109: 03:58:00 | R109: 54 | T109: 00:08:12 | U109: 25.48333333 | V109: 38 | W109: 25.85 | X109: 38 | Y109: 41 | Z109: 42 | AA109: 47.83333333 | AB109: 42 | AC109: 50.95 | AD109: 44 | AE109: 82 | AF109: 50 | AG109: 107.5 | AH109: 54 | AI109: 238 | AJ109: 54
B110: 00:08:14 | C110: 00:25:35 | D110: 37 | E110: 00:25:57 | F110: 37 | G110: 00:41:10 | H110: 41 | I110: 00:48:02 | J110: 41 | K110: 00:51:10 | L110: 43 | M110: 01:22:20 | N110: 49 | O110: 01:47:56 | P110: 53 | Q110: 03:59:00 | R110: 53 | T110: 00:08:14 | U110: 25.58333333 | V110: 37 | W110: 25.95 | X110: 37 | Y110: 41.16666667 | Z110: 41 | AA110: 48.03333333 | AB110: 41 | AC110: 51.16666667 | AD110: 43 | AE110: 82.33333333 | AF110: 49 | AG110: 107.9333333 | AH110: 53 | AI110: 239 | AJ110: 53
B111: 00:08:16 | C111: 00:25:41 | D111: 36 | E111: 00:26:03 | F111: 36 | G111: 00:41:20 | H111: 40 | I111: 00:48:13 | J111: 40 | K111: 00:51:22 | L111: 42 | M111: 01:22:40 | N111: 48 | O111: 01:48:22 | P111: 52 | Q111: 04:00:00 | R111: 52 | T111: 00:08:16 | U111: 25.68333333 | V111: 36 | W111: 26.05 | X111: 36 | Y111: 41.33333333 | Z111: 40 | AA111: 48.21666667 | AB111: 40 | AC111: 51.36666667 | AD111: 42 | AE111: 82.66666667 | AF111: 48 | AG111: 108.3666667 | AH111: 52 | AI111: 240 | AJ111: 52
B112: 00:08:18 | C112: 00:25:47 | D112: 35 | E112: 00:26:09 | F112: 35 | G112: 00:41:30 | H112: 39 | I112: 00:48:24 | J112: 39 | K112: 00:51:35 | L112: 41 | M112: 01:23:00 | N112: 47 | O112: 01:48:48 | P112: 51 | Q112: 04:01:00 | R112: 51 | T112: 00:08:18 | U112: 25.78333333 | V112: 35 | W112: 26.15 | X112: 35 | Y112: 41.5 | Z112: 39 | AA112: 48.4 | AB112: 39 | AC112: 51.58333333 | AD112: 41 | AE112: 83 | AF112: 47 | AG112: 108.8 | AH112: 51 | AI112: 241 | AJ112: 51
B113: 00:08:20 | C113: 00:25:53 | D113: 34 | E113: 00:26:15 | F113: 34 | G113: 00:41:40 | H113: 38 | I113: 00:48:36 | J113: 38 | K113: 00:51:47 | L113: 40 | M113: 01:23:20 | N113: 46 | O113: 01:49:15 | P113: 50 | Q113: 04:02:00 | R113: 50 | T113: 00:08:20 | U113: 25.88333333 | V113: 34 | W113: 26.25 | X113: 34 | Y113: 41.66666667 | Z113: 38 | AA113: 48.6 | AB113: 38 | AC113: 51.78333333 | AD113: 40 | AE113: 83.33333333 | AF113: 46 | AG113: 109.25 | AH113: 50 | AI113: 242 | AJ113: 50
B114: 00:08:22 | C114: 00:26:00 | D114: 33 | E114: 00:26:22 | F114: 33 | G114: 00:41:50 | H114: 37 | I114: 00:48:48 | J114: 37 | K114: 00:51:59 | L114: 39 | M114: 01:23:40 | N114: 45 | O114: 01:49:41 | P114: 49 | Q114: 04:03:00 | R114: 49 | T114: 00:08:22 | U114: 26 | V114: 33 | W114: 26.36666667 | X114: 33 | Y114: 41.83333333 | Z114: 37 | AA114: 48.8 | AB114: 37 | AC114: 51.98333333 | AD114: 39 | AE114: 83.66666667 | AF114: 45 | AG114: 109.6833333 | AH114: 49 | AI114: 243 | AJ114: 49
B115: 00:08:24 | C115: 00:26:06 | D115: 32 | E115: 00:26:29 | F115: 32 | G115: 00:42:00 | H115: 36 | I115: 00:49:00 | J115: 36 | K115: 00:52:12 | L115: 38 | M115: 01:24:00 | N115: 44 | O115: 01:50:07 | P115: 48 | Q115: 04:04:00 | R115: 48 | T115: 00:08:24 | U115: 26.1 | V115: 32 | W115: 26.48333333 | X115: 32 | Y115: 42 | Z115: 36 | AA115: 49 | AB115: 36 | AC115: 52.2 | AD115: 38 | AE115: 84 | AF115: 44 | AG115: 110.1166667 | AH115: 48 | AI115: 244 | AJ115: 48
B116: 00:08:26 | C116: 00:26:12 | D116: 31 | E116: 00:26:35 | F116: 31 | G116: 00:42:10 | H116: 35 | I116: 00:49:11 | J116: 35 | K116: 00:52:24 | L116: 37 | M116: 01:24:20 | N116: 43 | O116: 01:50:33 | P116: 47 | Q116: 04:05:00 | R116: 47 | T116: 00:08:26 | U116: 26.2 | V116: 31 | W116: 26.58333333 | X116: 31 | Y116: 42.16666667 | Z116: 35 | AA116: 49.18333333 | AB116: 35 | AC116: 52.4 | AD116: 37 | AE116: 84.33333333 | AF116: 43 | AG116: 110.55 | AH116: 47 | AI116: 245 | AJ116: 47
B117: 00:08:28 | C117: 00:26:18 | D117: 30 | E117: 00:26:41 | F117: 30 | G117: 00:42:20 | H117: 34 | I117: 00:49:23 | J117: 34 | K117: 00:52:37 | L117: 36 | M117: 01:24:40 | N117: 42 | O117: 01:50:59 | P117: 46 | Q117: 04:06:00 | R117: 46 | T117: 00:08:28 | U117: 26.3 | V117: 30 | W117: 26.68333333 | X117: 30 | Y117: 42.33333333 | Z117: 34 | AA117: 49.38333333 | AB117: 34 | AC117: 52.61666667 | AD117: 36 | AE117: 84.66666667 | AF117: 42 | AG117: 110.9833333 | AH117: 46 | AI117: 246 | AJ117: 46
B118: 00:08:30 | C118: 00:26:25 | D118: 29 | E118: 00:26:48 | F118: 29 | G118: 00:42:30 | H118: 33 | I118: 00:49:34 | J118: 33 | K118: 00:52:49 | L118: 35 | M118: 01:25:00 | N118: 41 | O118: 01:51:26 | P118: 45 | Q118: 04:07:00 | R118: 45 | T118: 00:08:30 | U118: 26.41666667 | V118: 29 | W118: 26.8 | X118: 29 | Y118: 42.5 | Z118: 33 | AA118: 49.56666667 | AB118: 33 | AC118: 52.81666667 | AD118: 35 | AE118: 85 | AF118: 41 | AG118: 111.4333333 | AH118: 45 | AI118: 247 | AJ118: 45
B119: 00:08:32 | C119: 00:26:31 | D119: 28 | E119: 00:26:54 | F119: 28 | G119: 00:42:40 | H119: 32 | I119: 00:49:46 | J119: 32 | K119: 00:53:02 | L119: 34 | M119: 01:25:20 | N119: 40 | O119: 01:51:52 | P119: 44 | Q119: 04:08:00 | R119: 44 | T119: 00:08:32 | U119: 26.51666667 | V119: 28 | W119: 26.9 | X119: 28 | Y119: 42.66666667 | Z119: 32 | AA119: 49.76666667 | AB119: 32 | AC119: 53.03333333 | AD119: 34 | AE119: 85.33333333 | AF119: 40 | AG119: 111.8666667 | AH119: 44 | AI119: 248 | AJ119: 44
B120: 00:08:34 | C120: 00:26:37 | D120: 27 | E120: 00:27:00 | F120: 27 | G120: 00:42:50 | H120: 31 | I120: 00:49:58 | J120: 31 | K120: 00:53:14 | L120: 33 | M120: 01:25:40 | N120: 39 | O120: 01:52:18 | P120: 43 | Q120: 04:09:00 | R120: 43 | T120: 00:08:34 | U120: 26.61666667 | V120: 27 | W120: 27 | X120: 27 | Y120: 42.83333333 | Z120: 31 | AA120: 49.96666667 | AB120: 31 | AC120: 53.23333333 | AD120: 33 | AE120: 85.66666667 | AF120: 39 | AG120: 112.3 | AH120: 43 | AI120: 249 | AJ120: 43
B121: 00:08:36 | C121: 00:26:43 | D121: 26 | E121: 00:27:06 | F121: 26 | G121: 00:43:00 | H121: 30 | I121: 00:50:09 | J121: 30 | K121: 00:53:26 | L121: 32 | M121: 01:26:00 | N121: 38 | O121: 01:52:44 | P121: 42 | Q121: 04:10:00 | R121: 42 | T121: 00:08:36 | U121: 26.71666667 | V121: 26 | W121: 27.1 | X121: 26 | Y121: 43 | Z121: 30 | AA121: 50.15 | AB121: 30 | AC121: 53.43333333 | AD121: 32 | AE121: 86 | AF121: 38 | AG121: 112.7333333 | AH121: 42 | AI121: 250 | AJ121: 42
B122: 00:08:38 | C122: 00:26:49 | D122: 25 | E122: 00:27:12 | F122: 25 | G122: 00:43:10 | H122: 29 | I122: 00:50:21 | J122: 29 | K122: 00:53:39 | L122: 31 | M122: 01:26:20 | N122: 37 | O122: 01:53:10 | P122: 41 | Q122: 04:11:00 | R122: 41 | T122: 00:08:38 | U122: 26.81666667 | V122: 25 | W122: 27.2 | X122: 25 | Y122: 43.16666667 | Z122: 29 | AA122: 50.35 | AB122: 29 | AC122: 53.65 | AD122: 31 | AE122: 86.33333333 | AF122: 37 | AG122: 113.1666667 | AH122: 41 | AI122: 251 | AJ122: 41
B123: 00:08:40 | C123: 00:26:56 | D123: 24 | E123: 00:27:19 | F123: 24 | G123: 00:43:20 | H123: 28 | I123: 00:50:32 | J123: 28 | K123: 00:53:51 | L123: 30 | M123: 01:26:40 | N123: 36 | O123: 01:53:37 | P123: 40 | Q123: 04:12:00 | R123: 40 | T123: 00:08:40 | U123: 26.93333333 | V123: 24 | W123: 27.31666667 | X123: 24 | Y123: 43.33333333 | Z123: 28 | AA123: 50.53333333 | AB123: 28 | AC123: 53.85 | AD123: 30 | AE123: 86.66666667 | AF123: 36 | AG123: 113.6166667 | AH123: 40 | AI123: 252 | AJ123: 40
B124: 00:08:42 | C124: 00:27:02 | D124: 23 | E124: 00:27:25 | F124: 23 | G124: 00:43:30 | H124: 27 | I124: 00:50:44 | J124: 27 | K124: 00:54:04 | L124: 29 | M124: 01:27:00 | N124: 35 | O124: 01:54:03 | P124: 39 | Q124: 04:13:00 | R124: 39 | T124: 00:08:42 | U124: 27.03333333 | V124: 23 | W124: 27.41666667 | X124: 23 | Y124: 43.5 | Z124: 27 | AA124: 50.73333333 | AB124: 27 | AC124: 54.06666667 | AD124: 29 | AE124: 87 | AF124: 35 | AG124: 114.05 | AH124: 39 | AI124: 253 | AJ124: 39
B125: 00:08:44 | C125: 00:27:08 | D125: 22 | E125: 00:27:31 | F125: 22 | G125: 00:43:40 | H125: 26 | I125: 00:50:56 | J125: 26 | K125: 00:54:16 | L125: 28 | M125: 01:27:20 | N125: 34 | O125: 01:54:29 | P125: 38 | Q125: 04:14:00 | R125: 38 | T125: 00:08:44 | U125: 27.13333333 | V125: 22 | W125: 27.51666667 | X125: 22 | Y125: 43.66666667 | Z125: 26 | AA125: 50.93333333 | AB125: 26 | AC125: 54.26666667 | AD125: 28 | AE125: 87.33333333 | AF125: 34 | AG125: 114.4833333 | AH125: 38 | AI125: 254 | AJ125: 38
B126: 00:08:46 | C126: 00:27:14 | D126: 21 | E126: 00:27:38 | F126: 21 | G126: 00:43:50 | H126: 25 | I126: 00:51:07 | J126: 25 | K126: 00:54:29 | L126: 27 | M126: 01:27:40 | N126: 33 | O126: 01:54:55 | P126: 37 | Q126: 04:15:00 | R126: 37 | T126: 00:08:46 | U126: 27.23333333 | V126: 21 | W126: 27.63333333 | X126: 21 | Y126: 43.83333333 | Z126: 25 | AA126: 51.11666667 | AB126: 25 | AC126: 54.48333333 | AD126: 27 | AE126: 87.66666667 | AF126: 33 | AG126: 114.9166667 | AH126: 37 | AI126: 255 | AJ126: 37
B127: 00:08:48 | C127: 00:27:20 | D127: 20 | E127: 00:27:44 | F127: 20 | G127: 00:44:00 | H127: 24 | I127: 00:51:19 | J127: 24 | K127: 00:54:41 | L127: 26 | M127: 01:28:00 | N127: 32 | O127: 01:55:22 | P127: 36 | Q127: 04:16:00 | R127: 36 | T127: 00:08:48 | U127: 27.33333333 | V127: 20 | W127: 27.73333333 | X127: 20 | Y127: 44 | Z127: 24 | AA127: 51.31666667 | AB127: 24 | AC127: 54.68333333 | AD127: 26 | AE127: 88 | AF127: 32 | AG127: 115.3666667 | AH127: 36 | AI127: 256 | AJ127: 36
B128: 00:08:50 | C128: 00:27:27 | D128: 19 | E128: 00:27:51 | F128: 19 | G128: 00:44:10 | H128: 23 | I128: 00:51:30 | J128: 23 | K128: 00:54:53 | L128: 25 | M128: 01:28:20 | N128: 31 | O128: 01:55:48 | P128: 35 | Q128: 04:17:00 | R128: 35 | T128: 00:08:50 | U128: 27.45 | V128: 19 | W128: 27.85 | X128: 19 | Y128: 44.16666667 | Z128: 23 | AA128: 51.5 | AB128: 23 | AC128: 54.88333333 | AD128: 25 | AE128: 88.33333333 | AF128: 31 | AG128: 115.8 | AH128: 35 | AI128: 257 | AJ128: 35
B129: 00:08:52 | C129: 00:27:33 | D129: 18 | E129: 00:27:57 | F129: 18 | G129: 00:44:20 | H129: 22 | I129: 00:51:42 | J129: 22 | K129: 00:55:06 | L129: 24 | M129: 01:28:40 | N129: 30 | O129: 01:56:14 | P129: 34 | Q129: 04:18:00 | R129: 34 | T129: 00:08:52 | U129: 27.55 | V129: 18 | W129: 27.95 | X129: 18 | Y129: 44.33333333 | Z129: 22 | AA129: 51.7 | AB129: 22 | AC129: 55.1 | AD129: 24 | AE129: 88.66666667 | AF129: 30 | AG129: 116.2333333 | AH129: 34 | AI129: 258 | AJ129: 34
B130: 00:08:54 | C130: 00:27:39 | D130: 17 | E130: 00:28:03 | F130: 17 | G130: 00:44:30 | H130: 21 | I130: 00:51:53 | J130: 21 | K130: 00:55:18 | L130: 23 | M130: 01:29:00 | N130: 29 | O130: 01:56:40 | P130: 33 | Q130: 04:19:00 | R130: 33 | T130: 00:08:54 | U130: 27.65 | V130: 17 | W130: 28.05 | X130: 17 | Y130: 44.5 | Z130: 21 | AA130: 51.88333333 | AB130: 21 | AC130: 55.3 | AD130: 23 | AE130: 89 | AF130: 29 | AG130: 116.6666667 | AH130: 33 | AI130: 259 | AJ130: 33
B131: 00:08:56 | C131: 00:27:45 | D131: 16 | E131: 00:28:09 | F131: 16 | G131: 00:44:40 | H131: 20 | I131: 00:52:05 | J131: 20 | K131: 00:55:31 | L131: 22 | M131: 01:29:20 | N131: 28 | O131: 01:57:06 | P131: 32 | Q131: 04:20:00 | R131: 32 | T131: 00:08:56 | U131: 27.75 | V131: 16 | W131: 28.15 | X131: 16 | Y131: 44.66666667 | Z131: 20 | AA131: =LEFT(I131,2)*60+MID(I131,4,2)+RIGHT(I131,2)/60 -> 52.08333333 | AB131: =J131 -> 20 | AC131: 55.51666667 | AD131: 22 | AE131: 89.33333333 | AF131: 28 | AG131: 117.1 | AH131: 32 | AI131: 260 | AJ131: 32
B132: 00:08:58 | C132: 00:27:52 | D132: 15 | E132: 00:28:16 | F132: 15 | G132: 00:44:50 | H132: 19 | I132: 00:52:17 | J132: 19 | K132: 00:55:43 | L132: 21 | M132: 01:29:40 | N132: 27 | O132: 01:57:33 | P132: 31 | Q132: 04:21:00 | R132: 31 | T132: =B132 -> 00:08:58 | U132: =LEFT(C132,2)*60+MID(C132,4,2)+RIGHT(C132,2)/60 -> 27.86666667 | V132: =D132 -> 15 | W132: 28.26666667 | X132: 15 | Y132: 44.83333333 | Z132: 19 | AA132: 52.28333333 | AB132: 19 | AC132: 55.71666667 | AD132: 21 | AE132: 89.66666667 | AF132: 27 | AG132: 117.55 | AH132: 31 | AI132: 261 | AJ132: 31
B133: 00:09:00 | C133: 00:27:58 | D133: 14 | E133: 00:28:22 | F133: 14 | G133: 00:45:00 | H133: 18 | I133: 00:52:28 | J133: 18 | K133: 00:55:55 | L133: 20 | M133: 01:30:00 | N133: 26 | O133: 01:57:59 | P133: 30 | Q133: 04:22:00 | R133: 30 | T133: 00:09:00 | U133: 27.96666667 | V133: 14 | W133: 28.36666667 | X133: 14 | Y133: 45 | Z133: 18 | AA133: 52.46666667 | AB133: 18 | AC133: 55.91666667 | AD133: 20 | AE133: 90 | AF133: 26 | AG133: 117.9833333 | AH133: 30 | AI133: 262 | AJ133: 30
B134: 00:09:02 | C134: 00:28:04 | D134: 13 | E134: 00:28:28 | F134: 13 | G134: 00:45:10 | H134: 17 | I134: 00:52:40 | J134: 17 | K134: 00:56:08 | L134: 19 | M134: 01:30:20 | N134: 25 | O134: 01:58:25 | P134: 29 | Q134: 04:23:00 | R134: 29 | T134: 00:09:02 | U134: 28.06666667 | V134: 13 | W134: 28.46666667 | X134: 13 | Y134: 45.16666667 | Z134: 17 | AA134: 52.66666667 | AB134: 17 | AC134: 56.13333333 | AD134: 19 | AE134: 90.33333333 | AF134: 25 | AG134: 118.4166667 | AH134: 29 | AI134: 263 | AJ134: 29
B135: 00:09:04 | C135: 00:28:10 | D135: 12 | E135: 00:28:34 | F135: 12 | G135: 00:45:20 | H135: 16 | I135: 00:52:51 | J135: 16 | K135: 00:56:20 | L135: 18 | M135: 01:30:40 | N135: 24 | O135: 01:58:51 | P135: 28 | Q135: 04:24:00 | R135: 28 | T135: 00:09:04 | U135: 28.16666667 | V135: 12 | W135: 28.56666667 | X135: 12 | Y135: 45.33333333 | Z135: 16 | AA135: 52.85 | AB135: 16 | AC135: 56.33333333 | AD135: 18 | AE135: 90.66666667 | AF135: 24 | AG135: 118.85 | AH135: 28 | AI135: 264 | AJ135: 28
B136: 00:09:06 | C136: 00:28:16 | D136: 11 | E136: 00:28:40 | F136: 11 | G136: 00:45:30 | H136: 15 | I136: 00:53:03 | J136: 15 | K136: 00:56:33 | L136: 17 | M136: 01:31:00 | N136: 23 | O136: 01:59:18 | P136: 27 | Q136: 04:25:00 | R136: 27 | T136: 00:09:06 | U136: 28.26666667 | V136: 11 | W136: 28.66666667 | X136: 11 | Y136: 45.5 | Z136: 15 | AA136: 53.05 | AB136: 15 | AC136: 56.55 | AD136: 17 | AE136: 91 | AF136: 23 | AG136: 119.3 | AH136: 27 | AI136: 265 | AJ136: 27
B137: 00:09:08 | C137: 00:28:23 | D137: 10 | E137: 00:28:47 | F137: 10 | G137: 00:45:40 | H137: 14 | I137: 00:53:15 | J137: 14 | K137: 00:56:45 | L137: 16 | M137: 01:31:20 | N137: 22 | O137: 01:59:44 | P137: 26 | Q137: 04:26:00 | R137: 26 | T137: 00:09:08 | U137: 28.38333333 | V137: 10 | W137: 28.78333333 | X137: 10 | Y137: 45.66666667 | Z137: 14 | AA137: 53.25 | AB137: 14 | AC137: 56.75 | AD137: 16 | AE137: 91.33333333 | AF137: 22 | AG137: 119.7333333 | AH137: 26 | AI137: 266 | AJ137: 26
B138: 00:09:10 | C138: 00:28:29 | D138: 9 | E138: 00:28:54 | F138: 9 | G138: 00:45:50 | H138: 13 | I138: 00:53:26 | J138: 13 | K138: 00:56:58 | L138: 15 | M138: 01:31:40 | N138: 21 | O138: 02:00:10 | P138: 25 | Q138: 04:27:00 | R138: 25 | T138: 00:09:10 | U138: 28.48333333 | V138: 9 | W138: 28.9 | X138: 9 | Y138: 45.83333333 | Z138: 13 | AA138: 53.43333333 | AB138: 13 | AC138: 56.96666667 | AD138: 15 | AE138: 91.66666667 | AF138: 21 | AG138: 120.1666667 | AH138: 25 | AI138: 267 | AJ138: 25
B139: 00:09:12 | C139: 00:28:35 | D139: 8 | E139: 00:29:00 | F139: 8 | G139: 00:46:00 | H139: 12 | I139: 00:53:38 | J139: 12 | K139: 00:57:10 | L139: 14 | M139: 01:32:00 | N139: 20 | O139: 02:00:36 | P139: 24 | Q139: 04:28:00 | R139: 24 | T139: 00:09:12 | U139: 28.58333333 | V139: 8 | W139: 29 | X139: 8 | Y139: 46 | Z139: 12 | AA139: 53.63333333 | AB139: 12 | AC139: 57.16666667 | AD139: 14 | AE139: 92 | AF139: 20 | AG139: 120.6 | AH139: 24 | AI139: 268 | AJ139: 24
B140: 00:09:14 | C140: 00:28:41 | D140: 7 | E140: 00:29:06 | F140: 7 | G140: 00:46:10 | H140: 11 | I140: 00:53:49 | J140: 11 | K140: 00:57:22 | L140: 13 | M140: 01:32:20 | N140: 19 | O140: 02:01:02 | P140: 23 | Q140: 04:29:00 | R140: 23 | T140: 00:09:14 | U140: 28.68333333 | V140: 7 | W140: 29.1 | X140: 7 | Y140: 46.16666667 | Z140: 11 | AA140: 53.81666667 | AB140: 11 | AC140: 57.36666667 | AD140: 13 | AE140: 92.33333333 | AF140: 19 | AG140: 121.0333333 | AH140: 23 | AI140: 269 | AJ140: 23
B141: 00:09:16 | C141: 00:28:47 | D141: 6 | E141: 00:29:12 | F141: 6 | G141: 00:46:20 | H141: 10 | I141: 00:54:01 | J141: 10 | K141: 00:57:35 | L141: 12 | M141: 01:32:40 | N141: 18 | O141: 02:01:29 | P141: 22 | Q141: 04:30:00 | R141: 22 | T141: 00:09:16 | U141: 28.78333333 | V141: 6 | W141: 29.2 | X141: 6 | Y141: 46.33333333 | Z141: 10 | AA141: 54.01666667 | AB141: 10 | AC141: 57.58333333 | AD141: 12 | AE141: 92.66666667 | AF141: 18 | AG141: 121.4833333 | AH141: 22 | AI141: 270 | AJ141: 22
B142: 00:09:18 | C142: 00:28:54 | D142: 5 | E142: 00:29:19 | F142: 5 | G142: 00:46:30 | H142: 9 | I142: 00:54:13 | J142: 9 | K142: 00:57:47 | L142: 11 | M142: 01:33:00 | N142: 17 | O142: 02:01:55 | P142: 21 | Q142: 04:31:00 | R142: 21 | T142: 00:09:18 | U142: 28.9 | V142: 5 | W142: 29.31666667 | X142: 5 | Y142: 46.5 | Z142: 9 | AA142: 54.21666667 | AB142: 9 | AC142: 57.78333333 | AD142: 11 | AE142: 93 | AF142: 17 | AG142: 121.9166667 | AH142: 21 | AI142: 271 | AJ142: 21
B143: 00:09:20 | C143: 00:29:00 | D143: 4 | E143: 00:29:25 | F143: 4 | G143: 00:46:40 | H143: 8 | I143: 00:54:25 | J143: 8 | K143: 00:58:00 | L143: 10 | M143: 01:33:20 | N143: 16 | O143: 02:02:21 | P143: 20 | Q143: 04:32:00 | R143: 20 | T143: 00:09:20 | U143: 29 | V143: 4 | W143: 29.41666667 | X143: 4 | Y143: 46.66666667 | Z143: 8 | AA143: 54.41666667 | AB143: 8 | AC143: 58 | AD143: 10 | AE143: 93.33333333 | AF143: 16 | AG143: 122.35 | AH143: 20 | AI143: 272 | AJ143: 20
B144: 00:09:22 | C144: 00:29:06 | D144: 3 | E144: 00:29:31 | F144: 3 | G144: 00:46:50 | H144: 7 | I144: 00:54:36 | J144: 7 | K144: 00:58:12 | L144: 9 | M144: 01:33:40 | N144: 15 | O144: 02:02:47 | P144: 19 | Q144: 04:33:00 | R144: 19 | T144: 00:09:22 | U144: 29.1 | V144: 3 | W144: 29.51666667 | X144: 3 | Y144: 46.83333333 | Z144: 7 | AA144: 54.6 | AB144: 7 | AC144: 58.2 | AD144: 9 | AE144: 93.66666667 | AF144: 15 | AG144: 122.7833333 | AH144: 19 | AI144: 273 | AJ144: 19
B145: 00:09:24 | C145: 00:29:12 | D145: 2 | E145: 00:29:37 | F145: 2 | G145: 00:47:00 | H145: 6 | I145: 00:54:47 | J145: 6 | K145: 00:58:25 | L145: 8 | M145: 01:34:00 | N145: 14 | O145: 02:03:13 | P145: 18 | Q145: 04:34:00 | R145: 18 | T145: 00:09:24 | U145: 29.2 | V145: 2 | W145: 29.61666667 | X145: 2 | Y145: 47 | Z145: 6 | AA145: 54.78333333 | AB145: 6 | AC145: 58.41666667 | AD145: 8 | AE145: 94 | AF145: 14 | AG145: 123.2166667 | AH145: 18 | AI145: 274 | AJ145: 18
B146: 00:09:26 | C146: 00:29:19 | D146: 1 | E146: 00:29:44 | F146: 1 | G146: 00:47:10 | H146: 5 | I146: 00:54:59 | J146: 5 | K146: 00:58:37 | L146: 7 | M146: 01:34:20 | N146: 13 | O146: 02:03:40 | P146: 17 | Q146: 04:35:00 | R146: 17 | T146: 00:09:26 | U146: 29.31666667 | V146: 1 | W146: 29.73333333 | X146: 1 | Y146: 47.16666667 | Z146: 5 | AA146: 54.98333333 | AB146: 5 | AC146: 58.61666667 | AD146: 7 | AE146: 94.33333333 | AF146: 13 | AG146: 123.6666667 | AH146: 17 | AI146: 275 | AJ146: 17
B147: 00:09:28 | C147: 00:29:25 | D147: 1 | E147: 00:29:50 | F147: 1 | G147: 00:47:20 | H147: 4 | I147: 00:55:11 | J147: 4 | K147: 00:58:49 | L147: 6 | M147: 01:34:40 | N147: 12 | O147: 02:04:06 | P147: 16 | Q147: 04:36:00 | R147: 16 | T147: 00:09:28 | U147: 29.41666667 | V147: 1 | W147: 29.83333333 | X147: 1 | Y147: 47.33333333 | Z147: 4 | AA147: 55.18333333 | AB147: 4 | AC147: 58.81666667 | AD147: 6 | AE147: 94.66666667 | AF147: 12 | AG147: 124.1 | AH147: 16 | AI147: 276 | AJ147: 16
B148: 00:09:30 | G148: 00:47:30 | H148: 3 | I148: 00:55:22 | J148: 3 | K148: 00:59:02 | L148: 5 | M148: 01:35:00 | N148: 11 | O148: 02:04:32 | P148: 15 | Q148: 04:37:00 | R148: 15 | T148: 00:09:30 | V148: 0 | X148: 0 | Y148: 47.5 | Z148: 3 | AA148: 55.36666667 | AB148: 3 | AC148: 59.03333333 | AD148: 5 | AE148: 95 | AF148: 11 | AG148: 124.5333333 | AH148: 15 | AI148: 277 | AJ148: 15
B149: 00:09:32 | G149: 00:47:40 | H149: 2 | I149: 00:55:34 | J149: 2 | K149: 00:59:14 | L149: 4 | M149: 01:35:20 | N149: 10 | O149: 02:04:58 | P149: 14 | Q149: 04:38:00 | R149: 14 | T149: 00:09:32 | V149: 0 | X149: 0 | Y149: 47.66666667 | Z149: 2 | AA149: 55.56666667 | AB149: 2 | AC149: 59.23333333 | AD149: 4 | AE149: 95.33333333 | AF149: 10 | AG149: 124.9666667 | AH149: 14 | AI149: 278 | AJ149: 14
B150: 00:09:34 | G150: 00:47:50 | H150: 1 | I150: 00:55:46 | J150: 1 | K150: 00:59:27 | L150: 3 | M150: 01:35:40 | N150: 9 | O150: 02:05:25 | P150: 13 | Q150: 04:39:00 | R150: 13 | T150: 00:09:34 | V150: 0 | X150: 0 | Y150: 47.83333333 | Z150: 1 | AA150: 55.76666667 | AB150: 1 | AC150: 59.45 | AD150: 3 | AE150: 95.66666667 | AF150: 9 | AG150: 125.4166667 | AH150: 13 | AI150: 279 | AJ150: 13
B151: 00:09:36 | G151: 00:48:00 | H151: 1 | I151: 00:55:57 | J151: 1 | K151: 00:59:39 | L151: 2 | M151: 01:36:00 | N151: 8 | O151: 02:05:51 | P151: 12 | Q151: 04:40:00 | R151: 12 | T151: 00:09:36 | V151: 0 | X151: 0 | Y151: 48 | Z151: 1 | AA151: 55.95 | AB151: 1 | AC151: 59.65 | AD151: 2 | AE151: 96 | AF151: 8 | AG151: 125.85 | AH151: 12 | AI151: 280 | AJ151: 12
B152: 00:09:38 | K152: 00:59:52 | L152: 1 | M152: 01:36:20 | N152: 7 | O152: 02:06:17 | P152: 11 | Q152: 04:41:00 | R152: 11 | T152: 00:09:38 | V152: 0 | X152: 0 | Z152: 0 | AB152: 0 | AC152: 59.86666667 | AD152: 1 | AE152: 96.33333333 | AF152: 7 | AG152: 126.2833333 | AH152: 11 | AI152: 281 | AJ152: 11
B153: 00:09:40 | K153: 01:00:04 | L153: 1 | M153: 01:36:40 | N153: 6 | O153: 02:06:43 | P153: 10 | Q153: 04:42:00 | R153: 10 | T153: 00:09:40 | V153: 0 | X153: 0 | Z153: 0 | AB153: 0 | AC153: 60.06666667 | AD153: 1 | AE153: 96.66666667 | AF153: 6 | AG153: 126.7166667 | AH153: 10 | AI153: 282 | AJ153: 10
B154: 00:09:42 | M154: 01:37:00 | N154: 5 | O154: 02:07:09 | P154: 9 | Q154: 04:43:00 | R154: 9 | T154: 00:09:42 | V154: 0 | X154: 0 | Z154: 0 | AB154: 0 | AD154: 0 | AE154: 97 | AF154: 5 | AG154: 127.15 | AH154: 9 | AI154: 283 | AJ154: 9
B155: 00:09:44 | M155: 01:37:20 | N155: 4 | O155: 02:07:36 | P155: 8 | Q155: 04:44:00 | R155: 8 | T155: 00:09:44 | V155: 0 | X155: 0 | Z155: 0 | AB155: 0 | AD155: 0 | AE155: 97.33333333 | AF155: 4 | AG155: 127.6 | AH155: 8 | AI155: 284 | AJ155: 8
B156: 00:09:46 | M156: 01:37:40 | N156: 3 | O156: 02:08:02 | P156: 7 | Q156: 04:45:00 | R156: 7 | T156: 00:09:46 | V156: 0 | X156: 0 | Z156: 0 | AB156: 0 | AD156: 0 | AE156: 97.66666667 | AF156: 3 | AG156: 128.0333333 | AH156: 7 | AI156: 285 | AJ156: 7
B157: 00:09:48 | M157: 01:38:00 | N157: 2 | O157: 02:08:28 | P157: 6 | Q157: 04:46:00 | R157: 6 | T157: 00:09:48 | V157: 0 | X157: 0 | Z157: 0 | AB157: 0 | AD157: 0 | AE157: 98 | AF157: 2 | AG157: 128.4666667 | AH157: 6 | AI157: 286 | AJ157: 6
B158: 00:09:50 | M158: 01:38:20 | N158: 1 | O158: 02:08:54 | P158: 5 | Q158: 04:47:00 | R158: 5 | T158: 00:09:50 | V158: 0 | X158: 0 | Z158: 0 | AB158: 0 | AD158: 0 | AE158: 98.33333333 | AF158: 1 | AG158: 128.9 | AH158: 5 | AI158: 287 | AJ158: 5
B159: 00:09:52 | M159: 01:38:40 | N159: 1 | O159: 02:09:21 | P159: 4 | Q159: 04:48:00 | R159: 4 | T159: 00:09:52 | V159: 0 | X159: 0 | Z159: 0 | AB159: 0 | AD159: 0 | AE159: 98.66666667 | AF159: 1 | AG159: 129.35 | AH159: 4 | AI159: 288 | AJ159: 4
B160: 00:09:54 | O160: 02:09:47 | P160: 3 | Q160: 04:49:00 | R160: 3 | T160: 00:09:54 | V160: 0 | X160: 0 | Z160: 0 | AB160: 0 | AD160: 0 | AF160: 0 | AG160: 129.7833333 | AH160: 3 | AI160: 289 | AJ160: 3
B161: 00:09:56 | O161: 02:10:13 | P161: 2 | Q161: 04:50:00 | R161: 2 | T161: 00:09:56 | V161: 0 | X161: 0 | Z161: 0 | AB161: 0 | AD161: 0 | AF161: 0 | AG161: 130.2166667 | AH161: 2 | AI161: 290 | AJ161: 2
B162: 00:09:58 | O162: 02:10:39 | P162: 1 | Q162: 04:51:00 | R162: 1 | T162: 00:09:58 | V162: 0 | X162: 0 | Z162: 0 | AB162: 0 | AD162: 0 | AF162: 0 | AG162: 130.65 | AH162: 1 | AI162: 291 | AJ162: 1
B163: 00:10:00 | O163: 02:11:05 | P163: 1 | T163: 00:10:00 | V163: 0 | X163: 0 | Z163: 0 | AB163: 0 | AD163: 0 | AF163: 0 | AG163: 131.0833333 | AH163: 1 | AI163: =LEFT(Q163,2)*60+MID(Q163,4,2)+RIGHT(Q163,2)/60 ->  | AJ163: =R163 -> 0

Sheet Athlete Input
D1: Year | E1: 2016
F6: Race | G6: =Fixtures!D5 -> Cupar 5 mile | H6: =Fixtures!D6 -> King's Buildings 5 mile | I6: =Fixtures!D7 -> SA Road Relays - Short | J6: =Fixtures!D8 -> Scottish 5k Road Champs | K6: =Fixtures!D9 -> EMF 5k | L6: =Fixtures!D10 -> CAAC 5 mile | M6: =Fixtures!D11 -> Self Tran 5k - Meadows (June) | N6: =Fixtures!D12 -> Brig Bash 5 mile | O6: =Fixtures!D13 -> Self Tran 5k - Meadows (July) | P6: =Fixtures!D14 -> Self Tran 5k - Meadows (Sept) | Q6: =Fixtures!D15 -> Parkrun - Silverknowles (Sept) | R6: =Fixtures!D16 -> Parkrun - Portobello (Oct) | AC6: =Fixtures!I5 -> Lasswade 10 mile | AD6: =Fixtures!I6 -> Dunbar 10k | AE6: =Fixtures!I7 -> SA Road Relays - Long | AF6: =Fixtures!I8 -> Tom Scott 10 mile | AG6: =Fixtures!I9 -> Grangemouth 10k | AH6: =Fixtures!I10 -> Great Edinburgh 10 mile | AI6: =Fixtures!I11 -> Gala 10k | AJ6: =Fixtures!I12 -> EMF 10k | AK6: =Fixtures!I13 -> Haddington 10k | AL6: =Fixtures!I14 -> Musselburgh 10k | AM6: =Fixtures!I15 -> Forfar 10k | AN6: =Fixtures!I16 -> Forth Road Bridge 10k | AO6: =Fixtures!I17 -> Scottish 10k - Edinburgh | AP6: =Fixtures!I18 -> Stirling 10k | BA6: =Fixtures!N5 -> Inverness Half Marathon | BB6: =Fixtures!N6 -> Alloa Half Marathon | BC6: =Fixtures!N7 -> London Marathon | BD6: =Fixtures!N8 -> Loch Leven Half | BE6: =Fixtures!N9 -> EMF Half | BF6: =Fixtures!N10 -> EMF Marathon | BG6: =Fixtures!N11 -> Haddington Half | BH6: =Fixtures!N12 -> Scottish Half - Edinburgh | BI6: =Fixtures!N13 -> Loch Ness Marathon | BJ6: =Fixtures!N14 -> Great Scottish Run - Glasgow Half | BK6: Other Marathon
F7: Distance | G7: 5 mile | H7: 5 mile | I7: NRR short (3.15 miles) | J7: 5k | K7: 5k | L7: 5 mile | M7: 5k | N7: 5 mile | O7: 5k | P7: 5k | Q7: 5k | R7: 5k | AC7: 10 mile | AD7: 10k | AE7: NRR long (5.8 miles) | AF7: 10 mile | AG7: 10k | AH7: 10 mile | AI7: 10k | AJ7: 10k | AK7: 10k | AL7: 10k | AM7: 10k | AN7: 10k | AO7: 10k | AP7: 10k | BA7: Half marathon | BB7: Half marathon | BC7: Marathon | BD7: Half marathon | BE7: Half marathon | BF7: Marathon | BG7: Half marathon | BH7: Half marathon | BI7: Marathon | BJ7: Half marathon | BK7: Marathon
F8: Category | G8: =VLOOKUP(G7,$B$217:$C$224,2,FALSE) -> Short | H8: Short | I8: Short | J8: Short | K8: Short | L8: Short | M8: Short | N8: Short | O8: Short | P8: Short | Q8: Short | R8: Short | AC8: Medium | AD8: Medium | AE8: Medium | AF8: Medium | AG8: Medium | AH8: Medium | AI8: =VLOOKUP(AI7,$B$217:$C$224,2,FALSE) -> Medium | AJ8: Medium | AK8: Medium | AL8: Medium | AM8: =VLOOKUP(AM7,$B$217:$C$224,2,FALSE) -> Medium | AN8: Medium | AO8: =VLOOKUP(AO7,$B$217:$C$224,2,FALSE) -> Medium | AP8: Medium | BA8: =VLOOKUP(BA7,$B$217:$C$224,2,FALSE) -> Long | BB8: Long | BC8: Long | BD8: Long | BE8: Long | BF8: Long | BG8: =VLOOKUP(BG7,$B$217:$C$224,2,FALSE) -> Long | BH8: =VLOOKUP(BH7,$B$217:$C$224,2,FALSE) -> Long | BI8: Long | BJ8: Long | BK8: Long
C9: Full Name | D9: Surname | E9: Age Category | F9: Lookup Column | G9: =COLUMN()-2 -> 5 | H9: 6 | I9: 7 | J9: 8 | K9: 9 | L9: 10 | M9: 11 | N9: 12 | O9: 13 | P9: 14 | Q9: 15 | R9: 16 | S9: 17 | T9: 18 | U9: 19 | V9: 20 | W9: 21 | X9: 22 | Y9: 23 | Z9: 24 | AA9: 25 | AB9: 26 | AC9: 27 | AD9: 28 | AE9: 29 | AF9: 30 | AG9: 31 | AH9: 32 | AI9: 33 | AJ9: 34 | AK9: 35 | AL9: 36 | AM9: 37 | AN9: 38 | AO9: 39 | AP9: 40 | AQ9: 41 | AR9: 42 | AS9: 43 | AT9: 44 | AU9: 45 | AV9: 46 | AW9: 47 | AX9: 48 | AY9: 49 | AZ9: 50 | BA9: 51 | BB9: 52 | BC9: 53 | BD9: 54 | BE9: 55 | BF9: 56 | BG9: 57 | BH9: 58 | BI9: 59 | BJ9: 60 | BK9: 61 | BL9: 62 | BM9: 63 | BN9: 64 | BO9: 65 | BP9: 66 | BQ9: 67 | BR9: 68 | BS9: 69 | BT9: 70
B10: =B9+1 -> 1 | C10: Zoe Bates | D10: Bates | E10: Sen
B11: =B10+1 -> 2 | C11: Madeleine Bell | D11: Bell | E11: Sen | AD11: 41.18
B12: =B11+1 -> 3 | C12: Mairi Blankenstein | D12: Blankenstein | E12: Sen
B13: =B12+1 -> 4 | C13: Karla Borland | D13: Borland | E13: Sen
B14: =B13+1 -> 5 | C14: Sarah Cadenas | D14: Cadenas | E14: Sen | AD14: 49.04
B15: =B14+1 -> 6 | C15: Kirsten Cameron | D15: Cameron | E15: Sen
B16: =B15+1 -> 7 | C16: Carolyn Cameron | D16: Cameron | E16: Sen
B17: =B16+1 -> 8 | C17: Mireille Captieux | D17: Captieux | E17: Sen
B18: =B17+1 -> 9 | C18: Elaine Davies | D18: Davies | E18: V40 | BA18: 1.35.09 | BC18: 3.17.39
B19: =B18+1 -> 10 | C19: Karen Dobbie | D19: Dobbie | E19: V40 | I19: 21.17 | BC19: 3.24.11
B20: =B19+1 -> 11 | C20: Rona Dougall | D20: Dougall | E20: Sen
B21: =B20+1 -> 12 | C21: Janet Dunbar | D21: Dunbar | E21: V40 | AE21: 37.4 | AH21: 1.06.47
B22: =B21+1 -> 13 | C22: Rachael Dunn | D22: Dunn | E22: Sen | AE22: 34.37 | AG22: 35.32
B23: =B22+1 -> 14 | C23: Laura Dunn | D23: Dunn | E23: Sen | AE23: 35.1 | AG23: 35.47
B24: =B23+1 -> 15 | C24: Holly Ennis | D24: Ennis | E24: Sen
B25: =B24+1 -> 16 | C25: Cath Ferry | D25: Ferry | E25: V40
B26: =B25+1 -> 17 | C26: Julie Flanagan | D26: Flanagan | E26: Sen
B27: =B26+1 -> 18 | C27: Lyndsay Fraser | D27: Fraser | E27: Sen | AG27: 42.26 | AH27: 1.13.52 | BA27: 1.42.51
B28: =B27+1 -> 19 | C28: Charlotte Garry | D28: Garry | E28: Sen
B29: =B28+1 -> 20 | C29: Nikki Gibson | D29: Gibson | E29: Sen | AG29: 40.12 | BB29: 1.29.27 | BC29: 3.21.30
B30: =B29+1 -> 21 | C30: Fiona Hegarty | D30: Hegarty | E30: Sen | BB30: 1.36.01
B31: =B30+1 -> 22 | C31: Berit Inkster | D31: Inkster | E31: Sen
B32: =B31+1 -> 23 | C32: Kirsty Jaager | D32: Jaager | E32: Sen
B33: =B32+1 -> 24 | C33: Claire Jellema | D33: Jellema | E33: Sen | AC33: 1.07.50
B34: =B33+1 -> 25 | C34: Mary Kiely | D34: Kiely | E34: V40
B35: =B34+1 -> 26 | C35: Emma Lowry | D35: Lowry | E35: Sen
B36: =B35+1 -> 27 | C36: Jennifer MacLean | D36: MacLean | E36: V40 | AE36: 35.25 | AG36: 36.52
B37: =B36+1 -> 28 | C37: Catherine McKelvie-Sutherland | D37: McKelvie-Sutherland | E37: Sen
B38: =B37+1 -> 29 | C38: Maddy Murray | D38: Murray | E38: Sen | I38: 16.42
B39: =B38+1 -> 30 | C39: Gillian Palmer | D39: Palmer | E39: Sen | AG39: 36.22
B40: =B39+1 -> 31 | C40: Jocelyn Payne | D40: Payne | E40: Sen
B41: =B40+1 -> 32 | C41: Ann Peat | D41: Peat | E41: V40 | H41: 35.2 | AD41: 45
B42: =B41+1 -> 33 | C42: Catriona Probert | D42: Probert | E42: Sen | BB42: 1.28.23
B43: =B42+1 -> 34 | C43: Sharyn Ramage | D43: Ramage | E43: V50 | I43: 22.39
B44: =B43+1 -> 35 | C44: Freya Ross | D44: Ross | E44: Sen | AG44: 33.5
B45: =B44+1 -> 36 | C45: Tanya Shields | D45: Shields | E45: V40 | BC45: 3.04.23
B46: =B45+1 -> 37 | C46: Lauren Stoddart | D46: Stoddart | E46: Sen
B47: =B46+1 -> 38 | C47: Tracy Watt | D47: Watt | E47: V40
B48: =B47+1 -> 39 | C48: Theresa Watt | D48: Watt | E48: Sen
B49: =B48+1 -> 40 | C49: Hannah Waugh | D49: Waugh | E49: Sen | AG49: 40.52 | BC49: 3.23.35
B50: =B49+1 -> 41 | C50: Leanne Webster | D50: Webster | E50: Sen | BA50: 1.40.35 | BC50: 3.53.54
B51: =B50+1 -> 42 | C51: Rebecca Wilmott | D51: Wilmott | E51: Sen
B52: =B51+1 -> 43 | C52: Lauren Wilson | D52: Wilson | E52: Sen | AG52: 37.18
B53: =B52+1 -> 44 | C53: Jessica Wilson-Young | D53: Wilson-Young | E53: V40
B54: =B53+1 -> 45 | C54: Amanda Woodrow | D54: Woodrow | E54: Sen | H54: 31.42 | I54: 18.56
B55: =B54+1 -> 46 | C55: Jane Wright | D55: Wright | E55: V50
B56: =B55+1 -> 47
B57: =B56+1 -> 48
B58: =B57+1 -> 49
B59: =B58+1 -> 50
B60: =B59+1 -> 51
B61: =B60+1 -> 52
B62: =B61+1 -> 53
B63: =B62+1 -> 54
B64: =B63+1 -> 55
B65: =B64+1 -> 56
B66: =B65+1 -> 57
B67: =B66+1 -> 58
B68: =B67+1 -> 59
B69: =B68+1 -> 60
B70: =B69+1 -> 61
B71: =B70+1 -> 62
B72: =B71+1 -> 63
B73: =B72+1 -> 64
B74: =B73+1 -> 65
B75: =B74+1 -> 66
B76: =B75+1 -> 67
B77: =B76+1 -> 68
B78: =B77+1 -> 69
B79: =B78+1 -> 70
B80: =B79+1 -> 71
B81: =B80+1 -> 72
B82: =B81+1 -> 73
B83: =B82+1 -> 74
B84: =B83+1 -> 75
B85: =B84+1 -> 76
B86: =B85+1 -> 77
B87: =B86+1 -> 78
B88: =B87+1 -> 79
B89: =B88+1 -> 80
B90: =B89+1 -> 81
B91: =B90+1 -> 82
B92: =B91+1 -> 83
B93: =B92+1 -> 84
B94: =B93+1 -> 85
B95: =B94+1 -> 86
B96: =B95+1 -> 87
B97: =B96+1 -> 88
B98: =B97+1 -> 89
B99: =B98+1 -> 90
B100: =B99+1 -> 91
B101: =B100+1 -> 92
B102: =B101+1 -> 93
B103: =B102+1 -> 94
B104: =B103+1 -> 95
B105: =B104+1 -> 96
B106: =B105+1 -> 97
B107: =B106+1 -> 98
B108: =B107+1 -> 99
B109: =B108+1 -> 100
B110: =B109+1 -> 101
B111: =B110+1 -> 102
B112: =B111+1 -> 103
B113: =B112+1 -> 104
B114: =B113+1 -> 105
B115: =B114+1 -> 106
B116: =B115+1 -> 107
B117: =B116+1 -> 108
B118: =B117+1 -> 109
B119: =B118+1 -> 110
B120: =B119+1 -> 111
B121: =B120+1 -> 112
B122: =B121+1 -> 113
B123: =B122+1 -> 114
B124: =B123+1 -> 115
B125: =B124+1 -> 116
B126: =B125+1 -> 117
B127: =B126+1 -> 118
B128: =B127+1 -> 119
B129: =B128+1 -> 120
B130: =B129+1 -> 121
B131: =B130+1 -> 122
B132: =B131+1 -> 123
B133: =B132+1 -> 124
B134: =B133+1 -> 125
B135: =B134+1 -> 126
B136: =B135+1 -> 127
B137: =B136+1 -> 128
B138: =B137+1 -> 129
B139: =B138+1 -> 130
B140: =B139+1 -> 131
B141: =B140+1 -> 132
B142: =B141+1 -> 133
B143: =B142+1 -> 134
B144: =B143+1 -> 135
B145: =B144+1 -> 136
B146: =B145+1 -> 137
B147: =B146+1 -> 138
B148: =B147+1 -> 139
B149: =B148+1 -> 140
B150: =B149+1 -> 141
B151: =B150+1 -> 142
B152: =B151+1 -> 143
B153: =B152+1 -> 144
B154: =B153+1 -> 145
B155: =B154+1 -> 146
B156: =B155+1 -> 147
B157: =B156+1 -> 148
B158: =B157+1 -> 149
B159: =B158+1 -> 150
B160: =B159+1 -> 151
B161: =B160+1 -> 152
B162: =B161+1 -> 153
B163: =B162+1 -> 154
B164: =B163+1 -> 155
B165: =B164+1 -> 156
B166: =B165+1 -> 157
B167: =B166+1 -> 158
B168: =B167+1 -> 159
B169: =B168+1 -> 160
B170: =B169+1 -> 161
B171: =B170+1 -> 162
B172: =B171+1 -> 163
B173: =B172+1 -> 164
B174: =B173+1 -> 165
B175: =B174+1 -> 166
B176: =B175+1 -> 167
B177: =B176+1 -> 168
B178: =B177+1 -> 169
B179: =B178+1 -> 170
B180: =B179+1 -> 171
B181: =B180+1 -> 172
B182: =B181+1 -> 173
B183: =B182+1 -> 174
B184: =B183+1 -> 175
B185: =B184+1 -> 176
B186: =B185+1 -> 177
B187: =B186+1 -> 178
B188: =B187+1 -> 179
B189: =B188+1 -> 180
B190: =B189+1 -> 181
B191: =B190+1 -> 182
B192: =B191+1 -> 183
B193: =B192+1 -> 184
B194: =B193+1 -> 185
B195: =B194+1 -> 186
B196: =B195+1 -> 187
B197: =B196+1 -> 188
B198: =B197+1 -> 189
B199: =B198+1 -> 190
B200: =B199+1 -> 191
B201: =B200+1 -> 192
B202: =B201+1 -> 193
B203: =B202+1 -> 194
B204: =B203+1 -> 195
... 13 more rows

Sheet Overall Results>>

Sheet By Athlete (hidden)
C1: ='Athlete Input'!G9 -> 5 | D1: =C1+2 -> 7 | E1: =D1+3 -> 10 | F1: =E1+2 -> 12 | G1: =F1+3 -> 15 | H1: =G1+2 -> 17 | I1: =H1+3 -> 20 | J1: =I1+2 -> 22 | K1: =J1+3 -> 25 | L1: =K1+2 -> 27 | M1: =L1+3 -> 30 | N1: =M1+2 -> 32 | O1: =N1+3 -> 35 | P1: =O1+2 -> 37 | Q1: =P1+3 -> 40 | R1: =Q1+2 -> 42 | S1: =R1+3 -> 45 | T1: =S1+2 -> 47 | U1: =T1+3 -> 50 | V1: =U1+2 -> 52 | W1: =V1+3 -> 55 | X1: =W1+2 -> 57 | Y1: =X1+3 -> 60 | Z1: =Y1+2 -> 62 | AA1: =Z1+3 -> 65 | AB1: =AA1+2 -> 67 | AC1: =AB1+3 -> 70 | AD1: =AC1+2 -> 72 | AE1: =AD1+3 -> 75 | AF1: =AE1+2 -> 77 | AG1: =AF1+3 -> 80 | AH1: =AG1+2 -> 82 | AI1: =AH1+3 -> 85 | AJ1: =AI1+2 -> 87 | AK1: =AJ1+3 -> 90 | AL1: =AK1+2 -> 92
C2: ='Athlete Input'!G7 -> 5 mile | E2: ='Athlete Input'!#REF! ->  | G2: ='Athlete Input'!#REF! ->  | I2: ='Athlete Input'!#REF! ->  | K2: ='Athlete Input'!#REF! ->  | M2: ='Athlete Input'!#REF! ->  | O2: ='Athlete Input'!#REF! ->  | Q2: ='Athlete Input'!#REF! ->  | S2: ='Athlete Input'!#REF! ->  | U2: ='Athlete Input'!#REF! ->  | W2: ='Athlete Input'!#REF! ->  | Y2: ='Athlete Input'!#REF! ->  | AA2: ='Athlete Input'!#REF! ->  | AC2: ='Athlete Input'!#REF! ->  | AE2: ='Athlete Input'!#REF! ->  | AG2: ='Athlete Input'!#REF! ->  | AI2: ='Athlete Input'!#REF! ->  | AK2: ='Athlete Input'!#REF! -> 
B3: Name | C3: ='Athlete Input'!G6 -> Cupar 5 mile | D3: ='Athlete Input'!#REF! ->  | E3: ='Athlete Input'!#REF! ->  | F3: ='Athlete Input'!#REF! ->  | G3: ='Athlete Input'!#REF! ->  | H3: ='Athlete Input'!#REF! ->  | I3: ='Athlete Input'!#REF! ->  | J3: ='Athlete Input'!#REF! ->  | K3: ='Athlete Input'!#REF! ->  | L3: ='Athlete Input'!#REF! ->  | M3: ='Athlete Input'!#REF! ->  | N3: ='Athlete Input'!#REF! ->  | O3: ='Athlete Input'!#REF! ->  | P3: ='Athlete Input'!#REF! ->  | Q3: ='Athlete Input'!#REF! ->  | R3: ='Athlete Input'!#REF! ->  | S3: ='Athlete Input'!#REF! ->  | T3: ='Athlete Input'!#REF! ->  | U3: ='Athlete Input'!#REF! ->  | V3: ='Athlete Input'!#REF! ->  | W3: ='Athlete Input'!#REF! ->  | X3: ='Athlete Input'!#REF! ->  | Y3: ='Athlete Input'!#REF! ->  | Z3: ='Athlete Input'!#REF! ->  | AA3: ='Athlete Input'!#REF! ->  | AB3: ='Athlete Input'!#REF! ->  | AC3: ='Athlete Input'!#REF! ->  | AD3: ='Athlete Input'!#REF! ->  | AE3: ='Athlete Input'!#REF! ->  | AF3: ='Athlete Input'!#REF! ->  | AG3: ='Athlete Input'!#REF! ->  | AH3: ='Athlete Input'!#REF! ->  | AI3: ='Athlete Input'!#REF! ->  | AJ3: ='Athlete Input'!#REF! ->  | AK3: ='Athlete Input'!#REF! ->  | AL3: ='Athlete Input'!#REF! -> 
A4: 1 | B4: =IF('Athlete Input'!C10="","",'Athlete Input'!C10) -> Zoe Bates | C4: =IF($B4="","",IF(VLOOKUP($B4,'Athlete Input'!$C:$H,C$1,FALSE)="","",VLOOKUP($B4,'Athlete Input'!$C:$H,C$1,FALSE))) ->  | D4: =IF($B4="","",IF(VLOOKUP($B4,'Athlete Input'!$C:$H,D$1,FALSE)="","",VLOOKUP($B4,'Athlete Input'!$C:$H,D$1,FALSE))) ->  | E4: =IF($B4="","",IF(VLOOKUP($B4,'Athlete Input'!$C:$H,E$1,FALSE)="","",VLOOKUP($B4,'Athlete Input'!$C:$H,E$1,FALSE))) ->  | F4: =IF($B4="","",IF(VLOOKUP($B4,'Athlete Input'!$C:$H,F$1,FALSE)="","",VLOOKUP($B4,'Athlete Input'!$C:$H,F$1,FALSE))) ->  | G4: =IF($B4="","",IF(VLOOKUP($B4,'Athlete Input'!$C:$H,G$1,FALSE)="","",VLOOKUP($B4,'Athlete Input'!$C:$H,G$1,FALSE))) ->  | H4: =IF($B4="","",IF(VLOOKUP($B4,'Athlete Input'!$C:$H,H$1,FALSE)="","",VLOOKUP($B4,'Athlete Input'!$C:$H,H$1,FALSE))) ->  | I4: =IF($B4="","",IF(VLOOKUP($B4,'Athlete Input'!$C:$H,I$1,FALSE)="","",VLOOKUP($B4,'Athlete Input'!$C:$H,I$1,FALSE))) ->  | J4: =IF($B4="","",IF(VLOOKUP($B4,'Athlete Input'!$C:$H,J$1,FALSE)="","",VLOOKUP($B4,'Athlete Input'!$C:$H,J$1,FALSE))) ->  | K4: =IF($B4="","",IF(VLOOKUP($B4,'Athlete Input'!$C:$H,K$1,FALSE)="","",VLOOKUP($B4,'Athlete Input'!$C:$H,K$1,FALSE))) ->  | L4: =IF($B4="","",IF(VLOOKUP($B4,'Athlete Input'!$C:$H,L$1,FALSE)="","",VLOOKUP($B4,'Athlete Input'!$C:$H,L$1,FALSE))) ->  | M4: =IF($B4="","",IF(VLOOKUP($B4,'Athlete Input'!$C:$H,M$1,FALSE)="","",VLOOKUP($B4,'Athlete Input'!$C:$H,M$1,FALSE))) ->  | N4: =IF($B4="","",IF(VLOOKUP($B4,'Athlete Input'!$C:$H,N$1,FALSE)="","",VLOOKUP($B4,'Athlete Input'!$C:$H,N$1,FALSE))) ->  | O4: =IF($B4="","",IF(VLOOKUP($B4,'Athlete Input'!$C:$H,O$1,FALSE)="","",VLOOKUP($B4,'Athlete Input'!$C:$H,O$1,FALSE))) ->  | P4: =IF($B4="","",IF(VLOOKUP($B4,'Athlete Input'!$C:$H,P$1,FALSE)="","",VLOOKUP($B4,'Athlete Input'!$C:$H,P$1,FALSE))) ->  | Q4: =IF($B4="","",IF(VLOOKUP($B4,'Athlete Input'!$C:$H,Q$1,FALSE)="","",VLOOKUP($B4,'Athlete Input'!$C:$H,Q$1,FALSE))) ->  | R4: =IF($B4="","",IF(VLOOKUP($B4,'Athlete Input'!$C:$H,R$1,FALSE)="","",VLOOKUP($B4,'Athlete Input'!$C:$H,R$1,FALSE))) ->  | S4: =IF($B4="","",IF(VLOOKUP($B4,'Athlete Input'!$C:$H,S$1,FALSE)="","",VLOOKUP($B4,'Athlete Input'!$C:$H,S$1,FALSE))) ->  | T4: =IF($B4="","",IF(VLOOKUP($B4,'Athlete Input'!$C:$H,T$1,FALSE)="","",VLOOKUP($B4,'Athlete Input'!$C:$H,T$1,FALSE))) ->  | U4: =IF($B4="","",IF(VLOOKUP($B4,'Athlete Input'!$C:$H,U$1,FALSE)="","",VLOOKUP($B4,'Athlete Input'!$C:$H,U$1,FALSE))) ->  | V4: =IF($B4="","",IF(VLOOKUP($B4,'Athlete Input'!$C:$H,V$1,FALSE)="","",VLOOKUP($B4,'Athlete Input'!$C:$H,V$1,FALSE))) ->  | W4: =IF($B4="","",IF(VLOOKUP($B4,'Athlete Input'!$C:$H,W$1,FALSE)="","",VLOOKUP($B4,'Athlete Input'!$C:$H,W$1,FALSE))) ->  | X4: =IF($B4="","",IF(VLOOKUP($B4,'Athlete Input'!$C:$H,X$1,FALSE)="","",VLOOKUP($B4,'Athlete Input'!$C:$H,X$1,FALSE))) ->  | Y4: =IF($B4="","",IF(VLOOKUP($B4,'Athlete Input'!$C:$H,Y$1,FALSE)="","",VLOOKUP($B4,'Athlete Input'!$C:$H,Y$1,FALSE))) ->  | Z4: =IF($B4="","",IF(VLOOKUP($B4,'Athlete Input'!$C:$H,Z$1,FALSE)="","",VLOOKUP($B4,'Athlete Input'!$C:$H,Z$1,FALSE))) ->  | AA4: =IF($B4="","",IF(VLOOKUP($B4,'Athlete Input'!$C:$H,AA$1,FALSE)="","",VLOOKUP($B4,'Athlete Input'!$C:$H,AA$1,FALSE))) ->  | AB4: =IF($B4="","",IF(VLOOKUP($B4,'Athlete Input'!$C:$H,AB$1,FALSE)="","",VLOOKUP($B4,'Athlete Input'!$C:$H,AB$1,FALSE))) ->  | AC4: =IF($B4="","",IF(VLOOKUP($B4,'Athlete Input'!$C:$H,AC$1,FALSE)="","",VLOOKUP($B4,'Athlete Input'!$C:$H,AC$1,FALSE))) ->  | AD4: =IF($B4="","",IF(VLOOKUP($B4,'Athlete Input'!$C:$H,AD$1,FALSE)="","",VLOOKUP($B4,'Athlete Input'!$C:$H,AD$1,FALSE))) ->  | AE4: =IF($B4="","",IF(VLOOKUP($B4,'Athlete Input'!$C:$H,AE$1,FALSE)="","",VLOOKUP($B4,'Athlete Input'!$C:$H,AE$1,FALSE))) ->  | AF4: =IF($B4="","",IF(VLOOKUP($B4,'Athlete Input'!$C:$H,AF$1,FALSE)="","",VLOOKUP($B4,'Athlete Input'!$C:$H,AF$1,FALSE))) ->  | AG4: =IF($B4="","",IF(VLOOKUP($B4,'Athlete Input'!$C:$H,AG$1,FALSE)="","",VLOOKUP($B4,'Athlete Input'!$C:$H,AG$1,FALSE))) ->  | AH4: =IF($B4="","",IF(VLOOKUP($B4,'Athlete Input'!$C:$H,AH$1,FALSE)="","",VLOOKUP($B4,'Athlete Input'!$C:$H,AH$1,FALSE))) ->  | AI4: =IF($B4="","",IF(VLOOKUP($B4,'Athlete Input'!$C:$H,AI$1,FALSE)="","",VLOOKUP($B4,'Athlete Input'!$C:$H,AI$1,FALSE))) ->  | AJ4: =IF($B4="","",IF(VLOOKUP($B4,'Athlete Input'!$C:$H,AJ$1,FALSE)="","",VLOOKUP($B4,'Athlete Input'!$C:$H,AJ$1,FALSE))) ->  | AK4: =IF($B4="","",IF(VLOOKUP($B4,'Athlete Input'!$C:$H,AK$1,FALSE)="","",VLOOKUP($B4,'Athlete Input'!$C:$H,AK$1,FALSE))) ->  | AL4: =IF($B4="","",IF(VLOOKUP($B4,'Athlete Input'!$C:$H,AL$1,FALSE)="","",VLOOKUP($B4,'Athlete Input'!$C:$H,AL$1,FALSE))) ->  | AM4: =IF(B4="","zz",'Athlete Input'!D10) -> Bates
A5: =A4+1 -> 2 | B5: =IF('Athlete Input'!C11="","",'Athlete Input'!C11) -> Madeleine Bell | C5: =IF($B5="","",IF(VLOOKUP($B5,'Athlete Input'!$C:$H,C$1,FALSE)="","",VLOOKUP($B5,'Athlete Input'!$C:$H,C$1,FALSE))) ->  | D5: =IF($B5="","",IF(VLOOKUP($B5,'Athlete Input'!$C:$H,D$1,FALSE)="","",VLOOKUP($B5,'Athlete Input'!$C:$H,D$1,FALSE))) ->  | E5: =IF($B5="","",IF(VLOOKUP($B5,'Athlete Input'!$C:$H,E$1,FALSE)="","",VLOOKUP($B5,'Athlete Input'!$C:$H,E$1,FALSE))) ->  | F5: =IF($B5="","",IF(VLOOKUP($B5,'Athlete Input'!$C:$H,F$1,FALSE)="","",VLOOKUP($B5,'Athlete Input'!$C:$H,F$1,FALSE))) ->  | G5: =IF($B5="","",IF(VLOOKUP($B5,'Athlete Input'!$C:$H,G$1,FALSE)="","",VLOOKUP($B5,'Athlete Input'!$C:$H,G$1,FALSE))) ->  | H5: =IF($B5="","",IF(VLOOKUP($B5,'Athlete Input'!$C:$H,H$1,FALSE)="","",VLOOKUP($B5,'Athlete Input'!$C:$H,H$1,FALSE))) ->  | I5: =IF($B5="","",IF(VLOOKUP($B5,'Athlete Input'!$C:$H,I$1,FALSE)="","",VLOOKUP($B5,'Athlete Input'!$C:$H,I$1,FALSE))) ->  | J5: =IF($B5="","",IF(VLOOKUP($B5,'Athlete Input'!$C:$H,J$1,FALSE)="","",VLOOKUP($B5,'Athlete Input'!$C:$H,J$1,FALSE))) ->  | K5: =IF($B5="","",IF(VLOOKUP($B5,'Athlete Input'!$C:$H,K$1,FALSE)="","",VLOOKUP($B5,'Athlete Input'!$C:$H,K$1,FALSE))) ->  | L5: =IF($B5="","",IF(VLOOKUP($B5,'Athlete Input'!$C:$H,L$1,FALSE)="","",VLOOKUP($B5,'Athlete Input'!$C:$H,L$1,FALSE))) ->  | M5: =IF($B5="","",IF(VLOOKUP($B5,'Athlete Input'!$C:$H,M$1,FALSE)="","",VLOOKUP($B5,'Athlete Input'!$C:$H,M$1,FALSE))) ->  | N5: =IF($B5="","",IF(VLOOKUP($B5,'Athlete Input'!$C:$H,N$1,FALSE)="","",VLOOKUP($B5,'Athlete Input'!$C:$H,N$1,FALSE))) ->  | O5: =IF($B5="","",IF(VLOOKUP($B5,'Athlete Input'!$C:$H,O$1,FALSE)="","",VLOOKUP($B5,'Athlete Input'!$C:$H,O$1,FALSE))) ->  | P5: =IF($B5="","",IF(VLOOKUP($B5,'Athlete Input'!$C:$H,P$1,FALSE)="","",VLOOKUP($B5,'Athlete Input'!$C:$H,P$1,FALSE))) ->  | Q5: =IF($B5="","",IF(VLOOKUP($B5,'Athlete Input'!$C:$H,Q$1,FALSE)="","",VLOOKUP($B5,'Athlete Input'!$C:$H,Q$1,FALSE))) ->  | R5: =IF($B5="","",IF(VLOOKUP($B5,'Athlete Input'!$C:$H,R$1,FALSE)="","",VLOOKUP($B5,'Athlete Input'!$C:$H,R$1,FALSE))) ->  | S5: =IF($B5="","",IF(VLOOKUP($B5,'Athlete Input'!$C:$H,S$1,FALSE)="","",VLOOKUP($B5,'Athlete Input'!$C:$H,S$1,FALSE))) ->  | T5: =IF($B5="","",IF(VLOOKUP($B5,'Athlete Input'!$C:$H,T$1,FALSE)="","",VLOOKUP($B5,'Athlete Input'!$C:$H,T$1,FALSE))) ->  | U5: =IF($B5="","",IF(VLOOKUP($B5,'Athlete Input'!$C:$H,U$1,FALSE)="","",VLOOKUP($B5,'Athlete Input'!$C:$H,U$1,FALSE))) ->  | V5: =IF($B5="","",IF(VLOOKUP($B5,'Athlete Input'!$C:$H,V$1,FALSE)="","",VLOOKUP($B5,'Athlete Input'!$C:$H,V$1,FALSE))) ->  | W5: =IF($B5="","",IF(VLOOKUP($B5,'Athlete Input'!$C:$H,W$1,FALSE)="","",VLOOKUP($B5,'Athlete Input'!$C:$H,W$1,FALSE))) ->  | X5: =IF($B5="","",IF(VLOOKUP($B5,'Athlete Input'!$C:$H,X$1,FALSE)="","",VLOOKUP($B5,'Athlete Input'!$C:$H,X$1,FALSE))) ->  | Y5: =IF($B5="","",IF(VLOOKUP($B5,'Athlete Input'!$C:$H,Y$1,FALSE)="","",VLOOKUP($B5,'Athlete Input'!$C:$H,Y$1,FALSE))) ->  | Z5: =IF($B5="","",IF(VLOOKUP($B5,'Athlete Input'!$C:$H,Z$1,FALSE)="","",VLOOKUP($B5,'Athlete Input'!$C:$H,Z$1,FALSE))) ->  | AA5: =IF($B5="","",IF(VLOOKUP($B5,'Athlete Input'!$C:$H,AA$1,FALSE)="","",VLOOKUP($B5,'Athlete Input'!$C:$H,AA$1,FALSE))) ->  | AB5: =IF($B5="","",IF(VLOOKUP($B5,'Athlete Input'!$C:$H,AB$1,FALSE)="","",VLOOKUP($B5,'Athlete Input'!$C:$H,AB$1,FALSE))) ->  | AC5: =IF($B5="","",IF(VLOOKUP($B5,'Athlete Input'!$C:$H,AC$1,FALSE)="","",VLOOKUP($B5,'Athlete Input'!$C:$H,AC$1,FALSE))) ->  | AD5: =IF($B5="","",IF(VLOOKUP($B5,'Athlete Input'!$C:$H,AD$1,FALSE)="","",VLOOKUP($B5,'Athlete Input'!$C:$H,AD$1,FALSE))) ->  | AE5: =IF($B5="","",IF(VLOOKUP($B5,'Athlete Input'!$C:$H,AE$1,FALSE)="","",VLOOKUP($B5,'Athlete Input'!$C:$H,AE$1,FALSE))) ->  | AF5: =IF($B5="","",IF(VLOOKUP($B5,'Athlete Input'!$C:$H,AF$1,FALSE)="","",VLOOKUP($B5,'Athlete Input'!$C:$H,AF$1,FALSE))) ->  | AG5: =IF($B5="","",IF(VLOOKUP($B5,'Athlete Input'!$C:$H,AG$1,FALSE)="","",VLOOKUP($B5,'Athlete Input'!$C:$H,AG$1,FALSE))) ->  | AH5: =IF($B5="","",IF(VLOOKUP($B5,'Athlete Input'!$C:$H,AH$1,FALSE)="","",VLOOKUP($B5,'Athlete Input'!$C:$H,AH$1,FALSE))) ->  | AI5: =IF($B5="","",IF(VLOOKUP($B5,'Athlete Input'!$C:$H,AI$1,FALSE)="","",VLOOKUP($B5,'Athlete Input'!$C:$H,AI$1,FALSE))) ->  | AJ5: =IF($B5="","",IF(VLOOKUP($B5,'Athlete Input'!$C:$H,AJ$1,FALSE)="","",VLOOKUP($B5,'Athlete Input'!$C:$H,AJ$1,FALSE))) ->  | AK5: =IF($B5="","",IF(VLOOKUP($B5,'Athlete Input'!$C:$H,AK$1,FALSE)="","",VLOOKUP($B5,'Athlete Input'!$C:$H,AK$1,FALSE))) ->  | AL5: =IF($B5="","",IF(VLOOKUP($B5,'Athlete Input'!$C:$H,AL$1,FALSE)="","",VLOOKUP($B5,'Athlete Input'!$C:$H,AL$1,FALSE))) ->  | AM5: =IF(B5="","zz",'Athlete Input'!D11) -> Bell
A6: =A5+1 -> 3 | B6: =IF('Athlete Input'!C12="","",'Athlete Input'!C12) -> Mairi Blankenstein | C6: =IF($B6="","",IF(VLOOKUP($B6,'Athlete Input'!$C:$H,C$1,FALSE)="","",VLOOKUP($B6,'Athlete Input'!$C:$H,C$1,FALSE))) ->  | D6: =IF($B6="","",IF(VLOOKUP($B6,'Athlete Input'!$C:$H,D$1,FALSE)="","",VLOOKUP($B6,'Athlete Input'!$C:$H,D$1,FALSE))) ->  | E6: =IF($B6="","",IF(VLOOKUP($B6,'Athlete Input'!$C:$H,E$1,FALSE)="","",VLOOKUP($B6,'Athlete Input'!$C:$H,E$1,FALSE))) ->  | F6: =IF($B6="","",IF(VLOOKUP($B6,'Athlete Input'!$C:$H,F$1,FALSE)="","",VLOOKUP($B6,'Athlete Input'!$C:$H,F$1,FALSE))) ->  | G6: =IF($B6="","",IF(VLOOKUP($B6,'Athlete Input'!$C:$H,G$1,FALSE)="","",VLOOKUP($B6,'Athlete Input'!$C:$H,G$1,FALSE))) ->  | H6: =IF($B6="","",IF(VLOOKUP($B6,'Athlete Input'!$C:$H,H$1,FALSE)="","",VLOOKUP($B6,'Athlete Input'!$C:$H,H$1,FALSE))) ->  | I6: =IF($B6="","",IF(VLOOKUP($B6,'Athlete Input'!$C:$H,I$1,FALSE)="","",VLOOKUP($B6,'Athlete Input'!$C:$H,I$1,FALSE))) ->  | J6: =IF($B6="","",IF(VLOOKUP($B6,'Athlete Input'!$C:$H,J$1,FALSE)="","",VLOOKUP($B6,'Athlete Input'!$C:$H,J$1,FALSE))) ->  | K6: =IF($B6="","",IF(VLOOKUP($B6,'Athlete Input'!$C:$H,K$1,FALSE)="","",VLOOKUP($B6,'Athlete Input'!$C:$H,K$1,FALSE))) ->  | L6: =IF($B6="","",IF(VLOOKUP($B6,'Athlete Input'!$C:$H,L$1,FALSE)="","",VLOOKUP($B6,'Athlete Input'!$C:$H,L$1,FALSE))) ->  | M6: =IF($B6="","",IF(VLOOKUP($B6,'Athlete Input'!$C:$H,M$1,FALSE)="","",VLOOKUP($B6,'Athlete Input'!$C:$H,M$1,FALSE))) ->  | N6: =IF($B6="","",IF(VLOOKUP($B6,'Athlete Input'!$C:$H,N$1,FALSE)="","",VLOOKUP($B6,'Athlete Input'!$C:$H,N$1,FALSE))) ->  | O6: =IF($B6="","",IF(VLOOKUP($B6,'Athlete Input'!$C:$H,O$1,FALSE)="","",VLOOKUP($B6,'Athlete Input'!$C:$H,O$1,FALSE))) ->  | P6: =IF($B6="","",IF(VLOOKUP($B6,'Athlete Input'!$C:$H,P$1,FALSE)="","",VLOOKUP($B6,'Athlete Input'!$C:$H,P$1,FALSE))) ->  | Q6: =IF($B6="","",IF(VLOOKUP($B6,'Athlete Input'!$C:$H,Q$1,FALSE)="","",VLOOKUP($B6,'Athlete Input'!$C:$H,Q$1,FALSE))) ->  | R6: =IF($B6="","",IF(VLOOKUP($B6,'Athlete Input'!$C:$H,R$1,FALSE)="","",VLOOKUP($B6,'Athlete Input'!$C:$H,R$1,FALSE))) ->  | S6: =IF($B6="","",IF(VLOOKUP($B6,'Athlete Input'!$C:$H,S$1,FALSE)="","",VLOOKUP($B6,'Athlete Input'!$C:$H,S$1,FALSE))) ->  | T6: =IF($B6="","",IF(VLOOKUP($B6,'Athlete Input'!$C:$H,T$1,FALSE)="","",VLOOKUP($B6,'Athlete Input'!$C:$H,T$1,FALSE))) ->  | U6: =IF($B6="","",IF(VLOOKUP($B6,'Athlete Input'!$C:$H,U$1,FALSE)="","",VLOOKUP($B6,'Athlete Input'!$C:$H,U$1,FALSE))) ->  | V6: =IF($B6="","",IF(VLOOKUP($B6,'Athlete Input'!$C:$H,V$1,FALSE)="","",VLOOKUP($B6,'Athlete Input'!$C:$H,V$1,FALSE))) ->  | W6: =IF($B6="","",IF(VLOOKUP($B6,'Athlete Input'!$C:$H,W$1,FALSE)="","",VLOOKUP($B6,'Athlete Input'!$C:$H,W$1,FALSE))) ->  | X6: =IF($B6="","",IF(VLOOKUP($B6,'Athlete Input'!$C:$H,X$1,FALSE)="","",VLOOKUP($B6,'Athlete Input'!$C:$H,X$1,FALSE))) ->  | Y6: =IF($B6="","",IF(VLOOKUP($B6,'Athlete Input'!$C:$H,Y$1,FALSE)="","",VLOOKUP($B6,'Athlete Input'!$C:$H,Y$1,FALSE))) ->  | Z6: =IF($B6="","",IF(VLOOKUP($B6,'Athlete Input'!$C:$H,Z$1,FALSE)="","",VLOOKUP($B6,'Athlete Input'!$C:$H,Z$1,FALSE))) ->  | AA6: =IF($B6="","",IF(VLOOKUP($B6,'Athlete Input'!$C:$H,AA$1,FALSE)="","",VLOOKUP($B6,'Athlete Input'!$C:$H,AA$1,FALSE))) ->  | AB6: =IF($B6="","",IF(VLOOKUP($B6,'Athlete Input'!$C:$H,AB$1,FALSE)="","",VLOOKUP($B6,'Athlete Input'!$C:$H,AB$1,FALSE))) ->  | AC6: =IF($B6="","",IF(VLOOKUP($B6,'Athlete Input'!$C:$H,AC$1,FALSE)="","",VLOOKUP($B6,'Athlete Input'!$C:$H,AC$1,FALSE))) ->  | AD6: =IF($B6="","",IF(VLOOKUP($B6,'Athlete Input'!$C:$H,AD$1,FALSE)="","",VLOOKUP($B6,'Athlete Input'!$C:$H,AD$1,FALSE))) ->  | AE6: =IF($B6="","",IF(VLOOKUP($B6,'Athlete Input'!$C:$H,AE$1,FALSE)="","",VLOOKUP($B6,'Athlete Input'!$C:$H,AE$1,FALSE))) ->  | AF6: =IF($B6="","",IF(VLOOKUP($B6,'Athlete Input'!$C:$H,AF$1,FALSE)="","",VLOOKUP($B6,'Athlete Input'!$C:$H,AF$1,FALSE))) ->  | AG6: =IF($B6="","",IF(VLOOKUP($B6,'Athlete Input'!$C:$H,AG$1,FALSE)="","",VLOOKUP($B6,'Athlete Input'!$C:$H,AG$1,FALSE))) ->  | AH6: =IF($B6="","",IF(VLOOKUP($B6,'Athlete Input'!$C:$H,AH$1,FALSE)="","",VLOOKUP($B6,'Athlete Input'!$C:$H,AH$1,FALSE))) ->  | AI6: =IF($B6="","",IF(VLOOKUP($B6,'Athlete Input'!$C:$H,AI$1,FALSE)="","",VLOOKUP($B6,'Athlete Input'!$C:$H,AI$1,FALSE))) ->  | AJ6: =IF($B6="","",IF(VLOOKUP($B6,'Athlete Input'!$C:$H,AJ$1,FALSE)="","",VLOOKUP($B6,'Athlete Input'!$C:$H,AJ$1,FALSE))) ->  | AK6: =IF($B6="","",IF(VLOOKUP($B6,'Athlete Input'!$C:$H,AK$1,FALSE)="","",VLOOKUP($B6,'Athlete Input'!$C:$H,AK$1,FALSE))) ->  | AL6: =IF($B6="","",IF(VLOOKUP($B6,'Athlete Input'!$C:$H,AL$1,FALSE)="","",VLOOKUP($B6,'Athlete Input'!$C:$H,AL$1,FALSE))) ->  | AM6: =IF(B6="","zz",'Athlete Input'!D12) -> Blankenstein
A7: 4 | B7: =IF('Athlete Input'!C13="","",'Athlete Input'!C13) -> Karla Borland | C7: =IF($B7="","",IF(VLOOKUP($B7,'Athlete Input'!$C:$H,C$1,FALSE)="","",VLOOKUP($B7,'Athlete Input'!$C:$H,C$1,FALSE))) ->  | D7: =IF($B7="","",IF(VLOOKUP($B7,'Athlete Input'!$C:$H,D$1,FALSE)="","",VLOOKUP($B7,'Athlete Input'!$C:$H,D$1,FALSE))) ->  | E7: =IF($B7="","",IF(VLOOKUP($B7,'Athlete Input'!$C:$H,E$1,FALSE)="","",VLOOKUP($B7,'Athlete Input'!$C:$H,E$1,FALSE))) ->  | F7: =IF($B7="","",IF(VLOOKUP($B7,'Athlete Input'!$C:$H,F$1,FALSE)="","",VLOOKUP($B7,'Athlete Input'!$C:$H,F$1,FALSE))) ->  | G7: =IF($B7="","",IF(VLOOKUP($B7,'Athlete Input'!$C:$H,G$1,FALSE)="","",VLOOKUP($B7,'Athlete Input'!$C:$H,G$1,FALSE))) ->  | H7: =IF($B7="","",IF(VLOOKUP($B7,'Athlete Input'!$C:$H,H$1,FALSE)="","",VLOOKUP($B7,'Athlete Input'!$C:$H,H$1,FALSE))) ->  | I7: =IF($B7="","",IF(VLOOKUP($B7,'Athlete Input'!$C:$H,I$1,FALSE)="","",VLOOKUP($B7,'Athlete Input'!$C:$H,I$1,FALSE))) ->  | J7: =IF($B7="","",IF(VLOOKUP($B7,'Athlete Input'!$C:$H,J$1,FALSE)="","",VLOOKUP($B7,'Athlete Input'!$C:$H,J$1,FALSE))) ->  | K7: =IF($B7="","",IF(VLOOKUP($B7,'Athlete Input'!$C:$H,K$1,FALSE)="","",VLOOKUP($B7,'Athlete Input'!$C:$H,K$1,FALSE))) ->  | L7: =IF($B7="","",IF(VLOOKUP($B7,'Athlete Input'!$C:$H,L$1,FALSE)="","",VLOOKUP($B7,'Athlete Input'!$C:$H,L$1,FALSE))) ->  | M7: =IF($B7="","",IF(VLOOKUP($B7,'Athlete Input'!$C:$H,M$1,FALSE)="","",VLOOKUP($B7,'Athlete Input'!$C:$H,M$1,FALSE))) ->  | N7: =IF($B7="","",IF(VLOOKUP($B7,'Athlete Input'!$C:$H,N$1,FALSE)="","",VLOOKUP($B7,'Athlete Input'!$C:$H,N$1,FALSE))) ->  | O7: =IF($B7="","",IF(VLOOKUP($B7,'Athlete Input'!$C:$H,O$1,FALSE)="","",VLOOKUP($B7,'Athlete Input'!$C:$H,O$1,FALSE))) ->  | P7: =IF($B7="","",IF(VLOOKUP($B7,'Athlete Input'!$C:$H,P$1,FALSE)="","",VLOOKUP($B7,'Athlete Input'!$C:$H,P$1,FALSE))) ->  | Q7: =IF($B7="","",IF(VLOOKUP($B7,'Athlete Input'!$C:$H,Q$1,FALSE)="","",VLOOKUP($B7,'Athlete Input'!$C:$H,Q$1,FALSE))) ->  | R7: =IF($B7="","",IF(VLOOKUP($B7,'Athlete Input'!$C:$H,R$1,FALSE)="","",VLOOKUP($B7,'Athlete Input'!$C:$H,R$1,FALSE))) ->  | S7: =IF($B7="","",IF(VLOOKUP($B7,'Athlete Input'!$C:$H,S$1,FALSE)="","",VLOOKUP($B7,'Athlete Input'!$C:$H,S$1,FALSE))) ->  | T7: =IF($B7="","",IF(VLOOKUP($B7,'Athlete Input'!$C:$H,T$1,FALSE)="","",VLOOKUP($B7,'Athlete Input'!$C:$H,T$1,FALSE))) ->  | U7: =IF($B7="","",IF(VLOOKUP($B7,'Athlete Input'!$C:$H,U$1,FALSE)="","",VLOOKUP($B7,'Athlete Input'!$C:$H,U$1,FALSE))) ->  | V7: =IF($B7="","",IF(VLOOKUP($B7,'Athlete Input'!$C:$H,V$1,FALSE)="","",VLOOKUP($B7,'Athlete Input'!$C:$H,V$1,FALSE))) ->  | W7: =IF($B7="","",IF(VLOOKUP($B7,'Athlete Input'!$C:$H,W$1,FALSE)="","",VLOOKUP($B7,'Athlete Input'!$C:$H,W$1,FALSE))) ->  | X7: =IF($B7="","",IF(VLOOKUP($B7,'Athlete Input'!$C:$H,X$1,FALSE)="","",VLOOKUP($B7,'Athlete Input'!$C:$H,X$1,FALSE))) ->  | Y7: =IF($B7="","",IF(VLOOKUP($B7,'Athlete Input'!$C:$H,Y$1,FALSE)="","",VLOOKUP($B7,'Athlete Input'!$C:$H,Y$1,FALSE))) ->  | Z7: =IF($B7="","",IF(VLOOKUP($B7,'Athlete Input'!$C:$H,Z$1,FALSE)="","",VLOOKUP($B7,'Athlete Input'!$C:$H,Z$1,FALSE))) ->  | AA7: =IF($B7="","",IF(VLOOKUP($B7,'Athlete Input'!$C:$H,AA$1,FALSE)="","",VLOOKUP($B7,'Athlete Input'!$C:$H,AA$1,FALSE))) ->  | AB7: =IF($B7="","",IF(VLOOKUP($B7,'Athlete Input'!$C:$H,AB$1,FALSE)="","",VLOOKUP($B7,'Athlete Input'!$C:$H,AB$1,FALSE))) ->  | AC7: =IF($B7="","",IF(VLOOKUP($B7,'Athlete Input'!$C:$H,AC$1,FALSE)="","",VLOOKUP($B7,'Athlete Input'!$C:$H,AC$1,FALSE))) ->  | AD7: =IF($B7="","",IF(VLOOKUP($B7,'Athlete Input'!$C:$H,AD$1,FALSE)="","",VLOOKUP($B7,'Athlete Input'!$C:$H,AD$1,FALSE))) ->  | AE7: =IF($B7="","",IF(VLOOKUP($B7,'Athlete Input'!$C:$H,AE$1,FALSE)="","",VLOOKUP($B7,'Athlete Input'!$C:$H,AE$1,FALSE))) ->  | AF7: =IF($B7="","",IF(VLOOKUP($B7,'Athlete Input'!$C:$H,AF$1,FALSE)="","",VLOOKUP($B7,'Athlete Input'!$C:$H,AF$1,FALSE))) ->  | AG7: =IF($B7="","",IF(VLOOKUP($B7,'Athlete Input'!$C:$H,AG$1,FALSE)="","",VLOOKUP($B7,'Athlete Input'!$C:$H,AG$1,FALSE))) ->  | AH7: =IF($B7="","",IF(VLOOKUP($B7,'Athlete Input'!$C:$H,AH$1,FALSE)="","",VLOOKUP($B7,'Athlete Input'!$C:$H,AH$1,FALSE))) ->  | AI7: =IF($B7="","",IF(VLOOKUP($B7,'Athlete Input'!$C:$H,AI$1,FALSE)="","",VLOOKUP($B7,'Athlete Input'!$C:$H,AI$1,FALSE))) ->  | AJ7: =IF($B7="","",IF(VLOOKUP($B7,'Athlete Input'!$C:$H,AJ$1,FALSE)="","",VLOOKUP($B7,'Athlete Input'!$C:$H,AJ$1,FALSE))) ->  | AK7: =IF($B7="","",IF(VLOOKUP($B7,'Athlete Input'!$C:$H,AK$1,FALSE)="","",VLOOKUP($B7,'Athlete Input'!$C:$H,AK$1,FALSE))) ->  | AL7: =IF($B7="","",IF(VLOOKUP($B7,'Athlete Input'!$C:$H,AL$1,FALSE)="","",VLOOKUP($B7,'Athlete Input'!$C:$H,AL$1,FALSE))) ->  | AM7: =IF(B7="","zz",'Athlete Input'!D13) -> Borland
A8: 5 | B8: =IF('Athlete Input'!C14="","",'Athlete Input'!C14) -> Sarah Cadenas | C8: =IF($B8="","",IF(VLOOKUP($B8,'Athlete Input'!$C:$H,C$1,FALSE)="","",VLOOKUP($B8,'Athlete Input'!$C:$H,C$1,FALSE))) ->  | D8: =IF($B8="","",IF(VLOOKUP($B8,'Athlete Input'!$C:$H,D$1,FALSE)="","",VLOOKUP($B8,'Athlete Input'!$C:$H,D$1,FALSE))) ->  | E8: =IF($B8="","",IF(VLOOKUP($B8,'Athlete Input'!$C:$H,E$1,FALSE)="","",VLOOKUP($B8,'Athlete Input'!$C:$H,E$1,FALSE))) ->  | F8: =IF($B8="","",IF(VLOOKUP($B8,'Athlete Input'!$C:$H,F$1,FALSE)="","",VLOOKUP($B8,'Athlete Input'!$C:$H,F$1,FALSE))) ->  | G8: =IF($B8="","",IF(VLOOKUP($B8,'Athlete Input'!$C:$H,G$1,FALSE)="","",VLOOKUP($B8,'Athlete Input'!$C:$H,G$1,FALSE))) ->  | H8: =IF($B8="","",IF(VLOOKUP($B8,'Athlete Input'!$C:$H,H$1,FALSE)="","",VLOOKUP($B8,'Athlete Input'!$C:$H,H$1,FALSE))) ->  | I8: =IF($B8="","",IF(VLOOKUP($B8,'Athlete Input'!$C:$H,I$1,FALSE)="","",VLOOKUP($B8,'Athlete Input'!$C:$H,I$1,FALSE))) ->  | J8: =IF($B8="","",IF(VLOOKUP($B8,'Athlete Input'!$C:$H,J$1,FALSE)="","",VLOOKUP($B8,'Athlete Input'!$C:$H,J$1,FALSE))) ->  | K8: =IF($B8="","",IF(VLOOKUP($B8,'Athlete Input'!$C:$H,K$1,FALSE)="","",VLOOKUP($B8,'Athlete Input'!$C:$H,K$1,FALSE))) ->  | L8: =IF($B8="","",IF(VLOOKUP($B8,'Athlete Input'!$C:$H,L$1,FALSE)="","",VLOOKUP($B8,'Athlete Input'!$C:$H,L$1,FALSE))) ->  | M8: =IF($B8="","",IF(VLOOKUP($B8,'Athlete Input'!$C:$H,M$1,FALSE)="","",VLOOKUP($B8,'Athlete Input'!$C:$H,M$1,FALSE))) ->  | N8: =IF($B8="","",IF(VLOOKUP($B8,'Athlete Input'!$C:$H,N$1,FALSE)="","",VLOOKUP($B8,'Athlete Input'!$C:$H,N$1,FALSE))) ->  | O8: =IF($B8="","",IF(VLOOKUP($B8,'Athlete Input'!$C:$H,O$1,FALSE)="","",VLOOKUP($B8,'Athlete Input'!$C:$H,O$1,FALSE))) ->  | P8: =IF($B8="","",IF(VLOOKUP($B8,'Athlete Input'!$C:$H,P$1,FALSE)="","",VLOOKUP($B8,'Athlete Input'!$C:$H,P$1,FALSE))) ->  | Q8: =IF($B8="","",IF(VLOOKUP($B8,'Athlete Input'!$C:$H,Q$1,FALSE)="","",VLOOKUP($B8,'Athlete Input'!$C:$H,Q$1,FALSE))) ->  | R8: =IF($B8="","",IF(VLOOKUP($B8,'Athlete Input'!$C:$H,R$1,FALSE)="","",VLOOKUP($B8,'Athlete Input'!$C:$H,R$1,FALSE))) ->  | S8: =IF($B8="","",IF(VLOOKUP($B8,'Athlete Input'!$C:$H,S$1,FALSE)="","",VLOOKUP($B8,'Athlete Input'!$C:$H,S$1,FALSE))) ->  | T8: =IF($B8="","",IF(VLOOKUP($B8,'Athlete Input'!$C:$H,T$1,FALSE)="","",VLOOKUP($B8,'Athlete Input'!$C:$H,T$1,FALSE))) ->  | U8: =IF($B8="","",IF(VLOOKUP($B8,'Athlete Input'!$C:$H,U$1,FALSE)="","",VLOOKUP($B8,'Athlete Input'!$C:$H,U$1,FALSE))) ->  | V8: =IF($B8="","",IF(VLOOKUP($B8,'Athlete Input'!$C:$H,V$1,FALSE)="","",VLOOKUP($B8,'Athlete Input'!$C:$H,V$1,FALSE))) ->  | W8: =IF($B8="","",IF(VLOOKUP($B8,'Athlete Input'!$C:$H,W$1,FALSE)="","",VLOOKUP($B8,'Athlete Input'!$C:$H,W$1,FALSE))) ->  | X8: =IF($B8="","",IF(VLOOKUP($B8,'Athlete Input'!$C:$H,X$1,FALSE)="","",VLOOKUP($B8,'Athlete Input'!$C:$H,X$1,FALSE))) ->  | Y8: =IF($B8="","",IF(VLOOKUP($B8,'Athlete Input'!$C:$H,Y$1,FALSE)="","",VLOOKUP($B8,'Athlete Input'!$C:$H,Y$1,FALSE))) ->  | Z8: =IF($B8="","",IF(VLOOKUP($B8,'Athlete Input'!$C:$H,Z$1,FALSE)="","",VLOOKUP($B8,'Athlete Input'!$C:$H,Z$1,FALSE))) ->  | AA8: =IF($B8="","",IF(VLOOKUP($B8,'Athlete Input'!$C:$H,AA$1,FALSE)="","",VLOOKUP($B8,'Athlete Input'!$C:$H,AA$1,FALSE))) ->  | AB8: =IF($B8="","",IF(VLOOKUP($B8,'Athlete Input'!$C:$H,AB$1,FALSE)="","",VLOOKUP($B8,'Athlete Input'!$C:$H,AB$1,FALSE))) ->  | AC8: =IF($B8="","",IF(VLOOKUP($B8,'Athlete Input'!$C:$H,AC$1,FALSE)="","",VLOOKUP($B8,'Athlete Input'!$C:$H,AC$1,FALSE))) ->  | AD8: =IF($B8="","",IF(VLOOKUP($B8,'Athlete Input'!$C:$H,AD$1,FALSE)="","",VLOOKUP($B8,'Athlete Input'!$C:$H,AD$1,FALSE))) ->  | AE8: =IF($B8="","",IF(VLOOKUP($B8,'Athlete Input'!$C:$H,AE$1,FALSE)="","",VLOOKUP($B8,'Athlete Input'!$C:$H,AE$1,FALSE))) ->  | AF8: =IF($B8="","",IF(VLOOKUP($B8,'Athlete Input'!$C:$H,AF$1,FALSE)="","",VLOOKUP($B8,'Athlete Input'!$C:$H,AF$1,FALSE))) ->  | AG8: =IF($B8="","",IF(VLOOKUP($B8,'Athlete Input'!$C:$H,AG$1,FALSE)="","",VLOOKUP($B8,'Athlete Input'!$C:$H,AG$1,FALSE))) ->  | AH8: =IF($B8="","",IF(VLOOKUP($B8,'Athlete Input'!$C:$H,AH$1,FALSE)="","",VLOOKUP($B8,'Athlete Input'!$C:$H,AH$1,FALSE))) ->  | AI8: =IF($B8="","",IF(VLOOKUP($B8,'Athlete Input'!$C:$H,AI$1,FALSE)="","",VLOOKUP($B8,'Athlete Input'!$C:$H,AI$1,FALSE))) ->  | AJ8: =IF($B8="","",IF(VLOOKUP($B8,'Athlete Input'!$C:$H,AJ$1,FALSE)="","",VLOOKUP($B8,'Athlete Input'!$C:$H,AJ$1,FALSE))) ->  | AK8: =IF($B8="","",IF(VLOOKUP($B8,'Athlete Input'!$C:$H,AK$1,FALSE)="","",VLOOKUP($B8,'Athlete Input'!$C:$H,AK$1,FALSE))) ->  | AL8: =IF($B8="","",IF(VLOOKUP($B8,'Athlete Input'!$C:$H,AL$1,FALSE)="","",VLOOKUP($B8,'Athlete Input'!$C:$H,AL$1,FALSE))) ->  | AM8: =IF(B8="","zz",'Athlete Input'!D14) -> Cadenas
A9: 6 | B9: =IF('Athlete Input'!C15="","",'Athlete Input'!C15) -> Kirsten Cameron | C9: =IF($B9="","",IF(VLOOKUP($B9,'Athlete Input'!$C:$H,C$1,FALSE)="","",VLOOKUP($B9,'Athlete Input'!$C:$H,C$1,FALSE))) ->  | D9: =IF($B9="","",IF(VLOOKUP($B9,'Athlete Input'!$C:$H,D$1,FALSE)="","",VLOOKUP($B9,'Athlete Input'!$C:$H,D$1,FALSE))) ->  | E9: =IF($B9="","",IF(VLOOKUP($B9,'Athlete Input'!$C:$H,E$1,FALSE)="","",VLOOKUP($B9,'Athlete Input'!$C:$H,E$1,FALSE))) ->  | F9: =IF($B9="","",IF(VLOOKUP($B9,'Athlete Input'!$C:$H,F$1,FALSE)="","",VLOOKUP($B9,'Athlete Input'!$C:$H,F$1,FALSE))) ->  | G9: =IF($B9="","",IF(VLOOKUP($B9,'Athlete Input'!$C:$H,G$1,FALSE)="","",VLOOKUP($B9,'Athlete Input'!$C:$H,G$1,FALSE))) ->  | H9: =IF($B9="","",IF(VLOOKUP($B9,'Athlete Input'!$C:$H,H$1,FALSE)="","",VLOOKUP($B9,'Athlete Input'!$C:$H,H$1,FALSE))) ->  | I9: =IF($B9="","",IF(VLOOKUP($B9,'Athlete Input'!$C:$H,I$1,FALSE)="","",VLOOKUP($B9,'Athlete Input'!$C:$H,I$1,FALSE))) ->  | J9: =IF($B9="","",IF(VLOOKUP($B9,'Athlete Input'!$C:$H,J$1,FALSE)="","",VLOOKUP($B9,'Athlete Input'!$C:$H,J$1,FALSE))) ->  | K9: =IF($B9="","",IF(VLOOKUP($B9,'Athlete Input'!$C:$H,K$1,FALSE)="","",VLOOKUP($B9,'Athlete Input'!$C:$H,K$1,FALSE))) ->  | L9: =IF($B9="","",IF(VLOOKUP($B9,'Athlete Input'!$C:$H,L$1,FALSE)="","",VLOOKUP($B9,'Athlete Input'!$C:$H,L$1,FALSE))) ->  | M9: =IF($B9="","",IF(VLOOKUP($B9,'Athlete Input'!$C:$H,M$1,FALSE)="","",VLOOKUP($B9,'Athlete Input'!$C:$H,M$1,FALSE))) ->  | N9: =IF($B9="","",IF(VLOOKUP($B9,'Athlete Input'!$C:$H,N$1,FALSE)="","",VLOOKUP($B9,'Athlete Input'!$C:$H,N$1,FALSE))) ->  | O9: =IF($B9="","",IF(VLOOKUP($B9,'Athlete Input'!$C:$H,O$1,FALSE)="","",VLOOKUP($B9,'Athlete Input'!$C:$H,O$1,FALSE))) ->  | P9: =IF($B9="","",IF(VLOOKUP($B9,'Athlete Input'!$C:$H,P$1,FALSE)="","",VLOOKUP($B9,'Athlete Input'!$C:$H,P$1,FALSE))) ->  | Q9: =IF($B9="","",IF(VLOOKUP($B9,'Athlete Input'!$C:$H,Q$1,FALSE)="","",VLOOKUP($B9,'Athlete Input'!$C:$H,Q$1,FALSE))) ->  | R9: =IF($B9="","",IF(VLOOKUP($B9,'Athlete Input'!$C:$H,R$1,FALSE)="","",VLOOKUP($B9,'Athlete Input'!$C:$H,R$1,FALSE))) ->  | S9: =IF($B9="","",IF(VLOOKUP($B9,'Athlete Input'!$C:$H,S$1,FALSE)="","",VLOOKUP($B9,'Athlete Input'!$C:$H,S$1,FALSE))) ->  | T9: =IF($B9="","",IF(VLOOKUP($B9,'Athlete Input'!$C:$H,T$1,FALSE)="","",VLOOKUP($B9,'Athlete Input'!$C:$H,T$1,FALSE))) ->  | U9: =IF($B9="","",IF(VLOOKUP($B9,'Athlete Input'!$C:$H,U$1,FALSE)="","",VLOOKUP($B9,'Athlete Input'!$C:$H,U$1,FALSE))) ->  | V9: =IF($B9="","",IF(VLOOKUP($B9,'Athlete Input'!$C:$H,V$1,FALSE)="","",VLOOKUP($B9,'Athlete Input'!$C:$H,V$1,FALSE))) ->  | W9: =IF($B9="","",IF(VLOOKUP($B9,'Athlete Input'!$C:$H,W$1,FALSE)="","",VLOOKUP($B9,'Athlete Input'!$C:$H,W$1,FALSE))) ->  | X9: =IF($B9="","",IF(VLOOKUP($B9,'Athlete Input'!$C:$H,X$1,FALSE)="","",VLOOKUP($B9,'Athlete Input'!$C:$H,X$1,FALSE))) ->  | Y9: =IF($B9="","",IF(VLOOKUP($B9,'Athlete Input'!$C:$H,Y$1,FALSE)="","",VLOOKUP($B9,'Athlete Input'!$C:$H,Y$1,FALSE))) ->  | Z9: =IF($B9="","",IF(VLOOKUP($B9,'Athlete Input'!$C:$H,Z$1,FALSE)="","",VLOOKUP($B9,'Athlete Input'!$C:$H,Z$1,FALSE))) ->  | AA9: =IF($B9="","",IF(VLOOKUP($B9,'Athlete Input'!$C:$H,AA$1,FALSE)="","",VLOOKUP($B9,'Athlete Input'!$C:$H,AA$1,FALSE))) ->  | AB9: =IF($B9="","",IF(VLOOKUP($B9,'Athlete Input'!$C:$H,AB$1,FALSE)="","",VLOOKUP($B9,'Athlete Input'!$C:$H,AB$1,FALSE))) ->  | AC9: =IF($B9="","",IF(VLOOKUP($B9,'Athlete Input'!$C:$H,AC$1,FALSE)="","",VLOOKUP($B9,'Athlete Input'!$C:$H,AC$1,FALSE))) ->  | AD9: =IF($B9="","",IF(VLOOKUP($B9,'Athlete Input'!$C:$H,AD$1,FALSE)="","",VLOOKUP($B9,'Athlete Input'!$C:$H,AD$1,FALSE))) ->  | AE9: =IF($B9="","",IF(VLOOKUP($B9,'Athlete Input'!$C:$H,AE$1,FALSE)="","",VLOOKUP($B9,'Athlete Input'!$C:$H,AE$1,FALSE))) ->  | AF9: =IF($B9="","",IF(VLOOKUP($B9,'Athlete Input'!$C:$H,AF$1,FALSE)="","",VLOOKUP($B9,'Athlete Input'!$C:$H,AF$1,FALSE))) ->  | AG9: =IF($B9="","",IF(VLOOKUP($B9,'Athlete Input'!$C:$H,AG$1,FALSE)="","",VLOOKUP($B9,'Athlete Input'!$C:$H,AG$1,FALSE))) ->  | AH9: =IF($B9="","",IF(VLOOKUP($B9,'Athlete Input'!$C:$H,AH$1,FALSE)="","",VLOOKUP($B9,'Athlete Input'!$C:$H,AH$1,FALSE))) ->  | AI9: =IF($B9="","",IF(VLOOKUP($B9,'Athlete Input'!$C:$H,AI$1,FALSE)="","",VLOOKUP($B9,'Athlete Input'!$C:$H,AI$1,FALSE))) ->  | AJ9: =IF($B9="","",IF(VLOOKUP($B9,'Athlete Input'!$C:$H,AJ$1,FALSE)="","",VLOOKUP($B9,'Athlete Input'!$C:$H,AJ$1,FALSE))) ->  | AK9: =IF($B9="","",IF(VLOOKUP($B9,'Athlete Input'!$C:$H,AK$1,FALSE)="","",VLOOKUP($B9,'Athlete Input'!$C:$H,AK$1,FALSE))) ->  | AL9: =IF($B9="","",IF(VLOOKUP($B9,'Athlete Input'!$C:$H,AL$1,FALSE)="","",VLOOKUP($B9,'Athlete Input'!$C:$H,AL$1,FALSE))) ->  | AM9: =IF(B9="","zz",'Athlete Input'!D15) -> Cameron
A10: 7 | B10: =IF('Athlete Input'!C16="","",'Athlete Input'!C16) -> Carolyn Cameron | C10: =IF($B10="","",IF(VLOOKUP($B10,'Athlete Input'!$C:$H,C$1,FALSE)="","",VLOOKUP($B10,'Athlete Input'!$C:$H,C$1,FALSE))) ->  | D10: =IF($B10="","",IF(VLOOKUP($B10,'Athlete Input'!$C:$H,D$1,FALSE)="","",VLOOKUP($B10,'Athlete Input'!$C:$H,D$1,FALSE))) ->  | E10: =IF($B10="","",IF(VLOOKUP($B10,'Athlete Input'!$C:$H,E$1,FALSE)="","",VLOOKUP($B10,'Athlete Input'!$C:$H,E$1,FALSE))) ->  | F10: =IF($B10="","",IF(VLOOKUP($B10,'Athlete Input'!$C:$H,F$1,FALSE)="","",VLOOKUP($B10,'Athlete Input'!$C:$H,F$1,FALSE))) ->  | G10: =IF($B10="","",IF(VLOOKUP($B10,'Athlete Input'!$C:$H,G$1,FALSE)="","",VLOOKUP($B10,'Athlete Input'!$C:$H,G$1,FALSE))) ->  | H10: =IF($B10="","",IF(VLOOKUP($B10,'Athlete Input'!$C:$H,H$1,FALSE)="","",VLOOKUP($B10,'Athlete Input'!$C:$H,H$1,FALSE))) ->  | I10: =IF($B10="","",IF(VLOOKUP($B10,'Athlete Input'!$C:$H,I$1,FALSE)="","",VLOOKUP($B10,'Athlete Input'!$C:$H,I$1,FALSE))) ->  | J10: =IF($B10="","",IF(VLOOKUP($B10,'Athlete Input'!$C:$H,J$1,FALSE)="","",VLOOKUP($B10,'Athlete Input'!$C:$H,J$1,FALSE))) ->  | K10: =IF($B10="","",IF(VLOOKUP($B10,'Athlete Input'!$C:$H,K$1,FALSE)="","",VLOOKUP($B10,'Athlete Input'!$C:$H,K$1,FALSE))) ->  | L10: =IF($B10="","",IF(VLOOKUP($B10,'Athlete Input'!$C:$H,L$1,FALSE)="","",VLOOKUP($B10,'Athlete Input'!$C:$H,L$1,FALSE))) ->  | M10: =IF($B10="","",IF(VLOOKUP($B10,'Athlete Input'!$C:$H,M$1,FALSE)="","",VLOOKUP($B10,'Athlete Input'!$C:$H,M$1,FALSE))) ->  | N10: =IF($B10="","",IF(VLOOKUP($B10,'Athlete Input'!$C:$H,N$1,FALSE)="","",VLOOKUP($B10,'Athlete Input'!$C:$H,N$1,FALSE))) ->  | O10: =IF($B10="","",IF(VLOOKUP($B10,'Athlete Input'!$C:$H,O$1,FALSE)="","",VLOOKUP($B10,'Athlete Input'!$C:$H,O$1,FALSE))) ->  | P10: =IF($B10="","",IF(VLOOKUP($B10,'Athlete Input'!$C:$H,P$1,FALSE)="","",VLOOKUP($B10,'Athlete Input'!$C:$H,P$1,FALSE))) ->  | Q10: =IF($B10="","",IF(VLOOKUP($B10,'Athlete Input'!$C:$H,Q$1,FALSE)="","",VLOOKUP($B10,'Athlete Input'!$C:$H,Q$1,FALSE))) ->  | R10: =IF($B10="","",IF(VLOOKUP($B10,'Athlete Input'!$C:$H,R$1,FALSE)="","",VLOOKUP($B10,'Athlete Input'!$C:$H,R$1,FALSE))) ->  | S10: =IF($B10="","",IF(VLOOKUP($B10,'Athlete Input'!$C:$H,S$1,FALSE)="","",VLOOKUP($B10,'Athlete Input'!$C:$H,S$1,FALSE))) ->  | T10: =IF($B10="","",IF(VLOOKUP($B10,'Athlete Input'!$C:$H,T$1,FALSE)="","",VLOOKUP($B10,'Athlete Input'!$C:$H,T$1,FALSE))) ->  | U10: =IF($B10="","",IF(VLOOKUP($B10,'Athlete Input'!$C:$H,U$1,FALSE)="","",VLOOKUP($B10,'Athlete Input'!$C:$H,U$1,FALSE))) ->  | V10: =IF($B10="","",IF(VLOOKUP($B10,'Athlete Input'!$C:$H,V$1,FALSE)="","",VLOOKUP($B10,'Athlete Input'!$C:$H,V$1,FALSE))) ->  | W10: =IF($B10="","",IF(VLOOKUP($B10,'Athlete Input'!$C:$H,W$1,FALSE)="","",VLOOKUP($B10,'Athlete Input'!$C:$H,W$1,FALSE))) ->  | X10: =IF($B10="","",IF(VLOOKUP($B10,'Athlete Input'!$C:$H,X$1,FALSE)="","",VLOOKUP($B10,'Athlete Input'!$C:$H,X$1,FALSE))) ->  | Y10: =IF($B10="","",IF(VLOOKUP($B10,'Athlete Input'!$C:$H,Y$1,FALSE)="","",VLOOKUP($B10,'Athlete Input'!$C:$H,Y$1,FALSE))) ->  | Z10: =IF($B10="","",IF(VLOOKUP($B10,'Athlete Input'!$C:$H,Z$1,FALSE)="","",VLOOKUP($B10,'Athlete Input'!$C:$H,Z$1,FALSE))) ->  | AA10: =IF($B10="","",IF(VLOOKUP($B10,'Athlete Input'!$C:$H,AA$1,FALSE)="","",VLOOKUP($B10,'Athlete Input'!$C:$H,AA$1,FALSE))) ->  | AB10: =IF($B10="","",IF(VLOOKUP($B10,'Athlete Input'!$C:$H,AB$1,FALSE)="","",VLOOKUP($B10,'Athlete Input'!$C:$H,AB$1,FALSE))) ->  | AC10: =IF($B10="","",IF(VLOOKUP($B10,'Athlete Input'!$C:$H,AC$1,FALSE)="","",VLOOKUP($B10,'Athlete Input'!$C:$H,AC$1,FALSE))) ->  | AD10: =IF($B10="","",IF(VLOOKUP($B10,'Athlete Input'!$C:$H,AD$1,FALSE)="","",VLOOKUP($B10,'Athlete Input'!$C:$H,AD$1,FALSE))) ->  | AE10: =IF($B10="","",IF(VLOOKUP($B10,'Athlete Input'!$C:$H,AE$1,FALSE)="","",VLOOKUP($B10,'Athlete Input'!$C:$H,AE$1,FALSE))) ->  | AF10: =IF($B10="","",IF(VLOOKUP($B10,'Athlete Input'!$C:$H,AF$1,FALSE)="","",VLOOKUP($B10,'Athlete Input'!$C:$H,AF$1,FALSE))) ->  | AG10: =IF($B10="","",IF(VLOOKUP($B10,'Athlete Input'!$C:$H,AG$1,FALSE)="","",VLOOKUP($B10,'Athlete Input'!$C:$H,AG$1,FALSE))) ->  | AH10: =IF($B10="","",IF(VLOOKUP($B10,'Athlete Input'!$C:$H,AH$1,FALSE)="","",VLOOKUP($B10,'Athlete Input'!$C:$H,AH$1,FALSE))) ->  | AI10: =IF($B10="","",IF(VLOOKUP($B10,'Athlete Input'!$C:$H,AI$1,FALSE)="","",VLOOKUP($B10,'Athlete Input'!$C:$H,AI$1,FALSE))) ->  | AJ10: =IF($B10="","",IF(VLOOKUP($B10,'Athlete Input'!$C:$H,AJ$1,FALSE)="","",VLOOKUP($B10,'Athlete Input'!$C:$H,AJ$1,FALSE))) ->  | AK10: =IF($B10="","",IF(VLOOKUP($B10,'Athlete Input'!$C:$H,AK$1,FALSE)="","",VLOOKUP($B10,'Athlete Input'!$C:$H,AK$1,FALSE))) ->  | AL10: =IF($B10="","",IF(VLOOKUP($B10,'Athlete Input'!$C:$H,AL$1,FALSE)="","",VLOOKUP($B10,'Athlete Input'!$C:$H,AL$1,FALSE))) ->  | AM10: =IF(B10="","zz",'Athlete Input'!D16) -> Cameron
A11: 8 | B11: =IF('Athlete Input'!C17="","",'Athlete Input'!C17) -> Mireille Captieux | C11: =IF($B11="","",IF(VLOOKUP($B11,'Athlete Input'!$C:$H,C$1,FALSE)="","",VLOOKUP($B11,'Athlete Input'!$C:$H,C$1,FALSE))) ->  | D11: =IF($B11="","",IF(VLOOKUP($B11,'Athlete Input'!$C:$H,D$1,FALSE)="","",VLOOKUP($B11,'Athlete Input'!$C:$H,D$1,FALSE))) ->  | E11: =IF($B11="","",IF(VLOOKUP($B11,'Athlete Input'!$C:$H,E$1,FALSE)="","",VLOOKUP($B11,'Athlete Input'!$C:$H,E$1,FALSE))) ->  | F11: =IF($B11="","",IF(VLOOKUP($B11,'Athlete Input'!$C:$H,F$1,FALSE)="","",VLOOKUP($B11,'Athlete Input'!$C:$H,F$1,FALSE))) ->  | G11: =IF($B11="","",IF(VLOOKUP($B11,'Athlete Input'!$C:$H,G$1,FALSE)="","",VLOOKUP($B11,'Athlete Input'!$C:$H,G$1,FALSE))) ->  | H11: =IF($B11="","",IF(VLOOKUP($B11,'Athlete Input'!$C:$H,H$1,FALSE)="","",VLOOKUP($B11,'Athlete Input'!$C:$H,H$1,FALSE))) ->  | I11: =IF($B11="","",IF(VLOOKUP($B11,'Athlete Input'!$C:$H,I$1,FALSE)="","",VLOOKUP($B11,'Athlete Input'!$C:$H,I$1,FALSE))) ->  | J11: =IF($B11="","",IF(VLOOKUP($B11,'Athlete Input'!$C:$H,J$1,FALSE)="","",VLOOKUP($B11,'Athlete Input'!$C:$H,J$1,FALSE))) ->  | K11: =IF($B11="","",IF(VLOOKUP($B11,'Athlete Input'!$C:$H,K$1,FALSE)="","",VLOOKUP($B11,'Athlete Input'!$C:$H,K$1,FALSE))) ->  | L11: =IF($B11="","",IF(VLOOKUP($B11,'Athlete Input'!$C:$H,L$1,FALSE)="","",VLOOKUP($B11,'Athlete Input'!$C:$H,L$1,FALSE))) ->  | M11: =IF($B11="","",IF(VLOOKUP($B11,'Athlete Input'!$C:$H,M$1,FALSE)="","",VLOOKUP($B11,'Athlete Input'!$C:$H,M$1,FALSE))) ->  | N11: =IF($B11="","",IF(VLOOKUP($B11,'Athlete Input'!$C:$H,N$1,FALSE)="","",VLOOKUP($B11,'Athlete Input'!$C:$H,N$1,FALSE))) ->  | O11: =IF($B11="","",IF(VLOOKUP($B11,'Athlete Input'!$C:$H,O$1,FALSE)="","",VLOOKUP($B11,'Athlete Input'!$C:$H,O$1,FALSE))) ->  | P11: =IF($B11="","",IF(VLOOKUP($B11,'Athlete Input'!$C:$H,P$1,FALSE)="","",VLOOKUP($B11,'Athlete Input'!$C:$H,P$1,FALSE))) ->  | Q11: =IF($B11="","",IF(VLOOKUP($B11,'Athlete Input'!$C:$H,Q$1,FALSE)="","",VLOOKUP($B11,'Athlete Input'!$C:$H,Q$1,FALSE))) ->  | R11: =IF($B11="","",IF(VLOOKUP($B11,'Athlete Input'!$C:$H,R$1,FALSE)="","",VLOOKUP($B11,'Athlete Input'!$C:$H,R$1,FALSE))) ->  | S11: =IF($B11="","",IF(VLOOKUP($B11,'Athlete Input'!$C:$H,S$1,FALSE)="","",VLOOKUP($B11,'Athlete Input'!$C:$H,S$1,FALSE))) ->  | T11: =IF($B11="","",IF(VLOOKUP($B11,'Athlete Input'!$C:$H,T$1,FALSE)="","",VLOOKUP($B11,'Athlete Input'!$C:$H,T$1,FALSE))) ->  | U11: =IF($B11="","",IF(VLOOKUP($B11,'Athlete Input'!$C:$H,U$1,FALSE)="","",VLOOKUP($B11,'Athlete Input'!$C:$H,U$1,FALSE))) ->  | V11: =IF($B11="","",IF(VLOOKUP($B11,'Athlete Input'!$C:$H,V$1,FALSE)="","",VLOOKUP($B11,'Athlete Input'!$C:$H,V$1,FALSE))) ->  | W11: =IF($B11="","",IF(VLOOKUP($B11,'Athlete Input'!$C:$H,W$1,FALSE)="","",VLOOKUP($B11,'Athlete Input'!$C:$H,W$1,FALSE))) ->  | X11: =IF($B11="","",IF(VLOOKUP($B11,'Athlete Input'!$C:$H,X$1,FALSE)="","",VLOOKUP($B11,'Athlete Input'!$C:$H,X$1,FALSE))) ->  | Y11: =IF($B11="","",IF(VLOOKUP($B11,'Athlete Input'!$C:$H,Y$1,FALSE)="","",VLOOKUP($B11,'Athlete Input'!$C:$H,Y$1,FALSE))) ->  | Z11: =IF($B11="","",IF(VLOOKUP($B11,'Athlete Input'!$C:$H,Z$1,FALSE)="","",VLOOKUP($B11,'Athlete Input'!$C:$H,Z$1,FALSE))) ->  | AA11: =IF($B11="","",IF(VLOOKUP($B11,'Athlete Input'!$C:$H,AA$1,FALSE)="","",VLOOKUP($B11,'Athlete Input'!$C:$H,AA$1,FALSE))) ->  | AB11: =IF($B11="","",IF(VLOOKUP($B11,'Athlete Input'!$C:$H,AB$1,FALSE)="","",VLOOKUP($B11,'Athlete Input'!$C:$H,AB$1,FALSE))) ->  | AC11: =IF($B11="","",IF(VLOOKUP($B11,'Athlete Input'!$C:$H,AC$1,FALSE)="","",VLOOKUP($B11,'Athlete Input'!$C:$H,AC$1,FALSE))) ->  | AD11: =IF($B11="","",IF(VLOOKUP($B11,'Athlete Input'!$C:$H,AD$1,FALSE)="","",VLOOKUP($B11,'Athlete Input'!$C:$H,AD$1,FALSE))) ->  | AE11: =IF($B11="","",IF(VLOOKUP($B11,'Athlete Input'!$C:$H,AE$1,FALSE)="","",VLOOKUP($B11,'Athlete Input'!$C:$H,AE$1,FALSE))) ->  | AF11: =IF($B11="","",IF(VLOOKUP($B11,'Athlete Input'!$C:$H,AF$1,FALSE)="","",VLOOKUP($B11,'Athlete Input'!$C:$H,AF$1,FALSE))) ->  | AG11: =IF($B11="","",IF(VLOOKUP($B11,'Athlete Input'!$C:$H,AG$1,FALSE)="","",VLOOKUP($B11,'Athlete Input'!$C:$H,AG$1,FALSE))) ->  | AH11: =IF($B11="","",IF(VLOOKUP($B11,'Athlete Input'!$C:$H,AH$1,FALSE)="","",VLOOKUP($B11,'Athlete Input'!$C:$H,AH$1,FALSE))) ->  | AI11: =IF($B11="","",IF(VLOOKUP($B11,'Athlete Input'!$C:$H,AI$1,FALSE)="","",VLOOKUP($B11,'Athlete Input'!$C:$H,AI$1,FALSE))) ->  | AJ11: =IF($B11="","",IF(VLOOKUP($B11,'Athlete Input'!$C:$H,AJ$1,FALSE)="","",VLOOKUP($B11,'Athlete Input'!$C:$H,AJ$1,FALSE))) ->  | AK11: =IF($B11="","",IF(VLOOKUP($B11,'Athlete Input'!$C:$H,AK$1,FALSE)="","",VLOOKUP($B11,'Athlete Input'!$C:$H,AK$1,FALSE))) ->  | AL11: =IF($B11="","",IF(VLOOKUP($B11,'Athlete Input'!$C:$H,AL$1,FALSE)="","",VLOOKUP($B11,'Athlete Input'!$C:$H,AL$1,FALSE))) ->  | AM11: =IF(B11="","zz",'Athlete Input'!D17) -> Captieux
A12: 9 | B12: =IF('Athlete Input'!C18="","",'Athlete Input'!C18) -> Elaine Davies | C12: =IF($B12="","",IF(VLOOKUP($B12,'Athlete Input'!$C:$H,C$1,FALSE)="","",VLOOKUP($B12,'Athlete Input'!$C:$H,C$1,FALSE))) ->  | D12: =IF($B12="","",IF(VLOOKUP($B12,'Athlete Input'!$C:$H,D$1,FALSE)="","",VLOOKUP($B12,'Athlete Input'!$C:$H,D$1,FALSE))) ->  | E12: =IF($B12="","",IF(VLOOKUP($B12,'Athlete Input'!$C:$H,E$1,FALSE)="","",VLOOKUP($B12,'Athlete Input'!$C:$H,E$1,FALSE))) ->  | F12: =IF($B12="","",IF(VLOOKUP($B12,'Athlete Input'!$C:$H,F$1,FALSE)="","",VLOOKUP($B12,'Athlete Input'!$C:$H,F$1,FALSE))) ->  | G12: =IF($B12="","",IF(VLOOKUP($B12,'Athlete Input'!$C:$H,G$1,FALSE)="","",VLOOKUP($B12,'Athlete Input'!$C:$H,G$1,FALSE))) ->  | H12: =IF($B12="","",IF(VLOOKUP($B12,'Athlete Input'!$C:$H,H$1,FALSE)="","",VLOOKUP($B12,'Athlete Input'!$C:$H,H$1,FALSE))) ->  | I12: =IF($B12="","",IF(VLOOKUP($B12,'Athlete Input'!$C:$H,I$1,FALSE)="","",VLOOKUP($B12,'Athlete Input'!$C:$H,I$1,FALSE))) ->  | J12: =IF($B12="","",IF(VLOOKUP($B12,'Athlete Input'!$C:$H,J$1,FALSE)="","",VLOOKUP($B12,'Athlete Input'!$C:$H,J$1,FALSE))) ->  | K12: =IF($B12="","",IF(VLOOKUP($B12,'Athlete Input'!$C:$H,K$1,FALSE)="","",VLOOKUP($B12,'Athlete Input'!$C:$H,K$1,FALSE))) ->  | L12: =IF($B12="","",IF(VLOOKUP($B12,'Athlete Input'!$C:$H,L$1,FALSE)="","",VLOOKUP($B12,'Athlete Input'!$C:$H,L$1,FALSE))) ->  | M12: =IF($B12="","",IF(VLOOKUP($B12,'Athlete Input'!$C:$H,M$1,FALSE)="","",VLOOKUP($B12,'Athlete Input'!$C:$H,M$1,FALSE))) ->  | N12: =IF($B12="","",IF(VLOOKUP($B12,'Athlete Input'!$C:$H,N$1,FALSE)="","",VLOOKUP($B12,'Athlete Input'!$C:$H,N$1,FALSE))) ->  | O12: =IF($B12="","",IF(VLOOKUP($B12,'Athlete Input'!$C:$H,O$1,FALSE)="","",VLOOKUP($B12,'Athlete Input'!$C:$H,O$1,FALSE))) ->  | P12: =IF($B12="","",IF(VLOOKUP($B12,'Athlete Input'!$C:$H,P$1,FALSE)="","",VLOOKUP($B12,'Athlete Input'!$C:$H,P$1,FALSE))) ->  | Q12: =IF($B12="","",IF(VLOOKUP($B12,'Athlete Input'!$C:$H,Q$1,FALSE)="","",VLOOKUP($B12,'Athlete Input'!$C:$H,Q$1,FALSE))) ->  | R12: =IF($B12="","",IF(VLOOKUP($B12,'Athlete Input'!$C:$H,R$1,FALSE)="","",VLOOKUP($B12,'Athlete Input'!$C:$H,R$1,FALSE))) ->  | S12: =IF($B12="","",IF(VLOOKUP($B12,'Athlete Input'!$C:$H,S$1,FALSE)="","",VLOOKUP($B12,'Athlete Input'!$C:$H,S$1,FALSE))) ->  | T12: =IF($B12="","",IF(VLOOKUP($B12,'Athlete Input'!$C:$H,T$1,FALSE)="","",VLOOKUP($B12,'Athlete Input'!$C:$H,T$1,FALSE))) ->  | U12: =IF($B12="","",IF(VLOOKUP($B12,'Athlete Input'!$C:$H,U$1,FALSE)="","",VLOOKUP($B12,'Athlete Input'!$C:$H,U$1,FALSE))) ->  | V12: =IF($B12="","",IF(VLOOKUP($B12,'Athlete Input'!$C:$H,V$1,FALSE)="","",VLOOKUP($B12,'Athlete Input'!$C:$H,V$1,FALSE))) ->  | W12: =IF($B12="","",IF(VLOOKUP($B12,'Athlete Input'!$C:$H,W$1,FALSE)="","",VLOOKUP($B12,'Athlete Input'!$C:$H,W$1,FALSE))) ->  | X12: =IF($B12="","",IF(VLOOKUP($B12,'Athlete Input'!$C:$H,X$1,FALSE)="","",VLOOKUP($B12,'Athlete Input'!$C:$H,X$1,FALSE))) ->  | Y12: =IF($B12="","",IF(VLOOKUP($B12,'Athlete Input'!$C:$H,Y$1,FALSE)="","",VLOOKUP($B12,'Athlete Input'!$C:$H,Y$1,FALSE))) ->  | Z12: =IF($B12="","",IF(VLOOKUP($B12,'Athlete Input'!$C:$H,Z$1,FALSE)="","",VLOOKUP($B12,'Athlete Input'!$C:$H,Z$1,FALSE))) ->  | AA12: =IF($B12="","",IF(VLOOKUP($B12,'Athlete Input'!$C:$H,AA$1,FALSE)="","",VLOOKUP($B12,'Athlete Input'!$C:$H,AA$1,FALSE))) ->  | AB12: =IF($B12="","",IF(VLOOKUP($B12,'Athlete Input'!$C:$H,AB$1,FALSE)="","",VLOOKUP($B12,'Athlete Input'!$C:$H,AB$1,FALSE))) ->  | AC12: =IF($B12="","",IF(VLOOKUP($B12,'Athlete Input'!$C:$H,AC$1,FALSE)="","",VLOOKUP($B12,'Athlete Input'!$C:$H,AC$1,FALSE))) ->  | AD12: =IF($B12="","",IF(VLOOKUP($B12,'Athlete Input'!$C:$H,AD$1,FALSE)="","",VLOOKUP($B12,'Athlete Input'!$C:$H,AD$1,FALSE))) ->  | AE12: =IF($B12="","",IF(VLOOKUP($B12,'Athlete Input'!$C:$H,AE$1,FALSE)="","",VLOOKUP($B12,'Athlete Input'!$C:$H,AE$1,FALSE))) ->  | AF12: =IF($B12="","",IF(VLOOKUP($B12,'Athlete Input'!$C:$H,AF$1,FALSE)="","",VLOOKUP($B12,'Athlete Input'!$C:$H,AF$1,FALSE))) ->  | AG12: =IF($B12="","",IF(VLOOKUP($B12,'Athlete Input'!$C:$H,AG$1,FALSE)="","",VLOOKUP($B12,'Athlete Input'!$C:$H,AG$1,FALSE))) ->  | AH12: =IF($B12="","",IF(VLOOKUP($B12,'Athlete Input'!$C:$H,AH$1,FALSE)="","",VLOOKUP($B12,'Athlete Input'!$C:$H,AH$1,FALSE))) ->  | AI12: =IF($B12="","",IF(VLOOKUP($B12,'Athlete Input'!$C:$H,AI$1,FALSE)="","",VLOOKUP($B12,'Athlete Input'!$C:$H,AI$1,FALSE))) ->  | AJ12: =IF($B12="","",IF(VLOOKUP($B12,'Athlete Input'!$C:$H,AJ$1,FALSE)="","",VLOOKUP($B12,'Athlete Input'!$C:$H,AJ$1,FALSE))) ->  | AK12: =IF($B12="","",IF(VLOOKUP($B12,'Athlete Input'!$C:$H,AK$1,FALSE)="","",VLOOKUP($B12,'Athlete Input'!$C:$H,AK$1,FALSE))) ->  | AL12: =IF($B12="","",IF(VLOOKUP($B12,'Athlete Input'!$C:$H,AL$1,FALSE)="","",VLOOKUP($B12,'Athlete Input'!$C:$H,AL$1,FALSE))) ->  | AM12: =IF(B12="","zz",'Athlete Input'!D18) -> Davies
A13: 10 | B13: =IF('Athlete Input'!C19="","",'Athlete Input'!C19) -> Karen Dobbie | C13: =IF($B13="","",IF(VLOOKUP($B13,'Athlete Input'!$C:$H,C$1,FALSE)="","",VLOOKUP($B13,'Athlete Input'!$C:$H,C$1,FALSE))) ->  | D13: =IF($B13="","",IF(VLOOKUP($B13,'Athlete Input'!$C:$H,D$1,FALSE)="","",VLOOKUP($B13,'Athlete Input'!$C:$H,D$1,FALSE))) ->  | E13: =IF($B13="","",IF(VLOOKUP($B13,'Athlete Input'!$C:$H,E$1,FALSE)="","",VLOOKUP($B13,'Athlete Input'!$C:$H,E$1,FALSE))) ->  | F13: =IF($B13="","",IF(VLOOKUP($B13,'Athlete Input'!$C:$H,F$1,FALSE)="","",VLOOKUP($B13,'Athlete Input'!$C:$H,F$1,FALSE))) ->  | G13: =IF($B13="","",IF(VLOOKUP($B13,'Athlete Input'!$C:$H,G$1,FALSE)="","",VLOOKUP($B13,'Athlete Input'!$C:$H,G$1,FALSE))) ->  | H13: =IF($B13="","",IF(VLOOKUP($B13,'Athlete Input'!$C:$H,H$1,FALSE)="","",VLOOKUP($B13,'Athlete Input'!$C:$H,H$1,FALSE))) ->  | I13: =IF($B13="","",IF(VLOOKUP($B13,'Athlete Input'!$C:$H,I$1,FALSE)="","",VLOOKUP($B13,'Athlete Input'!$C:$H,I$1,FALSE))) ->  | J13: =IF($B13="","",IF(VLOOKUP($B13,'Athlete Input'!$C:$H,J$1,FALSE)="","",VLOOKUP($B13,'Athlete Input'!$C:$H,J$1,FALSE))) ->  | K13: =IF($B13="","",IF(VLOOKUP($B13,'Athlete Input'!$C:$H,K$1,FALSE)="","",VLOOKUP($B13,'Athlete Input'!$C:$H,K$1,FALSE))) ->  | L13: =IF($B13="","",IF(VLOOKUP($B13,'Athlete Input'!$C:$H,L$1,FALSE)="","",VLOOKUP($B13,'Athlete Input'!$C:$H,L$1,FALSE))) ->  | M13: =IF($B13="","",IF(VLOOKUP($B13,'Athlete Input'!$C:$H,M$1,FALSE)="","",VLOOKUP($B13,'Athlete Input'!$C:$H,M$1,FALSE))) ->  | N13: =IF($B13="","",IF(VLOOKUP($B13,'Athlete Input'!$C:$H,N$1,FALSE)="","",VLOOKUP($B13,'Athlete Input'!$C:$H,N$1,FALSE))) ->  | O13: =IF($B13="","",IF(VLOOKUP($B13,'Athlete Input'!$C:$H,O$1,FALSE)="","",VLOOKUP($B13,'Athlete Input'!$C:$H,O$1,FALSE))) ->  | P13: =IF($B13="","",IF(VLOOKUP($B13,'Athlete Input'!$C:$H,P$1,FALSE)="","",VLOOKUP($B13,'Athlete Input'!$C:$H,P$1,FALSE))) ->  | Q13: =IF($B13="","",IF(VLOOKUP($B13,'Athlete Input'!$C:$H,Q$1,FALSE)="","",VLOOKUP($B13,'Athlete Input'!$C:$H,Q$1,FALSE))) ->  | R13: =IF($B13="","",IF(VLOOKUP($B13,'Athlete Input'!$C:$H,R$1,FALSE)="","",VLOOKUP($B13,'Athlete Input'!$C:$H,R$1,FALSE))) ->  | S13: =IF($B13="","",IF(VLOOKUP($B13,'Athlete Input'!$C:$H,S$1,FALSE)="","",VLOOKUP($B13,'Athlete Input'!$C:$H,S$1,FALSE))) ->  | T13: =IF($B13="","",IF(VLOOKUP($B13,'Athlete Input'!$C:$H,T$1,FALSE)="","",VLOOKUP($B13,'Athlete Input'!$C:$H,T$1,FALSE))) ->  | U13: =IF($B13="","",IF(VLOOKUP($B13,'Athlete Input'!$C:$H,U$1,FALSE)="","",VLOOKUP($B13,'Athlete Input'!$C:$H,U$1,FALSE))) ->  | V13: =IF($B13="","",IF(VLOOKUP($B13,'Athlete Input'!$C:$H,V$1,FALSE)="","",VLOOKUP($B13,'Athlete Input'!$C:$H,V$1,FALSE))) ->  | W13: =IF($B13="","",IF(VLOOKUP($B13,'Athlete Input'!$C:$H,W$1,FALSE)="","",VLOOKUP($B13,'Athlete Input'!$C:$H,W$1,FALSE))) ->  | X13: =IF($B13="","",IF(VLOOKUP($B13,'Athlete Input'!$C:$H,X$1,FALSE)="","",VLOOKUP($B13,'Athlete Input'!$C:$H,X$1,FALSE))) ->  | Y13: =IF($B13="","",IF(VLOOKUP($B13,'Athlete Input'!$C:$H,Y$1,FALSE)="","",VLOOKUP($B13,'Athlete Input'!$C:$H,Y$1,FALSE))) ->  | Z13: =IF($B13="","",IF(VLOOKUP($B13,'Athlete Input'!$C:$H,Z$1,FALSE)="","",VLOOKUP($B13,'Athlete Input'!$C:$H,Z$1,FALSE))) ->  | AA13: =IF($B13="","",IF(VLOOKUP($B13,'Athlete Input'!$C:$H,AA$1,FALSE)="","",VLOOKUP($B13,'Athlete Input'!$C:$H,AA$1,FALSE))) ->  | AB13: =IF($B13="","",IF(VLOOKUP($B13,'Athlete Input'!$C:$H,AB$1,FALSE)="","",VLOOKUP($B13,'Athlete Input'!$C:$H,AB$1,FALSE))) ->  | AC13: =IF($B13="","",IF(VLOOKUP($B13,'Athlete Input'!$C:$H,AC$1,FALSE)="","",VLOOKUP($B13,'Athlete Input'!$C:$H,AC$1,FALSE))) ->  | AD13: =IF($B13="","",IF(VLOOKUP($B13,'Athlete Input'!$C:$H,AD$1,FALSE)="","",VLOOKUP($B13,'Athlete Input'!$C:$H,AD$1,FALSE))) ->  | AE13: =IF($B13="","",IF(VLOOKUP($B13,'Athlete Input'!$C:$H,AE$1,FALSE)="","",VLOOKUP($B13,'Athlete Input'!$C:$H,AE$1,FALSE))) ->  | AF13: =IF($B13="","",IF(VLOOKUP($B13,'Athlete Input'!$C:$H,AF$1,FALSE)="","",VLOOKUP($B13,'Athlete Input'!$C:$H,AF$1,FALSE))) ->  | AG13: =IF($B13="","",IF(VLOOKUP($B13,'Athlete Input'!$C:$H,AG$1,FALSE)="","",VLOOKUP($B13,'Athlete Input'!$C:$H,AG$1,FALSE))) ->  | AH13: =IF($B13="","",IF(VLOOKUP($B13,'Athlete Input'!$C:$H,AH$1,FALSE)="","",VLOOKUP($B13,'Athlete Input'!$C:$H,AH$1,FALSE))) ->  | AI13: =IF($B13="","",IF(VLOOKUP($B13,'Athlete Input'!$C:$H,AI$1,FALSE)="","",VLOOKUP($B13,'Athlete Input'!$C:$H,AI$1,FALSE))) ->  | AJ13: =IF($B13="","",IF(VLOOKUP($B13,'Athlete Input'!$C:$H,AJ$1,FALSE)="","",VLOOKUP($B13,'Athlete Input'!$C:$H,AJ$1,FALSE))) ->  | AK13: =IF($B13="","",IF(VLOOKUP($B13,'Athlete Input'!$C:$H,AK$1,FALSE)="","",VLOOKUP($B13,'Athlete Input'!$C:$H,AK$1,FALSE))) ->  | AL13: =IF($B13="","",IF(VLOOKUP($B13,'Athlete Input'!$C:$H,AL$1,FALSE)="","",VLOOKUP($B13,'Athlete Input'!$C:$H,AL$1,FALSE))) ->  | AM13: =IF(B13="","zz",'Athlete Input'!D19) -> Dobbie
A14: 11 | B14: =IF('Athlete Input'!C20="","",'Athlete Input'!C20) -> Rona Dougall | C14: =IF($B14="","",IF(VLOOKUP($B14,'Athlete Input'!$C:$H,C$1,FALSE)="","",VLOOKUP($B14,'Athlete Input'!$C:$H,C$1,FALSE))) ->  | D14: =IF($B14="","",IF(VLOOKUP($B14,'Athlete Input'!$C:$H,D$1,FALSE)="","",VLOOKUP($B14,'Athlete Input'!$C:$H,D$1,FALSE))) ->  | E14: =IF($B14="","",IF(VLOOKUP($B14,'Athlete Input'!$C:$H,E$1,FALSE)="","",VLOOKUP($B14,'Athlete Input'!$C:$H,E$1,FALSE))) ->  | F14: =IF($B14="","",IF(VLOOKUP($B14,'Athlete Input'!$C:$H,F$1,FALSE)="","",VLOOKUP($B14,'Athlete Input'!$C:$H,F$1,FALSE))) ->  | G14: =IF($B14="","",IF(VLOOKUP($B14,'Athlete Input'!$C:$H,G$1,FALSE)="","",VLOOKUP($B14,'Athlete Input'!$C:$H,G$1,FALSE))) ->  | H14: =IF($B14="","",IF(VLOOKUP($B14,'Athlete Input'!$C:$H,H$1,FALSE)="","",VLOOKUP($B14,'Athlete Input'!$C:$H,H$1,FALSE))) ->  | I14: =IF($B14="","",IF(VLOOKUP($B14,'Athlete Input'!$C:$H,I$1,FALSE)="","",VLOOKUP($B14,'Athlete Input'!$C:$H,I$1,FALSE))) ->  | J14: =IF($B14="","",IF(VLOOKUP($B14,'Athlete Input'!$C:$H,J$1,FALSE)="","",VLOOKUP($B14,'Athlete Input'!$C:$H,J$1,FALSE))) ->  | K14: =IF($B14="","",IF(VLOOKUP($B14,'Athlete Input'!$C:$H,K$1,FALSE)="","",VLOOKUP($B14,'Athlete Input'!$C:$H,K$1,FALSE))) ->  | L14: =IF($B14="","",IF(VLOOKUP($B14,'Athlete Input'!$C:$H,L$1,FALSE)="","",VLOOKUP($B14,'Athlete Input'!$C:$H,L$1,FALSE))) ->  | M14: =IF($B14="","",IF(VLOOKUP($B14,'Athlete Input'!$C:$H,M$1,FALSE)="","",VLOOKUP($B14,'Athlete Input'!$C:$H,M$1,FALSE))) ->  | N14: =IF($B14="","",IF(VLOOKUP($B14,'Athlete Input'!$C:$H,N$1,FALSE)="","",VLOOKUP($B14,'Athlete Input'!$C:$H,N$1,FALSE))) ->  | O14: =IF($B14="","",IF(VLOOKUP($B14,'Athlete Input'!$C:$H,O$1,FALSE)="","",VLOOKUP($B14,'Athlete Input'!$C:$H,O$1,FALSE))) ->  | P14: =IF($B14="","",IF(VLOOKUP($B14,'Athlete Input'!$C:$H,P$1,FALSE)="","",VLOOKUP($B14,'Athlete Input'!$C:$H,P$1,FALSE))) ->  | Q14: =IF($B14="","",IF(VLOOKUP($B14,'Athlete Input'!$C:$H,Q$1,FALSE)="","",VLOOKUP($B14,'Athlete Input'!$C:$H,Q$1,FALSE))) ->  | R14: =IF($B14="","",IF(VLOOKUP($B14,'Athlete Input'!$C:$H,R$1,FALSE)="","",VLOOKUP($B14,'Athlete Input'!$C:$H,R$1,FALSE))) ->  | S14: =IF($B14="","",IF(VLOOKUP($B14,'Athlete Input'!$C:$H,S$1,FALSE)="","",VLOOKUP($B14,'Athlete Input'!$C:$H,S$1,FALSE))) ->  | T14: =IF($B14="","",IF(VLOOKUP($B14,'Athlete Input'!$C:$H,T$1,FALSE)="","",VLOOKUP($B14,'Athlete Input'!$C:$H,T$1,FALSE))) ->  | U14: =IF($B14="","",IF(VLOOKUP($B14,'Athlete Input'!$C:$H,U$1,FALSE)="","",VLOOKUP($B14,'Athlete Input'!$C:$H,U$1,FALSE))) ->  | V14: =IF($B14="","",IF(VLOOKUP($B14,'Athlete Input'!$C:$H,V$1,FALSE)="","",VLOOKUP($B14,'Athlete Input'!$C:$H,V$1,FALSE))) ->  | W14: =IF($B14="","",IF(VLOOKUP($B14,'Athlete Input'!$C:$H,W$1,FALSE)="","",VLOOKUP($B14,'Athlete Input'!$C:$H,W$1,FALSE))) ->  | X14: =IF($B14="","",IF(VLOOKUP($B14,'Athlete Input'!$C:$H,X$1,FALSE)="","",VLOOKUP($B14,'Athlete Input'!$C:$H,X$1,FALSE))) ->  | Y14: =IF($B14="","",IF(VLOOKUP($B14,'Athlete Input'!$C:$H,Y$1,FALSE)="","",VLOOKUP($B14,'Athlete Input'!$C:$H,Y$1,FALSE))) ->  | Z14: =IF($B14="","",IF(VLOOKUP($B14,'Athlete Input'!$C:$H,Z$1,FALSE)="","",VLOOKUP($B14,'Athlete Input'!$C:$H,Z$1,FALSE))) ->  | AA14: =IF($B14="","",IF(VLOOKUP($B14,'Athlete Input'!$C:$H,AA$1,FALSE)="","",VLOOKUP($B14,'Athlete Input'!$C:$H,AA$1,FALSE))) ->  | AB14: =IF($B14="","",IF(VLOOKUP($B14,'Athlete Input'!$C:$H,AB$1,FALSE)="","",VLOOKUP($B14,'Athlete Input'!$C:$H,AB$1,FALSE))) ->  | AC14: =IF($B14="","",IF(VLOOKUP($B14,'Athlete Input'!$C:$H,AC$1,FALSE)="","",VLOOKUP($B14,'Athlete Input'!$C:$H,AC$1,FALSE))) ->  | AD14: =IF($B14="","",IF(VLOOKUP($B14,'Athlete Input'!$C:$H,AD$1,FALSE)="","",VLOOKUP($B14,'Athlete Input'!$C:$H,AD$1,FALSE))) ->  | AE14: =IF($B14="","",IF(VLOOKUP($B14,'Athlete Input'!$C:$H,AE$1,FALSE)="","",VLOOKUP($B14,'Athlete Input'!$C:$H,AE$1,FALSE))) ->  | AF14: =IF($B14="","",IF(VLOOKUP($B14,'Athlete Input'!$C:$H,AF$1,FALSE)="","",VLOOKUP($B14,'Athlete Input'!$C:$H,AF$1,FALSE))) ->  | AG14: =IF($B14="","",IF(VLOOKUP($B14,'Athlete Input'!$C:$H,AG$1,FALSE)="","",VLOOKUP($B14,'Athlete Input'!$C:$H,AG$1,FALSE))) ->  | AH14: =IF($B14="","",IF(VLOOKUP($B14,'Athlete Input'!$C:$H,AH$1,FALSE)="","",VLOOKUP($B14,'Athlete Input'!$C:$H,AH$1,FALSE))) ->  | AI14: =IF($B14="","",IF(VLOOKUP($B14,'Athlete Input'!$C:$H,AI$1,FALSE)="","",VLOOKUP($B14,'Athlete Input'!$C:$H,AI$1,FALSE))) ->  | AJ14: =IF($B14="","",IF(VLOOKUP($B14,'Athlete Input'!$C:$H,AJ$1,FALSE)="","",VLOOKUP($B14,'Athlete Input'!$C:$H,AJ$1,FALSE))) ->  | AK14: =IF($B14="","",IF(VLOOKUP($B14,'Athlete Input'!$C:$H,AK$1,FALSE)="","",VLOOKUP($B14,'Athlete Input'!$C:$H,AK$1,FALSE))) ->  | AL14: =IF($B14="","",IF(VLOOKUP($B14,'Athlete Input'!$C:$H,AL$1,FALSE)="","",VLOOKUP($B14,'Athlete Input'!$C:$H,AL$1,FALSE))) ->  | AM14: =IF(B14="","zz",'Athlete Input'!D20) -> Dougall
A15: 12 | B15: =IF('Athlete Input'!C21="","",'Athlete Input'!C21) -> Janet Dunbar | C15: =IF($B15="","",IF(VLOOKUP($B15,'Athlete Input'!$C:$H,C$1,FALSE)="","",VLOOKUP($B15,'Athlete Input'!$C:$H,C$1,FALSE))) ->  | D15: =IF($B15="","",IF(VLOOKUP($B15,'Athlete Input'!$C:$H,D$1,FALSE)="","",VLOOKUP($B15,'Athlete Input'!$C:$H,D$1,FALSE))) ->  | E15: =IF($B15="","",IF(VLOOKUP($B15,'Athlete Input'!$C:$H,E$1,FALSE)="","",VLOOKUP($B15,'Athlete Input'!$C:$H,E$1,FALSE))) ->  | F15: =IF($B15="","",IF(VLOOKUP($B15,'Athlete Input'!$C:$H,F$1,FALSE)="","",VLOOKUP($B15,'Athlete Input'!$C:$H,F$1,FALSE))) ->  | G15: =IF($B15="","",IF(VLOOKUP($B15,'Athlete Input'!$C:$H,G$1,FALSE)="","",VLOOKUP($B15,'Athlete Input'!$C:$H,G$1,FALSE))) ->  | H15: =IF($B15="","",IF(VLOOKUP($B15,'Athlete Input'!$C:$H,H$1,FALSE)="","",VLOOKUP($B15,'Athlete Input'!$C:$H,H$1,FALSE))) ->  | I15: =IF($B15="","",IF(VLOOKUP($B15,'Athlete Input'!$C:$H,I$1,FALSE)="","",VLOOKUP($B15,'Athlete Input'!$C:$H,I$1,FALSE))) ->  | J15: =IF($B15="","",IF(VLOOKUP($B15,'Athlete Input'!$C:$H,J$1,FALSE)="","",VLOOKUP($B15,'Athlete Input'!$C:$H,J$1,FALSE))) ->  | K15: =IF($B15="","",IF(VLOOKUP($B15,'Athlete Input'!$C:$H,K$1,FALSE)="","",VLOOKUP($B15,'Athlete Input'!$C:$H,K$1,FALSE))) ->  | L15: =IF($B15="","",IF(VLOOKUP($B15,'Athlete Input'!$C:$H,L$1,FALSE)="","",VLOOKUP($B15,'Athlete Input'!$C:$H,L$1,FALSE))) ->  | M15: =IF($B15="","",IF(VLOOKUP($B15,'Athlete Input'!$C:$H,M$1,FALSE)="","",VLOOKUP($B15,'Athlete Input'!$C:$H,M$1,FALSE))) ->  | N15: =IF($B15="","",IF(VLOOKUP($B15,'Athlete Input'!$C:$H,N$1,FALSE)="","",VLOOKUP($B15,'Athlete Input'!$C:$H,N$1,FALSE))) ->  | O15: =IF($B15="","",IF(VLOOKUP($B15,'Athlete Input'!$C:$H,O$1,FALSE)="","",VLOOKUP($B15,'Athlete Input'!$C:$H,O$1,FALSE))) ->  | P15: =IF($B15="","",IF(VLOOKUP($B15,'Athlete Input'!$C:$H,P$1,FALSE)="","",VLOOKUP($B15,'Athlete Input'!$C:$H,P$1,FALSE))) ->  | Q15: =IF($B15="","",IF(VLOOKUP($B15,'Athlete Input'!$C:$H,Q$1,FALSE)="","",VLOOKUP($B15,'Athlete Input'!$C:$H,Q$1,FALSE))) ->  | R15: =IF($B15="","",IF(VLOOKUP($B15,'Athlete Input'!$C:$H,R$1,FALSE)="","",VLOOKUP($B15,'Athlete Input'!$C:$H,R$1,FALSE))) ->  | S15: =IF($B15="","",IF(VLOOKUP($B15,'Athlete Input'!$C:$H,S$1,FALSE)="","",VLOOKUP($B15,'Athlete Input'!$C:$H,S$1,FALSE))) ->  | T15: =IF($B15="","",IF(VLOOKUP($B15,'Athlete Input'!$C:$H,T$1,FALSE)="","",VLOOKUP($B15,'Athlete Input'!$C:$H,T$1,FALSE))) ->  | U15: =IF($B15="","",IF(VLOOKUP($B15,'Athlete Input'!$C:$H,U$1,FALSE)="","",VLOOKUP($B15,'Athlete Input'!$C:$H,U$1,FALSE))) ->  | V15: =IF($B15="","",IF(VLOOKUP($B15,'Athlete Input'!$C:$H,V$1,FALSE)="","",VLOOKUP($B15,'Athlete Input'!$C:$H,V$1,FALSE))) ->  | W15: =IF($B15="","",IF(VLOOKUP($B15,'Athlete Input'!$C:$H,W$1,FALSE)="","",VLOOKUP($B15,'Athlete Input'!$C:$H,W$1,FALSE))) ->  | X15: =IF($B15="","",IF(VLOOKUP($B15,'Athlete Input'!$C:$H,X$1,FALSE)="","",VLOOKUP($B15,'Athlete Input'!$C:$H,X$1,FALSE))) ->  | Y15: =IF($B15="","",IF(VLOOKUP($B15,'Athlete Input'!$C:$H,Y$1,FALSE)="","",VLOOKUP($B15,'Athlete Input'!$C:$H,Y$1,FALSE))) ->  | Z15: =IF($B15="","",IF(VLOOKUP($B15,'Athlete Input'!$C:$H,Z$1,FALSE)="","",VLOOKUP($B15,'Athlete Input'!$C:$H,Z$1,FALSE))) ->  | AA15: =IF($B15="","",IF(VLOOKUP($B15,'Athlete Input'!$C:$H,AA$1,FALSE)="","",VLOOKUP($B15,'Athlete Input'!$C:$H,AA$1,FALSE))) ->  | AB15: =IF($B15="","",IF(VLOOKUP($B15,'Athlete Input'!$C:$H,AB$1,FALSE)="","",VLOOKUP($B15,'Athlete Input'!$C:$H,AB$1,FALSE))) ->  | AC15: =IF($B15="","",IF(VLOOKUP($B15,'Athlete Input'!$C:$H,AC$1,FALSE)="","",VLOOKUP($B15,'Athlete Input'!$C:$H,AC$1,FALSE))) ->  | AD15: =IF($B15="","",IF(VLOOKUP($B15,'Athlete Input'!$C:$H,AD$1,FALSE)="","",VLOOKUP($B15,'Athlete Input'!$C:$H,AD$1,FALSE))) ->  | AE15: =IF($B15="","",IF(VLOOKUP($B15,'Athlete Input'!$C:$H,AE$1,FALSE)="","",VLOOKUP($B15,'Athlete Input'!$C:$H,AE$1,FALSE))) ->  | AF15: =IF($B15="","",IF(VLOOKUP($B15,'Athlete Input'!$C:$H,AF$1,FALSE)="","",VLOOKUP($B15,'Athlete Input'!$C:$H,AF$1,FALSE))) ->  | AG15: =IF($B15="","",IF(VLOOKUP($B15,'Athlete Input'!$C:$H,AG$1,FALSE)="","",VLOOKUP($B15,'Athlete Input'!$C:$H,AG$1,FALSE))) ->  | AH15: =IF($B15="","",IF(VLOOKUP($B15,'Athlete Input'!$C:$H,AH$1,FALSE)="","",VLOOKUP($B15,'Athlete Input'!$C:$H,AH$1,FALSE))) ->  | AI15: =IF($B15="","",IF(VLOOKUP($B15,'Athlete Input'!$C:$H,AI$1,FALSE)="","",VLOOKUP($B15,'Athlete Input'!$C:$H,AI$1,FALSE))) ->  | AJ15: =IF($B15="","",IF(VLOOKUP($B15,'Athlete Input'!$C:$H,AJ$1,FALSE)="","",VLOOKUP($B15,'Athlete Input'!$C:$H,AJ$1,FALSE))) ->  | AK15: =IF($B15="","",IF(VLOOKUP($B15,'Athlete Input'!$C:$H,AK$1,FALSE)="","",VLOOKUP($B15,'Athlete Input'!$C:$H,AK$1,FALSE))) ->  | AL15: =IF($B15="","",IF(VLOOKUP($B15,'Athlete Input'!$C:$H,AL$1,FALSE)="","",VLOOKUP($B15,'Athlete Input'!$C:$H,AL$1,FALSE))) ->  | AM15: =IF(B15="","zz",'Athlete Input'!D21) -> Dunbar
A16: 13 | B16: =IF('Athlete Input'!C22="","",'Athlete Input'!C22) -> Rachael Dunn | C16: =IF($B16="","",IF(VLOOKUP($B16,'Athlete Input'!$C:$H,C$1,FALSE)="","",VLOOKUP($B16,'Athlete Input'!$C:$H,C$1,FALSE))) ->  | D16: =IF($B16="","",IF(VLOOKUP($B16,'Athlete Input'!$C:$H,D$1,FALSE)="","",VLOOKUP($B16,'Athlete Input'!$C:$H,D$1,FALSE))) ->  | E16: =IF($B16="","",IF(VLOOKUP($B16,'Athlete Input'!$C:$H,E$1,FALSE)="","",VLOOKUP($B16,'Athlete Input'!$C:$H,E$1,FALSE))) ->  | F16: =IF($B16="","",IF(VLOOKUP($B16,'Athlete Input'!$C:$H,F$1,FALSE)="","",VLOOKUP($B16,'Athlete Input'!$C:$H,F$1,FALSE))) ->  | G16: =IF($B16="","",IF(VLOOKUP($B16,'Athlete Input'!$C:$H,G$1,FALSE)="","",VLOOKUP($B16,'Athlete Input'!$C:$H,G$1,FALSE))) ->  | H16: =IF($B16="","",IF(VLOOKUP($B16,'Athlete Input'!$C:$H,H$1,FALSE)="","",VLOOKUP($B16,'Athlete Input'!$C:$H,H$1,FALSE))) ->  | I16: =IF($B16="","",IF(VLOOKUP($B16,'Athlete Input'!$C:$H,I$1,FALSE)="","",VLOOKUP($B16,'Athlete Input'!$C:$H,I$1,FALSE))) ->  | J16: =IF($B16="","",IF(VLOOKUP($B16,'Athlete Input'!$C:$H,J$1,FALSE)="","",VLOOKUP($B16,'Athlete Input'!$C:$H,J$1,FALSE))) ->  | K16: =IF($B16="","",IF(VLOOKUP($B16,'Athlete Input'!$C:$H,K$1,FALSE)="","",VLOOKUP($B16,'Athlete Input'!$C:$H,K$1,FALSE))) ->  | L16: =IF($B16="","",IF(VLOOKUP($B16,'Athlete Input'!$C:$H,L$1,FALSE)="","",VLOOKUP($B16,'Athlete Input'!$C:$H,L$1,FALSE))) ->  | M16: =IF($B16="","",IF(VLOOKUP($B16,'Athlete Input'!$C:$H,M$1,FALSE)="","",VLOOKUP($B16,'Athlete Input'!$C:$H,M$1,FALSE))) ->  | N16: =IF($B16="","",IF(VLOOKUP($B16,'Athlete Input'!$C:$H,N$1,FALSE)="","",VLOOKUP($B16,'Athlete Input'!$C:$H,N$1,FALSE))) ->  | O16: =IF($B16="","",IF(VLOOKUP($B16,'Athlete Input'!$C:$H,O$1,FALSE)="","",VLOOKUP($B16,'Athlete Input'!$C:$H,O$1,FALSE))) ->  | P16: =IF($B16="","",IF(VLOOKUP($B16,'Athlete Input'!$C:$H,P$1,FALSE)="","",VLOOKUP($B16,'Athlete Input'!$C:$H,P$1,FALSE))) ->  | Q16: =IF($B16="","",IF(VLOOKUP($B16,'Athlete Input'!$C:$H,Q$1,FALSE)="","",VLOOKUP($B16,'Athlete Input'!$C:$H,Q$1,FALSE))) ->  | R16: =IF($B16="","",IF(VLOOKUP($B16,'Athlete Input'!$C:$H,R$1,FALSE)="","",VLOOKUP($B16,'Athlete Input'!$C:$H,R$1,FALSE))) ->  | S16: =IF($B16="","",IF(VLOOKUP($B16,'Athlete Input'!$C:$H,S$1,FALSE)="","",VLOOKUP($B16,'Athlete Input'!$C:$H,S$1,FALSE))) ->  | T16: =IF($B16="","",IF(VLOOKUP($B16,'Athlete Input'!$C:$H,T$1,FALSE)="","",VLOOKUP($B16,'Athlete Input'!$C:$H,T$1,FALSE))) ->  | U16: =IF($B16="","",IF(VLOOKUP($B16,'Athlete Input'!$C:$H,U$1,FALSE)="","",VLOOKUP($B16,'Athlete Input'!$C:$H,U$1,FALSE))) ->  | V16: =IF($B16="","",IF(VLOOKUP($B16,'Athlete Input'!$C:$H,V$1,FALSE)="","",VLOOKUP($B16,'Athlete Input'!$C:$H,V$1,FALSE))) ->  | W16: =IF($B16="","",IF(VLOOKUP($B16,'Athlete Input'!$C:$H,W$1,FALSE)="","",VLOOKUP($B16,'Athlete Input'!$C:$H,W$1,FALSE))) ->  | X16: =IF($B16="","",IF(VLOOKUP($B16,'Athlete Input'!$C:$H,X$1,FALSE)="","",VLOOKUP($B16,'Athlete Input'!$C:$H,X$1,FALSE))) ->  | Y16: =IF($B16="","",IF(VLOOKUP($B16,'Athlete Input'!$C:$H,Y$1,FALSE)="","",VLOOKUP($B16,'Athlete Input'!$C:$H,Y$1,FALSE))) ->  | Z16: =IF($B16="","",IF(VLOOKUP($B16,'Athlete Input'!$C:$H,Z$1,FALSE)="","",VLOOKUP($B16,'Athlete Input'!$C:$H,Z$1,FALSE))) ->  | AA16: =IF($B16="","",IF(VLOOKUP($B16,'Athlete Input'!$C:$H,AA$1,FALSE)="","",VLOOKUP($B16,'Athlete Input'!$C:$H,AA$1,FALSE))) ->  | AB16: =IF($B16="","",IF(VLOOKUP($B16,'Athlete Input'!$C:$H,AB$1,FALSE)="","",VLOOKUP($B16,'Athlete Input'!$C:$H,AB$1,FALSE))) ->  | AC16: =IF($B16="","",IF(VLOOKUP($B16,'Athlete Input'!$C:$H,AC$1,FALSE)="","",VLOOKUP($B16,'Athlete Input'!$C:$H,AC$1,FALSE))) ->  | AD16: =IF($B16="","",IF(VLOOKUP($B16,'Athlete Input'!$C:$H,AD$1,FALSE)="","",VLOOKUP($B16,'Athlete Input'!$C:$H,AD$1,FALSE))) ->  | AE16: =IF($B16="","",IF(VLOOKUP($B16,'Athlete Input'!$C:$H,AE$1,FALSE)="","",VLOOKUP($B16,'Athlete Input'!$C:$H,AE$1,FALSE))) ->  | AF16: =IF($B16="","",IF(VLOOKUP($B16,'Athlete Input'!$C:$H,AF$1,FALSE)="","",VLOOKUP($B16,'Athlete Input'!$C:$H,AF$1,FALSE))) ->  | AG16: =IF($B16="","",IF(VLOOKUP($B16,'Athlete Input'!$C:$H,AG$1,FALSE)="","",VLOOKUP($B16,'Athlete Input'!$C:$H,AG$1,FALSE))) ->  | AH16: =IF($B16="","",IF(VLOOKUP($B16,'Athlete Input'!$C:$H,AH$1,FALSE)="","",VLOOKUP($B16,'Athlete Input'!$C:$H,AH$1,FALSE))) ->  | AI16: =IF($B16="","",IF(VLOOKUP($B16,'Athlete Input'!$C:$H,AI$1,FALSE)="","",VLOOKUP($B16,'Athlete Input'!$C:$H,AI$1,FALSE))) ->  | AJ16: =IF($B16="","",IF(VLOOKUP($B16,'Athlete Input'!$C:$H,AJ$1,FALSE)="","",VLOOKUP($B16,'Athlete Input'!$C:$H,AJ$1,FALSE))) ->  | AK16: =IF($B16="","",IF(VLOOKUP($B16,'Athlete Input'!$C:$H,AK$1,FALSE)="","",VLOOKUP($B16,'Athlete Input'!$C:$H,AK$1,FALSE))) ->  | AL16: =IF($B16="","",IF(VLOOKUP($B16,'Athlete Input'!$C:$H,AL$1,FALSE)="","",VLOOKUP($B16,'Athlete Input'!$C:$H,AL$1,FALSE))) ->  | AM16: =IF(B16="","zz",'Athlete Input'!D22) -> Dunn
A17: 14 | B17: =IF('Athlete Input'!C23="","",'Athlete Input'!C23) -> Laura Dunn | C17: =IF($B17="","",IF(VLOOKUP($B17,'Athlete Input'!$C:$H,C$1,FALSE)="","",VLOOKUP($B17,'Athlete Input'!$C:$H,C$1,FALSE))) ->  | D17: =IF($B17="","",IF(VLOOKUP($B17,'Athlete Input'!$C:$H,D$1,FALSE)="","",VLOOKUP($B17,'Athlete Input'!$C:$H,D$1,FALSE))) ->  | E17: =IF($B17="","",IF(VLOOKUP($B17,'Athlete Input'!$C:$H,E$1,FALSE)="","",VLOOKUP($B17,'Athlete Input'!$C:$H,E$1,FALSE))) ->  | F17: =IF($B17="","",IF(VLOOKUP($B17,'Athlete Input'!$C:$H,F$1,FALSE)="","",VLOOKUP($B17,'Athlete Input'!$C:$H,F$1,FALSE))) ->  | G17: =IF($B17="","",IF(VLOOKUP($B17,'Athlete Input'!$C:$H,G$1,FALSE)="","",VLOOKUP($B17,'Athlete Input'!$C:$H,G$1,FALSE))) ->  | H17: =IF($B17="","",IF(VLOOKUP($B17,'Athlete Input'!$C:$H,H$1,FALSE)="","",VLOOKUP($B17,'Athlete Input'!$C:$H,H$1,FALSE))) ->  | I17: =IF($B17="","",IF(VLOOKUP($B17,'Athlete Input'!$C:$H,I$1,FALSE)="","",VLOOKUP($B17,'Athlete Input'!$C:$H,I$1,FALSE))) ->  | J17: =IF($B17="","",IF(VLOOKUP($B17,'Athlete Input'!$C:$H,J$1,FALSE)="","",VLOOKUP($B17,'Athlete Input'!$C:$H,J$1,FALSE))) ->  | K17: =IF($B17="","",IF(VLOOKUP($B17,'Athlete Input'!$C:$H,K$1,FALSE)="","",VLOOKUP($B17,'Athlete Input'!$C:$H,K$1,FALSE))) ->  | L17: =IF($B17="","",IF(VLOOKUP($B17,'Athlete Input'!$C:$H,L$1,FALSE)="","",VLOOKUP($B17,'Athlete Input'!$C:$H,L$1,FALSE))) ->  | M17: =IF($B17="","",IF(VLOOKUP($B17,'Athlete Input'!$C:$H,M$1,FALSE)="","",VLOOKUP($B17,'Athlete Input'!$C:$H,M$1,FALSE))) ->  | N17: =IF($B17="","",IF(VLOOKUP($B17,'Athlete Input'!$C:$H,N$1,FALSE)="","",VLOOKUP($B17,'Athlete Input'!$C:$H,N$1,FALSE))) ->  | O17: =IF($B17="","",IF(VLOOKUP($B17,'Athlete Input'!$C:$H,O$1,FALSE)="","",VLOOKUP($B17,'Athlete Input'!$C:$H,O$1,FALSE))) ->  | P17: =IF($B17="","",IF(VLOOKUP($B17,'Athlete Input'!$C:$H,P$1,FALSE)="","",VLOOKUP($B17,'Athlete Input'!$C:$H,P$1,FALSE))) ->  | Q17: =IF($B17="","",IF(VLOOKUP($B17,'Athlete Input'!$C:$H,Q$1,FALSE)="","",VLOOKUP($B17,'Athlete Input'!$C:$H,Q$1,FALSE))) ->  | R17: =IF($B17="","",IF(VLOOKUP($B17,'Athlete Input'!$C:$H,R$1,FALSE)="","",VLOOKUP($B17,'Athlete Input'!$C:$H,R$1,FALSE))) ->  | S17: =IF($B17="","",IF(VLOOKUP($B17,'Athlete Input'!$C:$H,S$1,FALSE)="","",VLOOKUP($B17,'Athlete Input'!$C:$H,S$1,FALSE))) ->  | T17: =IF($B17="","",IF(VLOOKUP($B17,'Athlete Input'!$C:$H,T$1,FALSE)="","",VLOOKUP($B17,'Athlete Input'!$C:$H,T$1,FALSE))) ->  | U17: =IF($B17="","",IF(VLOOKUP($B17,'Athlete Input'!$C:$H,U$1,FALSE)="","",VLOOKUP($B17,'Athlete Input'!$C:$H,U$1,FALSE))) ->  | V17: =IF($B17="","",IF(VLOOKUP($B17,'Athlete Input'!$C:$H,V$1,FALSE)="","",VLOOKUP($B17,'Athlete Input'!$C:$H,V$1,FALSE))) ->  | W17: =IF($B17="","",IF(VLOOKUP($B17,'Athlete Input'!$C:$H,W$1,FALSE)="","",VLOOKUP($B17,'Athlete Input'!$C:$H,W$1,FALSE))) ->  | X17: =IF($B17="","",IF(VLOOKUP($B17,'Athlete Input'!$C:$H,X$1,FALSE)="","",VLOOKUP($B17,'Athlete Input'!$C:$H,X$1,FALSE))) ->  | Y17: =IF($B17="","",IF(VLOOKUP($B17,'Athlete Input'!$C:$H,Y$1,FALSE)="","",VLOOKUP($B17,'Athlete Input'!$C:$H,Y$1,FALSE))) ->  | Z17: =IF($B17="","",IF(VLOOKUP($B17,'Athlete Input'!$C:$H,Z$1,FALSE)="","",VLOOKUP($B17,'Athlete Input'!$C:$H,Z$1,FALSE))) ->  | AA17: =IF($B17="","",IF(VLOOKUP($B17,'Athlete Input'!$C:$H,AA$1,FALSE)="","",VLOOKUP($B17,'Athlete Input'!$C:$H,AA$1,FALSE))) ->  | AB17: =IF($B17="","",IF(VLOOKUP($B17,'Athlete Input'!$C:$H,AB$1,FALSE)="","",VLOOKUP($B17,'Athlete Input'!$C:$H,AB$1,FALSE))) ->  | AC17: =IF($B17="","",IF(VLOOKUP($B17,'Athlete Input'!$C:$H,AC$1,FALSE)="","",VLOOKUP($B17,'Athlete Input'!$C:$H,AC$1,FALSE))) ->  | AD17: =IF($B17="","",IF(VLOOKUP($B17,'Athlete Input'!$C:$H,AD$1,FALSE)="","",VLOOKUP($B17,'Athlete Input'!$C:$H,AD$1,FALSE))) ->  | AE17: =IF($B17="","",IF(VLOOKUP($B17,'Athlete Input'!$C:$H,AE$1,FALSE)="","",VLOOKUP($B17,'Athlete Input'!$C:$H,AE$1,FALSE))) ->  | AF17: =IF($B17="","",IF(VLOOKUP($B17,'Athlete Input'!$C:$H,AF$1,FALSE)="","",VLOOKUP($B17,'Athlete Input'!$C:$H,AF$1,FALSE))) ->  | AG17: =IF($B17="","",IF(VLOOKUP($B17,'Athlete Input'!$C:$H,AG$1,FALSE)="","",VLOOKUP($B17,'Athlete Input'!$C:$H,AG$1,FALSE))) ->  | AH17: =IF($B17="","",IF(VLOOKUP($B17,'Athlete Input'!$C:$H,AH$1,FALSE)="","",VLOOKUP($B17,'Athlete Input'!$C:$H,AH$1,FALSE))) ->  | AI17: =IF($B17="","",IF(VLOOKUP($B17,'Athlete Input'!$C:$H,AI$1,FALSE)="","",VLOOKUP($B17,'Athlete Input'!$C:$H,AI$1,FALSE))) ->  | AJ17: =IF($B17="","",IF(VLOOKUP($B17,'Athlete Input'!$C:$H,AJ$1,FALSE)="","",VLOOKUP($B17,'Athlete Input'!$C:$H,AJ$1,FALSE))) ->  | AK17: =IF($B17="","",IF(VLOOKUP($B17,'Athlete Input'!$C:$H,AK$1,FALSE)="","",VLOOKUP($B17,'Athlete Input'!$C:$H,AK$1,FALSE))) ->  | AL17: =IF($B17="","",IF(VLOOKUP($B17,'Athlete Input'!$C:$H,AL$1,FALSE)="","",VLOOKUP($B17,'Athlete Input'!$C:$H,AL$1,FALSE))) ->  | AM17: =IF(B17="","zz",'Athlete Input'!D23) -> Dunn
A18: 15 | B18: =IF('Athlete Input'!C24="","",'Athlete Input'!C24) -> Holly Ennis | C18: =IF($B18="","",IF(VLOOKUP($B18,'Athlete Input'!$C:$H,C$1,FALSE)="","",VLOOKUP($B18,'Athlete Input'!$C:$H,C$1,FALSE))) ->  | D18: =IF($B18="","",IF(VLOOKUP($B18,'Athlete Input'!$C:$H,D$1,FALSE)="","",VLOOKUP($B18,'Athlete Input'!$C:$H,D$1,FALSE))) ->  | E18: =IF($B18="","",IF(VLOOKUP($B18,'Athlete Input'!$C:$H,E$1,FALSE)="","",VLOOKUP($B18,'Athlete Input'!$C:$H,E$1,FALSE))) ->  | F18: =IF($B18="","",IF(VLOOKUP($B18,'Athlete Input'!$C:$H,F$1,FALSE)="","",VLOOKUP($B18,'Athlete Input'!$C:$H,F$1,FALSE))) ->  | G18: =IF($B18="","",IF(VLOOKUP($B18,'Athlete Input'!$C:$H,G$1,FALSE)="","",VLOOKUP($B18,'Athlete Input'!$C:$H,G$1,FALSE))) ->  | H18: =IF($B18="","",IF(VLOOKUP($B18,'Athlete Input'!$C:$H,H$1,FALSE)="","",VLOOKUP($B18,'Athlete Input'!$C:$H,H$1,FALSE))) ->  | I18: =IF($B18="","",IF(VLOOKUP($B18,'Athlete Input'!$C:$H,I$1,FALSE)="","",VLOOKUP($B18,'Athlete Input'!$C:$H,I$1,FALSE))) ->  | J18: =IF($B18="","",IF(VLOOKUP($B18,'Athlete Input'!$C:$H,J$1,FALSE)="","",VLOOKUP($B18,'Athlete Input'!$C:$H,J$1,FALSE))) ->  | K18: =IF($B18="","",IF(VLOOKUP($B18,'Athlete Input'!$C:$H,K$1,FALSE)="","",VLOOKUP($B18,'Athlete Input'!$C:$H,K$1,FALSE))) ->  | L18: =IF($B18="","",IF(VLOOKUP($B18,'Athlete Input'!$C:$H,L$1,FALSE)="","",VLOOKUP($B18,'Athlete Input'!$C:$H,L$1,FALSE))) ->  | M18: =IF($B18="","",IF(VLOOKUP($B18,'Athlete Input'!$C:$H,M$1,FALSE)="","",VLOOKUP($B18,'Athlete Input'!$C:$H,M$1,FALSE))) ->  | N18: =IF($B18="","",IF(VLOOKUP($B18,'Athlete Input'!$C:$H,N$1,FALSE)="","",VLOOKUP($B18,'Athlete Input'!$C:$H,N$1,FALSE))) ->  | O18: =IF($B18="","",IF(VLOOKUP($B18,'Athlete Input'!$C:$H,O$1,FALSE)="","",VLOOKUP($B18,'Athlete Input'!$C:$H,O$1,FALSE))) ->  | P18: =IF($B18="","",IF(VLOOKUP($B18,'Athlete Input'!$C:$H,P$1,FALSE)="","",VLOOKUP($B18,'Athlete Input'!$C:$H,P$1,FALSE))) ->  | Q18: =IF($B18="","",IF(VLOOKUP($B18,'Athlete Input'!$C:$H,Q$1,FALSE)="","",VLOOKUP($B18,'Athlete Input'!$C:$H,Q$1,FALSE))) ->  | R18: =IF($B18="","",IF(VLOOKUP($B18,'Athlete Input'!$C:$H,R$1,FALSE)="","",VLOOKUP($B18,'Athlete Input'!$C:$H,R$1,FALSE))) ->  | S18: =IF($B18="","",IF(VLOOKUP($B18,'Athlete Input'!$C:$H,S$1,FALSE)="","",VLOOKUP($B18,'Athlete Input'!$C:$H,S$1,FALSE))) ->  | T18: =IF($B18="","",IF(VLOOKUP($B18,'Athlete Input'!$C:$H,T$1,FALSE)="","",VLOOKUP($B18,'Athlete Input'!$C:$H,T$1,FALSE))) ->  | U18: =IF($B18="","",IF(VLOOKUP($B18,'Athlete Input'!$C:$H,U$1,FALSE)="","",VLOOKUP($B18,'Athlete Input'!$C:$H,U$1,FALSE))) ->  | V18: =IF($B18="","",IF(VLOOKUP($B18,'Athlete Input'!$C:$H,V$1,FALSE)="","",VLOOKUP($B18,'Athlete Input'!$C:$H,V$1,FALSE))) ->  | W18: =IF($B18="","",IF(VLOOKUP($B18,'Athlete Input'!$C:$H,W$1,FALSE)="","",VLOOKUP($B18,'Athlete Input'!$C:$H,W$1,FALSE))) ->  | X18: =IF($B18="","",IF(VLOOKUP($B18,'Athlete Input'!$C:$H,X$1,FALSE)="","",VLOOKUP($B18,'Athlete Input'!$C:$H,X$1,FALSE))) ->  | Y18: =IF($B18="","",IF(VLOOKUP($B18,'Athlete Input'!$C:$H,Y$1,FALSE)="","",VLOOKUP($B18,'Athlete Input'!$C:$H,Y$1,FALSE))) ->  | Z18: =IF($B18="","",IF(VLOOKUP($B18,'Athlete Input'!$C:$H,Z$1,FALSE)="","",VLOOKUP($B18,'Athlete Input'!$C:$H,Z$1,FALSE))) ->  | AA18: =IF($B18="","",IF(VLOOKUP($B18,'Athlete Input'!$C:$H,AA$1,FALSE)="","",VLOOKUP($B18,'Athlete Input'!$C:$H,AA$1,FALSE))) ->  | AB18: =IF($B18="","",IF(VLOOKUP($B18,'Athlete Input'!$C:$H,AB$1,FALSE)="","",VLOOKUP($B18,'Athlete Input'!$C:$H,AB$1,FALSE))) ->  | AC18: =IF($B18="","",IF(VLOOKUP($B18,'Athlete Input'!$C:$H,AC$1,FALSE)="","",VLOOKUP($B18,'Athlete Input'!$C:$H,AC$1,FALSE))) ->  | AD18: =IF($B18="","",IF(VLOOKUP($B18,'Athlete Input'!$C:$H,AD$1,FALSE)="","",VLOOKUP($B18,'Athlete Input'!$C:$H,AD$1,FALSE))) ->  | AE18: =IF($B18="","",IF(VLOOKUP($B18,'Athlete Input'!$C:$H,AE$1,FALSE)="","",VLOOKUP($B18,'Athlete Input'!$C:$H,AE$1,FALSE))) ->  | AF18: =IF($B18="","",IF(VLOOKUP($B18,'Athlete Input'!$C:$H,AF$1,FALSE)="","",VLOOKUP($B18,'Athlete Input'!$C:$H,AF$1,FALSE))) ->  | AG18: =IF($B18="","",IF(VLOOKUP($B18,'Athlete Input'!$C:$H,AG$1,FALSE)="","",VLOOKUP($B18,'Athlete Input'!$C:$H,AG$1,FALSE))) ->  | AH18: =IF($B18="","",IF(VLOOKUP($B18,'Athlete Input'!$C:$H,AH$1,FALSE)="","",VLOOKUP($B18,'Athlete Input'!$C:$H,AH$1,FALSE))) ->  | AI18: =IF($B18="","",IF(VLOOKUP($B18,'Athlete Input'!$C:$H,AI$1,FALSE)="","",VLOOKUP($B18,'Athlete Input'!$C:$H,AI$1,FALSE))) ->  | AJ18: =IF($B18="","",IF(VLOOKUP($B18,'Athlete Input'!$C:$H,AJ$1,FALSE)="","",VLOOKUP($B18,'Athlete Input'!$C:$H,AJ$1,FALSE))) ->  | AK18: =IF($B18="","",IF(VLOOKUP($B18,'Athlete Input'!$C:$H,AK$1,FALSE)="","",VLOOKUP($B18,'Athlete Input'!$C:$H,AK$1,FALSE))) ->  | AL18: =IF($B18="","",IF(VLOOKUP($B18,'Athlete Input'!$C:$H,AL$1,FALSE)="","",VLOOKUP($B18,'Athlete Input'!$C:$H,AL$1,FALSE))) ->  | AM18: =IF(B18="","zz",'Athlete Input'!D24) -> Ennis
A19: 16 | B19: =IF('Athlete Input'!C25="","",'Athlete Input'!C25) -> Cath Ferry | C19: =IF($B19="","",IF(VLOOKUP($B19,'Athlete Input'!$C:$H,C$1,FALSE)="","",VLOOKUP($B19,'Athlete Input'!$C:$H,C$1,FALSE))) ->  | D19: =IF($B19="","",IF(VLOOKUP($B19,'Athlete Input'!$C:$H,D$1,FALSE)="","",VLOOKUP($B19,'Athlete Input'!$C:$H,D$1,FALSE))) ->  | E19: =IF($B19="","",IF(VLOOKUP($B19,'Athlete Input'!$C:$H,E$1,FALSE)="","",VLOOKUP($B19,'Athlete Input'!$C:$H,E$1,FALSE))) ->  | F19: =IF($B19="","",IF(VLOOKUP($B19,'Athlete Input'!$C:$H,F$1,FALSE)="","",VLOOKUP($B19,'Athlete Input'!$C:$H,F$1,FALSE))) ->  | G19: =IF($B19="","",IF(VLOOKUP($B19,'Athlete Input'!$C:$H,G$1,FALSE)="","",VLOOKUP($B19,'Athlete Input'!$C:$H,G$1,FALSE))) ->  | H19: =IF($B19="","",IF(VLOOKUP($B19,'Athlete Input'!$C:$H,H$1,FALSE)="","",VLOOKUP($B19,'Athlete Input'!$C:$H,H$1,FALSE))) ->  | I19: =IF($B19="","",IF(VLOOKUP($B19,'Athlete Input'!$C:$H,I$1,FALSE)="","",VLOOKUP($B19,'Athlete Input'!$C:$H,I$1,FALSE))) ->  | J19: =IF($B19="","",IF(VLOOKUP($B19,'Athlete Input'!$C:$H,J$1,FALSE)="","",VLOOKUP($B19,'Athlete Input'!$C:$H,J$1,FALSE))) ->  | K19: =IF($B19="","",IF(VLOOKUP($B19,'Athlete Input'!$C:$H,K$1,FALSE)="","",VLOOKUP($B19,'Athlete Input'!$C:$H,K$1,FALSE))) ->  | L19: =IF($B19="","",IF(VLOOKUP($B19,'Athlete Input'!$C:$H,L$1,FALSE)="","",VLOOKUP($B19,'Athlete Input'!$C:$H,L$1,FALSE))) ->  | M19: =IF($B19="","",IF(VLOOKUP($B19,'Athlete Input'!$C:$H,M$1,FALSE)="","",VLOOKUP($B19,'Athlete Input'!$C:$H,M$1,FALSE))) ->  | N19: =IF($B19="","",IF(VLOOKUP($B19,'Athlete Input'!$C:$H,N$1,FALSE)="","",VLOOKUP($B19,'Athlete Input'!$C:$H,N$1,FALSE))) ->  | O19: =IF($B19="","",IF(VLOOKUP($B19,'Athlete Input'!$C:$H,O$1,FALSE)="","",VLOOKUP($B19,'Athlete Input'!$C:$H,O$1,FALSE))) ->  | P19: =IF($B19="","",IF(VLOOKUP($B19,'Athlete Input'!$C:$H,P$1,FALSE)="","",VLOOKUP($B19,'Athlete Input'!$C:$H,P$1,FALSE))) ->  | Q19: =IF($B19="","",IF(VLOOKUP($B19,'Athlete Input'!$C:$H,Q$1,FALSE)="","",VLOOKUP($B19,'Athlete Input'!$C:$H,Q$1,FALSE))) ->  | R19: =IF($B19="","",IF(VLOOKUP($B19,'Athlete Input'!$C:$H,R$1,FALSE)="","",VLOOKUP($B19,'Athlete Input'!$C:$H,R$1,FALSE))) ->  | S19: =IF($B19="","",IF(VLOOKUP($B19,'Athlete Input'!$C:$H,S$1,FALSE)="","",VLOOKUP($B19,'Athlete Input'!$C:$H,S$1,FALSE))) ->  | T19: =IF($B19="","",IF(VLOOKUP($B19,'Athlete Input'!$C:$H,T$1,FALSE)="","",VLOOKUP($B19,'Athlete Input'!$C:$H,T$1,FALSE))) ->  | U19: =IF($B19="","",IF(VLOOKUP($B19,'Athlete Input'!$C:$H,U$1,FALSE)="","",VLOOKUP($B19,'Athlete Input'!$C:$H,U$1,FALSE))) ->  | V19: =IF($B19="","",IF(VLOOKUP($B19,'Athlete Input'!$C:$H,V$1,FALSE)="","",VLOOKUP($B19,'Athlete Input'!$C:$H,V$1,FALSE))) ->  | W19: =IF($B19="","",IF(VLOOKUP($B19,'Athlete Input'!$C:$H,W$1,FALSE)="","",VLOOKUP($B19,'Athlete Input'!$C:$H,W$1,FALSE))) ->  | X19: =IF($B19="","",IF(VLOOKUP($B19,'Athlete Input'!$C:$H,X$1,FALSE)="","",VLOOKUP($B19,'Athlete Input'!$C:$H,X$1,FALSE))) ->  | Y19: =IF($B19="","",IF(VLOOKUP($B19,'Athlete Input'!$C:$H,Y$1,FALSE)="","",VLOOKUP($B19,'Athlete Input'!$C:$H,Y$1,FALSE))) ->  | Z19: =IF($B19="","",IF(VLOOKUP($B19,'Athlete Input'!$C:$H,Z$1,FALSE)="","",VLOOKUP($B19,'Athlete Input'!$C:$H,Z$1,FALSE))) ->  | AA19: =IF($B19="","",IF(VLOOKUP($B19,'Athlete Input'!$C:$H,AA$1,FALSE)="","",VLOOKUP($B19,'Athlete Input'!$C:$H,AA$1,FALSE))) ->  | AB19: =IF($B19="","",IF(VLOOKUP($B19,'Athlete Input'!$C:$H,AB$1,FALSE)="","",VLOOKUP($B19,'Athlete Input'!$C:$H,AB$1,FALSE))) ->  | AC19: =IF($B19="","",IF(VLOOKUP($B19,'Athlete Input'!$C:$H,AC$1,FALSE)="","",VLOOKUP($B19,'Athlete Input'!$C:$H,AC$1,FALSE))) ->  | AD19: =IF($B19="","",IF(VLOOKUP($B19,'Athlete Input'!$C:$H,AD$1,FALSE)="","",VLOOKUP($B19,'Athlete Input'!$C:$H,AD$1,FALSE))) ->  | AE19: =IF($B19="","",IF(VLOOKUP($B19,'Athlete Input'!$C:$H,AE$1,FALSE)="","",VLOOKUP($B19,'Athlete Input'!$C:$H,AE$1,FALSE))) ->  | AF19: =IF($B19="","",IF(VLOOKUP($B19,'Athlete Input'!$C:$H,AF$1,FALSE)="","",VLOOKUP($B19,'Athlete Input'!$C:$H,AF$1,FALSE))) ->  | AG19: =IF($B19="","",IF(VLOOKUP($B19,'Athlete Input'!$C:$H,AG$1,FALSE)="","",VLOOKUP($B19,'Athlete Input'!$C:$H,AG$1,FALSE))) ->  | AH19: =IF($B19="","",IF(VLOOKUP($B19,'Athlete Input'!$C:$H,AH$1,FALSE)="","",VLOOKUP($B19,'Athlete Input'!$C:$H,AH$1,FALSE))) ->  | AI19: =IF($B19="","",IF(VLOOKUP($B19,'Athlete Input'!$C:$H,AI$1,FALSE)="","",VLOOKUP($B19,'Athlete Input'!$C:$H,AI$1,FALSE))) ->  | AJ19: =IF($B19="","",IF(VLOOKUP($B19,'Athlete Input'!$C:$H,AJ$1,FALSE)="","",VLOOKUP($B19,'Athlete Input'!$C:$H,AJ$1,FALSE))) ->  | AK19: =IF($B19="","",IF(VLOOKUP($B19,'Athlete Input'!$C:$H,AK$1,FALSE)="","",VLOOKUP($B19,'Athlete Input'!$C:$H,AK$1,FALSE))) ->  | AL19: =IF($B19="","",IF(VLOOKUP($B19,'Athlete Input'!$C:$H,AL$1,FALSE)="","",VLOOKUP($B19,'Athlete Input'!$C:$H,AL$1,FALSE))) ->  | AM19: =IF(B19="","zz",'Athlete Input'!D25) -> Ferry
A20: 17 | B20: =IF('Athlete Input'!C26="","",'Athlete Input'!C26) -> Julie Flanagan | C20: =IF($B20="","",IF(VLOOKUP($B20,'Athlete Input'!$C:$H,C$1,FALSE)="","",VLOOKUP($B20,'Athlete Input'!$C:$H,C$1,FALSE))) ->  | D20: =IF($B20="","",IF(VLOOKUP($B20,'Athlete Input'!$C:$H,D$1,FALSE)="","",VLOOKUP($B20,'Athlete Input'!$C:$H,D$1,FALSE))) ->  | E20: =IF($B20="","",IF(VLOOKUP($B20,'Athlete Input'!$C:$H,E$1,FALSE)="","",VLOOKUP($B20,'Athlete Input'!$C:$H,E$1,FALSE))) ->  | F20: =IF($B20="","",IF(VLOOKUP($B20,'Athlete Input'!$C:$H,F$1,FALSE)="","",VLOOKUP($B20,'Athlete Input'!$C:$H,F$1,FALSE))) ->  | G20: =IF($B20="","",IF(VLOOKUP($B20,'Athlete Input'!$C:$H,G$1,FALSE)="","",VLOOKUP($B20,'Athlete Input'!$C:$H,G$1,FALSE))) ->  | H20: =IF($B20="","",IF(VLOOKUP($B20,'Athlete Input'!$C:$H,H$1,FALSE)="","",VLOOKUP($B20,'Athlete Input'!$C:$H,H$1,FALSE))) ->  | I20: =IF($B20="","",IF(VLOOKUP($B20,'Athlete Input'!$C:$H,I$1,FALSE)="","",VLOOKUP($B20,'Athlete Input'!$C:$H,I$1,FALSE))) ->  | J20: =IF($B20="","",IF(VLOOKUP($B20,'Athlete Input'!$C:$H,J$1,FALSE)="","",VLOOKUP($B20,'Athlete Input'!$C:$H,J$1,FALSE))) ->  | K20: =IF($B20="","",IF(VLOOKUP($B20,'Athlete Input'!$C:$H,K$1,FALSE)="","",VLOOKUP($B20,'Athlete Input'!$C:$H,K$1,FALSE))) ->  | L20: =IF($B20="","",IF(VLOOKUP($B20,'Athlete Input'!$C:$H,L$1,FALSE)="","",VLOOKUP($B20,'Athlete Input'!$C:$H,L$1,FALSE))) ->  | M20: =IF($B20="","",IF(VLOOKUP($B20,'Athlete Input'!$C:$H,M$1,FALSE)="","",VLOOKUP($B20,'Athlete Input'!$C:$H,M$1,FALSE))) ->  | N20: =IF($B20="","",IF(VLOOKUP($B20,'Athlete Input'!$C:$H,N$1,FALSE)="","",VLOOKUP($B20,'Athlete Input'!$C:$H,N$1,FALSE))) ->  | O20: =IF($B20="","",IF(VLOOKUP($B20,'Athlete Input'!$C:$H,O$1,FALSE)="","",VLOOKUP($B20,'Athlete Input'!$C:$H,O$1,FALSE))) ->  | P20: =IF($B20="","",IF(VLOOKUP($B20,'Athlete Input'!$C:$H,P$1,FALSE)="","",VLOOKUP($B20,'Athlete Input'!$C:$H,P$1,FALSE))) ->  | Q20: =IF($B20="","",IF(VLOOKUP($B20,'Athlete Input'!$C:$H,Q$1,FALSE)="","",VLOOKUP($B20,'Athlete Input'!$C:$H,Q$1,FALSE))) ->  | R20: =IF($B20="","",IF(VLOOKUP($B20,'Athlete Input'!$C:$H,R$1,FALSE)="","",VLOOKUP($B20,'Athlete Input'!$C:$H,R$1,FALSE))) ->  | S20: =IF($B20="","",IF(VLOOKUP($B20,'Athlete Input'!$C:$H,S$1,FALSE)="","",VLOOKUP($B20,'Athlete Input'!$C:$H,S$1,FALSE))) ->  | T20: =IF($B20="","",IF(VLOOKUP($B20,'Athlete Input'!$C:$H,T$1,FALSE)="","",VLOOKUP($B20,'Athlete Input'!$C:$H,T$1,FALSE))) ->  | U20: =IF($B20="","",IF(VLOOKUP($B20,'Athlete Input'!$C:$H,U$1,FALSE)="","",VLOOKUP($B20,'Athlete Input'!$C:$H,U$1,FALSE))) ->  | V20: =IF($B20="","",IF(VLOOKUP($B20,'Athlete Input'!$C:$H,V$1,FALSE)="","",VLOOKUP($B20,'Athlete Input'!$C:$H,V$1,FALSE))) ->  | W20: =IF($B20="","",IF(VLOOKUP($B20,'Athlete Input'!$C:$H,W$1,FALSE)="","",VLOOKUP($B20,'Athlete Input'!$C:$H,W$1,FALSE))) ->  | X20: =IF($B20="","",IF(VLOOKUP($B20,'Athlete Input'!$C:$H,X$1,FALSE)="","",VLOOKUP($B20,'Athlete Input'!$C:$H,X$1,FALSE))) ->  | Y20: =IF($B20="","",IF(VLOOKUP($B20,'Athlete Input'!$C:$H,Y$1,FALSE)="","",VLOOKUP($B20,'Athlete Input'!$C:$H,Y$1,FALSE))) ->  | Z20: =IF($B20="","",IF(VLOOKUP($B20,'Athlete Input'!$C:$H,Z$1,FALSE)="","",VLOOKUP($B20,'Athlete Input'!$C:$H,Z$1,FALSE))) ->  | AA20: =IF($B20="","",IF(VLOOKUP($B20,'Athlete Input'!$C:$H,AA$1,FALSE)="","",VLOOKUP($B20,'Athlete Input'!$C:$H,AA$1,FALSE))) ->  | AB20: =IF($B20="","",IF(VLOOKUP($B20,'Athlete Input'!$C:$H,AB$1,FALSE)="","",VLOOKUP($B20,'Athlete Input'!$C:$H,AB$1,FALSE))) ->  | AC20: =IF($B20="","",IF(VLOOKUP($B20,'Athlete Input'!$C:$H,AC$1,FALSE)="","",VLOOKUP($B20,'Athlete Input'!$C:$H,AC$1,FALSE))) ->  | AD20: =IF($B20="","",IF(VLOOKUP($B20,'Athlete Input'!$C:$H,AD$1,FALSE)="","",VLOOKUP($B20,'Athlete Input'!$C:$H,AD$1,FALSE))) ->  | AE20: =IF($B20="","",IF(VLOOKUP($B20,'Athlete Input'!$C:$H,AE$1,FALSE)="","",VLOOKUP($B20,'Athlete Input'!$C:$H,AE$1,FALSE))) ->  | AF20: =IF($B20="","",IF(VLOOKUP($B20,'Athlete Input'!$C:$H,AF$1,FALSE)="","",VLOOKUP($B20,'Athlete Input'!$C:$H,AF$1,FALSE))) ->  | AG20: =IF($B20="","",IF(VLOOKUP($B20,'Athlete Input'!$C:$H,AG$1,FALSE)="","",VLOOKUP($B20,'Athlete Input'!$C:$H,AG$1,FALSE))) ->  | AH20: =IF($B20="","",IF(VLOOKUP($B20,'Athlete Input'!$C:$H,AH$1,FALSE)="","",VLOOKUP($B20,'Athlete Input'!$C:$H,AH$1,FALSE))) ->  | AI20: =IF($B20="","",IF(VLOOKUP($B20,'Athlete Input'!$C:$H,AI$1,FALSE)="","",VLOOKUP($B20,'Athlete Input'!$C:$H,AI$1,FALSE))) ->  | AJ20: =IF($B20="","",IF(VLOOKUP($B20,'Athlete Input'!$C:$H,AJ$1,FALSE)="","",VLOOKUP($B20,'Athlete Input'!$C:$H,AJ$1,FALSE))) ->  | AK20: =IF($B20="","",IF(VLOOKUP($B20,'Athlete Input'!$C:$H,AK$1,FALSE)="","",VLOOKUP($B20,'Athlete Input'!$C:$H,AK$1,FALSE))) ->  | AL20: =IF($B20="","",IF(VLOOKUP($B20,'Athlete Input'!$C:$H,AL$1,FALSE)="","",VLOOKUP($B20,'Athlete Input'!$C:$H,AL$1,FALSE))) ->  | AM20: =IF(B20="","zz",'Athlete Input'!D26) -> Flanagan
A21: 18 | B21: =IF('Athlete Input'!C27="","",'Athlete Input'!C27) -> Lyndsay Fraser | C21: =IF($B21="","",IF(VLOOKUP($B21,'Athlete Input'!$C:$H,C$1,FALSE)="","",VLOOKUP($B21,'Athlete Input'!$C:$H,C$1,FALSE))) ->  | D21: =IF($B21="","",IF(VLOOKUP($B21,'Athlete Input'!$C:$H,D$1,FALSE)="","",VLOOKUP($B21,'Athlete Input'!$C:$H,D$1,FALSE))) ->  | E21: =IF($B21="","",IF(VLOOKUP($B21,'Athlete Input'!$C:$H,E$1,FALSE)="","",VLOOKUP($B21,'Athlete Input'!$C:$H,E$1,FALSE))) ->  | F21: =IF($B21="","",IF(VLOOKUP($B21,'Athlete Input'!$C:$H,F$1,FALSE)="","",VLOOKUP($B21,'Athlete Input'!$C:$H,F$1,FALSE))) ->  | G21: =IF($B21="","",IF(VLOOKUP($B21,'Athlete Input'!$C:$H,G$1,FALSE)="","",VLOOKUP($B21,'Athlete Input'!$C:$H,G$1,FALSE))) ->  | H21: =IF($B21="","",IF(VLOOKUP($B21,'Athlete Input'!$C:$H,H$1,FALSE)="","",VLOOKUP($B21,'Athlete Input'!$C:$H,H$1,FALSE))) ->  | I21: =IF($B21="","",IF(VLOOKUP($B21,'Athlete Input'!$C:$H,I$1,FALSE)="","",VLOOKUP($B21,'Athlete Input'!$C:$H,I$1,FALSE))) ->  | J21: =IF($B21="","",IF(VLOOKUP($B21,'Athlete Input'!$C:$H,J$1,FALSE)="","",VLOOKUP($B21,'Athlete Input'!$C:$H,J$1,FALSE))) ->  | K21: =IF($B21="","",IF(VLOOKUP($B21,'Athlete Input'!$C:$H,K$1,FALSE)="","",VLOOKUP($B21,'Athlete Input'!$C:$H,K$1,FALSE))) ->  | L21: =IF($B21="","",IF(VLOOKUP($B21,'Athlete Input'!$C:$H,L$1,FALSE)="","",VLOOKUP($B21,'Athlete Input'!$C:$H,L$1,FALSE))) ->  | M21: =IF($B21="","",IF(VLOOKUP($B21,'Athlete Input'!$C:$H,M$1,FALSE)="","",VLOOKUP($B21,'Athlete Input'!$C:$H,M$1,FALSE))) ->  | N21: =IF($B21="","",IF(VLOOKUP($B21,'Athlete Input'!$C:$H,N$1,FALSE)="","",VLOOKUP($B21,'Athlete Input'!$C:$H,N$1,FALSE))) ->  | O21: =IF($B21="","",IF(VLOOKUP($B21,'Athlete Input'!$C:$H,O$1,FALSE)="","",VLOOKUP($B21,'Athlete Input'!$C:$H,O$1,FALSE))) ->  | P21: =IF($B21="","",IF(VLOOKUP($B21,'Athlete Input'!$C:$H,P$1,FALSE)="","",VLOOKUP($B21,'Athlete Input'!$C:$H,P$1,FALSE))) ->  | Q21: =IF($B21="","",IF(VLOOKUP($B21,'Athlete Input'!$C:$H,Q$1,FALSE)="","",VLOOKUP($B21,'Athlete Input'!$C:$H,Q$1,FALSE))) ->  | R21: =IF($B21="","",IF(VLOOKUP($B21,'Athlete Input'!$C:$H,R$1,FALSE)="","",VLOOKUP($B21,'Athlete Input'!$C:$H,R$1,FALSE))) ->  | S21: =IF($B21="","",IF(VLOOKUP($B21,'Athlete Input'!$C:$H,S$1,FALSE)="","",VLOOKUP($B21,'Athlete Input'!$C:$H,S$1,FALSE))) ->  | T21: =IF($B21="","",IF(VLOOKUP($B21,'Athlete Input'!$C:$H,T$1,FALSE)="","",VLOOKUP($B21,'Athlete Input'!$C:$H,T$1,FALSE))) ->  | U21: =IF($B21="","",IF(VLOOKUP($B21,'Athlete Input'!$C:$H,U$1,FALSE)="","",VLOOKUP($B21,'Athlete Input'!$C:$H,U$1,FALSE))) ->  | V21: =IF($B21="","",IF(VLOOKUP($B21,'Athlete Input'!$C:$H,V$1,FALSE)="","",VLOOKUP($B21,'Athlete Input'!$C:$H,V$1,FALSE))) ->  | W21: =IF($B21="","",IF(VLOOKUP($B21,'Athlete Input'!$C:$H,W$1,FALSE)="","",VLOOKUP($B21,'Athlete Input'!$C:$H,W$1,FALSE))) ->  | X21: =IF($B21="","",IF(VLOOKUP($B21,'Athlete Input'!$C:$H,X$1,FALSE)="","",VLOOKUP($B21,'Athlete Input'!$C:$H,X$1,FALSE))) ->  | Y21: =IF($B21="","",IF(VLOOKUP($B21,'Athlete Input'!$C:$H,Y$1,FALSE)="","",VLOOKUP($B21,'Athlete Input'!$C:$H,Y$1,FALSE))) ->  | Z21: =IF($B21="","",IF(VLOOKUP($B21,'Athlete Input'!$C:$H,Z$1,FALSE)="","",VLOOKUP($B21,'Athlete Input'!$C:$H,Z$1,FALSE))) ->  | AA21: =IF($B21="","",IF(VLOOKUP($B21,'Athlete Input'!$C:$H,AA$1,FALSE)="","",VLOOKUP($B21,'Athlete Input'!$C:$H,AA$1,FALSE))) ->  | AB21: =IF($B21="","",IF(VLOOKUP($B21,'Athlete Input'!$C:$H,AB$1,FALSE)="","",VLOOKUP($B21,'Athlete Input'!$C:$H,AB$1,FALSE))) ->  | AC21: =IF($B21="","",IF(VLOOKUP($B21,'Athlete Input'!$C:$H,AC$1,FALSE)="","",VLOOKUP($B21,'Athlete Input'!$C:$H,AC$1,FALSE))) ->  | AD21: =IF($B21="","",IF(VLOOKUP($B21,'Athlete Input'!$C:$H,AD$1,FALSE)="","",VLOOKUP($B21,'Athlete Input'!$C:$H,AD$1,FALSE))) ->  | AE21: =IF($B21="","",IF(VLOOKUP($B21,'Athlete Input'!$C:$H,AE$1,FALSE)="","",VLOOKUP($B21,'Athlete Input'!$C:$H,AE$1,FALSE))) ->  | AF21: =IF($B21="","",IF(VLOOKUP($B21,'Athlete Input'!$C:$H,AF$1,FALSE)="","",VLOOKUP($B21,'Athlete Input'!$C:$H,AF$1,FALSE))) ->  | AG21: =IF($B21="","",IF(VLOOKUP($B21,'Athlete Input'!$C:$H,AG$1,FALSE)="","",VLOOKUP($B21,'Athlete Input'!$C:$H,AG$1,FALSE))) ->  | AH21: =IF($B21="","",IF(VLOOKUP($B21,'Athlete Input'!$C:$H,AH$1,FALSE)="","",VLOOKUP($B21,'Athlete Input'!$C:$H,AH$1,FALSE))) ->  | AI21: =IF($B21="","",IF(VLOOKUP($B21,'Athlete Input'!$C:$H,AI$1,FALSE)="","",VLOOKUP($B21,'Athlete Input'!$C:$H,AI$1,FALSE))) ->  | AJ21: =IF($B21="","",IF(VLOOKUP($B21,'Athlete Input'!$C:$H,AJ$1,FALSE)="","",VLOOKUP($B21,'Athlete Input'!$C:$H,AJ$1,FALSE))) ->  | AK21: =IF($B21="","",IF(VLOOKUP($B21,'Athlete Input'!$C:$H,AK$1,FALSE)="","",VLOOKUP($B21,'Athlete Input'!$C:$H,AK$1,FALSE))) ->  | AL21: =IF($B21="","",IF(VLOOKUP($B21,'Athlete Input'!$C:$H,AL$1,FALSE)="","",VLOOKUP($B21,'Athlete Input'!$C:$H,AL$1,FALSE))) ->  | AM21: =IF(B21="","zz",'Athlete Input'!D27) -> Fraser
A22: 19 | B22: =IF('Athlete Input'!C28="","",'Athlete Input'!C28) -> Charlotte Garry | C22: =IF($B22="","",IF(VLOOKUP($B22,'Athlete Input'!$C:$H,C$1,FALSE)="","",VLOOKUP($B22,'Athlete Input'!$C:$H,C$1,FALSE))) ->  | D22: =IF($B22="","",IF(VLOOKUP($B22,'Athlete Input'!$C:$H,D$1,FALSE)="","",VLOOKUP($B22,'Athlete Input'!$C:$H,D$1,FALSE))) ->  | E22: =IF($B22="","",IF(VLOOKUP($B22,'Athlete Input'!$C:$H,E$1,FALSE)="","",VLOOKUP($B22,'Athlete Input'!$C:$H,E$1,FALSE))) ->  | F22: =IF($B22="","",IF(VLOOKUP($B22,'Athlete Input'!$C:$H,F$1,FALSE)="","",VLOOKUP($B22,'Athlete Input'!$C:$H,F$1,FALSE))) ->  | G22: =IF($B22="","",IF(VLOOKUP($B22,'Athlete Input'!$C:$H,G$1,FALSE)="","",VLOOKUP($B22,'Athlete Input'!$C:$H,G$1,FALSE))) ->  | H22: =IF($B22="","",IF(VLOOKUP($B22,'Athlete Input'!$C:$H,H$1,FALSE)="","",VLOOKUP($B22,'Athlete Input'!$C:$H,H$1,FALSE))) ->  | I22: =IF($B22="","",IF(VLOOKUP($B22,'Athlete Input'!$C:$H,I$1,FALSE)="","",VLOOKUP($B22,'Athlete Input'!$C:$H,I$1,FALSE))) ->  | J22: =IF($B22="","",IF(VLOOKUP($B22,'Athlete Input'!$C:$H,J$1,FALSE)="","",VLOOKUP($B22,'Athlete Input'!$C:$H,J$1,FALSE))) ->  | K22: =IF($B22="","",IF(VLOOKUP($B22,'Athlete Input'!$C:$H,K$1,FALSE)="","",VLOOKUP($B22,'Athlete Input'!$C:$H,K$1,FALSE))) ->  | L22: =IF($B22="","",IF(VLOOKUP($B22,'Athlete Input'!$C:$H,L$1,FALSE)="","",VLOOKUP($B22,'Athlete Input'!$C:$H,L$1,FALSE))) ->  | M22: =IF($B22="","",IF(VLOOKUP($B22,'Athlete Input'!$C:$H,M$1,FALSE)="","",VLOOKUP($B22,'Athlete Input'!$C:$H,M$1,FALSE))) ->  | N22: =IF($B22="","",IF(VLOOKUP($B22,'Athlete Input'!$C:$H,N$1,FALSE)="","",VLOOKUP($B22,'Athlete Input'!$C:$H,N$1,FALSE))) ->  | O22: =IF($B22="","",IF(VLOOKUP($B22,'Athlete Input'!$C:$H,O$1,FALSE)="","",VLOOKUP($B22,'Athlete Input'!$C:$H,O$1,FALSE))) ->  | P22: =IF($B22="","",IF(VLOOKUP($B22,'Athlete Input'!$C:$H,P$1,FALSE)="","",VLOOKUP($B22,'Athlete Input'!$C:$H,P$1,FALSE))) ->  | Q22: =IF($B22="","",IF(VLOOKUP($B22,'Athlete Input'!$C:$H,Q$1,FALSE)="","",VLOOKUP($B22,'Athlete Input'!$C:$H,Q$1,FALSE))) ->  | R22: =IF($B22="","",IF(VLOOKUP($B22,'Athlete Input'!$C:$H,R$1,FALSE)="","",VLOOKUP($B22,'Athlete Input'!$C:$H,R$1,FALSE))) ->  | S22: =IF($B22="","",IF(VLOOKUP($B22,'Athlete Input'!$C:$H,S$1,FALSE)="","",VLOOKUP($B22,'Athlete Input'!$C:$H,S$1,FALSE))) ->  | T22: =IF($B22="","",IF(VLOOKUP($B22,'Athlete Input'!$C:$H,T$1,FALSE)="","",VLOOKUP($B22,'Athlete Input'!$C:$H,T$1,FALSE))) ->  | U22: =IF($B22="","",IF(VLOOKUP($B22,'Athlete Input'!$C:$H,U$1,FALSE)="","",VLOOKUP($B22,'Athlete Input'!$C:$H,U$1,FALSE))) ->  | V22: =IF($B22="","",IF(VLOOKUP($B22,'Athlete Input'!$C:$H,V$1,FALSE)="","",VLOOKUP($B22,'Athlete Input'!$C:$H,V$1,FALSE))) ->  | W22: =IF($B22="","",IF(VLOOKUP($B22,'Athlete Input'!$C:$H,W$1,FALSE)="","",VLOOKUP($B22,'Athlete Input'!$C:$H,W$1,FALSE))) ->  | X22: =IF($B22="","",IF(VLOOKUP($B22,'Athlete Input'!$C:$H,X$1,FALSE)="","",VLOOKUP($B22,'Athlete Input'!$C:$H,X$1,FALSE))) ->  | Y22: =IF($B22="","",IF(VLOOKUP($B22,'Athlete Input'!$C:$H,Y$1,FALSE)="","",VLOOKUP($B22,'Athlete Input'!$C:$H,Y$1,FALSE))) ->  | Z22: =IF($B22="","",IF(VLOOKUP($B22,'Athlete Input'!$C:$H,Z$1,FALSE)="","",VLOOKUP($B22,'Athlete Input'!$C:$H,Z$1,FALSE))) ->  | AA22: =IF($B22="","",IF(VLOOKUP($B22,'Athlete Input'!$C:$H,AA$1,FALSE)="","",VLOOKUP($B22,'Athlete Input'!$C:$H,AA$1,FALSE))) ->  | AB22: =IF($B22="","",IF(VLOOKUP($B22,'Athlete Input'!$C:$H,AB$1,FALSE)="","",VLOOKUP($B22,'Athlete Input'!$C:$H,AB$1,FALSE))) ->  | AC22: =IF($B22="","",IF(VLOOKUP($B22,'Athlete Input'!$C:$H,AC$1,FALSE)="","",VLOOKUP($B22,'Athlete Input'!$C:$H,AC$1,FALSE))) ->  | AD22: =IF($B22="","",IF(VLOOKUP($B22,'Athlete Input'!$C:$H,AD$1,FALSE)="","",VLOOKUP($B22,'Athlete Input'!$C:$H,AD$1,FALSE))) ->  | AE22: =IF($B22="","",IF(VLOOKUP($B22,'Athlete Input'!$C:$H,AE$1,FALSE)="","",VLOOKUP($B22,'Athlete Input'!$C:$H,AE$1,FALSE))) ->  | AF22: =IF($B22="","",IF(VLOOKUP($B22,'Athlete Input'!$C:$H,AF$1,FALSE)="","",VLOOKUP($B22,'Athlete Input'!$C:$H,AF$1,FALSE))) ->  | AG22: =IF($B22="","",IF(VLOOKUP($B22,'Athlete Input'!$C:$H,AG$1,FALSE)="","",VLOOKUP($B22,'Athlete Input'!$C:$H,AG$1,FALSE))) ->  | AH22: =IF($B22="","",IF(VLOOKUP($B22,'Athlete Input'!$C:$H,AH$1,FALSE)="","",VLOOKUP($B22,'Athlete Input'!$C:$H,AH$1,FALSE))) ->  | AI22: =IF($B22="","",IF(VLOOKUP($B22,'Athlete Input'!$C:$H,AI$1,FALSE)="","",VLOOKUP($B22,'Athlete Input'!$C:$H,AI$1,FALSE))) ->  | AJ22: =IF($B22="","",IF(VLOOKUP($B22,'Athlete Input'!$C:$H,AJ$1,FALSE)="","",VLOOKUP($B22,'Athlete Input'!$C:$H,AJ$1,FALSE))) ->  | AK22: =IF($B22="","",IF(VLOOKUP($B22,'Athlete Input'!$C:$H,AK$1,FALSE)="","",VLOOKUP($B22,'Athlete Input'!$C:$H,AK$1,FALSE))) ->  | AL22: =IF($B22="","",IF(VLOOKUP($B22,'Athlete Input'!$C:$H,AL$1,FALSE)="","",VLOOKUP($B22,'Athlete Input'!$C:$H,AL$1,FALSE))) ->  | AM22: =IF(B22="","zz",'Athlete Input'!D28) -> Garry
A23: 20 | B23: =IF('Athlete Input'!C29="","",'Athlete Input'!C29) -> Nikki Gibson | C23: =IF($B23="","",IF(VLOOKUP($B23,'Athlete Input'!$C:$H,C$1,FALSE)="","",VLOOKUP($B23,'Athlete Input'!$C:$H,C$1,FALSE))) ->  | D23: =IF($B23="","",IF(VLOOKUP($B23,'Athlete Input'!$C:$H,D$1,FALSE)="","",VLOOKUP($B23,'Athlete Input'!$C:$H,D$1,FALSE))) ->  | E23: =IF($B23="","",IF(VLOOKUP($B23,'Athlete Input'!$C:$H,E$1,FALSE)="","",VLOOKUP($B23,'Athlete Input'!$C:$H,E$1,FALSE))) ->  | F23: =IF($B23="","",IF(VLOOKUP($B23,'Athlete Input'!$C:$H,F$1,FALSE)="","",VLOOKUP($B23,'Athlete Input'!$C:$H,F$1,FALSE))) ->  | G23: =IF($B23="","",IF(VLOOKUP($B23,'Athlete Input'!$C:$H,G$1,FALSE)="","",VLOOKUP($B23,'Athlete Input'!$C:$H,G$1,FALSE))) ->  | H23: =IF($B23="","",IF(VLOOKUP($B23,'Athlete Input'!$C:$H,H$1,FALSE)="","",VLOOKUP($B23,'Athlete Input'!$C:$H,H$1,FALSE))) ->  | I23: =IF($B23="","",IF(VLOOKUP($B23,'Athlete Input'!$C:$H,I$1,FALSE)="","",VLOOKUP($B23,'Athlete Input'!$C:$H,I$1,FALSE))) ->  | J23: =IF($B23="","",IF(VLOOKUP($B23,'Athlete Input'!$C:$H,J$1,FALSE)="","",VLOOKUP($B23,'Athlete Input'!$C:$H,J$1,FALSE))) ->  | K23: =IF($B23="","",IF(VLOOKUP($B23,'Athlete Input'!$C:$H,K$1,FALSE)="","",VLOOKUP($B23,'Athlete Input'!$C:$H,K$1,FALSE))) ->  | L23: =IF($B23="","",IF(VLOOKUP($B23,'Athlete Input'!$C:$H,L$1,FALSE)="","",VLOOKUP($B23,'Athlete Input'!$C:$H,L$1,FALSE))) ->  | M23: =IF($B23="","",IF(VLOOKUP($B23,'Athlete Input'!$C:$H,M$1,FALSE)="","",VLOOKUP($B23,'Athlete Input'!$C:$H,M$1,FALSE))) ->  | N23: =IF($B23="","",IF(VLOOKUP($B23,'Athlete Input'!$C:$H,N$1,FALSE)="","",VLOOKUP($B23,'Athlete Input'!$C:$H,N$1,FALSE))) ->  | O23: =IF($B23="","",IF(VLOOKUP($B23,'Athlete Input'!$C:$H,O$1,FALSE)="","",VLOOKUP($B23,'Athlete Input'!$C:$H,O$1,FALSE))) ->  | P23: =IF($B23="","",IF(VLOOKUP($B23,'Athlete Input'!$C:$H,P$1,FALSE)="","",VLOOKUP($B23,'Athlete Input'!$C:$H,P$1,FALSE))) ->  | Q23: =IF($B23="","",IF(VLOOKUP($B23,'Athlete Input'!$C:$H,Q$1,FALSE)="","",VLOOKUP($B23,'Athlete Input'!$C:$H,Q$1,FALSE))) ->  | R23: =IF($B23="","",IF(VLOOKUP($B23,'Athlete Input'!$C:$H,R$1,FALSE)="","",VLOOKUP($B23,'Athlete Input'!$C:$H,R$1,FALSE))) ->  | S23: =IF($B23="","",IF(VLOOKUP($B23,'Athlete Input'!$C:$H,S$1,FALSE)="","",VLOOKUP($B23,'Athlete Input'!$C:$H,S$1,FALSE))) ->  | T23: =IF($B23="","",IF(VLOOKUP($B23,'Athlete Input'!$C:$H,T$1,FALSE)="","",VLOOKUP($B23,'Athlete Input'!$C:$H,T$1,FALSE))) ->  | U23: =IF($B23="","",IF(VLOOKUP($B23,'Athlete Input'!$C:$H,U$1,FALSE)="","",VLOOKUP($B23,'Athlete Input'!$C:$H,U$1,FALSE))) ->  | V23: =IF($B23="","",IF(VLOOKUP($B23,'Athlete Input'!$C:$H,V$1,FALSE)="","",VLOOKUP($B23,'Athlete Input'!$C:$H,V$1,FALSE))) ->  | W23: =IF($B23="","",IF(VLOOKUP($B23,'Athlete Input'!$C:$H,W$1,FALSE)="","",VLOOKUP($B23,'Athlete Input'!$C:$H,W$1,FALSE))) ->  | X23: =IF($B23="","",IF(VLOOKUP($B23,'Athlete Input'!$C:$H,X$1,FALSE)="","",VLOOKUP($B23,'Athlete Input'!$C:$H,X$1,FALSE))) ->  | Y23: =IF($B23="","",IF(VLOOKUP($B23,'Athlete Input'!$C:$H,Y$1,FALSE)="","",VLOOKUP($B23,'Athlete Input'!$C:$H,Y$1,FALSE))) ->  | Z23: =IF($B23="","",IF(VLOOKUP($B23,'Athlete Input'!$C:$H,Z$1,FALSE)="","",VLOOKUP($B23,'Athlete Input'!$C:$H,Z$1,FALSE))) ->  | AA23: =IF($B23="","",IF(VLOOKUP($B23,'Athlete Input'!$C:$H,AA$1,FALSE)="","",VLOOKUP($B23,'Athlete Input'!$C:$H,AA$1,FALSE))) ->  | AB23: =IF($B23="","",IF(VLOOKUP($B23,'Athlete Input'!$C:$H,AB$1,FALSE)="","",VLOOKUP($B23,'Athlete Input'!$C:$H,AB$1,FALSE))) ->  | AC23: =IF($B23="","",IF(VLOOKUP($B23,'Athlete Input'!$C:$H,AC$1,FALSE)="","",VLOOKUP($B23,'Athlete Input'!$C:$H,AC$1,FALSE))) ->  | AD23: =IF($B23="","",IF(VLOOKUP($B23,'Athlete Input'!$C:$H,AD$1,FALSE)="","",VLOOKUP($B23,'Athlete Input'!$C:$H,AD$1,FALSE))) ->  | AE23: =IF($B23="","",IF(VLOOKUP($B23,'Athlete Input'!$C:$H,AE$1,FALSE)="","",VLOOKUP($B23,'Athlete Input'!$C:$H,AE$1,FALSE))) ->  | AF23: =IF($B23="","",IF(VLOOKUP($B23,'Athlete Input'!$C:$H,AF$1,FALSE)="","",VLOOKUP($B23,'Athlete Input'!$C:$H,AF$1,FALSE))) ->  | AG23: =IF($B23="","",IF(VLOOKUP($B23,'Athlete Input'!$C:$H,AG$1,FALSE)="","",VLOOKUP($B23,'Athlete Input'!$C:$H,AG$1,FALSE))) ->  | AH23: =IF($B23="","",IF(VLOOKUP($B23,'Athlete Input'!$C:$H,AH$1,FALSE)="","",VLOOKUP($B23,'Athlete Input'!$C:$H,AH$1,FALSE))) ->  | AI23: =IF($B23="","",IF(VLOOKUP($B23,'Athlete Input'!$C:$H,AI$1,FALSE)="","",VLOOKUP($B23,'Athlete Input'!$C:$H,AI$1,FALSE))) ->  | AJ23: =IF($B23="","",IF(VLOOKUP($B23,'Athlete Input'!$C:$H,AJ$1,FALSE)="","",VLOOKUP($B23,'Athlete Input'!$C:$H,AJ$1,FALSE))) ->  | AK23: =IF($B23="","",IF(VLOOKUP($B23,'Athlete Input'!$C:$H,AK$1,FALSE)="","",VLOOKUP($B23,'Athlete Input'!$C:$H,AK$1,FALSE))) ->  | AL23: =IF($B23="","",IF(VLOOKUP($B23,'Athlete Input'!$C:$H,AL$1,FALSE)="","",VLOOKUP($B23,'Athlete Input'!$C:$H,AL$1,FALSE))) ->  | AM23: =IF(B23="","zz",'Athlete Input'!D29) -> Gibson
A24: 21 | B24: =IF('Athlete Input'!C30="","",'Athlete Input'!C30) -> Fiona Hegarty | C24: =IF($B24="","",IF(VLOOKUP($B24,'Athlete Input'!$C:$H,C$1,FALSE)="","",VLOOKUP($B24,'Athlete Input'!$C:$H,C$1,FALSE))) ->  | D24: =IF($B24="","",IF(VLOOKUP($B24,'Athlete Input'!$C:$H,D$1,FALSE)="","",VLOOKUP($B24,'Athlete Input'!$C:$H,D$1,FALSE))) ->  | E24: =IF($B24="","",IF(VLOOKUP($B24,'Athlete Input'!$C:$H,E$1,FALSE)="","",VLOOKUP($B24,'Athlete Input'!$C:$H,E$1,FALSE))) ->  | F24: =IF($B24="","",IF(VLOOKUP($B24,'Athlete Input'!$C:$H,F$1,FALSE)="","",VLOOKUP($B24,'Athlete Input'!$C:$H,F$1,FALSE))) ->  | G24: =IF($B24="","",IF(VLOOKUP($B24,'Athlete Input'!$C:$H,G$1,FALSE)="","",VLOOKUP($B24,'Athlete Input'!$C:$H,G$1,FALSE))) ->  | H24: =IF($B24="","",IF(VLOOKUP($B24,'Athlete Input'!$C:$H,H$1,FALSE)="","",VLOOKUP($B24,'Athlete Input'!$C:$H,H$1,FALSE))) ->  | I24: =IF($B24="","",IF(VLOOKUP($B24,'Athlete Input'!$C:$H,I$1,FALSE)="","",VLOOKUP($B24,'Athlete Input'!$C:$H,I$1,FALSE))) ->  | J24: =IF($B24="","",IF(VLOOKUP($B24,'Athlete Input'!$C:$H,J$1,FALSE)="","",VLOOKUP($B24,'Athlete Input'!$C:$H,J$1,FALSE))) ->  | K24: =IF($B24="","",IF(VLOOKUP($B24,'Athlete Input'!$C:$H,K$1,FALSE)="","",VLOOKUP($B24,'Athlete Input'!$C:$H,K$1,FALSE))) ->  | L24: =IF($B24="","",IF(VLOOKUP($B24,'Athlete Input'!$C:$H,L$1,FALSE)="","",VLOOKUP($B24,'Athlete Input'!$C:$H,L$1,FALSE))) ->  | M24: =IF($B24="","",IF(VLOOKUP($B24,'Athlete Input'!$C:$H,M$1,FALSE)="","",VLOOKUP($B24,'Athlete Input'!$C:$H,M$1,FALSE))) ->  | N24: =IF($B24="","",IF(VLOOKUP($B24,'Athlete Input'!$C:$H,N$1,FALSE)="","",VLOOKUP($B24,'Athlete Input'!$C:$H,N$1,FALSE))) ->  | O24: =IF($B24="","",IF(VLOOKUP($B24,'Athlete Input'!$C:$H,O$1,FALSE)="","",VLOOKUP($B24,'Athlete Input'!$C:$H,O$1,FALSE))) ->  | P24: =IF($B24="","",IF(VLOOKUP($B24,'Athlete Input'!$C:$H,P$1,FALSE)="","",VLOOKUP($B24,'Athlete Input'!$C:$H,P$1,FALSE))) ->  | Q24: =IF($B24="","",IF(VLOOKUP($B24,'Athlete Input'!$C:$H,Q$1,FALSE)="","",VLOOKUP($B24,'Athlete Input'!$C:$H,Q$1,FALSE))) ->  | R24: =IF($B24="","",IF(VLOOKUP($B24,'Athlete Input'!$C:$H,R$1,FALSE)="","",VLOOKUP($B24,'Athlete Input'!$C:$H,R$1,FALSE))) ->  | S24: =IF($B24="","",IF(VLOOKUP($B24,'Athlete Input'!$C:$H,S$1,FALSE)="","",VLOOKUP($B24,'Athlete Input'!$C:$H,S$1,FALSE))) ->  | T24: =IF($B24="","",IF(VLOOKUP($B24,'Athlete Input'!$C:$H,T$1,FALSE)="","",VLOOKUP($B24,'Athlete Input'!$C:$H,T$1,FALSE))) ->  | U24: =IF($B24="","",IF(VLOOKUP($B24,'Athlete Input'!$C:$H,U$1,FALSE)="","",VLOOKUP($B24,'Athlete Input'!$C:$H,U$1,FALSE))) ->  | V24: =IF($B24="","",IF(VLOOKUP($B24,'Athlete Input'!$C:$H,V$1,FALSE)="","",VLOOKUP($B24,'Athlete Input'!$C:$H,V$1,FALSE))) ->  | W24: =IF($B24="","",IF(VLOOKUP($B24,'Athlete Input'!$C:$H,W$1,FALSE)="","",VLOOKUP($B24,'Athlete Input'!$C:$H,W$1,FALSE))) ->  | X24: =IF($B24="","",IF(VLOOKUP($B24,'Athlete Input'!$C:$H,X$1,FALSE)="","",VLOOKUP($B24,'Athlete Input'!$C:$H,X$1,FALSE))) ->  | Y24: =IF($B24="","",IF(VLOOKUP($B24,'Athlete Input'!$C:$H,Y$1,FALSE)="","",VLOOKUP($B24,'Athlete Input'!$C:$H,Y$1,FALSE))) ->  | Z24: =IF($B24="","",IF(VLOOKUP($B24,'Athlete Input'!$C:$H,Z$1,FALSE)="","",VLOOKUP($B24,'Athlete Input'!$C:$H,Z$1,FALSE))) ->  | AA24: =IF($B24="","",IF(VLOOKUP($B24,'Athlete Input'!$C:$H,AA$1,FALSE)="","",VLOOKUP($B24,'Athlete Input'!$C:$H,AA$1,FALSE))) ->  | AB24: =IF($B24="","",IF(VLOOKUP($B24,'Athlete Input'!$C:$H,AB$1,FALSE)="","",VLOOKUP($B24,'Athlete Input'!$C:$H,AB$1,FALSE))) ->  | AC24: =IF($B24="","",IF(VLOOKUP($B24,'Athlete Input'!$C:$H,AC$1,FALSE)="","",VLOOKUP($B24,'Athlete Input'!$C:$H,AC$1,FALSE))) ->  | AD24: =IF($B24="","",IF(VLOOKUP($B24,'Athlete Input'!$C:$H,AD$1,FALSE)="","",VLOOKUP($B24,'Athlete Input'!$C:$H,AD$1,FALSE))) ->  | AE24: =IF($B24="","",IF(VLOOKUP($B24,'Athlete Input'!$C:$H,AE$1,FALSE)="","",VLOOKUP($B24,'Athlete Input'!$C:$H,AE$1,FALSE))) ->  | AF24: =IF($B24="","",IF(VLOOKUP($B24,'Athlete Input'!$C:$H,AF$1,FALSE)="","",VLOOKUP($B24,'Athlete Input'!$C:$H,AF$1,FALSE))) ->  | AG24: =IF($B24="","",IF(VLOOKUP($B24,'Athlete Input'!$C:$H,AG$1,FALSE)="","",VLOOKUP($B24,'Athlete Input'!$C:$H,AG$1,FALSE))) ->  | AH24: =IF($B24="","",IF(VLOOKUP($B24,'Athlete Input'!$C:$H,AH$1,FALSE)="","",VLOOKUP($B24,'Athlete Input'!$C:$H,AH$1,FALSE))) ->  | AI24: =IF($B24="","",IF(VLOOKUP($B24,'Athlete Input'!$C:$H,AI$1,FALSE)="","",VLOOKUP($B24,'Athlete Input'!$C:$H,AI$1,FALSE))) ->  | AJ24: =IF($B24="","",IF(VLOOKUP($B24,'Athlete Input'!$C:$H,AJ$1,FALSE)="","",VLOOKUP($B24,'Athlete Input'!$C:$H,AJ$1,FALSE))) ->  | AK24: =IF($B24="","",IF(VLOOKUP($B24,'Athlete Input'!$C:$H,AK$1,FALSE)="","",VLOOKUP($B24,'Athlete Input'!$C:$H,AK$1,FALSE))) ->  | AL24: =IF($B24="","",IF(VLOOKUP($B24,'Athlete Input'!$C:$H,AL$1,FALSE)="","",VLOOKUP($B24,'Athlete Input'!$C:$H,AL$1,FALSE))) ->  | AM24: =IF(B24="","zz",'Athlete Input'!D30) -> Hegarty
A25: 22 | B25: =IF('Athlete Input'!C31="","",'Athlete Input'!C31) -> Berit Inkster | C25: =IF($B25="","",IF(VLOOKUP($B25,'Athlete Input'!$C:$H,C$1,FALSE)="","",VLOOKUP($B25,'Athlete Input'!$C:$H,C$1,FALSE))) ->  | D25: =IF($B25="","",IF(VLOOKUP($B25,'Athlete Input'!$C:$H,D$1,FALSE)="","",VLOOKUP($B25,'Athlete Input'!$C:$H,D$1,FALSE))) ->  | E25: =IF($B25="","",IF(VLOOKUP($B25,'Athlete Input'!$C:$H,E$1,FALSE)="","",VLOOKUP($B25,'Athlete Input'!$C:$H,E$1,FALSE))) ->  | F25: =IF($B25="","",IF(VLOOKUP($B25,'Athlete Input'!$C:$H,F$1,FALSE)="","",VLOOKUP($B25,'Athlete Input'!$C:$H,F$1,FALSE))) ->  | G25: =IF($B25="","",IF(VLOOKUP($B25,'Athlete Input'!$C:$H,G$1,FALSE)="","",VLOOKUP($B25,'Athlete Input'!$C:$H,G$1,FALSE))) ->  | H25: =IF($B25="","",IF(VLOOKUP($B25,'Athlete Input'!$C:$H,H$1,FALSE)="","",VLOOKUP($B25,'Athlete Input'!$C:$H,H$1,FALSE))) ->  | I25: =IF($B25="","",IF(VLOOKUP($B25,'Athlete Input'!$C:$H,I$1,FALSE)="","",VLOOKUP($B25,'Athlete Input'!$C:$H,I$1,FALSE))) ->  | J25: =IF($B25="","",IF(VLOOKUP($B25,'Athlete Input'!$C:$H,J$1,FALSE)="","",VLOOKUP($B25,'Athlete Input'!$C:$H,J$1,FALSE))) ->  | K25: =IF($B25="","",IF(VLOOKUP($B25,'Athlete Input'!$C:$H,K$1,FALSE)="","",VLOOKUP($B25,'Athlete Input'!$C:$H,K$1,FALSE))) ->  | L25: =IF($B25="","",IF(VLOOKUP($B25,'Athlete Input'!$C:$H,L$1,FALSE)="","",VLOOKUP($B25,'Athlete Input'!$C:$H,L$1,FALSE))) ->  | M25: =IF($B25="","",IF(VLOOKUP($B25,'Athlete Input'!$C:$H,M$1,FALSE)="","",VLOOKUP($B25,'Athlete Input'!$C:$H,M$1,FALSE))) ->  | N25: =IF($B25="","",IF(VLOOKUP($B25,'Athlete Input'!$C:$H,N$1,FALSE)="","",VLOOKUP($B25,'Athlete Input'!$C:$H,N$1,FALSE))) ->  | O25: =IF($B25="","",IF(VLOOKUP($B25,'Athlete Input'!$C:$H,O$1,FALSE)="","",VLOOKUP($B25,'Athlete Input'!$C:$H,O$1,FALSE))) ->  | P25: =IF($B25="","",IF(VLOOKUP($B25,'Athlete Input'!$C:$H,P$1,FALSE)="","",VLOOKUP($B25,'Athlete Input'!$C:$H,P$1,FALSE))) ->  | Q25: =IF($B25="","",IF(VLOOKUP($B25,'Athlete Input'!$C:$H,Q$1,FALSE)="","",VLOOKUP($B25,'Athlete Input'!$C:$H,Q$1,FALSE))) ->  | R25: =IF($B25="","",IF(VLOOKUP($B25,'Athlete Input'!$C:$H,R$1,FALSE)="","",VLOOKUP($B25,'Athlete Input'!$C:$H,R$1,FALSE))) ->  | S25: =IF($B25="","",IF(VLOOKUP($B25,'Athlete Input'!$C:$H,S$1,FALSE)="","",VLOOKUP($B25,'Athlete Input'!$C:$H,S$1,FALSE))) ->  | T25: =IF($B25="","",IF(VLOOKUP($B25,'Athlete Input'!$C:$H,T$1,FALSE)="","",VLOOKUP($B25,'Athlete Input'!$C:$H,T$1,FALSE))) ->  | U25: =IF($B25="","",IF(VLOOKUP($B25,'Athlete Input'!$C:$H,U$1,FALSE)="","",VLOOKUP($B25,'Athlete Input'!$C:$H,U$1,FALSE))) ->  | V25: =IF($B25="","",IF(VLOOKUP($B25,'Athlete Input'!$C:$H,V$1,FALSE)="","",VLOOKUP($B25,'Athlete Input'!$C:$H,V$1,FALSE))) ->  | W25: =IF($B25="","",IF(VLOOKUP($B25,'Athlete Input'!$C:$H,W$1,FALSE)="","",VLOOKUP($B25,'Athlete Input'!$C:$H,W$1,FALSE))) ->  | X25: =IF($B25="","",IF(VLOOKUP($B25,'Athlete Input'!$C:$H,X$1,FALSE)="","",VLOOKUP($B25,'Athlete Input'!$C:$H,X$1,FALSE))) ->  | Y25: =IF($B25="","",IF(VLOOKUP($B25,'Athlete Input'!$C:$H,Y$1,FALSE)="","",VLOOKUP($B25,'Athlete Input'!$C:$H,Y$1,FALSE))) ->  | Z25: =IF($B25="","",IF(VLOOKUP($B25,'Athlete Input'!$C:$H,Z$1,FALSE)="","",VLOOKUP($B25,'Athlete Input'!$C:$H,Z$1,FALSE))) ->  | AA25: =IF($B25="","",IF(VLOOKUP($B25,'Athlete Input'!$C:$H,AA$1,FALSE)="","",VLOOKUP($B25,'Athlete Input'!$C:$H,AA$1,FALSE))) ->  | AB25: =IF($B25="","",IF(VLOOKUP($B25,'Athlete Input'!$C:$H,AB$1,FALSE)="","",VLOOKUP($B25,'Athlete Input'!$C:$H,AB$1,FALSE))) ->  | AC25: =IF($B25="","",IF(VLOOKUP($B25,'Athlete Input'!$C:$H,AC$1,FALSE)="","",VLOOKUP($B25,'Athlete Input'!$C:$H,AC$1,FALSE))) ->  | AD25: =IF($B25="","",IF(VLOOKUP($B25,'Athlete Input'!$C:$H,AD$1,FALSE)="","",VLOOKUP($B25,'Athlete Input'!$C:$H,AD$1,FALSE))) ->  | AE25: =IF($B25="","",IF(VLOOKUP($B25,'Athlete Input'!$C:$H,AE$1,FALSE)="","",VLOOKUP($B25,'Athlete Input'!$C:$H,AE$1,FALSE))) ->  | AF25: =IF($B25="","",IF(VLOOKUP($B25,'Athlete Input'!$C:$H,AF$1,FALSE)="","",VLOOKUP($B25,'Athlete Input'!$C:$H,AF$1,FALSE))) ->  | AG25: =IF($B25="","",IF(VLOOKUP($B25,'Athlete Input'!$C:$H,AG$1,FALSE)="","",VLOOKUP($B25,'Athlete Input'!$C:$H,AG$1,FALSE))) ->  | AH25: =IF($B25="","",IF(VLOOKUP($B25,'Athlete Input'!$C:$H,AH$1,FALSE)="","",VLOOKUP($B25,'Athlete Input'!$C:$H,AH$1,FALSE))) ->  | AI25: =IF($B25="","",IF(VLOOKUP($B25,'Athlete Input'!$C:$H,AI$1,FALSE)="","",VLOOKUP($B25,'Athlete Input'!$C:$H,AI$1,FALSE))) ->  | AJ25: =IF($B25="","",IF(VLOOKUP($B25,'Athlete Input'!$C:$H,AJ$1,FALSE)="","",VLOOKUP($B25,'Athlete Input'!$C:$H,AJ$1,FALSE))) ->  | AK25: =IF($B25="","",IF(VLOOKUP($B25,'Athlete Input'!$C:$H,AK$1,FALSE)="","",VLOOKUP($B25,'Athlete Input'!$C:$H,AK$1,FALSE))) ->  | AL25: =IF($B25="","",IF(VLOOKUP($B25,'Athlete Input'!$C:$H,AL$1,FALSE)="","",VLOOKUP($B25,'Athlete Input'!$C:$H,AL$1,FALSE))) ->  | AM25: =IF(B25="","zz",'Athlete Input'!D31) -> Inkster
A26: 23 | B26: =IF('Athlete Input'!C32="","",'Athlete Input'!C32) -> Kirsty Jaager | C26: =IF($B26="","",IF(VLOOKUP($B26,'Athlete Input'!$C:$H,C$1,FALSE)="","",VLOOKUP($B26,'Athlete Input'!$C:$H,C$1,FALSE))) ->  | D26: =IF($B26="","",IF(VLOOKUP($B26,'Athlete Input'!$C:$H,D$1,FALSE)="","",VLOOKUP($B26,'Athlete Input'!$C:$H,D$1,FALSE))) ->  | E26: =IF($B26="","",IF(VLOOKUP($B26,'Athlete Input'!$C:$H,E$1,FALSE)="","",VLOOKUP($B26,'Athlete Input'!$C:$H,E$1,FALSE))) ->  | F26: =IF($B26="","",IF(VLOOKUP($B26,'Athlete Input'!$C:$H,F$1,FALSE)="","",VLOOKUP($B26,'Athlete Input'!$C:$H,F$1,FALSE))) ->  | G26: =IF($B26="","",IF(VLOOKUP($B26,'Athlete Input'!$C:$H,G$1,FALSE)="","",VLOOKUP($B26,'Athlete Input'!$C:$H,G$1,FALSE))) ->  | H26: =IF($B26="","",IF(VLOOKUP($B26,'Athlete Input'!$C:$H,H$1,FALSE)="","",VLOOKUP($B26,'Athlete Input'!$C:$H,H$1,FALSE))) ->  | I26: =IF($B26="","",IF(VLOOKUP($B26,'Athlete Input'!$C:$H,I$1,FALSE)="","",VLOOKUP($B26,'Athlete Input'!$C:$H,I$1,FALSE))) ->  | J26: =IF($B26="","",IF(VLOOKUP($B26,'Athlete Input'!$C:$H,J$1,FALSE)="","",VLOOKUP($B26,'Athlete Input'!$C:$H,J$1,FALSE))) ->  | K26: =IF($B26="","",IF(VLOOKUP($B26,'Athlete Input'!$C:$H,K$1,FALSE)="","",VLOOKUP($B26,'Athlete Input'!$C:$H,K$1,FALSE))) ->  | L26: =IF($B26="","",IF(VLOOKUP($B26,'Athlete Input'!$C:$H,L$1,FALSE)="","",VLOOKUP($B26,'Athlete Input'!$C:$H,L$1,FALSE))) ->  | M26: =IF($B26="","",IF(VLOOKUP($B26,'Athlete Input'!$C:$H,M$1,FALSE)="","",VLOOKUP($B26,'Athlete Input'!$C:$H,M$1,FALSE))) ->  | N26: =IF($B26="","",IF(VLOOKUP($B26,'Athlete Input'!$C:$H,N$1,FALSE)="","",VLOOKUP($B26,'Athlete Input'!$C:$H,N$1,FALSE))) ->  | O26: =IF($B26="","",IF(VLOOKUP($B26,'Athlete Input'!$C:$H,O$1,FALSE)="","",VLOOKUP($B26,'Athlete Input'!$C:$H,O$1,FALSE))) ->  | P26: =IF($B26="","",IF(VLOOKUP($B26,'Athlete Input'!$C:$H,P$1,FALSE)="","",VLOOKUP($B26,'Athlete Input'!$C:$H,P$1,FALSE))) ->  | Q26: =IF($B26="","",IF(VLOOKUP($B26,'Athlete Input'!$C:$H,Q$1,FALSE)="","",VLOOKUP($B26,'Athlete Input'!$C:$H,Q$1,FALSE))) ->  | R26: =IF($B26="","",IF(VLOOKUP($B26,'Athlete Input'!$C:$H,R$1,FALSE)="","",VLOOKUP($B26,'Athlete Input'!$C:$H,R$1,FALSE))) ->  | S26: =IF($B26="","",IF(VLOOKUP($B26,'Athlete Input'!$C:$H,S$1,FALSE)="","",VLOOKUP($B26,'Athlete Input'!$C:$H,S$1,FALSE))) ->  | T26: =IF($B26="","",IF(VLOOKUP($B26,'Athlete Input'!$C:$H,T$1,FALSE)="","",VLOOKUP($B26,'Athlete Input'!$C:$H,T$1,FALSE))) ->  | U26: =IF($B26="","",IF(VLOOKUP($B26,'Athlete Input'!$C:$H,U$1,FALSE)="","",VLOOKUP($B26,'Athlete Input'!$C:$H,U$1,FALSE))) ->  | V26: =IF($B26="","",IF(VLOOKUP($B26,'Athlete Input'!$C:$H,V$1,FALSE)="","",VLOOKUP($B26,'Athlete Input'!$C:$H,V$1,FALSE))) ->  | W26: =IF($B26="","",IF(VLOOKUP($B26,'Athlete Input'!$C:$H,W$1,FALSE)="","",VLOOKUP($B26,'Athlete Input'!$C:$H,W$1,FALSE))) ->  | X26: =IF($B26="","",IF(VLOOKUP($B26,'Athlete Input'!$C:$H,X$1,FALSE)="","",VLOOKUP($B26,'Athlete Input'!$C:$H,X$1,FALSE))) ->  | Y26: =IF($B26="","",IF(VLOOKUP($B26,'Athlete Input'!$C:$H,Y$1,FALSE)="","",VLOOKUP($B26,'Athlete Input'!$C:$H,Y$1,FALSE))) ->  | Z26: =IF($B26="","",IF(VLOOKUP($B26,'Athlete Input'!$C:$H,Z$1,FALSE)="","",VLOOKUP($B26,'Athlete Input'!$C:$H,Z$1,FALSE))) ->  | AA26: =IF($B26="","",IF(VLOOKUP($B26,'Athlete Input'!$C:$H,AA$1,FALSE)="","",VLOOKUP($B26,'Athlete Input'!$C:$H,AA$1,FALSE))) ->  | AB26: =IF($B26="","",IF(VLOOKUP($B26,'Athlete Input'!$C:$H,AB$1,FALSE)="","",VLOOKUP($B26,'Athlete Input'!$C:$H,AB$1,FALSE))) ->  | AC26: =IF($B26="","",IF(VLOOKUP($B26,'Athlete Input'!$C:$H,AC$1,FALSE)="","",VLOOKUP($B26,'Athlete Input'!$C:$H,AC$1,FALSE))) ->  | AD26: =IF($B26="","",IF(VLOOKUP($B26,'Athlete Input'!$C:$H,AD$1,FALSE)="","",VLOOKUP($B26,'Athlete Input'!$C:$H,AD$1,FALSE))) ->  | AE26: =IF($B26="","",IF(VLOOKUP($B26,'Athlete Input'!$C:$H,AE$1,FALSE)="","",VLOOKUP($B26,'Athlete Input'!$C:$H,AE$1,FALSE))) ->  | AF26: =IF($B26="","",IF(VLOOKUP($B26,'Athlete Input'!$C:$H,AF$1,FALSE)="","",VLOOKUP($B26,'Athlete Input'!$C:$H,AF$1,FALSE))) ->  | AG26: =IF($B26="","",IF(VLOOKUP($B26,'Athlete Input'!$C:$H,AG$1,FALSE)="","",VLOOKUP($B26,'Athlete Input'!$C:$H,AG$1,FALSE))) ->  | AH26: =IF($B26="","",IF(VLOOKUP($B26,'Athlete Input'!$C:$H,AH$1,FALSE)="","",VLOOKUP($B26,'Athlete Input'!$C:$H,AH$1,FALSE))) ->  | AI26: =IF($B26="","",IF(VLOOKUP($B26,'Athlete Input'!$C:$H,AI$1,FALSE)="","",VLOOKUP($B26,'Athlete Input'!$C:$H,AI$1,FALSE))) ->  | AJ26: =IF($B26="","",IF(VLOOKUP($B26,'Athlete Input'!$C:$H,AJ$1,FALSE)="","",VLOOKUP($B26,'Athlete Input'!$C:$H,AJ$1,FALSE))) ->  | AK26: =IF($B26="","",IF(VLOOKUP($B26,'Athlete Input'!$C:$H,AK$1,FALSE)="","",VLOOKUP($B26,'Athlete Input'!$C:$H,AK$1,FALSE))) ->  | AL26: =IF($B26="","",IF(VLOOKUP($B26,'Athlete Input'!$C:$H,AL$1,FALSE)="","",VLOOKUP($B26,'Athlete Input'!$C:$H,AL$1,FALSE))) ->  | AM26: =IF(B26="","zz",'Athlete Input'!D32) -> Jaager
A27: 24 | B27: =IF('Athlete Input'!C33="","",'Athlete Input'!C33) -> Claire Jellema | C27: =IF($B27="","",IF(VLOOKUP($B27,'Athlete Input'!$C:$H,C$1,FALSE)="","",VLOOKUP($B27,'Athlete Input'!$C:$H,C$1,FALSE))) ->  | D27: =IF($B27="","",IF(VLOOKUP($B27,'Athlete Input'!$C:$H,D$1,FALSE)="","",VLOOKUP($B27,'Athlete Input'!$C:$H,D$1,FALSE))) ->  | E27: =IF($B27="","",IF(VLOOKUP($B27,'Athlete Input'!$C:$H,E$1,FALSE)="","",VLOOKUP($B27,'Athlete Input'!$C:$H,E$1,FALSE))) ->  | F27: =IF($B27="","",IF(VLOOKUP($B27,'Athlete Input'!$C:$H,F$1,FALSE)="","",VLOOKUP($B27,'Athlete Input'!$C:$H,F$1,FALSE))) ->  | G27: =IF($B27="","",IF(VLOOKUP($B27,'Athlete Input'!$C:$H,G$1,FALSE)="","",VLOOKUP($B27,'Athlete Input'!$C:$H,G$1,FALSE))) ->  | H27: =IF($B27="","",IF(VLOOKUP($B27,'Athlete Input'!$C:$H,H$1,FALSE)="","",VLOOKUP($B27,'Athlete Input'!$C:$H,H$1,FALSE))) ->  | I27: =IF($B27="","",IF(VLOOKUP($B27,'Athlete Input'!$C:$H,I$1,FALSE)="","",VLOOKUP($B27,'Athlete Input'!$C:$H,I$1,FALSE))) ->  | J27: =IF($B27="","",IF(VLOOKUP($B27,'Athlete Input'!$C:$H,J$1,FALSE)="","",VLOOKUP($B27,'Athlete Input'!$C:$H,J$1,FALSE))) ->  | K27: =IF($B27="","",IF(VLOOKUP($B27,'Athlete Input'!$C:$H,K$1,FALSE)="","",VLOOKUP($B27,'Athlete Input'!$C:$H,K$1,FALSE))) ->  | L27: =IF($B27="","",IF(VLOOKUP($B27,'Athlete Input'!$C:$H,L$1,FALSE)="","",VLOOKUP($B27,'Athlete Input'!$C:$H,L$1,FALSE))) ->  | M27: =IF($B27="","",IF(VLOOKUP($B27,'Athlete Input'!$C:$H,M$1,FALSE)="","",VLOOKUP($B27,'Athlete Input'!$C:$H,M$1,FALSE))) ->  | N27: =IF($B27="","",IF(VLOOKUP($B27,'Athlete Input'!$C:$H,N$1,FALSE)="","",VLOOKUP($B27,'Athlete Input'!$C:$H,N$1,FALSE))) ->  | O27: =IF($B27="","",IF(VLOOKUP($B27,'Athlete Input'!$C:$H,O$1,FALSE)="","",VLOOKUP($B27,'Athlete Input'!$C:$H,O$1,FALSE))) ->  | P27: =IF($B27="","",IF(VLOOKUP($B27,'Athlete Input'!$C:$H,P$1,FALSE)="","",VLOOKUP($B27,'Athlete Input'!$C:$H,P$1,FALSE))) ->  | Q27: =IF($B27="","",IF(VLOOKUP($B27,'Athlete Input'!$C:$H,Q$1,FALSE)="","",VLOOKUP($B27,'Athlete Input'!$C:$H,Q$1,FALSE))) ->  | R27: =IF($B27="","",IF(VLOOKUP($B27,'Athlete Input'!$C:$H,R$1,FALSE)="","",VLOOKUP($B27,'Athlete Input'!$C:$H,R$1,FALSE))) ->  | S27: =IF($B27="","",IF(VLOOKUP($B27,'Athlete Input'!$C:$H,S$1,FALSE)="","",VLOOKUP($B27,'Athlete Input'!$C:$H,S$1,FALSE))) ->  | T27: =IF($B27="","",IF(VLOOKUP($B27,'Athlete Input'!$C:$H,T$1,FALSE)="","",VLOOKUP($B27,'Athlete Input'!$C:$H,T$1,FALSE))) ->  | U27: =IF($B27="","",IF(VLOOKUP($B27,'Athlete Input'!$C:$H,U$1,FALSE)="","",VLOOKUP($B27,'Athlete Input'!$C:$H,U$1,FALSE))) ->  | V27: =IF($B27="","",IF(VLOOKUP($B27,'Athlete Input'!$C:$H,V$1,FALSE)="","",VLOOKUP($B27,'Athlete Input'!$C:$H,V$1,FALSE))) ->  | W27: =IF($B27="","",IF(VLOOKUP($B27,'Athlete Input'!$C:$H,W$1,FALSE)="","",VLOOKUP($B27,'Athlete Input'!$C:$H,W$1,FALSE))) ->  | X27: =IF($B27="","",IF(VLOOKUP($B27,'Athlete Input'!$C:$H,X$1,FALSE)="","",VLOOKUP($B27,'Athlete Input'!$C:$H,X$1,FALSE))) ->  | Y27: =IF($B27="","",IF(VLOOKUP($B27,'Athlete Input'!$C:$H,Y$1,FALSE)="","",VLOOKUP($B27,'Athlete Input'!$C:$H,Y$1,FALSE))) ->  | Z27: =IF($B27="","",IF(VLOOKUP($B27,'Athlete Input'!$C:$H,Z$1,FALSE)="","",VLOOKUP($B27,'Athlete Input'!$C:$H,Z$1,FALSE))) ->  | AA27: =IF($B27="","",IF(VLOOKUP($B27,'Athlete Input'!$C:$H,AA$1,FALSE)="","",VLOOKUP($B27,'Athlete Input'!$C:$H,AA$1,FALSE))) ->  | AB27: =IF($B27="","",IF(VLOOKUP($B27,'Athlete Input'!$C:$H,AB$1,FALSE)="","",VLOOKUP($B27,'Athlete Input'!$C:$H,AB$1,FALSE))) ->  | AC27: =IF($B27="","",IF(VLOOKUP($B27,'Athlete Input'!$C:$H,AC$1,FALSE)="","",VLOOKUP($B27,'Athlete Input'!$C:$H,AC$1,FALSE))) ->  | AD27: =IF($B27="","",IF(VLOOKUP($B27,'Athlete Input'!$C:$H,AD$1,FALSE)="","",VLOOKUP($B27,'Athlete Input'!$C:$H,AD$1,FALSE))) ->  | AE27: =IF($B27="","",IF(VLOOKUP($B27,'Athlete Input'!$C:$H,AE$1,FALSE)="","",VLOOKUP($B27,'Athlete Input'!$C:$H,AE$1,FALSE))) ->  | AF27: =IF($B27="","",IF(VLOOKUP($B27,'Athlete Input'!$C:$H,AF$1,FALSE)="","",VLOOKUP($B27,'Athlete Input'!$C:$H,AF$1,FALSE))) ->  | AG27: =IF($B27="","",IF(VLOOKUP($B27,'Athlete Input'!$C:$H,AG$1,FALSE)="","",VLOOKUP($B27,'Athlete Input'!$C:$H,AG$1,FALSE))) ->  | AH27: =IF($B27="","",IF(VLOOKUP($B27,'Athlete Input'!$C:$H,AH$1,FALSE)="","",VLOOKUP($B27,'Athlete Input'!$C:$H,AH$1,FALSE))) ->  | AI27: =IF($B27="","",IF(VLOOKUP($B27,'Athlete Input'!$C:$H,AI$1,FALSE)="","",VLOOKUP($B27,'Athlete Input'!$C:$H,AI$1,FALSE))) ->  | AJ27: =IF($B27="","",IF(VLOOKUP($B27,'Athlete Input'!$C:$H,AJ$1,FALSE)="","",VLOOKUP($B27,'Athlete Input'!$C:$H,AJ$1,FALSE))) ->  | AK27: =IF($B27="","",IF(VLOOKUP($B27,'Athlete Input'!$C:$H,AK$1,FALSE)="","",VLOOKUP($B27,'Athlete Input'!$C:$H,AK$1,FALSE))) ->  | AL27: =IF($B27="","",IF(VLOOKUP($B27,'Athlete Input'!$C:$H,AL$1,FALSE)="","",VLOOKUP($B27,'Athlete Input'!$C:$H,AL$1,FALSE))) ->  | AM27: =IF(B27="","zz",'Athlete Input'!D33) -> Jellema
A28: 25 | B28: =IF('Athlete Input'!C34="","",'Athlete Input'!C34) -> Mary Kiely | C28: =IF($B28="","",IF(VLOOKUP($B28,'Athlete Input'!$C:$H,C$1,FALSE)="","",VLOOKUP($B28,'Athlete Input'!$C:$H,C$1,FALSE))) ->  | D28: =IF($B28="","",IF(VLOOKUP($B28,'Athlete Input'!$C:$H,D$1,FALSE)="","",VLOOKUP($B28,'Athlete Input'!$C:$H,D$1,FALSE))) ->  | E28: =IF($B28="","",IF(VLOOKUP($B28,'Athlete Input'!$C:$H,E$1,FALSE)="","",VLOOKUP($B28,'Athlete Input'!$C:$H,E$1,FALSE))) ->  | F28: =IF($B28="","",IF(VLOOKUP($B28,'Athlete Input'!$C:$H,F$1,FALSE)="","",VLOOKUP($B28,'Athlete Input'!$C:$H,F$1,FALSE))) ->  | G28: =IF($B28="","",IF(VLOOKUP($B28,'Athlete Input'!$C:$H,G$1,FALSE)="","",VLOOKUP($B28,'Athlete Input'!$C:$H,G$1,FALSE))) ->  | H28: =IF($B28="","",IF(VLOOKUP($B28,'Athlete Input'!$C:$H,H$1,FALSE)="","",VLOOKUP($B28,'Athlete Input'!$C:$H,H$1,FALSE))) ->  | I28: =IF($B28="","",IF(VLOOKUP($B28,'Athlete Input'!$C:$H,I$1,FALSE)="","",VLOOKUP($B28,'Athlete Input'!$C:$H,I$1,FALSE))) ->  | J28: =IF($B28="","",IF(VLOOKUP($B28,'Athlete Input'!$C:$H,J$1,FALSE)="","",VLOOKUP($B28,'Athlete Input'!$C:$H,J$1,FALSE))) ->  | K28: =IF($B28="","",IF(VLOOKUP($B28,'Athlete Input'!$C:$H,K$1,FALSE)="","",VLOOKUP($B28,'Athlete Input'!$C:$H,K$1,FALSE))) ->  | L28: =IF($B28="","",IF(VLOOKUP($B28,'Athlete Input'!$C:$H,L$1,FALSE)="","",VLOOKUP($B28,'Athlete Input'!$C:$H,L$1,FALSE))) ->  | M28: =IF($B28="","",IF(VLOOKUP($B28,'Athlete Input'!$C:$H,M$1,FALSE)="","",VLOOKUP($B28,'Athlete Input'!$C:$H,M$1,FALSE))) ->  | N28: =IF($B28="","",IF(VLOOKUP($B28,'Athlete Input'!$C:$H,N$1,FALSE)="","",VLOOKUP($B28,'Athlete Input'!$C:$H,N$1,FALSE))) ->  | O28: =IF($B28="","",IF(VLOOKUP($B28,'Athlete Input'!$C:$H,O$1,FALSE)="","",VLOOKUP($B28,'Athlete Input'!$C:$H,O$1,FALSE))) ->  | P28: =IF($B28="","",IF(VLOOKUP($B28,'Athlete Input'!$C:$H,P$1,FALSE)="","",VLOOKUP($B28,'Athlete Input'!$C:$H,P$1,FALSE))) ->  | Q28: =IF($B28="","",IF(VLOOKUP($B28,'Athlete Input'!$C:$H,Q$1,FALSE)="","",VLOOKUP($B28,'Athlete Input'!$C:$H,Q$1,FALSE))) ->  | R28: =IF($B28="","",IF(VLOOKUP($B28,'Athlete Input'!$C:$H,R$1,FALSE)="","",VLOOKUP($B28,'Athlete Input'!$C:$H,R$1,FALSE))) ->  | S28: =IF($B28="","",IF(VLOOKUP($B28,'Athlete Input'!$C:$H,S$1,FALSE)="","",VLOOKUP($B28,'Athlete Input'!$C:$H,S$1,FALSE))) ->  | T28: =IF($B28="","",IF(VLOOKUP($B28,'Athlete Input'!$C:$H,T$1,FALSE)="","",VLOOKUP($B28,'Athlete Input'!$C:$H,T$1,FALSE))) ->  | U28: =IF($B28="","",IF(VLOOKUP($B28,'Athlete Input'!$C:$H,U$1,FALSE)="","",VLOOKUP($B28,'Athlete Input'!$C:$H,U$1,FALSE))) ->  | V28: =IF($B28="","",IF(VLOOKUP($B28,'Athlete Input'!$C:$H,V$1,FALSE)="","",VLOOKUP($B28,'Athlete Input'!$C:$H,V$1,FALSE))) ->  | W28: =IF($B28="","",IF(VLOOKUP($B28,'Athlete Input'!$C:$H,W$1,FALSE)="","",VLOOKUP($B28,'Athlete Input'!$C:$H,W$1,FALSE))) ->  | X28: =IF($B28="","",IF(VLOOKUP($B28,'Athlete Input'!$C:$H,X$1,FALSE)="","",VLOOKUP($B28,'Athlete Input'!$C:$H,X$1,FALSE))) ->  | Y28: =IF($B28="","",IF(VLOOKUP($B28,'Athlete Input'!$C:$H,Y$1,FALSE)="","",VLOOKUP($B28,'Athlete Input'!$C:$H,Y$1,FALSE))) ->  | Z28: =IF($B28="","",IF(VLOOKUP($B28,'Athlete Input'!$C:$H,Z$1,FALSE)="","",VLOOKUP($B28,'Athlete Input'!$C:$H,Z$1,FALSE))) ->  | AA28: =IF($B28="","",IF(VLOOKUP($B28,'Athlete Input'!$C:$H,AA$1,FALSE)="","",VLOOKUP($B28,'Athlete Input'!$C:$H,AA$1,FALSE))) ->  | AB28: =IF($B28="","",IF(VLOOKUP($B28,'Athlete Input'!$C:$H,AB$1,FALSE)="","",VLOOKUP($B28,'Athlete Input'!$C:$H,AB$1,FALSE))) ->  | AC28: =IF($B28="","",IF(VLOOKUP($B28,'Athlete Input'!$C:$H,AC$1,FALSE)="","",VLOOKUP($B28,'Athlete Input'!$C:$H,AC$1,FALSE))) ->  | AD28: =IF($B28="","",IF(VLOOKUP($B28,'Athlete Input'!$C:$H,AD$1,FALSE)="","",VLOOKUP($B28,'Athlete Input'!$C:$H,AD$1,FALSE))) ->  | AE28: =IF($B28="","",IF(VLOOKUP($B28,'Athlete Input'!$C:$H,AE$1,FALSE)="","",VLOOKUP($B28,'Athlete Input'!$C:$H,AE$1,FALSE))) ->  | AF28: =IF($B28="","",IF(VLOOKUP($B28,'Athlete Input'!$C:$H,AF$1,FALSE)="","",VLOOKUP($B28,'Athlete Input'!$C:$H,AF$1,FALSE))) ->  | AG28: =IF($B28="","",IF(VLOOKUP($B28,'Athlete Input'!$C:$H,AG$1,FALSE)="","",VLOOKUP($B28,'Athlete Input'!$C:$H,AG$1,FALSE))) ->  | AH28: =IF($B28="","",IF(VLOOKUP($B28,'Athlete Input'!$C:$H,AH$1,FALSE)="","",VLOOKUP($B28,'Athlete Input'!$C:$H,AH$1,FALSE))) ->  | AI28: =IF($B28="","",IF(VLOOKUP($B28,'Athlete Input'!$C:$H,AI$1,FALSE)="","",VLOOKUP($B28,'Athlete Input'!$C:$H,AI$1,FALSE))) ->  | AJ28: =IF($B28="","",IF(VLOOKUP($B28,'Athlete Input'!$C:$H,AJ$1,FALSE)="","",VLOOKUP($B28,'Athlete Input'!$C:$H,AJ$1,FALSE))) ->  | AK28: =IF($B28="","",IF(VLOOKUP($B28,'Athlete Input'!$C:$H,AK$1,FALSE)="","",VLOOKUP($B28,'Athlete Input'!$C:$H,AK$1,FALSE))) ->  | AL28: =IF($B28="","",IF(VLOOKUP($B28,'Athlete Input'!$C:$H,AL$1,FALSE)="","",VLOOKUP($B28,'Athlete Input'!$C:$H,AL$1,FALSE))) ->  | AM28: =IF(B28="","zz",'Athlete Input'!D34) -> Kiely
A29: 26 | B29: =IF('Athlete Input'!C35="","",'Athlete Input'!C35) -> Emma Lowry | C29: =IF($B29="","",IF(VLOOKUP($B29,'Athlete Input'!$C:$H,C$1,FALSE)="","",VLOOKUP($B29,'Athlete Input'!$C:$H,C$1,FALSE))) ->  | D29: =IF($B29="","",IF(VLOOKUP($B29,'Athlete Input'!$C:$H,D$1,FALSE)="","",VLOOKUP($B29,'Athlete Input'!$C:$H,D$1,FALSE))) ->  | E29: =IF($B29="","",IF(VLOOKUP($B29,'Athlete Input'!$C:$H,E$1,FALSE)="","",VLOOKUP($B29,'Athlete Input'!$C:$H,E$1,FALSE))) ->  | F29: =IF($B29="","",IF(VLOOKUP($B29,'Athlete Input'!$C:$H,F$1,FALSE)="","",VLOOKUP($B29,'Athlete Input'!$C:$H,F$1,FALSE))) ->  | G29: =IF($B29="","",IF(VLOOKUP($B29,'Athlete Input'!$C:$H,G$1,FALSE)="","",VLOOKUP($B29,'Athlete Input'!$C:$H,G$1,FALSE))) ->  | H29: =IF($B29="","",IF(VLOOKUP($B29,'Athlete Input'!$C:$H,H$1,FALSE)="","",VLOOKUP($B29,'Athlete Input'!$C:$H,H$1,FALSE))) ->  | I29: =IF($B29="","",IF(VLOOKUP($B29,'Athlete Input'!$C:$H,I$1,FALSE)="","",VLOOKUP($B29,'Athlete Input'!$C:$H,I$1,FALSE))) ->  | J29: =IF($B29="","",IF(VLOOKUP($B29,'Athlete Input'!$C:$H,J$1,FALSE)="","",VLOOKUP($B29,'Athlete Input'!$C:$H,J$1,FALSE))) ->  | K29: =IF($B29="","",IF(VLOOKUP($B29,'Athlete Input'!$C:$H,K$1,FALSE)="","",VLOOKUP($B29,'Athlete Input'!$C:$H,K$1,FALSE))) ->  | L29: =IF($B29="","",IF(VLOOKUP($B29,'Athlete Input'!$C:$H,L$1,FALSE)="","",VLOOKUP($B29,'Athlete Input'!$C:$H,L$1,FALSE))) ->  | M29: =IF($B29="","",IF(VLOOKUP($B29,'Athlete Input'!$C:$H,M$1,FALSE)="","",VLOOKUP($B29,'Athlete Input'!$C:$H,M$1,FALSE))) ->  | N29: =IF($B29="","",IF(VLOOKUP($B29,'Athlete Input'!$C:$H,N$1,FALSE)="","",VLOOKUP($B29,'Athlete Input'!$C:$H,N$1,FALSE))) ->  | O29: =IF($B29="","",IF(VLOOKUP($B29,'Athlete Input'!$C:$H,O$1,FALSE)="","",VLOOKUP($B29,'Athlete Input'!$C:$H,O$1,FALSE))) ->  | P29: =IF($B29="","",IF(VLOOKUP($B29,'Athlete Input'!$C:$H,P$1,FALSE)="","",VLOOKUP($B29,'Athlete Input'!$C:$H,P$1,FALSE))) ->  | Q29: =IF($B29="","",IF(VLOOKUP($B29,'Athlete Input'!$C:$H,Q$1,FALSE)="","",VLOOKUP($B29,'Athlete Input'!$C:$H,Q$1,FALSE))) ->  | R29: =IF($B29="","",IF(VLOOKUP($B29,'Athlete Input'!$C:$H,R$1,FALSE)="","",VLOOKUP($B29,'Athlete Input'!$C:$H,R$1,FALSE))) ->  | S29: =IF($B29="","",IF(VLOOKUP($B29,'Athlete Input'!$C:$H,S$1,FALSE)="","",VLOOKUP($B29,'Athlete Input'!$C:$H,S$1,FALSE))) ->  | T29: =IF($B29="","",IF(VLOOKUP($B29,'Athlete Input'!$C:$H,T$1,FALSE)="","",VLOOKUP($B29,'Athlete Input'!$C:$H,T$1,FALSE))) ->  | U29: =IF($B29="","",IF(VLOOKUP($B29,'Athlete Input'!$C:$H,U$1,FALSE)="","",VLOOKUP($B29,'Athlete Input'!$C:$H,U$1,FALSE))) ->  | V29: =IF($B29="","",IF(VLOOKUP($B29,'Athlete Input'!$C:$H,V$1,FALSE)="","",VLOOKUP($B29,'Athlete Input'!$C:$H,V$1,FALSE))) ->  | W29: =IF($B29="","",IF(VLOOKUP($B29,'Athlete Input'!$C:$H,W$1,FALSE)="","",VLOOKUP($B29,'Athlete Input'!$C:$H,W$1,FALSE))) ->  | X29: =IF($B29="","",IF(VLOOKUP($B29,'Athlete Input'!$C:$H,X$1,FALSE)="","",VLOOKUP($B29,'Athlete Input'!$C:$H,X$1,FALSE))) ->  | Y29: =IF($B29="","",IF(VLOOKUP($B29,'Athlete Input'!$C:$H,Y$1,FALSE)="","",VLOOKUP($B29,'Athlete Input'!$C:$H,Y$1,FALSE))) ->  | Z29: =IF($B29="","",IF(VLOOKUP($B29,'Athlete Input'!$C:$H,Z$1,FALSE)="","",VLOOKUP($B29,'Athlete Input'!$C:$H,Z$1,FALSE))) ->  | AA29: =IF($B29="","",IF(VLOOKUP($B29,'Athlete Input'!$C:$H,AA$1,FALSE)="","",VLOOKUP($B29,'Athlete Input'!$C:$H,AA$1,FALSE))) ->  | AB29: =IF($B29="","",IF(VLOOKUP($B29,'Athlete Input'!$C:$H,AB$1,FALSE)="","",VLOOKUP($B29,'Athlete Input'!$C:$H,AB$1,FALSE))) ->  | AC29: =IF($B29="","",IF(VLOOKUP($B29,'Athlete Input'!$C:$H,AC$1,FALSE)="","",VLOOKUP($B29,'Athlete Input'!$C:$H,AC$1,FALSE))) ->  | AD29: =IF($B29="","",IF(VLOOKUP($B29,'Athlete Input'!$C:$H,AD$1,FALSE)="","",VLOOKUP($B29,'Athlete Input'!$C:$H,AD$1,FALSE))) ->  | AE29: =IF($B29="","",IF(VLOOKUP($B29,'Athlete Input'!$C:$H,AE$1,FALSE)="","",VLOOKUP($B29,'Athlete Input'!$C:$H,AE$1,FALSE))) ->  | AF29: =IF($B29="","",IF(VLOOKUP($B29,'Athlete Input'!$C:$H,AF$1,FALSE)="","",VLOOKUP($B29,'Athlete Input'!$C:$H,AF$1,FALSE))) ->  | AG29: =IF($B29="","",IF(VLOOKUP($B29,'Athlete Input'!$C:$H,AG$1,FALSE)="","",VLOOKUP($B29,'Athlete Input'!$C:$H,AG$1,FALSE))) ->  | AH29: =IF($B29="","",IF(VLOOKUP($B29,'Athlete Input'!$C:$H,AH$1,FALSE)="","",VLOOKUP($B29,'Athlete Input'!$C:$H,AH$1,FALSE))) ->  | AI29: =IF($B29="","",IF(VLOOKUP($B29,'Athlete Input'!$C:$H,AI$1,FALSE)="","",VLOOKUP($B29,'Athlete Input'!$C:$H,AI$1,FALSE))) ->  | AJ29: =IF($B29="","",IF(VLOOKUP($B29,'Athlete Input'!$C:$H,AJ$1,FALSE)="","",VLOOKUP($B29,'Athlete Input'!$C:$H,AJ$1,FALSE))) ->  | AK29: =IF($B29="","",IF(VLOOKUP($B29,'Athlete Input'!$C:$H,AK$1,FALSE)="","",VLOOKUP($B29,'Athlete Input'!$C:$H,AK$1,FALSE))) ->  | AL29: =IF($B29="","",IF(VLOOKUP($B29,'Athlete Input'!$C:$H,AL$1,FALSE)="","",VLOOKUP($B29,'Athlete Input'!$C:$H,AL$1,FALSE))) ->  | AM29: =IF(B29="","zz",'Athlete Input'!D35) -> Lowry
A30: 27 | B30: =IF('Athlete Input'!C36="","",'Athlete Input'!C36) -> Jennifer MacLean | C30: =IF($B30="","",IF(VLOOKUP($B30,'Athlete Input'!$C:$H,C$1,FALSE)="","",VLOOKUP($B30,'Athlete Input'!$C:$H,C$1,FALSE))) ->  | D30: =IF($B30="","",IF(VLOOKUP($B30,'Athlete Input'!$C:$H,D$1,FALSE)="","",VLOOKUP($B30,'Athlete Input'!$C:$H,D$1,FALSE))) ->  | E30: =IF($B30="","",IF(VLOOKUP($B30,'Athlete Input'!$C:$H,E$1,FALSE)="","",VLOOKUP($B30,'Athlete Input'!$C:$H,E$1,FALSE))) ->  | F30: =IF($B30="","",IF(VLOOKUP($B30,'Athlete Input'!$C:$H,F$1,FALSE)="","",VLOOKUP($B30,'Athlete Input'!$C:$H,F$1,FALSE))) ->  | G30: =IF($B30="","",IF(VLOOKUP($B30,'Athlete Input'!$C:$H,G$1,FALSE)="","",VLOOKUP($B30,'Athlete Input'!$C:$H,G$1,FALSE))) ->  | H30: =IF($B30="","",IF(VLOOKUP($B30,'Athlete Input'!$C:$H,H$1,FALSE)="","",VLOOKUP($B30,'Athlete Input'!$C:$H,H$1,FALSE))) ->  | I30: =IF($B30="","",IF(VLOOKUP($B30,'Athlete Input'!$C:$H,I$1,FALSE)="","",VLOOKUP($B30,'Athlete Input'!$C:$H,I$1,FALSE))) ->  | J30: =IF($B30="","",IF(VLOOKUP($B30,'Athlete Input'!$C:$H,J$1,FALSE)="","",VLOOKUP($B30,'Athlete Input'!$C:$H,J$1,FALSE))) ->  | K30: =IF($B30="","",IF(VLOOKUP($B30,'Athlete Input'!$C:$H,K$1,FALSE)="","",VLOOKUP($B30,'Athlete Input'!$C:$H,K$1,FALSE))) ->  | L30: =IF($B30="","",IF(VLOOKUP($B30,'Athlete Input'!$C:$H,L$1,FALSE)="","",VLOOKUP($B30,'Athlete Input'!$C:$H,L$1,FALSE))) ->  | M30: =IF($B30="","",IF(VLOOKUP($B30,'Athlete Input'!$C:$H,M$1,FALSE)="","",VLOOKUP($B30,'Athlete Input'!$C:$H,M$1,FALSE))) ->  | N30: =IF($B30="","",IF(VLOOKUP($B30,'Athlete Input'!$C:$H,N$1,FALSE)="","",VLOOKUP($B30,'Athlete Input'!$C:$H,N$1,FALSE))) ->  | O30: =IF($B30="","",IF(VLOOKUP($B30,'Athlete Input'!$C:$H,O$1,FALSE)="","",VLOOKUP($B30,'Athlete Input'!$C:$H,O$1,FALSE))) ->  | P30: =IF($B30="","",IF(VLOOKUP($B30,'Athlete Input'!$C:$H,P$1,FALSE)="","",VLOOKUP($B30,'Athlete Input'!$C:$H,P$1,FALSE))) ->  | Q30: =IF($B30="","",IF(VLOOKUP($B30,'Athlete Input'!$C:$H,Q$1,FALSE)="","",VLOOKUP($B30,'Athlete Input'!$C:$H,Q$1,FALSE))) ->  | R30: =IF($B30="","",IF(VLOOKUP($B30,'Athlete Input'!$C:$H,R$1,FALSE)="","",VLOOKUP($B30,'Athlete Input'!$C:$H,R$1,FALSE))) ->  | S30: =IF($B30="","",IF(VLOOKUP($B30,'Athlete Input'!$C:$H,S$1,FALSE)="","",VLOOKUP($B30,'Athlete Input'!$C:$H,S$1,FALSE))) ->  | T30: =IF($B30="","",IF(VLOOKUP($B30,'Athlete Input'!$C:$H,T$1,FALSE)="","",VLOOKUP($B30,'Athlete Input'!$C:$H,T$1,FALSE))) ->  | U30: =IF($B30="","",IF(VLOOKUP($B30,'Athlete Input'!$C:$H,U$1,FALSE)="","",VLOOKUP($B30,'Athlete Input'!$C:$H,U$1,FALSE))) ->  | V30: =IF($B30="","",IF(VLOOKUP($B30,'Athlete Input'!$C:$H,V$1,FALSE)="","",VLOOKUP($B30,'Athlete Input'!$C:$H,V$1,FALSE))) ->  | W30: =IF($B30="","",IF(VLOOKUP($B30,'Athlete Input'!$C:$H,W$1,FALSE)="","",VLOOKUP($B30,'Athlete Input'!$C:$H,W$1,FALSE))) ->  | X30: =IF($B30="","",IF(VLOOKUP($B30,'Athlete Input'!$C:$H,X$1,FALSE)="","",VLOOKUP($B30,'Athlete Input'!$C:$H,X$1,FALSE))) ->  | Y30: =IF($B30="","",IF(VLOOKUP($B30,'Athlete Input'!$C:$H,Y$1,FALSE)="","",VLOOKUP($B30,'Athlete Input'!$C:$H,Y$1,FALSE))) ->  | Z30: =IF($B30="","",IF(VLOOKUP($B30,'Athlete Input'!$C:$H,Z$1,FALSE)="","",VLOOKUP($B30,'Athlete Input'!$C:$H,Z$1,FALSE))) ->  | AA30: =IF($B30="","",IF(VLOOKUP($B30,'Athlete Input'!$C:$H,AA$1,FALSE)="","",VLOOKUP($B30,'Athlete Input'!$C:$H,AA$1,FALSE))) ->  | AB30: =IF($B30="","",IF(VLOOKUP($B30,'Athlete Input'!$C:$H,AB$1,FALSE)="","",VLOOKUP($B30,'Athlete Input'!$C:$H,AB$1,FALSE))) ->  | AC30: =IF($B30="","",IF(VLOOKUP($B30,'Athlete Input'!$C:$H,AC$1,FALSE)="","",VLOOKUP($B30,'Athlete Input'!$C:$H,AC$1,FALSE))) ->  | AD30: =IF($B30="","",IF(VLOOKUP($B30,'Athlete Input'!$C:$H,AD$1,FALSE)="","",VLOOKUP($B30,'Athlete Input'!$C:$H,AD$1,FALSE))) ->  | AE30: =IF($B30="","",IF(VLOOKUP($B30,'Athlete Input'!$C:$H,AE$1,FALSE)="","",VLOOKUP($B30,'Athlete Input'!$C:$H,AE$1,FALSE))) ->  | AF30: =IF($B30="","",IF(VLOOKUP($B30,'Athlete Input'!$C:$H,AF$1,FALSE)="","",VLOOKUP($B30,'Athlete Input'!$C:$H,AF$1,FALSE))) ->  | AG30: =IF($B30="","",IF(VLOOKUP($B30,'Athlete Input'!$C:$H,AG$1,FALSE)="","",VLOOKUP($B30,'Athlete Input'!$C:$H,AG$1,FALSE))) ->  | AH30: =IF($B30="","",IF(VLOOKUP($B30,'Athlete Input'!$C:$H,AH$1,FALSE)="","",VLOOKUP($B30,'Athlete Input'!$C:$H,AH$1,FALSE))) ->  | AI30: =IF($B30="","",IF(VLOOKUP($B30,'Athlete Input'!$C:$H,AI$1,FALSE)="","",VLOOKUP($B30,'Athlete Input'!$C:$H,AI$1,FALSE))) ->  | AJ30: =IF($B30="","",IF(VLOOKUP($B30,'Athlete Input'!$C:$H,AJ$1,FALSE)="","",VLOOKUP($B30,'Athlete Input'!$C:$H,AJ$1,FALSE))) ->  | AK30: =IF($B30="","",IF(VLOOKUP($B30,'Athlete Input'!$C:$H,AK$1,FALSE)="","",VLOOKUP($B30,'Athlete Input'!$C:$H,AK$1,FALSE))) ->  | AL30: =IF($B30="","",IF(VLOOKUP($B30,'Athlete Input'!$C:$H,AL$1,FALSE)="","",VLOOKUP($B30,'Athlete Input'!$C:$H,AL$1,FALSE))) ->  | AM30: =IF(B30="","zz",'Athlete Input'!D36) -> MacLean
A31: 28 | B31: =IF('Athlete Input'!C37="","",'Athlete Input'!C37) -> Catherine McKelvie-Sutherland | C31: =IF($B31="","",IF(VLOOKUP($B31,'Athlete Input'!$C:$H,C$1,FALSE)="","",VLOOKUP($B31,'Athlete Input'!$C:$H,C$1,FALSE))) ->  | D31: =IF($B31="","",IF(VLOOKUP($B31,'Athlete Input'!$C:$H,D$1,FALSE)="","",VLOOKUP($B31,'Athlete Input'!$C:$H,D$1,FALSE))) ->  | E31: =IF($B31="","",IF(VLOOKUP($B31,'Athlete Input'!$C:$H,E$1,FALSE)="","",VLOOKUP($B31,'Athlete Input'!$C:$H,E$1,FALSE))) ->  | F31: =IF($B31="","",IF(VLOOKUP($B31,'Athlete Input'!$C:$H,F$1,FALSE)="","",VLOOKUP($B31,'Athlete Input'!$C:$H,F$1,FALSE))) ->  | G31: =IF($B31="","",IF(VLOOKUP($B31,'Athlete Input'!$C:$H,G$1,FALSE)="","",VLOOKUP($B31,'Athlete Input'!$C:$H,G$1,FALSE))) ->  | H31: =IF($B31="","",IF(VLOOKUP($B31,'Athlete Input'!$C:$H,H$1,FALSE)="","",VLOOKUP($B31,'Athlete Input'!$C:$H,H$1,FALSE))) ->  | I31: =IF($B31="","",IF(VLOOKUP($B31,'Athlete Input'!$C:$H,I$1,FALSE)="","",VLOOKUP($B31,'Athlete Input'!$C:$H,I$1,FALSE))) ->  | J31: =IF($B31="","",IF(VLOOKUP($B31,'Athlete Input'!$C:$H,J$1,FALSE)="","",VLOOKUP($B31,'Athlete Input'!$C:$H,J$1,FALSE))) ->  | K31: =IF($B31="","",IF(VLOOKUP($B31,'Athlete Input'!$C:$H,K$1,FALSE)="","",VLOOKUP($B31,'Athlete Input'!$C:$H,K$1,FALSE))) ->  | L31: =IF($B31="","",IF(VLOOKUP($B31,'Athlete Input'!$C:$H,L$1,FALSE)="","",VLOOKUP($B31,'Athlete Input'!$C:$H,L$1,FALSE))) ->  | M31: =IF($B31="","",IF(VLOOKUP($B31,'Athlete Input'!$C:$H,M$1,FALSE)="","",VLOOKUP($B31,'Athlete Input'!$C:$H,M$1,FALSE))) ->  | N31: =IF($B31="","",IF(VLOOKUP($B31,'Athlete Input'!$C:$H,N$1,FALSE)="","",VLOOKUP($B31,'Athlete Input'!$C:$H,N$1,FALSE))) ->  | O31: =IF($B31="","",IF(VLOOKUP($B31,'Athlete Input'!$C:$H,O$1,FALSE)="","",VLOOKUP($B31,'Athlete Input'!$C:$H,O$1,FALSE))) ->  | P31: =IF($B31="","",IF(VLOOKUP($B31,'Athlete Input'!$C:$H,P$1,FALSE)="","",VLOOKUP($B31,'Athlete Input'!$C:$H,P$1,FALSE))) ->  | Q31: =IF($B31="","",IF(VLOOKUP($B31,'Athlete Input'!$C:$H,Q$1,FALSE)="","",VLOOKUP($B31,'Athlete Input'!$C:$H,Q$1,FALSE))) ->  | R31: =IF($B31="","",IF(VLOOKUP($B31,'Athlete Input'!$C:$H,R$1,FALSE)="","",VLOOKUP($B31,'Athlete Input'!$C:$H,R$1,FALSE))) ->  | S31: =IF($B31="","",IF(VLOOKUP($B31,'Athlete Input'!$C:$H,S$1,FALSE)="","",VLOOKUP($B31,'Athlete Input'!$C:$H,S$1,FALSE))) ->  | T31: =IF($B31="","",IF(VLOOKUP($B31,'Athlete Input'!$C:$H,T$1,FALSE)="","",VLOOKUP($B31,'Athlete Input'!$C:$H,T$1,FALSE))) ->  | U31: =IF($B31="","",IF(VLOOKUP($B31,'Athlete Input'!$C:$H,U$1,FALSE)="","",VLOOKUP($B31,'Athlete Input'!$C:$H,U$1,FALSE))) ->  | V31: =IF($B31="","",IF(VLOOKUP($B31,'Athlete Input'!$C:$H,V$1,FALSE)="","",VLOOKUP($B31,'Athlete Input'!$C:$H,V$1,FALSE))) ->  | W31: =IF($B31="","",IF(VLOOKUP($B31,'Athlete Input'!$C:$H,W$1,FALSE)="","",VLOOKUP($B31,'Athlete Input'!$C:$H,W$1,FALSE))) ->  | X31: =IF($B31="","",IF(VLOOKUP($B31,'Athlete Input'!$C:$H,X$1,FALSE)="","",VLOOKUP($B31,'Athlete Input'!$C:$H,X$1,FALSE))) ->  | Y31: =IF($B31="","",IF(VLOOKUP($B31,'Athlete Input'!$C:$H,Y$1,FALSE)="","",VLOOKUP($B31,'Athlete Input'!$C:$H,Y$1,FALSE))) ->  | Z31: =IF($B31="","",IF(VLOOKUP($B31,'Athlete Input'!$C:$H,Z$1,FALSE)="","",VLOOKUP($B31,'Athlete Input'!$C:$H,Z$1,FALSE))) ->  | AA31: =IF($B31="","",IF(VLOOKUP($B31,'Athlete Input'!$C:$H,AA$1,FALSE)="","",VLOOKUP($B31,'Athlete Input'!$C:$H,AA$1,FALSE))) ->  | AB31: =IF($B31="","",IF(VLOOKUP($B31,'Athlete Input'!$C:$H,AB$1,FALSE)="","",VLOOKUP($B31,'Athlete Input'!$C:$H,AB$1,FALSE))) ->  | AC31: =IF($B31="","",IF(VLOOKUP($B31,'Athlete Input'!$C:$H,AC$1,FALSE)="","",VLOOKUP($B31,'Athlete Input'!$C:$H,AC$1,FALSE))) ->  | AD31: =IF($B31="","",IF(VLOOKUP($B31,'Athlete Input'!$C:$H,AD$1,FALSE)="","",VLOOKUP($B31,'Athlete Input'!$C:$H,AD$1,FALSE))) ->  | AE31: =IF($B31="","",IF(VLOOKUP($B31,'Athlete Input'!$C:$H,AE$1,FALSE)="","",VLOOKUP($B31,'Athlete Input'!$C:$H,AE$1,FALSE))) ->  | AF31: =IF($B31="","",IF(VLOOKUP($B31,'Athlete Input'!$C:$H,AF$1,FALSE)="","",VLOOKUP($B31,'Athlete Input'!$C:$H,AF$1,FALSE))) ->  | AG31: =IF($B31="","",IF(VLOOKUP($B31,'Athlete Input'!$C:$H,AG$1,FALSE)="","",VLOOKUP($B31,'Athlete Input'!$C:$H,AG$1,FALSE))) ->  | AH31: =IF($B31="","",IF(VLOOKUP($B31,'Athlete Input'!$C:$H,AH$1,FALSE)="","",VLOOKUP($B31,'Athlete Input'!$C:$H,AH$1,FALSE))) ->  | AI31: =IF($B31="","",IF(VLOOKUP($B31,'Athlete Input'!$C:$H,AI$1,FALSE)="","",VLOOKUP($B31,'Athlete Input'!$C:$H,AI$1,FALSE))) ->  | AJ31: =IF($B31="","",IF(VLOOKUP($B31,'Athlete Input'!$C:$H,AJ$1,FALSE)="","",VLOOKUP($B31,'Athlete Input'!$C:$H,AJ$1,FALSE))) ->  | AK31: =IF($B31="","",IF(VLOOKUP($B31,'Athlete Input'!$C:$H,AK$1,FALSE)="","",VLOOKUP($B31,'Athlete Input'!$C:$H,AK$1,FALSE))) ->  | AL31: =IF($B31="","",IF(VLOOKUP($B31,'Athlete Input'!$C:$H,AL$1,FALSE)="","",VLOOKUP($B31,'Athlete Input'!$C:$H,AL$1,FALSE))) ->  | AM31: =IF(B31="","zz",'Athlete Input'!D37) -> McKelvie-Sutherland
A32: 29 | B32: =IF('Athlete Input'!C38="","",'Athlete Input'!C38) -> Maddy Murray | C32: =IF($B32="","",IF(VLOOKUP($B32,'Athlete Input'!$C:$H,C$1,FALSE)="","",VLOOKUP($B32,'Athlete Input'!$C:$H,C$1,FALSE))) ->  | D32: =IF($B32="","",IF(VLOOKUP($B32,'Athlete Input'!$C:$H,D$1,FALSE)="","",VLOOKUP($B32,'Athlete Input'!$C:$H,D$1,FALSE))) ->  | E32: =IF($B32="","",IF(VLOOKUP($B32,'Athlete Input'!$C:$H,E$1,FALSE)="","",VLOOKUP($B32,'Athlete Input'!$C:$H,E$1,FALSE))) ->  | F32: =IF($B32="","",IF(VLOOKUP($B32,'Athlete Input'!$C:$H,F$1,FALSE)="","",VLOOKUP($B32,'Athlete Input'!$C:$H,F$1,FALSE))) ->  | G32: =IF($B32="","",IF(VLOOKUP($B32,'Athlete Input'!$C:$H,G$1,FALSE)="","",VLOOKUP($B32,'Athlete Input'!$C:$H,G$1,FALSE))) ->  | H32: =IF($B32="","",IF(VLOOKUP($B32,'Athlete Input'!$C:$H,H$1,FALSE)="","",VLOOKUP($B32,'Athlete Input'!$C:$H,H$1,FALSE))) ->  | I32: =IF($B32="","",IF(VLOOKUP($B32,'Athlete Input'!$C:$H,I$1,FALSE)="","",VLOOKUP($B32,'Athlete Input'!$C:$H,I$1,FALSE))) ->  | J32: =IF($B32="","",IF(VLOOKUP($B32,'Athlete Input'!$C:$H,J$1,FALSE)="","",VLOOKUP($B32,'Athlete Input'!$C:$H,J$1,FALSE))) ->  | K32: =IF($B32="","",IF(VLOOKUP($B32,'Athlete Input'!$C:$H,K$1,FALSE)="","",VLOOKUP($B32,'Athlete Input'!$C:$H,K$1,FALSE))) ->  | L32: =IF($B32="","",IF(VLOOKUP($B32,'Athlete Input'!$C:$H,L$1,FALSE)="","",VLOOKUP($B32,'Athlete Input'!$C:$H,L$1,FALSE))) ->  | M32: =IF($B32="","",IF(VLOOKUP($B32,'Athlete Input'!$C:$H,M$1,FALSE)="","",VLOOKUP($B32,'Athlete Input'!$C:$H,M$1,FALSE))) ->  | N32: =IF($B32="","",IF(VLOOKUP($B32,'Athlete Input'!$C:$H,N$1,FALSE)="","",VLOOKUP($B32,'Athlete Input'!$C:$H,N$1,FALSE))) ->  | O32: =IF($B32="","",IF(VLOOKUP($B32,'Athlete Input'!$C:$H,O$1,FALSE)="","",VLOOKUP($B32,'Athlete Input'!$C:$H,O$1,FALSE))) ->  | P32: =IF($B32="","",IF(VLOOKUP($B32,'Athlete Input'!$C:$H,P$1,FALSE)="","",VLOOKUP($B32,'Athlete Input'!$C:$H,P$1,FALSE))) ->  | Q32: =IF($B32="","",IF(VLOOKUP($B32,'Athlete Input'!$C:$H,Q$1,FALSE)="","",VLOOKUP($B32,'Athlete Input'!$C:$H,Q$1,FALSE))) ->  | R32: =IF($B32="","",IF(VLOOKUP($B32,'Athlete Input'!$C:$H,R$1,FALSE)="","",VLOOKUP($B32,'Athlete Input'!$C:$H,R$1,FALSE))) ->  | S32: =IF($B32="","",IF(VLOOKUP($B32,'Athlete Input'!$C:$H,S$1,FALSE)="","",VLOOKUP($B32,'Athlete Input'!$C:$H,S$1,FALSE))) ->  | T32: =IF($B32="","",IF(VLOOKUP($B32,'Athlete Input'!$C:$H,T$1,FALSE)="","",VLOOKUP($B32,'Athlete Input'!$C:$H,T$1,FALSE))) ->  | U32: =IF($B32="","",IF(VLOOKUP($B32,'Athlete Input'!$C:$H,U$1,FALSE)="","",VLOOKUP($B32,'Athlete Input'!$C:$H,U$1,FALSE))) ->  | V32: =IF($B32="","",IF(VLOOKUP($B32,'Athlete Input'!$C:$H,V$1,FALSE)="","",VLOOKUP($B32,'Athlete Input'!$C:$H,V$1,FALSE))) ->  | W32: =IF($B32="","",IF(VLOOKUP($B32,'Athlete Input'!$C:$H,W$1,FALSE)="","",VLOOKUP($B32,'Athlete Input'!$C:$H,W$1,FALSE))) ->  | X32: =IF($B32="","",IF(VLOOKUP($B32,'Athlete Input'!$C:$H,X$1,FALSE)="","",VLOOKUP($B32,'Athlete Input'!$C:$H,X$1,FALSE))) ->  | Y32: =IF($B32="","",IF(VLOOKUP($B32,'Athlete Input'!$C:$H,Y$1,FALSE)="","",VLOOKUP($B32,'Athlete Input'!$C:$H,Y$1,FALSE))) ->  | Z32: =IF($B32="","",IF(VLOOKUP($B32,'Athlete Input'!$C:$H,Z$1,FALSE)="","",VLOOKUP($B32,'Athlete Input'!$C:$H,Z$1,FALSE))) ->  | AA32: =IF($B32="","",IF(VLOOKUP($B32,'Athlete Input'!$C:$H,AA$1,FALSE)="","",VLOOKUP($B32,'Athlete Input'!$C:$H,AA$1,FALSE))) ->  | AB32: =IF($B32="","",IF(VLOOKUP($B32,'Athlete Input'!$C:$H,AB$1,FALSE)="","",VLOOKUP($B32,'Athlete Input'!$C:$H,AB$1,FALSE))) ->  | AC32: =IF($B32="","",IF(VLOOKUP($B32,'Athlete Input'!$C:$H,AC$1,FALSE)="","",VLOOKUP($B32,'Athlete Input'!$C:$H,AC$1,FALSE))) ->  | AD32: =IF($B32="","",IF(VLOOKUP($B32,'Athlete Input'!$C:$H,AD$1,FALSE)="","",VLOOKUP($B32,'Athlete Input'!$C:$H,AD$1,FALSE))) ->  | AE32: =IF($B32="","",IF(VLOOKUP($B32,'Athlete Input'!$C:$H,AE$1,FALSE)="","",VLOOKUP($B32,'Athlete Input'!$C:$H,AE$1,FALSE))) ->  | AF32: =IF($B32="","",IF(VLOOKUP($B32,'Athlete Input'!$C:$H,AF$1,FALSE)="","",VLOOKUP($B32,'Athlete Input'!$C:$H,AF$1,FALSE))) ->  | AG32: =IF($B32="","",IF(VLOOKUP($B32,'Athlete Input'!$C:$H,AG$1,FALSE)="","",VLOOKUP($B32,'Athlete Input'!$C:$H,AG$1,FALSE))) ->  | AH32: =IF($B32="","",IF(VLOOKUP($B32,'Athlete Input'!$C:$H,AH$1,FALSE)="","",VLOOKUP($B32,'Athlete Input'!$C:$H,AH$1,FALSE))) ->  | AI32: =IF($B32="","",IF(VLOOKUP($B32,'Athlete Input'!$C:$H,AI$1,FALSE)="","",VLOOKUP($B32,'Athlete Input'!$C:$H,AI$1,FALSE))) ->  | AJ32: =IF($B32="","",IF(VLOOKUP($B32,'Athlete Input'!$C:$H,AJ$1,FALSE)="","",VLOOKUP($B32,'Athlete Input'!$C:$H,AJ$1,FALSE))) ->  | AK32: =IF($B32="","",IF(VLOOKUP($B32,'Athlete Input'!$C:$H,AK$1,FALSE)="","",VLOOKUP($B32,'Athlete Input'!$C:$H,AK$1,FALSE))) ->  | AL32: =IF($B32="","",IF(VLOOKUP($B32,'Athlete Input'!$C:$H,AL$1,FALSE)="","",VLOOKUP($B32,'Athlete Input'!$C:$H,AL$1,FALSE))) ->  | AM32: =IF(B32="","zz",'Athlete Input'!D38) -> Murray
A33: 30 | B33: =IF('Athlete Input'!C83="","",'Athlete Input'!C83) ->  | C33: =IF($B33="","",IF(VLOOKUP($B33,'Athlete Input'!$C:$H,C$1,FALSE)="","",VLOOKUP($B33,'Athlete Input'!$C:$H,C$1,FALSE))) ->  | D33: =IF($B33="","",IF(VLOOKUP($B33,'Athlete Input'!$C:$H,D$1,FALSE)="","",VLOOKUP($B33,'Athlete Input'!$C:$H,D$1,FALSE))) ->  | E33: =IF($B33="","",IF(VLOOKUP($B33,'Athlete Input'!$C:$H,E$1,FALSE)="","",VLOOKUP($B33,'Athlete Input'!$C:$H,E$1,FALSE))) ->  | F33: =IF($B33="","",IF(VLOOKUP($B33,'Athlete Input'!$C:$H,F$1,FALSE)="","",VLOOKUP($B33,'Athlete Input'!$C:$H,F$1,FALSE))) ->  | G33: =IF($B33="","",IF(VLOOKUP($B33,'Athlete Input'!$C:$H,G$1,FALSE)="","",VLOOKUP($B33,'Athlete Input'!$C:$H,G$1,FALSE))) ->  | H33: =IF($B33="","",IF(VLOOKUP($B33,'Athlete Input'!$C:$H,H$1,FALSE)="","",VLOOKUP($B33,'Athlete Input'!$C:$H,H$1,FALSE))) ->  | I33: =IF($B33="","",IF(VLOOKUP($B33,'Athlete Input'!$C:$H,I$1,FALSE)="","",VLOOKUP($B33,'Athlete Input'!$C:$H,I$1,FALSE))) ->  | J33: =IF($B33="","",IF(VLOOKUP($B33,'Athlete Input'!$C:$H,J$1,FALSE)="","",VLOOKUP($B33,'Athlete Input'!$C:$H,J$1,FALSE))) ->  | K33: =IF($B33="","",IF(VLOOKUP($B33,'Athlete Input'!$C:$H,K$1,FALSE)="","",VLOOKUP($B33,'Athlete Input'!$C:$H,K$1,FALSE))) ->  | L33: =IF($B33="","",IF(VLOOKUP($B33,'Athlete Input'!$C:$H,L$1,FALSE)="","",VLOOKUP($B33,'Athlete Input'!$C:$H,L$1,FALSE))) ->  | M33: =IF($B33="","",IF(VLOOKUP($B33,'Athlete Input'!$C:$H,M$1,FALSE)="","",VLOOKUP($B33,'Athlete Input'!$C:$H,M$1,FALSE))) ->  | N33: =IF($B33="","",IF(VLOOKUP($B33,'Athlete Input'!$C:$H,N$1,FALSE)="","",VLOOKUP($B33,'Athlete Input'!$C:$H,N$1,FALSE))) ->  | O33: =IF($B33="","",IF(VLOOKUP($B33,'Athlete Input'!$C:$H,O$1,FALSE)="","",VLOOKUP($B33,'Athlete Input'!$C:$H,O$1,FALSE))) ->  | P33: =IF($B33="","",IF(VLOOKUP($B33,'Athlete Input'!$C:$H,P$1,FALSE)="","",VLOOKUP($B33,'Athlete Input'!$C:$H,P$1,FALSE))) ->  | Q33: =IF($B33="","",IF(VLOOKUP($B33,'Athlete Input'!$C:$H,Q$1,FALSE)="","",VLOOKUP($B33,'Athlete Input'!$C:$H,Q$1,FALSE))) ->  | R33: =IF($B33="","",IF(VLOOKUP($B33,'Athlete Input'!$C:$H,R$1,FALSE)="","",VLOOKUP($B33,'Athlete Input'!$C:$H,R$1,FALSE))) ->  | S33: =IF($B33="","",IF(VLOOKUP($B33,'Athlete Input'!$C:$H,S$1,FALSE)="","",VLOOKUP($B33,'Athlete Input'!$C:$H,S$1,FALSE))) ->  | T33: =IF($B33="","",IF(VLOOKUP($B33,'Athlete Input'!$C:$H,T$1,FALSE)="","",VLOOKUP($B33,'Athlete Input'!$C:$H,T$1,FALSE))) ->  | U33: =IF($B33="","",IF(VLOOKUP($B33,'Athlete Input'!$C:$H,U$1,FALSE)="","",VLOOKUP($B33,'Athlete Input'!$C:$H,U$1,FALSE))) ->  | V33: =IF($B33="","",IF(VLOOKUP($B33,'Athlete Input'!$C:$H,V$1,FALSE)="","",VLOOKUP($B33,'Athlete Input'!$C:$H,V$1,FALSE))) ->  | W33: =IF($B33="","",IF(VLOOKUP($B33,'Athlete Input'!$C:$H,W$1,FALSE)="","",VLOOKUP($B33,'Athlete Input'!$C:$H,W$1,FALSE))) ->  | X33: =IF($B33="","",IF(VLOOKUP($B33,'Athlete Input'!$C:$H,X$1,FALSE)="","",VLOOKUP($B33,'Athlete Input'!$C:$H,X$1,FALSE))) ->  | Y33: =IF($B33="","",IF(VLOOKUP($B33,'Athlete Input'!$C:$H,Y$1,FALSE)="","",VLOOKUP($B33,'Athlete Input'!$C:$H,Y$1,FALSE))) ->  | Z33: =IF($B33="","",IF(VLOOKUP($B33,'Athlete Input'!$C:$H,Z$1,FALSE)="","",VLOOKUP($B33,'Athlete Input'!$C:$H,Z$1,FALSE))) ->  | AA33: =IF($B33="","",IF(VLOOKUP($B33,'Athlete Input'!$C:$H,AA$1,FALSE)="","",VLOOKUP($B33,'Athlete Input'!$C:$H,AA$1,FALSE))) ->  | AB33: =IF($B33="","",IF(VLOOKUP($B33,'Athlete Input'!$C:$H,AB$1,FALSE)="","",VLOOKUP($B33,'Athlete Input'!$C:$H,AB$1,FALSE))) ->  | AC33: =IF($B33="","",IF(VLOOKUP($B33,'Athlete Input'!$C:$H,AC$1,FALSE)="","",VLOOKUP($B33,'Athlete Input'!$C:$H,AC$1,FALSE))) ->  | AD33: =IF($B33="","",IF(VLOOKUP($B33,'Athlete Input'!$C:$H,AD$1,FALSE)="","",VLOOKUP($B33,'Athlete Input'!$C:$H,AD$1,FALSE))) ->  | AE33: =IF($B33="","",IF(VLOOKUP($B33,'Athlete Input'!$C:$H,AE$1,FALSE)="","",VLOOKUP($B33,'Athlete Input'!$C:$H,AE$1,FALSE))) ->  | AF33: =IF($B33="","",IF(VLOOKUP($B33,'Athlete Input'!$C:$H,AF$1,FALSE)="","",VLOOKUP($B33,'Athlete Input'!$C:$H,AF$1,FALSE))) ->  | AG33: =IF($B33="","",IF(VLOOKUP($B33,'Athlete Input'!$C:$H,AG$1,FALSE)="","",VLOOKUP($B33,'Athlete Input'!$C:$H,AG$1,FALSE))) ->  | AH33: =IF($B33="","",IF(VLOOKUP($B33,'Athlete Input'!$C:$H,AH$1,FALSE)="","",VLOOKUP($B33,'Athlete Input'!$C:$H,AH$1,FALSE))) ->  | AI33: =IF($B33="","",IF(VLOOKUP($B33,'Athlete Input'!$C:$H,AI$1,FALSE)="","",VLOOKUP($B33,'Athlete Input'!$C:$H,AI$1,FALSE))) ->  | AJ33: =IF($B33="","",IF(VLOOKUP($B33,'Athlete Input'!$C:$H,AJ$1,FALSE)="","",VLOOKUP($B33,'Athlete Input'!$C:$H,AJ$1,FALSE))) ->  | AK33: =IF($B33="","",IF(VLOOKUP($B33,'Athlete Input'!$C:$H,AK$1,FALSE)="","",VLOOKUP($B33,'Athlete Input'!$C:$H,AK$1,FALSE))) ->  | AL33: =IF($B33="","",IF(VLOOKUP($B33,'Athlete Input'!$C:$H,AL$1,FALSE)="","",VLOOKUP($B33,'Athlete Input'!$C:$H,AL$1,FALSE))) ->  | AM33: =IF(B33="","zz",'Athlete Input'!D83) -> zz
A34: 31 | B34: =IF('Athlete Input'!C39="","",'Athlete Input'!C39) -> Gillian Palmer | C34: =IF($B34="","",IF(VLOOKUP($B34,'Athlete Input'!$C:$H,C$1,FALSE)="","",VLOOKUP($B34,'Athlete Input'!$C:$H,C$1,FALSE))) ->  | D34: =IF($B34="","",IF(VLOOKUP($B34,'Athlete Input'!$C:$H,D$1,FALSE)="","",VLOOKUP($B34,'Athlete Input'!$C:$H,D$1,FALSE))) ->  | E34: =IF($B34="","",IF(VLOOKUP($B34,'Athlete Input'!$C:$H,E$1,FALSE)="","",VLOOKUP($B34,'Athlete Input'!$C:$H,E$1,FALSE))) ->  | F34: =IF($B34="","",IF(VLOOKUP($B34,'Athlete Input'!$C:$H,F$1,FALSE)="","",VLOOKUP($B34,'Athlete Input'!$C:$H,F$1,FALSE))) ->  | G34: =IF($B34="","",IF(VLOOKUP($B34,'Athlete Input'!$C:$H,G$1,FALSE)="","",VLOOKUP($B34,'Athlete Input'!$C:$H,G$1,FALSE))) ->  | H34: =IF($B34="","",IF(VLOOKUP($B34,'Athlete Input'!$C:$H,H$1,FALSE)="","",VLOOKUP($B34,'Athlete Input'!$C:$H,H$1,FALSE))) ->  | I34: =IF($B34="","",IF(VLOOKUP($B34,'Athlete Input'!$C:$H,I$1,FALSE)="","",VLOOKUP($B34,'Athlete Input'!$C:$H,I$1,FALSE))) ->  | J34: =IF($B34="","",IF(VLOOKUP($B34,'Athlete Input'!$C:$H,J$1,FALSE)="","",VLOOKUP($B34,'Athlete Input'!$C:$H,J$1,FALSE))) ->  | K34: =IF($B34="","",IF(VLOOKUP($B34,'Athlete Input'!$C:$H,K$1,FALSE)="","",VLOOKUP($B34,'Athlete Input'!$C:$H,K$1,FALSE))) ->  | L34: =IF($B34="","",IF(VLOOKUP($B34,'Athlete Input'!$C:$H,L$1,FALSE)="","",VLOOKUP($B34,'Athlete Input'!$C:$H,L$1,FALSE))) ->  | M34: =IF($B34="","",IF(VLOOKUP($B34,'Athlete Input'!$C:$H,M$1,FALSE)="","",VLOOKUP($B34,'Athlete Input'!$C:$H,M$1,FALSE))) ->  | N34: =IF($B34="","",IF(VLOOKUP($B34,'Athlete Input'!$C:$H,N$1,FALSE)="","",VLOOKUP($B34,'Athlete Input'!$C:$H,N$1,FALSE))) ->  | O34: =IF($B34="","",IF(VLOOKUP($B34,'Athlete Input'!$C:$H,O$1,FALSE)="","",VLOOKUP($B34,'Athlete Input'!$C:$H,O$1,FALSE))) ->  | P34: =IF($B34="","",IF(VLOOKUP($B34,'Athlete Input'!$C:$H,P$1,FALSE)="","",VLOOKUP($B34,'Athlete Input'!$C:$H,P$1,FALSE))) ->  | Q34: =IF($B34="","",IF(VLOOKUP($B34,'Athlete Input'!$C:$H,Q$1,FALSE)="","",VLOOKUP($B34,'Athlete Input'!$C:$H,Q$1,FALSE))) ->  | R34: =IF($B34="","",IF(VLOOKUP($B34,'Athlete Input'!$C:$H,R$1,FALSE)="","",VLOOKUP($B34,'Athlete Input'!$C:$H,R$1,FALSE))) ->  | S34: =IF($B34="","",IF(VLOOKUP($B34,'Athlete Input'!$C:$H,S$1,FALSE)="","",VLOOKUP($B34,'Athlete Input'!$C:$H,S$1,FALSE))) ->  | T34: =IF($B34="","",IF(VLOOKUP($B34,'Athlete Input'!$C:$H,T$1,FALSE)="","",VLOOKUP($B34,'Athlete Input'!$C:$H,T$1,FALSE))) ->  | U34: =IF($B34="","",IF(VLOOKUP($B34,'Athlete Input'!$C:$H,U$1,FALSE)="","",VLOOKUP($B34,'Athlete Input'!$C:$H,U$1,FALSE))) ->  | V34: =IF($B34="","",IF(VLOOKUP($B34,'Athlete Input'!$C:$H,V$1,FALSE)="","",VLOOKUP($B34,'Athlete Input'!$C:$H,V$1,FALSE))) ->  | W34: =IF($B34="","",IF(VLOOKUP($B34,'Athlete Input'!$C:$H,W$1,FALSE)="","",VLOOKUP($B34,'Athlete Input'!$C:$H,W$1,FALSE))) ->  | X34: =IF($B34="","",IF(VLOOKUP($B34,'Athlete Input'!$C:$H,X$1,FALSE)="","",VLOOKUP($B34,'Athlete Input'!$C:$H,X$1,FALSE))) ->  | Y34: =IF($B34="","",IF(VLOOKUP($B34,'Athlete Input'!$C:$H,Y$1,FALSE)="","",VLOOKUP($B34,'Athlete Input'!$C:$H,Y$1,FALSE))) ->  | Z34: =IF($B34="","",IF(VLOOKUP($B34,'Athlete Input'!$C:$H,Z$1,FALSE)="","",VLOOKUP($B34,'Athlete Input'!$C:$H,Z$1,FALSE))) ->  | AA34: =IF($B34="","",IF(VLOOKUP($B34,'Athlete Input'!$C:$H,AA$1,FALSE)="","",VLOOKUP($B34,'Athlete Input'!$C:$H,AA$1,FALSE))) ->  | AB34: =IF($B34="","",IF(VLOOKUP($B34,'Athlete Input'!$C:$H,AB$1,FALSE)="","",VLOOKUP($B34,'Athlete Input'!$C:$H,AB$1,FALSE))) ->  | AC34: =IF($B34="","",IF(VLOOKUP($B34,'Athlete Input'!$C:$H,AC$1,FALSE)="","",VLOOKUP($B34,'Athlete Input'!$C:$H,AC$1,FALSE))) ->  | AD34: =IF($B34="","",IF(VLOOKUP($B34,'Athlete Input'!$C:$H,AD$1,FALSE)="","",VLOOKUP($B34,'Athlete Input'!$C:$H,AD$1,FALSE))) ->  | AE34: =IF($B34="","",IF(VLOOKUP($B34,'Athlete Input'!$C:$H,AE$1,FALSE)="","",VLOOKUP($B34,'Athlete Input'!$C:$H,AE$1,FALSE))) ->  | AF34: =IF($B34="","",IF(VLOOKUP($B34,'Athlete Input'!$C:$H,AF$1,FALSE)="","",VLOOKUP($B34,'Athlete Input'!$C:$H,AF$1,FALSE))) ->  | AG34: =IF($B34="","",IF(VLOOKUP($B34,'Athlete Input'!$C:$H,AG$1,FALSE)="","",VLOOKUP($B34,'Athlete Input'!$C:$H,AG$1,FALSE))) ->  | AH34: =IF($B34="","",IF(VLOOKUP($B34,'Athlete Input'!$C:$H,AH$1,FALSE)="","",VLOOKUP($B34,'Athlete Input'!$C:$H,AH$1,FALSE))) ->  | AI34: =IF($B34="","",IF(VLOOKUP($B34,'Athlete Input'!$C:$H,AI$1,FALSE)="","",VLOOKUP($B34,'Athlete Input'!$C:$H,AI$1,FALSE))) ->  | AJ34: =IF($B34="","",IF(VLOOKUP($B34,'Athlete Input'!$C:$H,AJ$1,FALSE)="","",VLOOKUP($B34,'Athlete Input'!$C:$H,AJ$1,FALSE))) ->  | AK34: =IF($B34="","",IF(VLOOKUP($B34,'Athlete Input'!$C:$H,AK$1,FALSE)="","",VLOOKUP($B34,'Athlete Input'!$C:$H,AK$1,FALSE))) ->  | AL34: =IF($B34="","",IF(VLOOKUP($B34,'Athlete Input'!$C:$H,AL$1,FALSE)="","",VLOOKUP($B34,'Athlete Input'!$C:$H,AL$1,FALSE))) ->  | AM34: =IF(B34="","zz",'Athlete Input'!D39) -> Palmer
A35: 32 | B35: =IF('Athlete Input'!C40="","",'Athlete Input'!C40) -> Jocelyn Payne | C35: =IF($B35="","",IF(VLOOKUP($B35,'Athlete Input'!$C:$H,C$1,FALSE)="","",VLOOKUP($B35,'Athlete Input'!$C:$H,C$1,FALSE))) ->  | D35: =IF($B35="","",IF(VLOOKUP($B35,'Athlete Input'!$C:$H,D$1,FALSE)="","",VLOOKUP($B35,'Athlete Input'!$C:$H,D$1,FALSE))) ->  | E35: =IF($B35="","",IF(VLOOKUP($B35,'Athlete Input'!$C:$H,E$1,FALSE)="","",VLOOKUP($B35,'Athlete Input'!$C:$H,E$1,FALSE))) ->  | F35: =IF($B35="","",IF(VLOOKUP($B35,'Athlete Input'!$C:$H,F$1,FALSE)="","",VLOOKUP($B35,'Athlete Input'!$C:$H,F$1,FALSE))) ->  | G35: =IF($B35="","",IF(VLOOKUP($B35,'Athlete Input'!$C:$H,G$1,FALSE)="","",VLOOKUP($B35,'Athlete Input'!$C:$H,G$1,FALSE))) ->  | H35: =IF($B35="","",IF(VLOOKUP($B35,'Athlete Input'!$C:$H,H$1,FALSE)="","",VLOOKUP($B35,'Athlete Input'!$C:$H,H$1,FALSE))) ->  | I35: =IF($B35="","",IF(VLOOKUP($B35,'Athlete Input'!$C:$H,I$1,FALSE)="","",VLOOKUP($B35,'Athlete Input'!$C:$H,I$1,FALSE))) ->  | J35: =IF($B35="","",IF(VLOOKUP($B35,'Athlete Input'!$C:$H,J$1,FALSE)="","",VLOOKUP($B35,'Athlete Input'!$C:$H,J$1,FALSE))) ->  | K35: =IF($B35="","",IF(VLOOKUP($B35,'Athlete Input'!$C:$H,K$1,FALSE)="","",VLOOKUP($B35,'Athlete Input'!$C:$H,K$1,FALSE))) ->  | L35: =IF($B35="","",IF(VLOOKUP($B35,'Athlete Input'!$C:$H,L$1,FALSE)="","",VLOOKUP($B35,'Athlete Input'!$C:$H,L$1,FALSE))) ->  | M35: =IF($B35="","",IF(VLOOKUP($B35,'Athlete Input'!$C:$H,M$1,FALSE)="","",VLOOKUP($B35,'Athlete Input'!$C:$H,M$1,FALSE))) ->  | N35: =IF($B35="","",IF(VLOOKUP($B35,'Athlete Input'!$C:$H,N$1,FALSE)="","",VLOOKUP($B35,'Athlete Input'!$C:$H,N$1,FALSE))) ->  | O35: =IF($B35="","",IF(VLOOKUP($B35,'Athlete Input'!$C:$H,O$1,FALSE)="","",VLOOKUP($B35,'Athlete Input'!$C:$H,O$1,FALSE))) ->  | P35: =IF($B35="","",IF(VLOOKUP($B35,'Athlete Input'!$C:$H,P$1,FALSE)="","",VLOOKUP($B35,'Athlete Input'!$C:$H,P$1,FALSE))) ->  | Q35: =IF($B35="","",IF(VLOOKUP($B35,'Athlete Input'!$C:$H,Q$1,FALSE)="","",VLOOKUP($B35,'Athlete Input'!$C:$H,Q$1,FALSE))) ->  | R35: =IF($B35="","",IF(VLOOKUP($B35,'Athlete Input'!$C:$H,R$1,FALSE)="","",VLOOKUP($B35,'Athlete Input'!$C:$H,R$1,FALSE))) ->  | S35: =IF($B35="","",IF(VLOOKUP($B35,'Athlete Input'!$C:$H,S$1,FALSE)="","",VLOOKUP($B35,'Athlete Input'!$C:$H,S$1,FALSE))) ->  | T35: =IF($B35="","",IF(VLOOKUP($B35,'Athlete Input'!$C:$H,T$1,FALSE)="","",VLOOKUP($B35,'Athlete Input'!$C:$H,T$1,FALSE))) ->  | U35: =IF($B35="","",IF(VLOOKUP($B35,'Athlete Input'!$C:$H,U$1,FALSE)="","",VLOOKUP($B35,'Athlete Input'!$C:$H,U$1,FALSE))) ->  | V35: =IF($B35="","",IF(VLOOKUP($B35,'Athlete Input'!$C:$H,V$1,FALSE)="","",VLOOKUP($B35,'Athlete Input'!$C:$H,V$1,FALSE))) ->  | W35: =IF($B35="","",IF(VLOOKUP($B35,'Athlete Input'!$C:$H,W$1,FALSE)="","",VLOOKUP($B35,'Athlete Input'!$C:$H,W$1,FALSE))) ->  | X35: =IF($B35="","",IF(VLOOKUP($B35,'Athlete Input'!$C:$H,X$1,FALSE)="","",VLOOKUP($B35,'Athlete Input'!$C:$H,X$1,FALSE))) ->  | Y35: =IF($B35="","",IF(VLOOKUP($B35,'Athlete Input'!$C:$H,Y$1,FALSE)="","",VLOOKUP($B35,'Athlete Input'!$C:$H,Y$1,FALSE))) ->  | Z35: =IF($B35="","",IF(VLOOKUP($B35,'Athlete Input'!$C:$H,Z$1,FALSE)="","",VLOOKUP($B35,'Athlete Input'!$C:$H,Z$1,FALSE))) ->  | AA35: =IF($B35="","",IF(VLOOKUP($B35,'Athlete Input'!$C:$H,AA$1,FALSE)="","",VLOOKUP($B35,'Athlete Input'!$C:$H,AA$1,FALSE))) ->  | AB35: =IF($B35="","",IF(VLOOKUP($B35,'Athlete Input'!$C:$H,AB$1,FALSE)="","",VLOOKUP($B35,'Athlete Input'!$C:$H,AB$1,FALSE))) ->  | AC35: =IF($B35="","",IF(VLOOKUP($B35,'Athlete Input'!$C:$H,AC$1,FALSE)="","",VLOOKUP($B35,'Athlete Input'!$C:$H,AC$1,FALSE))) ->  | AD35: =IF($B35="","",IF(VLOOKUP($B35,'Athlete Input'!$C:$H,AD$1,FALSE)="","",VLOOKUP($B35,'Athlete Input'!$C:$H,AD$1,FALSE))) ->  | AE35: =IF($B35="","",IF(VLOOKUP($B35,'Athlete Input'!$C:$H,AE$1,FALSE)="","",VLOOKUP($B35,'Athlete Input'!$C:$H,AE$1,FALSE))) ->  | AF35: =IF($B35="","",IF(VLOOKUP($B35,'Athlete Input'!$C:$H,AF$1,FALSE)="","",VLOOKUP($B35,'Athlete Input'!$C:$H,AF$1,FALSE))) ->  | AG35: =IF($B35="","",IF(VLOOKUP($B35,'Athlete Input'!$C:$H,AG$1,FALSE)="","",VLOOKUP($B35,'Athlete Input'!$C:$H,AG$1,FALSE))) ->  | AH35: =IF($B35="","",IF(VLOOKUP($B35,'Athlete Input'!$C:$H,AH$1,FALSE)="","",VLOOKUP($B35,'Athlete Input'!$C:$H,AH$1,FALSE))) ->  | AI35: =IF($B35="","",IF(VLOOKUP($B35,'Athlete Input'!$C:$H,AI$1,FALSE)="","",VLOOKUP($B35,'Athlete Input'!$C:$H,AI$1,FALSE))) ->  | AJ35: =IF($B35="","",IF(VLOOKUP($B35,'Athlete Input'!$C:$H,AJ$1,FALSE)="","",VLOOKUP($B35,'Athlete Input'!$C:$H,AJ$1,FALSE))) ->  | AK35: =IF($B35="","",IF(VLOOKUP($B35,'Athlete Input'!$C:$H,AK$1,FALSE)="","",VLOOKUP($B35,'Athlete Input'!$C:$H,AK$1,FALSE))) ->  | AL35: =IF($B35="","",IF(VLOOKUP($B35,'Athlete Input'!$C:$H,AL$1,FALSE)="","",VLOOKUP($B35,'Athlete Input'!$C:$H,AL$1,FALSE))) ->  | AM35: =IF(B35="","zz",'Athlete Input'!D40) -> Payne
A36: 33 | B36: =IF('Athlete Input'!C41="","",'Athlete Input'!C41) -> Ann Peat | C36: =IF($B36="","",IF(VLOOKUP($B36,'Athlete Input'!$C:$H,C$1,FALSE)="","",VLOOKUP($B36,'Athlete Input'!$C:$H,C$1,FALSE))) ->  | D36: =IF($B36="","",IF(VLOOKUP($B36,'Athlete Input'!$C:$H,D$1,FALSE)="","",VLOOKUP($B36,'Athlete Input'!$C:$H,D$1,FALSE))) ->  | E36: =IF($B36="","",IF(VLOOKUP($B36,'Athlete Input'!$C:$H,E$1,FALSE)="","",VLOOKUP($B36,'Athlete Input'!$C:$H,E$1,FALSE))) ->  | F36: =IF($B36="","",IF(VLOOKUP($B36,'Athlete Input'!$C:$H,F$1,FALSE)="","",VLOOKUP($B36,'Athlete Input'!$C:$H,F$1,FALSE))) ->  | G36: =IF($B36="","",IF(VLOOKUP($B36,'Athlete Input'!$C:$H,G$1,FALSE)="","",VLOOKUP($B36,'Athlete Input'!$C:$H,G$1,FALSE))) ->  | H36: =IF($B36="","",IF(VLOOKUP($B36,'Athlete Input'!$C:$H,H$1,FALSE)="","",VLOOKUP($B36,'Athlete Input'!$C:$H,H$1,FALSE))) ->  | I36: =IF($B36="","",IF(VLOOKUP($B36,'Athlete Input'!$C:$H,I$1,FALSE)="","",VLOOKUP($B36,'Athlete Input'!$C:$H,I$1,FALSE))) ->  | J36: =IF($B36="","",IF(VLOOKUP($B36,'Athlete Input'!$C:$H,J$1,FALSE)="","",VLOOKUP($B36,'Athlete Input'!$C:$H,J$1,FALSE))) ->  | K36: =IF($B36="","",IF(VLOOKUP($B36,'Athlete Input'!$C:$H,K$1,FALSE)="","",VLOOKUP($B36,'Athlete Input'!$C:$H,K$1,FALSE))) ->  | L36: =IF($B36="","",IF(VLOOKUP($B36,'Athlete Input'!$C:$H,L$1,FALSE)="","",VLOOKUP($B36,'Athlete Input'!$C:$H,L$1,FALSE))) ->  | M36: =IF($B36="","",IF(VLOOKUP($B36,'Athlete Input'!$C:$H,M$1,FALSE)="","",VLOOKUP($B36,'Athlete Input'!$C:$H,M$1,FALSE))) ->  | N36: =IF($B36="","",IF(VLOOKUP($B36,'Athlete Input'!$C:$H,N$1,FALSE)="","",VLOOKUP($B36,'Athlete Input'!$C:$H,N$1,FALSE))) ->  | O36: =IF($B36="","",IF(VLOOKUP($B36,'Athlete Input'!$C:$H,O$1,FALSE)="","",VLOOKUP($B36,'Athlete Input'!$C:$H,O$1,FALSE))) ->  | P36: =IF($B36="","",IF(VLOOKUP($B36,'Athlete Input'!$C:$H,P$1,FALSE)="","",VLOOKUP($B36,'Athlete Input'!$C:$H,P$1,FALSE))) ->  | Q36: =IF($B36="","",IF(VLOOKUP($B36,'Athlete Input'!$C:$H,Q$1,FALSE)="","",VLOOKUP($B36,'Athlete Input'!$C:$H,Q$1,FALSE))) ->  | R36: =IF($B36="","",IF(VLOOKUP($B36,'Athlete Input'!$C:$H,R$1,FALSE)="","",VLOOKUP($B36,'Athlete Input'!$C:$H,R$1,FALSE))) ->  | S36: =IF($B36="","",IF(VLOOKUP($B36,'Athlete Input'!$C:$H,S$1,FALSE)="","",VLOOKUP($B36,'Athlete Input'!$C:$H,S$1,FALSE))) ->  | T36: =IF($B36="","",IF(VLOOKUP($B36,'Athlete Input'!$C:$H,T$1,FALSE)="","",VLOOKUP($B36,'Athlete Input'!$C:$H,T$1,FALSE))) ->  | U36: =IF($B36="","",IF(VLOOKUP($B36,'Athlete Input'!$C:$H,U$1,FALSE)="","",VLOOKUP($B36,'Athlete Input'!$C:$H,U$1,FALSE))) ->  | V36: =IF($B36="","",IF(VLOOKUP($B36,'Athlete Input'!$C:$H,V$1,FALSE)="","",VLOOKUP($B36,'Athlete Input'!$C:$H,V$1,FALSE))) ->  | W36: =IF($B36="","",IF(VLOOKUP($B36,'Athlete Input'!$C:$H,W$1,FALSE)="","",VLOOKUP($B36,'Athlete Input'!$C:$H,W$1,FALSE))) ->  | X36: =IF($B36="","",IF(VLOOKUP($B36,'Athlete Input'!$C:$H,X$1,FALSE)="","",VLOOKUP($B36,'Athlete Input'!$C:$H,X$1,FALSE))) ->  | Y36: =IF($B36="","",IF(VLOOKUP($B36,'Athlete Input'!$C:$H,Y$1,FALSE)="","",VLOOKUP($B36,'Athlete Input'!$C:$H,Y$1,FALSE))) ->  | Z36: =IF($B36="","",IF(VLOOKUP($B36,'Athlete Input'!$C:$H,Z$1,FALSE)="","",VLOOKUP($B36,'Athlete Input'!$C:$H,Z$1,FALSE))) ->  | AA36: =IF($B36="","",IF(VLOOKUP($B36,'Athlete Input'!$C:$H,AA$1,FALSE)="","",VLOOKUP($B36,'Athlete Input'!$C:$H,AA$1,FALSE))) ->  | AB36: =IF($B36="","",IF(VLOOKUP($B36,'Athlete Input'!$C:$H,AB$1,FALSE)="","",VLOOKUP($B36,'Athlete Input'!$C:$H,AB$1,FALSE))) ->  | AC36: =IF($B36="","",IF(VLOOKUP($B36,'Athlete Input'!$C:$H,AC$1,FALSE)="","",VLOOKUP($B36,'Athlete Input'!$C:$H,AC$1,FALSE))) ->  | AD36: =IF($B36="","",IF(VLOOKUP($B36,'Athlete Input'!$C:$H,AD$1,FALSE)="","",VLOOKUP($B36,'Athlete Input'!$C:$H,AD$1,FALSE))) ->  | AE36: =IF($B36="","",IF(VLOOKUP($B36,'Athlete Input'!$C:$H,AE$1,FALSE)="","",VLOOKUP($B36,'Athlete Input'!$C:$H,AE$1,FALSE))) ->  | AF36: =IF($B36="","",IF(VLOOKUP($B36,'Athlete Input'!$C:$H,AF$1,FALSE)="","",VLOOKUP($B36,'Athlete Input'!$C:$H,AF$1,FALSE))) ->  | AG36: =IF($B36="","",IF(VLOOKUP($B36,'Athlete Input'!$C:$H,AG$1,FALSE)="","",VLOOKUP($B36,'Athlete Input'!$C:$H,AG$1,FALSE))) ->  | AH36: =IF($B36="","",IF(VLOOKUP($B36,'Athlete Input'!$C:$H,AH$1,FALSE)="","",VLOOKUP($B36,'Athlete Input'!$C:$H,AH$1,FALSE))) ->  | AI36: =IF($B36="","",IF(VLOOKUP($B36,'Athlete Input'!$C:$H,AI$1,FALSE)="","",VLOOKUP($B36,'Athlete Input'!$C:$H,AI$1,FALSE))) ->  | AJ36: =IF($B36="","",IF(VLOOKUP($B36,'Athlete Input'!$C:$H,AJ$1,FALSE)="","",VLOOKUP($B36,'Athlete Input'!$C:$H,AJ$1,FALSE))) ->  | AK36: =IF($B36="","",IF(VLOOKUP($B36,'Athlete Input'!$C:$H,AK$1,FALSE)="","",VLOOKUP($B36,'Athlete Input'!$C:$H,AK$1,FALSE))) ->  | AL36: =IF($B36="","",IF(VLOOKUP($B36,'Athlete Input'!$C:$H,AL$1,FALSE)="","",VLOOKUP($B36,'Athlete Input'!$C:$H,AL$1,FALSE))) ->  | AM36: =IF(B36="","zz",'Athlete Input'!D41) -> Peat
A37: 34 | B37: =IF('Athlete Input'!C42="","",'Athlete Input'!C42) -> Catriona Probert | C37: =IF($B37="","",IF(VLOOKUP($B37,'Athlete Input'!$C:$H,C$1,FALSE)="","",VLOOKUP($B37,'Athlete Input'!$C:$H,C$1,FALSE))) ->  | D37: =IF($B37="","",IF(VLOOKUP($B37,'Athlete Input'!$C:$H,D$1,FALSE)="","",VLOOKUP($B37,'Athlete Input'!$C:$H,D$1,FALSE))) ->  | E37: =IF($B37="","",IF(VLOOKUP($B37,'Athlete Input'!$C:$H,E$1,FALSE)="","",VLOOKUP($B37,'Athlete Input'!$C:$H,E$1,FALSE))) ->  | F37: =IF($B37="","",IF(VLOOKUP($B37,'Athlete Input'!$C:$H,F$1,FALSE)="","",VLOOKUP($B37,'Athlete Input'!$C:$H,F$1,FALSE))) ->  | G37: =IF($B37="","",IF(VLOOKUP($B37,'Athlete Input'!$C:$H,G$1,FALSE)="","",VLOOKUP($B37,'Athlete Input'!$C:$H,G$1,FALSE))) ->  | H37: =IF($B37="","",IF(VLOOKUP($B37,'Athlete Input'!$C:$H,H$1,FALSE)="","",VLOOKUP($B37,'Athlete Input'!$C:$H,H$1,FALSE))) ->  | I37: =IF($B37="","",IF(VLOOKUP($B37,'Athlete Input'!$C:$H,I$1,FALSE)="","",VLOOKUP($B37,'Athlete Input'!$C:$H,I$1,FALSE))) ->  | J37: =IF($B37="","",IF(VLOOKUP($B37,'Athlete Input'!$C:$H,J$1,FALSE)="","",VLOOKUP($B37,'Athlete Input'!$C:$H,J$1,FALSE))) ->  | K37: =IF($B37="","",IF(VLOOKUP($B37,'Athlete Input'!$C:$H,K$1,FALSE)="","",VLOOKUP($B37,'Athlete Input'!$C:$H,K$1,FALSE))) ->  | L37: =IF($B37="","",IF(VLOOKUP($B37,'Athlete Input'!$C:$H,L$1,FALSE)="","",VLOOKUP($B37,'Athlete Input'!$C:$H,L$1,FALSE))) ->  | M37: =IF($B37="","",IF(VLOOKUP($B37,'Athlete Input'!$C:$H,M$1,FALSE)="","",VLOOKUP($B37,'Athlete Input'!$C:$H,M$1,FALSE))) ->  | N37: =IF($B37="","",IF(VLOOKUP($B37,'Athlete Input'!$C:$H,N$1,FALSE)="","",VLOOKUP($B37,'Athlete Input'!$C:$H,N$1,FALSE))) ->  | O37: =IF($B37="","",IF(VLOOKUP($B37,'Athlete Input'!$C:$H,O$1,FALSE)="","",VLOOKUP($B37,'Athlete Input'!$C:$H,O$1,FALSE))) ->  | P37: =IF($B37="","",IF(VLOOKUP($B37,'Athlete Input'!$C:$H,P$1,FALSE)="","",VLOOKUP($B37,'Athlete Input'!$C:$H,P$1,FALSE))) ->  | Q37: =IF($B37="","",IF(VLOOKUP($B37,'Athlete Input'!$C:$H,Q$1,FALSE)="","",VLOOKUP($B37,'Athlete Input'!$C:$H,Q$1,FALSE))) ->  | R37: =IF($B37="","",IF(VLOOKUP($B37,'Athlete Input'!$C:$H,R$1,FALSE)="","",VLOOKUP($B37,'Athlete Input'!$C:$H,R$1,FALSE))) ->  | S37: =IF($B37="","",IF(VLOOKUP($B37,'Athlete Input'!$C:$H,S$1,FALSE)="","",VLOOKUP($B37,'Athlete Input'!$C:$H,S$1,FALSE))) ->  | T37: =IF($B37="","",IF(VLOOKUP($B37,'Athlete Input'!$C:$H,T$1,FALSE)="","",VLOOKUP($B37,'Athlete Input'!$C:$H,T$1,FALSE))) ->  | U37: =IF($B37="","",IF(VLOOKUP($B37,'Athlete Input'!$C:$H,U$1,FALSE)="","",VLOOKUP($B37,'Athlete Input'!$C:$H,U$1,FALSE))) ->  | V37: =IF($B37="","",IF(VLOOKUP($B37,'Athlete Input'!$C:$H,V$1,FALSE)="","",VLOOKUP($B37,'Athlete Input'!$C:$H,V$1,FALSE))) ->  | W37: =IF($B37="","",IF(VLOOKUP($B37,'Athlete Input'!$C:$H,W$1,FALSE)="","",VLOOKUP($B37,'Athlete Input'!$C:$H,W$1,FALSE))) ->  | X37: =IF($B37="","",IF(VLOOKUP($B37,'Athlete Input'!$C:$H,X$1,FALSE)="","",VLOOKUP($B37,'Athlete Input'!$C:$H,X$1,FALSE))) ->  | Y37: =IF($B37="","",IF(VLOOKUP($B37,'Athlete Input'!$C:$H,Y$1,FALSE)="","",VLOOKUP($B37,'Athlete Input'!$C:$H,Y$1,FALSE))) ->  | Z37: =IF($B37="","",IF(VLOOKUP($B37,'Athlete Input'!$C:$H,Z$1,FALSE)="","",VLOOKUP($B37,'Athlete Input'!$C:$H,Z$1,FALSE))) ->  | AA37: =IF($B37="","",IF(VLOOKUP($B37,'Athlete Input'!$C:$H,AA$1,FALSE)="","",VLOOKUP($B37,'Athlete Input'!$C:$H,AA$1,FALSE))) ->  | AB37: =IF($B37="","",IF(VLOOKUP($B37,'Athlete Input'!$C:$H,AB$1,FALSE)="","",VLOOKUP($B37,'Athlete Input'!$C:$H,AB$1,FALSE))) ->  | AC37: =IF($B37="","",IF(VLOOKUP($B37,'Athlete Input'!$C:$H,AC$1,FALSE)="","",VLOOKUP($B37,'Athlete Input'!$C:$H,AC$1,FALSE))) ->  | AD37: =IF($B37="","",IF(VLOOKUP($B37,'Athlete Input'!$C:$H,AD$1,FALSE)="","",VLOOKUP($B37,'Athlete Input'!$C:$H,AD$1,FALSE))) ->  | AE37: =IF($B37="","",IF(VLOOKUP($B37,'Athlete Input'!$C:$H,AE$1,FALSE)="","",VLOOKUP($B37,'Athlete Input'!$C:$H,AE$1,FALSE))) ->  | AF37: =IF($B37="","",IF(VLOOKUP($B37,'Athlete Input'!$C:$H,AF$1,FALSE)="","",VLOOKUP($B37,'Athlete Input'!$C:$H,AF$1,FALSE))) ->  | AG37: =IF($B37="","",IF(VLOOKUP($B37,'Athlete Input'!$C:$H,AG$1,FALSE)="","",VLOOKUP($B37,'Athlete Input'!$C:$H,AG$1,FALSE))) ->  | AH37: =IF($B37="","",IF(VLOOKUP($B37,'Athlete Input'!$C:$H,AH$1,FALSE)="","",VLOOKUP($B37,'Athlete Input'!$C:$H,AH$1,FALSE))) ->  | AI37: =IF($B37="","",IF(VLOOKUP($B37,'Athlete Input'!$C:$H,AI$1,FALSE)="","",VLOOKUP($B37,'Athlete Input'!$C:$H,AI$1,FALSE))) ->  | AJ37: =IF($B37="","",IF(VLOOKUP($B37,'Athlete Input'!$C:$H,AJ$1,FALSE)="","",VLOOKUP($B37,'Athlete Input'!$C:$H,AJ$1,FALSE))) ->  | AK37: =IF($B37="","",IF(VLOOKUP($B37,'Athlete Input'!$C:$H,AK$1,FALSE)="","",VLOOKUP($B37,'Athlete Input'!$C:$H,AK$1,FALSE))) ->  | AL37: =IF($B37="","",IF(VLOOKUP($B37,'Athlete Input'!$C:$H,AL$1,FALSE)="","",VLOOKUP($B37,'Athlete Input'!$C:$H,AL$1,FALSE))) ->  | AM37: =IF(B37="","zz",'Athlete Input'!D42) -> Probert
A38: 35 | B38: =IF('Athlete Input'!C43="","",'Athlete Input'!C43) -> Sharyn Ramage | C38: =IF($B38="","",IF(VLOOKUP($B38,'Athlete Input'!$C:$H,C$1,FALSE)="","",VLOOKUP($B38,'Athlete Input'!$C:$H,C$1,FALSE))) ->  | D38: =IF($B38="","",IF(VLOOKUP($B38,'Athlete Input'!$C:$H,D$1,FALSE)="","",VLOOKUP($B38,'Athlete Input'!$C:$H,D$1,FALSE))) ->  | E38: =IF($B38="","",IF(VLOOKUP($B38,'Athlete Input'!$C:$H,E$1,FALSE)="","",VLOOKUP($B38,'Athlete Input'!$C:$H,E$1,FALSE))) ->  | F38: =IF($B38="","",IF(VLOOKUP($B38,'Athlete Input'!$C:$H,F$1,FALSE)="","",VLOOKUP($B38,'Athlete Input'!$C:$H,F$1,FALSE))) ->  | G38: =IF($B38="","",IF(VLOOKUP($B38,'Athlete Input'!$C:$H,G$1,FALSE)="","",VLOOKUP($B38,'Athlete Input'!$C:$H,G$1,FALSE))) ->  | H38: =IF($B38="","",IF(VLOOKUP($B38,'Athlete Input'!$C:$H,H$1,FALSE)="","",VLOOKUP($B38,'Athlete Input'!$C:$H,H$1,FALSE))) ->  | I38: =IF($B38="","",IF(VLOOKUP($B38,'Athlete Input'!$C:$H,I$1,FALSE)="","",VLOOKUP($B38,'Athlete Input'!$C:$H,I$1,FALSE))) ->  | J38: =IF($B38="","",IF(VLOOKUP($B38,'Athlete Input'!$C:$H,J$1,FALSE)="","",VLOOKUP($B38,'Athlete Input'!$C:$H,J$1,FALSE))) ->  | K38: =IF($B38="","",IF(VLOOKUP($B38,'Athlete Input'!$C:$H,K$1,FALSE)="","",VLOOKUP($B38,'Athlete Input'!$C:$H,K$1,FALSE))) ->  | L38: =IF($B38="","",IF(VLOOKUP($B38,'Athlete Input'!$C:$H,L$1,FALSE)="","",VLOOKUP($B38,'Athlete Input'!$C:$H,L$1,FALSE))) ->  | M38: =IF($B38="","",IF(VLOOKUP($B38,'Athlete Input'!$C:$H,M$1,FALSE)="","",VLOOKUP($B38,'Athlete Input'!$C:$H,M$1,FALSE))) ->  | N38: =IF($B38="","",IF(VLOOKUP($B38,'Athlete Input'!$C:$H,N$1,FALSE)="","",VLOOKUP($B38,'Athlete Input'!$C:$H,N$1,FALSE))) ->  | O38: =IF($B38="","",IF(VLOOKUP($B38,'Athlete Input'!$C:$H,O$1,FALSE)="","",VLOOKUP($B38,'Athlete Input'!$C:$H,O$1,FALSE))) ->  | P38: =IF($B38="","",IF(VLOOKUP($B38,'Athlete Input'!$C:$H,P$1,FALSE)="","",VLOOKUP($B38,'Athlete Input'!$C:$H,P$1,FALSE))) ->  | Q38: =IF($B38="","",IF(VLOOKUP($B38,'Athlete Input'!$C:$H,Q$1,FALSE)="","",VLOOKUP($B38,'Athlete Input'!$C:$H,Q$1,FALSE))) ->  | R38: =IF($B38="","",IF(VLOOKUP($B38,'Athlete Input'!$C:$H,R$1,FALSE)="","",VLOOKUP($B38,'Athlete Input'!$C:$H,R$1,FALSE))) ->  | S38: =IF($B38="","",IF(VLOOKUP($B38,'Athlete Input'!$C:$H,S$1,FALSE)="","",VLOOKUP($B38,'Athlete Input'!$C:$H,S$1,FALSE))) ->  | T38: =IF($B38="","",IF(VLOOKUP($B38,'Athlete Input'!$C:$H,T$1,FALSE)="","",VLOOKUP($B38,'Athlete Input'!$C:$H,T$1,FALSE))) ->  | U38: =IF($B38="","",IF(VLOOKUP($B38,'Athlete Input'!$C:$H,U$1,FALSE)="","",VLOOKUP($B38,'Athlete Input'!$C:$H,U$1,FALSE))) ->  | V38: =IF($B38="","",IF(VLOOKUP($B38,'Athlete Input'!$C:$H,V$1,FALSE)="","",VLOOKUP($B38,'Athlete Input'!$C:$H,V$1,FALSE))) ->  | W38: =IF($B38="","",IF(VLOOKUP($B38,'Athlete Input'!$C:$H,W$1,FALSE)="","",VLOOKUP($B38,'Athlete Input'!$C:$H,W$1,FALSE))) ->  | X38: =IF($B38="","",IF(VLOOKUP($B38,'Athlete Input'!$C:$H,X$1,FALSE)="","",VLOOKUP($B38,'Athlete Input'!$C:$H,X$1,FALSE))) ->  | Y38: =IF($B38="","",IF(VLOOKUP($B38,'Athlete Input'!$C:$H,Y$1,FALSE)="","",VLOOKUP($B38,'Athlete Input'!$C:$H,Y$1,FALSE))) ->  | Z38: =IF($B38="","",IF(VLOOKUP($B38,'Athlete Input'!$C:$H,Z$1,FALSE)="","",VLOOKUP($B38,'Athlete Input'!$C:$H,Z$1,FALSE))) ->  | AA38: =IF($B38="","",IF(VLOOKUP($B38,'Athlete Input'!$C:$H,AA$1,FALSE)="","",VLOOKUP($B38,'Athlete Input'!$C:$H,AA$1,FALSE))) ->  | AB38: =IF($B38="","",IF(VLOOKUP($B38,'Athlete Input'!$C:$H,AB$1,FALSE)="","",VLOOKUP($B38,'Athlete Input'!$C:$H,AB$1,FALSE))) ->  | AC38: =IF($B38="","",IF(VLOOKUP($B38,'Athlete Input'!$C:$H,AC$1,FALSE)="","",VLOOKUP($B38,'Athlete Input'!$C:$H,AC$1,FALSE))) ->  | AD38: =IF($B38="","",IF(VLOOKUP($B38,'Athlete Input'!$C:$H,AD$1,FALSE)="","",VLOOKUP($B38,'Athlete Input'!$C:$H,AD$1,FALSE))) ->  | AE38: =IF($B38="","",IF(VLOOKUP($B38,'Athlete Input'!$C:$H,AE$1,FALSE)="","",VLOOKUP($B38,'Athlete Input'!$C:$H,AE$1,FALSE))) ->  | AF38: =IF($B38="","",IF(VLOOKUP($B38,'Athlete Input'!$C:$H,AF$1,FALSE)="","",VLOOKUP($B38,'Athlete Input'!$C:$H,AF$1,FALSE))) ->  | AG38: =IF($B38="","",IF(VLOOKUP($B38,'Athlete Input'!$C:$H,AG$1,FALSE)="","",VLOOKUP($B38,'Athlete Input'!$C:$H,AG$1,FALSE))) ->  | AH38: =IF($B38="","",IF(VLOOKUP($B38,'Athlete Input'!$C:$H,AH$1,FALSE)="","",VLOOKUP($B38,'Athlete Input'!$C:$H,AH$1,FALSE))) ->  | AI38: =IF($B38="","",IF(VLOOKUP($B38,'Athlete Input'!$C:$H,AI$1,FALSE)="","",VLOOKUP($B38,'Athlete Input'!$C:$H,AI$1,FALSE))) ->  | AJ38: =IF($B38="","",IF(VLOOKUP($B38,'Athlete Input'!$C:$H,AJ$1,FALSE)="","",VLOOKUP($B38,'Athlete Input'!$C:$H,AJ$1,FALSE))) ->  | AK38: =IF($B38="","",IF(VLOOKUP($B38,'Athlete Input'!$C:$H,AK$1,FALSE)="","",VLOOKUP($B38,'Athlete Input'!$C:$H,AK$1,FALSE))) ->  | AL38: =IF($B38="","",IF(VLOOKUP($B38,'Athlete Input'!$C:$H,AL$1,FALSE)="","",VLOOKUP($B38,'Athlete Input'!$C:$H,AL$1,FALSE))) ->  | AM38: =IF(B38="","zz",'Athlete Input'!D43) -> Ramage
A39: 36 | B39: =IF('Athlete Input'!C84="","",'Athlete Input'!C84) ->  | C39: =IF($B39="","",IF(VLOOKUP($B39,'Athlete Input'!$C:$H,C$1,FALSE)="","",VLOOKUP($B39,'Athlete Input'!$C:$H,C$1,FALSE))) ->  | D39: =IF($B39="","",IF(VLOOKUP($B39,'Athlete Input'!$C:$H,D$1,FALSE)="","",VLOOKUP($B39,'Athlete Input'!$C:$H,D$1,FALSE))) ->  | E39: =IF($B39="","",IF(VLOOKUP($B39,'Athlete Input'!$C:$H,E$1,FALSE)="","",VLOOKUP($B39,'Athlete Input'!$C:$H,E$1,FALSE))) ->  | F39: =IF($B39="","",IF(VLOOKUP($B39,'Athlete Input'!$C:$H,F$1,FALSE)="","",VLOOKUP($B39,'Athlete Input'!$C:$H,F$1,FALSE))) ->  | G39: =IF($B39="","",IF(VLOOKUP($B39,'Athlete Input'!$C:$H,G$1,FALSE)="","",VLOOKUP($B39,'Athlete Input'!$C:$H,G$1,FALSE))) ->  | H39: =IF($B39="","",IF(VLOOKUP($B39,'Athlete Input'!$C:$H,H$1,FALSE)="","",VLOOKUP($B39,'Athlete Input'!$C:$H,H$1,FALSE))) ->  | I39: =IF($B39="","",IF(VLOOKUP($B39,'Athlete Input'!$C:$H,I$1,FALSE)="","",VLOOKUP($B39,'Athlete Input'!$C:$H,I$1,FALSE))) ->  | J39: =IF($B39="","",IF(VLOOKUP($B39,'Athlete Input'!$C:$H,J$1,FALSE)="","",VLOOKUP($B39,'Athlete Input'!$C:$H,J$1,FALSE))) ->  | K39: =IF($B39="","",IF(VLOOKUP($B39,'Athlete Input'!$C:$H,K$1,FALSE)="","",VLOOKUP($B39,'Athlete Input'!$C:$H,K$1,FALSE))) ->  | L39: =IF($B39="","",IF(VLOOKUP($B39,'Athlete Input'!$C:$H,L$1,FALSE)="","",VLOOKUP($B39,'Athlete Input'!$C:$H,L$1,FALSE))) ->  | M39: =IF($B39="","",IF(VLOOKUP($B39,'Athlete Input'!$C:$H,M$1,FALSE)="","",VLOOKUP($B39,'Athlete Input'!$C:$H,M$1,FALSE))) ->  | N39: =IF($B39="","",IF(VLOOKUP($B39,'Athlete Input'!$C:$H,N$1,FALSE)="","",VLOOKUP($B39,'Athlete Input'!$C:$H,N$1,FALSE))) ->  | O39: =IF($B39="","",IF(VLOOKUP($B39,'Athlete Input'!$C:$H,O$1,FALSE)="","",VLOOKUP($B39,'Athlete Input'!$C:$H,O$1,FALSE))) ->  | P39: =IF($B39="","",IF(VLOOKUP($B39,'Athlete Input'!$C:$H,P$1,FALSE)="","",VLOOKUP($B39,'Athlete Input'!$C:$H,P$1,FALSE))) ->  | Q39: =IF($B39="","",IF(VLOOKUP($B39,'Athlete Input'!$C:$H,Q$1,FALSE)="","",VLOOKUP($B39,'Athlete Input'!$C:$H,Q$1,FALSE))) ->  | R39: =IF($B39="","",IF(VLOOKUP($B39,'Athlete Input'!$C:$H,R$1,FALSE)="","",VLOOKUP($B39,'Athlete Input'!$C:$H,R$1,FALSE))) ->  | S39: =IF($B39="","",IF(VLOOKUP($B39,'Athlete Input'!$C:$H,S$1,FALSE)="","",VLOOKUP($B39,'Athlete Input'!$C:$H,S$1,FALSE))) ->  | T39: =IF($B39="","",IF(VLOOKUP($B39,'Athlete Input'!$C:$H,T$1,FALSE)="","",VLOOKUP($B39,'Athlete Input'!$C:$H,T$1,FALSE))) ->  | U39: =IF($B39="","",IF(VLOOKUP($B39,'Athlete Input'!$C:$H,U$1,FALSE)="","",VLOOKUP($B39,'Athlete Input'!$C:$H,U$1,FALSE))) ->  | V39: =IF($B39="","",IF(VLOOKUP($B39,'Athlete Input'!$C:$H,V$1,FALSE)="","",VLOOKUP($B39,'Athlete Input'!$C:$H,V$1,FALSE))) ->  | W39: =IF($B39="","",IF(VLOOKUP($B39,'Athlete Input'!$C:$H,W$1,FALSE)="","",VLOOKUP($B39,'Athlete Input'!$C:$H,W$1,FALSE))) ->  | X39: =IF($B39="","",IF(VLOOKUP($B39,'Athlete Input'!$C:$H,X$1,FALSE)="","",VLOOKUP($B39,'Athlete Input'!$C:$H,X$1,FALSE))) ->  | Y39: =IF($B39="","",IF(VLOOKUP($B39,'Athlete Input'!$C:$H,Y$1,FALSE)="","",VLOOKUP($B39,'Athlete Input'!$C:$H,Y$1,FALSE))) ->  | Z39: =IF($B39="","",IF(VLOOKUP($B39,'Athlete Input'!$C:$H,Z$1,FALSE)="","",VLOOKUP($B39,'Athlete Input'!$C:$H,Z$1,FALSE))) ->  | AA39: =IF($B39="","",IF(VLOOKUP($B39,'Athlete Input'!$C:$H,AA$1,FALSE)="","",VLOOKUP($B39,'Athlete Input'!$C:$H,AA$1,FALSE))) ->  | AB39: =IF($B39="","",IF(VLOOKUP($B39,'Athlete Input'!$C:$H,AB$1,FALSE)="","",VLOOKUP($B39,'Athlete Input'!$C:$H,AB$1,FALSE))) ->  | AC39: =IF($B39="","",IF(VLOOKUP($B39,'Athlete Input'!$C:$H,AC$1,FALSE)="","",VLOOKUP($B39,'Athlete Input'!$C:$H,AC$1,FALSE))) ->  | AD39: =IF($B39="","",IF(VLOOKUP($B39,'Athlete Input'!$C:$H,AD$1,FALSE)="","",VLOOKUP($B39,'Athlete Input'!$C:$H,AD$1,FALSE))) ->  | AE39: =IF($B39="","",IF(VLOOKUP($B39,'Athlete Input'!$C:$H,AE$1,FALSE)="","",VLOOKUP($B39,'Athlete Input'!$C:$H,AE$1,FALSE))) ->  | AF39: =IF($B39="","",IF(VLOOKUP($B39,'Athlete Input'!$C:$H,AF$1,FALSE)="","",VLOOKUP($B39,'Athlete Input'!$C:$H,AF$1,FALSE))) ->  | AG39: =IF($B39="","",IF(VLOOKUP($B39,'Athlete Input'!$C:$H,AG$1,FALSE)="","",VLOOKUP($B39,'Athlete Input'!$C:$H,AG$1,FALSE))) ->  | AH39: =IF($B39="","",IF(VLOOKUP($B39,'Athlete Input'!$C:$H,AH$1,FALSE)="","",VLOOKUP($B39,'Athlete Input'!$C:$H,AH$1,FALSE))) ->  | AI39: =IF($B39="","",IF(VLOOKUP($B39,'Athlete Input'!$C:$H,AI$1,FALSE)="","",VLOOKUP($B39,'Athlete Input'!$C:$H,AI$1,FALSE))) ->  | AJ39: =IF($B39="","",IF(VLOOKUP($B39,'Athlete Input'!$C:$H,AJ$1,FALSE)="","",VLOOKUP($B39,'Athlete Input'!$C:$H,AJ$1,FALSE))) ->  | AK39: =IF($B39="","",IF(VLOOKUP($B39,'Athlete Input'!$C:$H,AK$1,FALSE)="","",VLOOKUP($B39,'Athlete Input'!$C:$H,AK$1,FALSE))) ->  | AL39: =IF($B39="","",IF(VLOOKUP($B39,'Athlete Input'!$C:$H,AL$1,FALSE)="","",VLOOKUP($B39,'Athlete Input'!$C:$H,AL$1,FALSE))) ->  | AM39: =IF(B39="","zz",'Athlete Input'!D84) -> zz
A40: 37 | B40: =IF('Athlete Input'!C44="","",'Athlete Input'!C44) -> Freya Ross | C40: =IF($B40="","",IF(VLOOKUP($B40,'Athlete Input'!$C:$H,C$1,FALSE)="","",VLOOKUP($B40,'Athlete Input'!$C:$H,C$1,FALSE))) ->  | D40: =IF($B40="","",IF(VLOOKUP($B40,'Athlete Input'!$C:$H,D$1,FALSE)="","",VLOOKUP($B40,'Athlete Input'!$C:$H,D$1,FALSE))) ->  | E40: =IF($B40="","",IF(VLOOKUP($B40,'Athlete Input'!$C:$H,E$1,FALSE)="","",VLOOKUP($B40,'Athlete Input'!$C:$H,E$1,FALSE))) ->  | F40: =IF($B40="","",IF(VLOOKUP($B40,'Athlete Input'!$C:$H,F$1,FALSE)="","",VLOOKUP($B40,'Athlete Input'!$C:$H,F$1,FALSE))) ->  | G40: =IF($B40="","",IF(VLOOKUP($B40,'Athlete Input'!$C:$H,G$1,FALSE)="","",VLOOKUP($B40,'Athlete Input'!$C:$H,G$1,FALSE))) ->  | H40: =IF($B40="","",IF(VLOOKUP($B40,'Athlete Input'!$C:$H,H$1,FALSE)="","",VLOOKUP($B40,'Athlete Input'!$C:$H,H$1,FALSE))) ->  | I40: =IF($B40="","",IF(VLOOKUP($B40,'Athlete Input'!$C:$H,I$1,FALSE)="","",VLOOKUP($B40,'Athlete Input'!$C:$H,I$1,FALSE))) ->  | J40: =IF($B40="","",IF(VLOOKUP($B40,'Athlete Input'!$C:$H,J$1,FALSE)="","",VLOOKUP($B40,'Athlete Input'!$C:$H,J$1,FALSE))) ->  | K40: =IF($B40="","",IF(VLOOKUP($B40,'Athlete Input'!$C:$H,K$1,FALSE)="","",VLOOKUP($B40,'Athlete Input'!$C:$H,K$1,FALSE))) ->  | L40: =IF($B40="","",IF(VLOOKUP($B40,'Athlete Input'!$C:$H,L$1,FALSE)="","",VLOOKUP($B40,'Athlete Input'!$C:$H,L$1,FALSE))) ->  | M40: =IF($B40="","",IF(VLOOKUP($B40,'Athlete Input'!$C:$H,M$1,FALSE)="","",VLOOKUP($B40,'Athlete Input'!$C:$H,M$1,FALSE))) ->  | N40: =IF($B40="","",IF(VLOOKUP($B40,'Athlete Input'!$C:$H,N$1,FALSE)="","",VLOOKUP($B40,'Athlete Input'!$C:$H,N$1,FALSE))) ->  | O40: =IF($B40="","",IF(VLOOKUP($B40,'Athlete Input'!$C:$H,O$1,FALSE)="","",VLOOKUP($B40,'Athlete Input'!$C:$H,O$1,FALSE))) ->  | P40: =IF($B40="","",IF(VLOOKUP($B40,'Athlete Input'!$C:$H,P$1,FALSE)="","",VLOOKUP($B40,'Athlete Input'!$C:$H,P$1,FALSE))) ->  | Q40: =IF($B40="","",IF(VLOOKUP($B40,'Athlete Input'!$C:$H,Q$1,FALSE)="","",VLOOKUP($B40,'Athlete Input'!$C:$H,Q$1,FALSE))) ->  | R40: =IF($B40="","",IF(VLOOKUP($B40,'Athlete Input'!$C:$H,R$1,FALSE)="","",VLOOKUP($B40,'Athlete Input'!$C:$H,R$1,FALSE))) ->  | S40: =IF($B40="","",IF(VLOOKUP($B40,'Athlete Input'!$C:$H,S$1,FALSE)="","",VLOOKUP($B40,'Athlete Input'!$C:$H,S$1,FALSE))) ->  | T40: =IF($B40="","",IF(VLOOKUP($B40,'Athlete Input'!$C:$H,T$1,FALSE)="","",VLOOKUP($B40,'Athlete Input'!$C:$H,T$1,FALSE))) ->  | U40: =IF($B40="","",IF(VLOOKUP($B40,'Athlete Input'!$C:$H,U$1,FALSE)="","",VLOOKUP($B40,'Athlete Input'!$C:$H,U$1,FALSE))) ->  | V40: =IF($B40="","",IF(VLOOKUP($B40,'Athlete Input'!$C:$H,V$1,FALSE)="","",VLOOKUP($B40,'Athlete Input'!$C:$H,V$1,FALSE))) ->  | W40: =IF($B40="","",IF(VLOOKUP($B40,'Athlete Input'!$C:$H,W$1,FALSE)="","",VLOOKUP($B40,'Athlete Input'!$C:$H,W$1,FALSE))) ->  | X40: =IF($B40="","",IF(VLOOKUP($B40,'Athlete Input'!$C:$H,X$1,FALSE)="","",VLOOKUP($B40,'Athlete Input'!$C:$H,X$1,FALSE))) ->  | Y40: =IF($B40="","",IF(VLOOKUP($B40,'Athlete Input'!$C:$H,Y$1,FALSE)="","",VLOOKUP($B40,'Athlete Input'!$C:$H,Y$1,FALSE))) ->  | Z40: =IF($B40="","",IF(VLOOKUP($B40,'Athlete Input'!$C:$H,Z$1,FALSE)="","",VLOOKUP($B40,'Athlete Input'!$C:$H,Z$1,FALSE))) ->  | AA40: =IF($B40="","",IF(VLOOKUP($B40,'Athlete Input'!$C:$H,AA$1,FALSE)="","",VLOOKUP($B40,'Athlete Input'!$C:$H,AA$1,FALSE))) ->  | AB40: =IF($B40="","",IF(VLOOKUP($B40,'Athlete Input'!$C:$H,AB$1,FALSE)="","",VLOOKUP($B40,'Athlete Input'!$C:$H,AB$1,FALSE))) ->  | AC40: =IF($B40="","",IF(VLOOKUP($B40,'Athlete Input'!$C:$H,AC$1,FALSE)="","",VLOOKUP($B40,'Athlete Input'!$C:$H,AC$1,FALSE))) ->  | AD40: =IF($B40="","",IF(VLOOKUP($B40,'Athlete Input'!$C:$H,AD$1,FALSE)="","",VLOOKUP($B40,'Athlete Input'!$C:$H,AD$1,FALSE))) ->  | AE40: =IF($B40="","",IF(VLOOKUP($B40,'Athlete Input'!$C:$H,AE$1,FALSE)="","",VLOOKUP($B40,'Athlete Input'!$C:$H,AE$1,FALSE))) ->  | AF40: =IF($B40="","",IF(VLOOKUP($B40,'Athlete Input'!$C:$H,AF$1,FALSE)="","",VLOOKUP($B40,'Athlete Input'!$C:$H,AF$1,FALSE))) ->  | AG40: =IF($B40="","",IF(VLOOKUP($B40,'Athlete Input'!$C:$H,AG$1,FALSE)="","",VLOOKUP($B40,'Athlete Input'!$C:$H,AG$1,FALSE))) ->  | AH40: =IF($B40="","",IF(VLOOKUP($B40,'Athlete Input'!$C:$H,AH$1,FALSE)="","",VLOOKUP($B40,'Athlete Input'!$C:$H,AH$1,FALSE))) ->  | AI40: =IF($B40="","",IF(VLOOKUP($B40,'Athlete Input'!$C:$H,AI$1,FALSE)="","",VLOOKUP($B40,'Athlete Input'!$C:$H,AI$1,FALSE))) ->  | AJ40: =IF($B40="","",IF(VLOOKUP($B40,'Athlete Input'!$C:$H,AJ$1,FALSE)="","",VLOOKUP($B40,'Athlete Input'!$C:$H,AJ$1,FALSE))) ->  | AK40: =IF($B40="","",IF(VLOOKUP($B40,'Athlete Input'!$C:$H,AK$1,FALSE)="","",VLOOKUP($B40,'Athlete Input'!$C:$H,AK$1,FALSE))) ->  | AL40: =IF($B40="","",IF(VLOOKUP($B40,'Athlete Input'!$C:$H,AL$1,FALSE)="","",VLOOKUP($B40,'Athlete Input'!$C:$H,AL$1,FALSE))) ->  | AM40: =IF(B40="","zz",'Athlete Input'!D44) -> Ross
A41: 38 | B41: =IF('Athlete Input'!C45="","",'Athlete Input'!C45) -> Tanya Shields | C41: =IF($B41="","",IF(VLOOKUP($B41,'Athlete Input'!$C:$H,C$1,FALSE)="","",VLOOKUP($B41,'Athlete Input'!$C:$H,C$1,FALSE))) ->  | D41: =IF($B41="","",IF(VLOOKUP($B41,'Athlete Input'!$C:$H,D$1,FALSE)="","",VLOOKUP($B41,'Athlete Input'!$C:$H,D$1,FALSE))) ->  | E41: =IF($B41="","",IF(VLOOKUP($B41,'Athlete Input'!$C:$H,E$1,FALSE)="","",VLOOKUP($B41,'Athlete Input'!$C:$H,E$1,FALSE))) ->  | F41: =IF($B41="","",IF(VLOOKUP($B41,'Athlete Input'!$C:$H,F$1,FALSE)="","",VLOOKUP($B41,'Athlete Input'!$C:$H,F$1,FALSE))) ->  | G41: =IF($B41="","",IF(VLOOKUP($B41,'Athlete Input'!$C:$H,G$1,FALSE)="","",VLOOKUP($B41,'Athlete Input'!$C:$H,G$1,FALSE))) ->  | H41: =IF($B41="","",IF(VLOOKUP($B41,'Athlete Input'!$C:$H,H$1,FALSE)="","",VLOOKUP($B41,'Athlete Input'!$C:$H,H$1,FALSE))) ->  | I41: =IF($B41="","",IF(VLOOKUP($B41,'Athlete Input'!$C:$H,I$1,FALSE)="","",VLOOKUP($B41,'Athlete Input'!$C:$H,I$1,FALSE))) ->  | J41: =IF($B41="","",IF(VLOOKUP($B41,'Athlete Input'!$C:$H,J$1,FALSE)="","",VLOOKUP($B41,'Athlete Input'!$C:$H,J$1,FALSE))) ->  | K41: =IF($B41="","",IF(VLOOKUP($B41,'Athlete Input'!$C:$H,K$1,FALSE)="","",VLOOKUP($B41,'Athlete Input'!$C:$H,K$1,FALSE))) ->  | L41: =IF($B41="","",IF(VLOOKUP($B41,'Athlete Input'!$C:$H,L$1,FALSE)="","",VLOOKUP($B41,'Athlete Input'!$C:$H,L$1,FALSE))) ->  | M41: =IF($B41="","",IF(VLOOKUP($B41,'Athlete Input'!$C:$H,M$1,FALSE)="","",VLOOKUP($B41,'Athlete Input'!$C:$H,M$1,FALSE))) ->  | N41: =IF($B41="","",IF(VLOOKUP($B41,'Athlete Input'!$C:$H,N$1,FALSE)="","",VLOOKUP($B41,'Athlete Input'!$C:$H,N$1,FALSE))) ->  | O41: =IF($B41="","",IF(VLOOKUP($B41,'Athlete Input'!$C:$H,O$1,FALSE)="","",VLOOKUP($B41,'Athlete Input'!$C:$H,O$1,FALSE))) ->  | P41: =IF($B41="","",IF(VLOOKUP($B41,'Athlete Input'!$C:$H,P$1,FALSE)="","",VLOOKUP($B41,'Athlete Input'!$C:$H,P$1,FALSE))) ->  | Q41: =IF($B41="","",IF(VLOOKUP($B41,'Athlete Input'!$C:$H,Q$1,FALSE)="","",VLOOKUP($B41,'Athlete Input'!$C:$H,Q$1,FALSE))) ->  | R41: =IF($B41="","",IF(VLOOKUP($B41,'Athlete Input'!$C:$H,R$1,FALSE)="","",VLOOKUP($B41,'Athlete Input'!$C:$H,R$1,FALSE))) ->  | S41: =IF($B41="","",IF(VLOOKUP($B41,'Athlete Input'!$C:$H,S$1,FALSE)="","",VLOOKUP($B41,'Athlete Input'!$C:$H,S$1,FALSE))) ->  | T41: =IF($B41="","",IF(VLOOKUP($B41,'Athlete Input'!$C:$H,T$1,FALSE)="","",VLOOKUP($B41,'Athlete Input'!$C:$H,T$1,FALSE))) ->  | U41: =IF($B41="","",IF(VLOOKUP($B41,'Athlete Input'!$C:$H,U$1,FALSE)="","",VLOOKUP($B41,'Athlete Input'!$C:$H,U$1,FALSE))) ->  | V41: =IF($B41="","",IF(VLOOKUP($B41,'Athlete Input'!$C:$H,V$1,FALSE)="","",VLOOKUP($B41,'Athlete Input'!$C:$H,V$1,FALSE))) ->  | W41: =IF($B41="","",IF(VLOOKUP($B41,'Athlete Input'!$C:$H,W$1,FALSE)="","",VLOOKUP($B41,'Athlete Input'!$C:$H,W$1,FALSE))) ->  | X41: =IF($B41="","",IF(VLOOKUP($B41,'Athlete Input'!$C:$H,X$1,FALSE)="","",VLOOKUP($B41,'Athlete Input'!$C:$H,X$1,FALSE))) ->  | Y41: =IF($B41="","",IF(VLOOKUP($B41,'Athlete Input'!$C:$H,Y$1,FALSE)="","",VLOOKUP($B41,'Athlete Input'!$C:$H,Y$1,FALSE))) ->  | Z41: =IF($B41="","",IF(VLOOKUP($B41,'Athlete Input'!$C:$H,Z$1,FALSE)="","",VLOOKUP($B41,'Athlete Input'!$C:$H,Z$1,FALSE))) ->  | AA41: =IF($B41="","",IF(VLOOKUP($B41,'Athlete Input'!$C:$H,AA$1,FALSE)="","",VLOOKUP($B41,'Athlete Input'!$C:$H,AA$1,FALSE))) ->  | AB41: =IF($B41="","",IF(VLOOKUP($B41,'Athlete Input'!$C:$H,AB$1,FALSE)="","",VLOOKUP($B41,'Athlete Input'!$C:$H,AB$1,FALSE))) ->  | AC41: =IF($B41="","",IF(VLOOKUP($B41,'Athlete Input'!$C:$H,AC$1,FALSE)="","",VLOOKUP($B41,'Athlete Input'!$C:$H,AC$1,FALSE))) ->  | AD41: =IF($B41="","",IF(VLOOKUP($B41,'Athlete Input'!$C:$H,AD$1,FALSE)="","",VLOOKUP($B41,'Athlete Input'!$C:$H,AD$1,FALSE))) ->  | AE41: =IF($B41="","",IF(VLOOKUP($B41,'Athlete Input'!$C:$H,AE$1,FALSE)="","",VLOOKUP($B41,'Athlete Input'!$C:$H,AE$1,FALSE))) ->  | AF41: =IF($B41="","",IF(VLOOKUP($B41,'Athlete Input'!$C:$H,AF$1,FALSE)="","",VLOOKUP($B41,'Athlete Input'!$C:$H,AF$1,FALSE))) ->  | AG41: =IF($B41="","",IF(VLOOKUP($B41,'Athlete Input'!$C:$H,AG$1,FALSE)="","",VLOOKUP($B41,'Athlete Input'!$C:$H,AG$1,FALSE))) ->  | AH41: =IF($B41="","",IF(VLOOKUP($B41,'Athlete Input'!$C:$H,AH$1,FALSE)="","",VLOOKUP($B41,'Athlete Input'!$C:$H,AH$1,FALSE))) ->  | AI41: =IF($B41="","",IF(VLOOKUP($B41,'Athlete Input'!$C:$H,AI$1,FALSE)="","",VLOOKUP($B41,'Athlete Input'!$C:$H,AI$1,FALSE))) ->  | AJ41: =IF($B41="","",IF(VLOOKUP($B41,'Athlete Input'!$C:$H,AJ$1,FALSE)="","",VLOOKUP($B41,'Athlete Input'!$C:$H,AJ$1,FALSE))) ->  | AK41: =IF($B41="","",IF(VLOOKUP($B41,'Athlete Input'!$C:$H,AK$1,FALSE)="","",VLOOKUP($B41,'Athlete Input'!$C:$H,AK$1,FALSE))) ->  | AL41: =IF($B41="","",IF(VLOOKUP($B41,'Athlete Input'!$C:$H,AL$1,FALSE)="","",VLOOKUP($B41,'Athlete Input'!$C:$H,AL$1,FALSE))) ->  | AM41: =IF(B41="","zz",'Athlete Input'!D45) -> Shields
A42: 39 | B42: =IF('Athlete Input'!C46="","",'Athlete Input'!C46) -> Lauren Stoddart | C42: =IF($B42="","",IF(VLOOKUP($B42,'Athlete Input'!$C:$H,C$1,FALSE)="","",VLOOKUP($B42,'Athlete Input'!$C:$H,C$1,FALSE))) ->  | D42: =IF($B42="","",IF(VLOOKUP($B42,'Athlete Input'!$C:$H,D$1,FALSE)="","",VLOOKUP($B42,'Athlete Input'!$C:$H,D$1,FALSE))) ->  | E42: =IF($B42="","",IF(VLOOKUP($B42,'Athlete Input'!$C:$H,E$1,FALSE)="","",VLOOKUP($B42,'Athlete Input'!$C:$H,E$1,FALSE))) ->  | F42: =IF($B42="","",IF(VLOOKUP($B42,'Athlete Input'!$C:$H,F$1,FALSE)="","",VLOOKUP($B42,'Athlete Input'!$C:$H,F$1,FALSE))) ->  | G42: =IF($B42="","",IF(VLOOKUP($B42,'Athlete Input'!$C:$H,G$1,FALSE)="","",VLOOKUP($B42,'Athlete Input'!$C:$H,G$1,FALSE))) ->  | H42: =IF($B42="","",IF(VLOOKUP($B42,'Athlete Input'!$C:$H,H$1,FALSE)="","",VLOOKUP($B42,'Athlete Input'!$C:$H,H$1,FALSE))) ->  | I42: =IF($B42="","",IF(VLOOKUP($B42,'Athlete Input'!$C:$H,I$1,FALSE)="","",VLOOKUP($B42,'Athlete Input'!$C:$H,I$1,FALSE))) ->  | J42: =IF($B42="","",IF(VLOOKUP($B42,'Athlete Input'!$C:$H,J$1,FALSE)="","",VLOOKUP($B42,'Athlete Input'!$C:$H,J$1,FALSE))) ->  | K42: =IF($B42="","",IF(VLOOKUP($B42,'Athlete Input'!$C:$H,K$1,FALSE)="","",VLOOKUP($B42,'Athlete Input'!$C:$H,K$1,FALSE))) ->  | L42: =IF($B42="","",IF(VLOOKUP($B42,'Athlete Input'!$C:$H,L$1,FALSE)="","",VLOOKUP($B42,'Athlete Input'!$C:$H,L$1,FALSE))) ->  | M42: =IF($B42="","",IF(VLOOKUP($B42,'Athlete Input'!$C:$H,M$1,FALSE)="","",VLOOKUP($B42,'Athlete Input'!$C:$H,M$1,FALSE))) ->  | N42: =IF($B42="","",IF(VLOOKUP($B42,'Athlete Input'!$C:$H,N$1,FALSE)="","",VLOOKUP($B42,'Athlete Input'!$C:$H,N$1,FALSE))) ->  | O42: =IF($B42="","",IF(VLOOKUP($B42,'Athlete Input'!$C:$H,O$1,FALSE)="","",VLOOKUP($B42,'Athlete Input'!$C:$H,O$1,FALSE))) ->  | P42: =IF($B42="","",IF(VLOOKUP($B42,'Athlete Input'!$C:$H,P$1,FALSE)="","",VLOOKUP($B42,'Athlete Input'!$C:$H,P$1,FALSE))) ->  | Q42: =IF($B42="","",IF(VLOOKUP($B42,'Athlete Input'!$C:$H,Q$1,FALSE)="","",VLOOKUP($B42,'Athlete Input'!$C:$H,Q$1,FALSE))) ->  | R42: =IF($B42="","",IF(VLOOKUP($B42,'Athlete Input'!$C:$H,R$1,FALSE)="","",VLOOKUP($B42,'Athlete Input'!$C:$H,R$1,FALSE))) ->  | S42: =IF($B42="","",IF(VLOOKUP($B42,'Athlete Input'!$C:$H,S$1,FALSE)="","",VLOOKUP($B42,'Athlete Input'!$C:$H,S$1,FALSE))) ->  | T42: =IF($B42="","",IF(VLOOKUP($B42,'Athlete Input'!$C:$H,T$1,FALSE)="","",VLOOKUP($B42,'Athlete Input'!$C:$H,T$1,FALSE))) ->  | U42: =IF($B42="","",IF(VLOOKUP($B42,'Athlete Input'!$C:$H,U$1,FALSE)="","",VLOOKUP($B42,'Athlete Input'!$C:$H,U$1,FALSE))) ->  | V42: =IF($B42="","",IF(VLOOKUP($B42,'Athlete Input'!$C:$H,V$1,FALSE)="","",VLOOKUP($B42,'Athlete Input'!$C:$H,V$1,FALSE))) ->  | W42: =IF($B42="","",IF(VLOOKUP($B42,'Athlete Input'!$C:$H,W$1,FALSE)="","",VLOOKUP($B42,'Athlete Input'!$C:$H,W$1,FALSE))) ->  | X42: =IF($B42="","",IF(VLOOKUP($B42,'Athlete Input'!$C:$H,X$1,FALSE)="","",VLOOKUP($B42,'Athlete Input'!$C:$H,X$1,FALSE))) ->  | Y42: =IF($B42="","",IF(VLOOKUP($B42,'Athlete Input'!$C:$H,Y$1,FALSE)="","",VLOOKUP($B42,'Athlete Input'!$C:$H,Y$1,FALSE))) ->  | Z42: =IF($B42="","",IF(VLOOKUP($B42,'Athlete Input'!$C:$H,Z$1,FALSE)="","",VLOOKUP($B42,'Athlete Input'!$C:$H,Z$1,FALSE))) ->  | AA42: =IF($B42="","",IF(VLOOKUP($B42,'Athlete Input'!$C:$H,AA$1,FALSE)="","",VLOOKUP($B42,'Athlete Input'!$C:$H,AA$1,FALSE))) ->  | AB42: =IF($B42="","",IF(VLOOKUP($B42,'Athlete Input'!$C:$H,AB$1,FALSE)="","",VLOOKUP($B42,'Athlete Input'!$C:$H,AB$1,FALSE))) ->  | AC42: =IF($B42="","",IF(VLOOKUP($B42,'Athlete Input'!$C:$H,AC$1,FALSE)="","",VLOOKUP($B42,'Athlete Input'!$C:$H,AC$1,FALSE))) ->  | AD42: =IF($B42="","",IF(VLOOKUP($B42,'Athlete Input'!$C:$H,AD$1,FALSE)="","",VLOOKUP($B42,'Athlete Input'!$C:$H,AD$1,FALSE))) ->  | AE42: =IF($B42="","",IF(VLOOKUP($B42,'Athlete Input'!$C:$H,AE$1,FALSE)="","",VLOOKUP($B42,'Athlete Input'!$C:$H,AE$1,FALSE))) ->  | AF42: =IF($B42="","",IF(VLOOKUP($B42,'Athlete Input'!$C:$H,AF$1,FALSE)="","",VLOOKUP($B42,'Athlete Input'!$C:$H,AF$1,FALSE))) ->  | AG42: =IF($B42="","",IF(VLOOKUP($B42,'Athlete Input'!$C:$H,AG$1,FALSE)="","",VLOOKUP($B42,'Athlete Input'!$C:$H,AG$1,FALSE))) ->  | AH42: =IF($B42="","",IF(VLOOKUP($B42,'Athlete Input'!$C:$H,AH$1,FALSE)="","",VLOOKUP($B42,'Athlete Input'!$C:$H,AH$1,FALSE))) ->  | AI42: =IF($B42="","",IF(VLOOKUP($B42,'Athlete Input'!$C:$H,AI$1,FALSE)="","",VLOOKUP($B42,'Athlete Input'!$C:$H,AI$1,FALSE))) ->  | AJ42: =IF($B42="","",IF(VLOOKUP($B42,'Athlete Input'!$C:$H,AJ$1,FALSE)="","",VLOOKUP($B42,'Athlete Input'!$C:$H,AJ$1,FALSE))) ->  | AK42: =IF($B42="","",IF(VLOOKUP($B42,'Athlete Input'!$C:$H,AK$1,FALSE)="","",VLOOKUP($B42,'Athlete Input'!$C:$H,AK$1,FALSE))) ->  | AL42: =IF($B42="","",IF(VLOOKUP($B42,'Athlete Input'!$C:$H,AL$1,FALSE)="","",VLOOKUP($B42,'Athlete Input'!$C:$H,AL$1,FALSE))) ->  | AM42: =IF(B42="","zz",'Athlete Input'!D46) -> Stoddart
A43: 40 | B43: =IF('Athlete Input'!C47="","",'Athlete Input'!C47) -> Tracy Watt | C43: =IF($B43="","",IF(VLOOKUP($B43,'Athlete Input'!$C:$H,C$1,FALSE)="","",VLOOKUP($B43,'Athlete Input'!$C:$H,C$1,FALSE))) ->  | D43: =IF($B43="","",IF(VLOOKUP($B43,'Athlete Input'!$C:$H,D$1,FALSE)="","",VLOOKUP($B43,'Athlete Input'!$C:$H,D$1,FALSE))) ->  | E43: =IF($B43="","",IF(VLOOKUP($B43,'Athlete Input'!$C:$H,E$1,FALSE)="","",VLOOKUP($B43,'Athlete Input'!$C:$H,E$1,FALSE))) ->  | F43: =IF($B43="","",IF(VLOOKUP($B43,'Athlete Input'!$C:$H,F$1,FALSE)="","",VLOOKUP($B43,'Athlete Input'!$C:$H,F$1,FALSE))) ->  | G43: =IF($B43="","",IF(VLOOKUP($B43,'Athlete Input'!$C:$H,G$1,FALSE)="","",VLOOKUP($B43,'Athlete Input'!$C:$H,G$1,FALSE))) ->  | H43: =IF($B43="","",IF(VLOOKUP($B43,'Athlete Input'!$C:$H,H$1,FALSE)="","",VLOOKUP($B43,'Athlete Input'!$C:$H,H$1,FALSE))) ->  | I43: =IF($B43="","",IF(VLOOKUP($B43,'Athlete Input'!$C:$H,I$1,FALSE)="","",VLOOKUP($B43,'Athlete Input'!$C:$H,I$1,FALSE))) ->  | J43: =IF($B43="","",IF(VLOOKUP($B43,'Athlete Input'!$C:$H,J$1,FALSE)="","",VLOOKUP($B43,'Athlete Input'!$C:$H,J$1,FALSE))) ->  | K43: =IF($B43="","",IF(VLOOKUP($B43,'Athlete Input'!$C:$H,K$1,FALSE)="","",VLOOKUP($B43,'Athlete Input'!$C:$H,K$1,FALSE))) ->  | L43: =IF($B43="","",IF(VLOOKUP($B43,'Athlete Input'!$C:$H,L$1,FALSE)="","",VLOOKUP($B43,'Athlete Input'!$C:$H,L$1,FALSE))) ->  | M43: =IF($B43="","",IF(VLOOKUP($B43,'Athlete Input'!$C:$H,M$1,FALSE)="","",VLOOKUP($B43,'Athlete Input'!$C:$H,M$1,FALSE))) ->  | N43: =IF($B43="","",IF(VLOOKUP($B43,'Athlete Input'!$C:$H,N$1,FALSE)="","",VLOOKUP($B43,'Athlete Input'!$C:$H,N$1,FALSE))) ->  | O43: =IF($B43="","",IF(VLOOKUP($B43,'Athlete Input'!$C:$H,O$1,FALSE)="","",VLOOKUP($B43,'Athlete Input'!$C:$H,O$1,FALSE))) ->  | P43: =IF($B43="","",IF(VLOOKUP($B43,'Athlete Input'!$C:$H,P$1,FALSE)="","",VLOOKUP($B43,'Athlete Input'!$C:$H,P$1,FALSE))) ->  | Q43: =IF($B43="","",IF(VLOOKUP($B43,'Athlete Input'!$C:$H,Q$1,FALSE)="","",VLOOKUP($B43,'Athlete Input'!$C:$H,Q$1,FALSE))) ->  | R43: =IF($B43="","",IF(VLOOKUP($B43,'Athlete Input'!$C:$H,R$1,FALSE)="","",VLOOKUP($B43,'Athlete Input'!$C:$H,R$1,FALSE))) ->  | S43: =IF($B43="","",IF(VLOOKUP($B43,'Athlete Input'!$C:$H,S$1,FALSE)="","",VLOOKUP($B43,'Athlete Input'!$C:$H,S$1,FALSE))) ->  | T43: =IF($B43="","",IF(VLOOKUP($B43,'Athlete Input'!$C:$H,T$1,FALSE)="","",VLOOKUP($B43,'Athlete Input'!$C:$H,T$1,FALSE))) ->  | U43: =IF($B43="","",IF(VLOOKUP($B43,'Athlete Input'!$C:$H,U$1,FALSE)="","",VLOOKUP($B43,'Athlete Input'!$C:$H,U$1,FALSE))) ->  | V43: =IF($B43="","",IF(VLOOKUP($B43,'Athlete Input'!$C:$H,V$1,FALSE)="","",VLOOKUP($B43,'Athlete Input'!$C:$H,V$1,FALSE))) ->  | W43: =IF($B43="","",IF(VLOOKUP($B43,'Athlete Input'!$C:$H,W$1,FALSE)="","",VLOOKUP($B43,'Athlete Input'!$C:$H,W$1,FALSE))) ->  | X43: =IF($B43="","",IF(VLOOKUP($B43,'Athlete Input'!$C:$H,X$1,FALSE)="","",VLOOKUP($B43,'Athlete Input'!$C:$H,X$1,FALSE))) ->  | Y43: =IF($B43="","",IF(VLOOKUP($B43,'Athlete Input'!$C:$H,Y$1,FALSE)="","",VLOOKUP($B43,'Athlete Input'!$C:$H,Y$1,FALSE))) ->  | Z43: =IF($B43="","",IF(VLOOKUP($B43,'Athlete Input'!$C:$H,Z$1,FALSE)="","",VLOOKUP($B43,'Athlete Input'!$C:$H,Z$1,FALSE))) ->  | AA43: =IF($B43="","",IF(VLOOKUP($B43,'Athlete Input'!$C:$H,AA$1,FALSE)="","",VLOOKUP($B43,'Athlete Input'!$C:$H,AA$1,FALSE))) ->  | AB43: =IF($B43="","",IF(VLOOKUP($B43,'Athlete Input'!$C:$H,AB$1,FALSE)="","",VLOOKUP($B43,'Athlete Input'!$C:$H,AB$1,FALSE))) ->  | AC43: =IF($B43="","",IF(VLOOKUP($B43,'Athlete Input'!$C:$H,AC$1,FALSE)="","",VLOOKUP($B43,'Athlete Input'!$C:$H,AC$1,FALSE))) ->  | AD43: =IF($B43="","",IF(VLOOKUP($B43,'Athlete Input'!$C:$H,AD$1,FALSE)="","",VLOOKUP($B43,'Athlete Input'!$C:$H,AD$1,FALSE))) ->  | AE43: =IF($B43="","",IF(VLOOKUP($B43,'Athlete Input'!$C:$H,AE$1,FALSE)="","",VLOOKUP($B43,'Athlete Input'!$C:$H,AE$1,FALSE))) ->  | AF43: =IF($B43="","",IF(VLOOKUP($B43,'Athlete Input'!$C:$H,AF$1,FALSE)="","",VLOOKUP($B43,'Athlete Input'!$C:$H,AF$1,FALSE))) ->  | AG43: =IF($B43="","",IF(VLOOKUP($B43,'Athlete Input'!$C:$H,AG$1,FALSE)="","",VLOOKUP($B43,'Athlete Input'!$C:$H,AG$1,FALSE))) ->  | AH43: =IF($B43="","",IF(VLOOKUP($B43,'Athlete Input'!$C:$H,AH$1,FALSE)="","",VLOOKUP($B43,'Athlete Input'!$C:$H,AH$1,FALSE))) ->  | AI43: =IF($B43="","",IF(VLOOKUP($B43,'Athlete Input'!$C:$H,AI$1,FALSE)="","",VLOOKUP($B43,'Athlete Input'!$C:$H,AI$1,FALSE))) ->  | AJ43: =IF($B43="","",IF(VLOOKUP($B43,'Athlete Input'!$C:$H,AJ$1,FALSE)="","",VLOOKUP($B43,'Athlete Input'!$C:$H,AJ$1,FALSE))) ->  | AK43: =IF($B43="","",IF(VLOOKUP($B43,'Athlete Input'!$C:$H,AK$1,FALSE)="","",VLOOKUP($B43,'Athlete Input'!$C:$H,AK$1,FALSE))) ->  | AL43: =IF($B43="","",IF(VLOOKUP($B43,'Athlete Input'!$C:$H,AL$1,FALSE)="","",VLOOKUP($B43,'Athlete Input'!$C:$H,AL$1,FALSE))) ->  | AM43: =IF(B43="","zz",'Athlete Input'!D47) -> Watt
A44: 41 | B44: =IF('Athlete Input'!C82="","",'Athlete Input'!C82) ->  | C44: =IF($B44="","",IF(VLOOKUP($B44,'Athlete Input'!$C:$H,C$1,FALSE)="","",VLOOKUP($B44,'Athlete Input'!$C:$H,C$1,FALSE))) ->  | D44: =IF($B44="","",IF(VLOOKUP($B44,'Athlete Input'!$C:$H,D$1,FALSE)="","",VLOOKUP($B44,'Athlete Input'!$C:$H,D$1,FALSE))) ->  | E44: =IF($B44="","",IF(VLOOKUP($B44,'Athlete Input'!$C:$H,E$1,FALSE)="","",VLOOKUP($B44,'Athlete Input'!$C:$H,E$1,FALSE))) ->  | F44: =IF($B44="","",IF(VLOOKUP($B44,'Athlete Input'!$C:$H,F$1,FALSE)="","",VLOOKUP($B44,'Athlete Input'!$C:$H,F$1,FALSE))) ->  | G44: =IF($B44="","",IF(VLOOKUP($B44,'Athlete Input'!$C:$H,G$1,FALSE)="","",VLOOKUP($B44,'Athlete Input'!$C:$H,G$1,FALSE))) ->  | H44: =IF($B44="","",IF(VLOOKUP($B44,'Athlete Input'!$C:$H,H$1,FALSE)="","",VLOOKUP($B44,'Athlete Input'!$C:$H,H$1,FALSE))) ->  | I44: =IF($B44="","",IF(VLOOKUP($B44,'Athlete Input'!$C:$H,I$1,FALSE)="","",VLOOKUP($B44,'Athlete Input'!$C:$H,I$1,FALSE))) ->  | J44: =IF($B44="","",IF(VLOOKUP($B44,'Athlete Input'!$C:$H,J$1,FALSE)="","",VLOOKUP($B44,'Athlete Input'!$C:$H,J$1,FALSE))) ->  | K44: =IF($B44="","",IF(VLOOKUP($B44,'Athlete Input'!$C:$H,K$1,FALSE)="","",VLOOKUP($B44,'Athlete Input'!$C:$H,K$1,FALSE))) ->  | L44: =IF($B44="","",IF(VLOOKUP($B44,'Athlete Input'!$C:$H,L$1,FALSE)="","",VLOOKUP($B44,'Athlete Input'!$C:$H,L$1,FALSE))) ->  | M44: =IF($B44="","",IF(VLOOKUP($B44,'Athlete Input'!$C:$H,M$1,FALSE)="","",VLOOKUP($B44,'Athlete Input'!$C:$H,M$1,FALSE))) ->  | N44: =IF($B44="","",IF(VLOOKUP($B44,'Athlete Input'!$C:$H,N$1,FALSE)="","",VLOOKUP($B44,'Athlete Input'!$C:$H,N$1,FALSE))) ->  | O44: =IF($B44="","",IF(VLOOKUP($B44,'Athlete Input'!$C:$H,O$1,FALSE)="","",VLOOKUP($B44,'Athlete Input'!$C:$H,O$1,FALSE))) ->  | P44: =IF($B44="","",IF(VLOOKUP($B44,'Athlete Input'!$C:$H,P$1,FALSE)="","",VLOOKUP($B44,'Athlete Input'!$C:$H,P$1,FALSE))) ->  | Q44: =IF($B44="","",IF(VLOOKUP($B44,'Athlete Input'!$C:$H,Q$1,FALSE)="","",VLOOKUP($B44,'Athlete Input'!$C:$H,Q$1,FALSE))) ->  | R44: =IF($B44="","",IF(VLOOKUP($B44,'Athlete Input'!$C:$H,R$1,FALSE)="","",VLOOKUP($B44,'Athlete Input'!$C:$H,R$1,FALSE))) ->  | S44: =IF($B44="","",IF(VLOOKUP($B44,'Athlete Input'!$C:$H,S$1,FALSE)="","",VLOOKUP($B44,'Athlete Input'!$C:$H,S$1,FALSE))) ->  | T44: =IF($B44="","",IF(VLOOKUP($B44,'Athlete Input'!$C:$H,T$1,FALSE)="","",VLOOKUP($B44,'Athlete Input'!$C:$H,T$1,FALSE))) ->  | U44: =IF($B44="","",IF(VLOOKUP($B44,'Athlete Input'!$C:$H,U$1,FALSE)="","",VLOOKUP($B44,'Athlete Input'!$C:$H,U$1,FALSE))) ->  | V44: =IF($B44="","",IF(VLOOKUP($B44,'Athlete Input'!$C:$H,V$1,FALSE)="","",VLOOKUP($B44,'Athlete Input'!$C:$H,V$1,FALSE))) ->  | W44: =IF($B44="","",IF(VLOOKUP($B44,'Athlete Input'!$C:$H,W$1,FALSE)="","",VLOOKUP($B44,'Athlete Input'!$C:$H,W$1,FALSE))) ->  | X44: =IF($B44="","",IF(VLOOKUP($B44,'Athlete Input'!$C:$H,X$1,FALSE)="","",VLOOKUP($B44,'Athlete Input'!$C:$H,X$1,FALSE))) ->  | Y44: =IF($B44="","",IF(VLOOKUP($B44,'Athlete Input'!$C:$H,Y$1,FALSE)="","",VLOOKUP($B44,'Athlete Input'!$C:$H,Y$1,FALSE))) ->  | Z44: =IF($B44="","",IF(VLOOKUP($B44,'Athlete Input'!$C:$H,Z$1,FALSE)="","",VLOOKUP($B44,'Athlete Input'!$C:$H,Z$1,FALSE))) ->  | AA44: =IF($B44="","",IF(VLOOKUP($B44,'Athlete Input'!$C:$H,AA$1,FALSE)="","",VLOOKUP($B44,'Athlete Input'!$C:$H,AA$1,FALSE))) ->  | AB44: =IF($B44="","",IF(VLOOKUP($B44,'Athlete Input'!$C:$H,AB$1,FALSE)="","",VLOOKUP($B44,'Athlete Input'!$C:$H,AB$1,FALSE))) ->  | AC44: =IF($B44="","",IF(VLOOKUP($B44,'Athlete Input'!$C:$H,AC$1,FALSE)="","",VLOOKUP($B44,'Athlete Input'!$C:$H,AC$1,FALSE))) ->  | AD44: =IF($B44="","",IF(VLOOKUP($B44,'Athlete Input'!$C:$H,AD$1,FALSE)="","",VLOOKUP($B44,'Athlete Input'!$C:$H,AD$1,FALSE))) ->  | AE44: =IF($B44="","",IF(VLOOKUP($B44,'Athlete Input'!$C:$H,AE$1,FALSE)="","",VLOOKUP($B44,'Athlete Input'!$C:$H,AE$1,FALSE))) ->  | AF44: =IF($B44="","",IF(VLOOKUP($B44,'Athlete Input'!$C:$H,AF$1,FALSE)="","",VLOOKUP($B44,'Athlete Input'!$C:$H,AF$1,FALSE))) ->  | AG44: =IF($B44="","",IF(VLOOKUP($B44,'Athlete Input'!$C:$H,AG$1,FALSE)="","",VLOOKUP($B44,'Athlete Input'!$C:$H,AG$1,FALSE))) ->  | AH44: =IF($B44="","",IF(VLOOKUP($B44,'Athlete Input'!$C:$H,AH$1,FALSE)="","",VLOOKUP($B44,'Athlete Input'!$C:$H,AH$1,FALSE))) ->  | AI44: =IF($B44="","",IF(VLOOKUP($B44,'Athlete Input'!$C:$H,AI$1,FALSE)="","",VLOOKUP($B44,'Athlete Input'!$C:$H,AI$1,FALSE))) ->  | AJ44: =IF($B44="","",IF(VLOOKUP($B44,'Athlete Input'!$C:$H,AJ$1,FALSE)="","",VLOOKUP($B44,'Athlete Input'!$C:$H,AJ$1,FALSE))) ->  | AK44: =IF($B44="","",IF(VLOOKUP($B44,'Athlete Input'!$C:$H,AK$1,FALSE)="","",VLOOKUP($B44,'Athlete Input'!$C:$H,AK$1,FALSE))) ->  | AL44: =IF($B44="","",IF(VLOOKUP($B44,'Athlete Input'!$C:$H,AL$1,FALSE)="","",VLOOKUP($B44,'Athlete Input'!$C:$H,AL$1,FALSE))) ->  | AM44: =IF(B44="","zz",'Athlete Input'!D82) -> zz
A45: 42 | B45: =IF('Athlete Input'!C48="","",'Athlete Input'!C48) -> Theresa Watt | C45: =IF($B45="","",IF(VLOOKUP($B45,'Athlete Input'!$C:$H,C$1,FALSE)="","",VLOOKUP($B45,'Athlete Input'!$C:$H,C$1,FALSE))) ->  | D45: =IF($B45="","",IF(VLOOKUP($B45,'Athlete Input'!$C:$H,D$1,FALSE)="","",VLOOKUP($B45,'Athlete Input'!$C:$H,D$1,FALSE))) ->  | E45: =IF($B45="","",IF(VLOOKUP($B45,'Athlete Input'!$C:$H,E$1,FALSE)="","",VLOOKUP($B45,'Athlete Input'!$C:$H,E$1,FALSE))) ->  | F45: =IF($B45="","",IF(VLOOKUP($B45,'Athlete Input'!$C:$H,F$1,FALSE)="","",VLOOKUP($B45,'Athlete Input'!$C:$H,F$1,FALSE))) ->  | G45: =IF($B45="","",IF(VLOOKUP($B45,'Athlete Input'!$C:$H,G$1,FALSE)="","",VLOOKUP($B45,'Athlete Input'!$C:$H,G$1,FALSE))) ->  | H45: =IF($B45="","",IF(VLOOKUP($B45,'Athlete Input'!$C:$H,H$1,FALSE)="","",VLOOKUP($B45,'Athlete Input'!$C:$H,H$1,FALSE))) ->  | I45: =IF($B45="","",IF(VLOOKUP($B45,'Athlete Input'!$C:$H,I$1,FALSE)="","",VLOOKUP($B45,'Athlete Input'!$C:$H,I$1,FALSE))) ->  | J45: =IF($B45="","",IF(VLOOKUP($B45,'Athlete Input'!$C:$H,J$1,FALSE)="","",VLOOKUP($B45,'Athlete Input'!$C:$H,J$1,FALSE))) ->  | K45: =IF($B45="","",IF(VLOOKUP($B45,'Athlete Input'!$C:$H,K$1,FALSE)="","",VLOOKUP($B45,'Athlete Input'!$C:$H,K$1,FALSE))) ->  | L45: =IF($B45="","",IF(VLOOKUP($B45,'Athlete Input'!$C:$H,L$1,FALSE)="","",VLOOKUP($B45,'Athlete Input'!$C:$H,L$1,FALSE))) ->  | M45: =IF($B45="","",IF(VLOOKUP($B45,'Athlete Input'!$C:$H,M$1,FALSE)="","",VLOOKUP($B45,'Athlete Input'!$C:$H,M$1,FALSE))) ->  | N45: =IF($B45="","",IF(VLOOKUP($B45,'Athlete Input'!$C:$H,N$1,FALSE)="","",VLOOKUP($B45,'Athlete Input'!$C:$H,N$1,FALSE))) ->  | O45: =IF($B45="","",IF(VLOOKUP($B45,'Athlete Input'!$C:$H,O$1,FALSE)="","",VLOOKUP($B45,'Athlete Input'!$C:$H,O$1,FALSE))) ->  | P45: =IF($B45="","",IF(VLOOKUP($B45,'Athlete Input'!$C:$H,P$1,FALSE)="","",VLOOKUP($B45,'Athlete Input'!$C:$H,P$1,FALSE))) ->  | Q45: =IF($B45="","",IF(VLOOKUP($B45,'Athlete Input'!$C:$H,Q$1,FALSE)="","",VLOOKUP($B45,'Athlete Input'!$C:$H,Q$1,FALSE))) ->  | R45: =IF($B45="","",IF(VLOOKUP($B45,'Athlete Input'!$C:$H,R$1,FALSE)="","",VLOOKUP($B45,'Athlete Input'!$C:$H,R$1,FALSE))) ->  | S45: =IF($B45="","",IF(VLOOKUP($B45,'Athlete Input'!$C:$H,S$1,FALSE)="","",VLOOKUP($B45,'Athlete Input'!$C:$H,S$1,FALSE))) ->  | T45: =IF($B45="","",IF(VLOOKUP($B45,'Athlete Input'!$C:$H,T$1,FALSE)="","",VLOOKUP($B45,'Athlete Input'!$C:$H,T$1,FALSE))) ->  | U45: =IF($B45="","",IF(VLOOKUP($B45,'Athlete Input'!$C:$H,U$1,FALSE)="","",VLOOKUP($B45,'Athlete Input'!$C:$H,U$1,FALSE))) ->  | V45: =IF($B45="","",IF(VLOOKUP($B45,'Athlete Input'!$C:$H,V$1,FALSE)="","",VLOOKUP($B45,'Athlete Input'!$C:$H,V$1,FALSE))) ->  | W45: =IF($B45="","",IF(VLOOKUP($B45,'Athlete Input'!$C:$H,W$1,FALSE)="","",VLOOKUP($B45,'Athlete Input'!$C:$H,W$1,FALSE))) ->  | X45: =IF($B45="","",IF(VLOOKUP($B45,'Athlete Input'!$C:$H,X$1,FALSE)="","",VLOOKUP($B45,'Athlete Input'!$C:$H,X$1,FALSE))) ->  | Y45: =IF($B45="","",IF(VLOOKUP($B45,'Athlete Input'!$C:$H,Y$1,FALSE)="","",VLOOKUP($B45,'Athlete Input'!$C:$H,Y$1,FALSE))) ->  | Z45: =IF($B45="","",IF(VLOOKUP($B45,'Athlete Input'!$C:$H,Z$1,FALSE)="","",VLOOKUP($B45,'Athlete Input'!$C:$H,Z$1,FALSE))) ->  | AA45: =IF($B45="","",IF(VLOOKUP($B45,'Athlete Input'!$C:$H,AA$1,FALSE)="","",VLOOKUP($B45,'Athlete Input'!$C:$H,AA$1,FALSE))) ->  | AB45: =IF($B45="","",IF(VLOOKUP($B45,'Athlete Input'!$C:$H,AB$1,FALSE)="","",VLOOKUP($B45,'Athlete Input'!$C:$H,AB$1,FALSE))) ->  | AC45: =IF($B45="","",IF(VLOOKUP($B45,'Athlete Input'!$C:$H,AC$1,FALSE)="","",VLOOKUP($B45,'Athlete Input'!$C:$H,AC$1,FALSE))) ->  | AD45: =IF($B45="","",IF(VLOOKUP($B45,'Athlete Input'!$C:$H,AD$1,FALSE)="","",VLOOKUP($B45,'Athlete Input'!$C:$H,AD$1,FALSE))) ->  | AE45: =IF($B45="","",IF(VLOOKUP($B45,'Athlete Input'!$C:$H,AE$1,FALSE)="","",VLOOKUP($B45,'Athlete Input'!$C:$H,AE$1,FALSE))) ->  | AF45: =IF($B45="","",IF(VLOOKUP($B45,'Athlete Input'!$C:$H,AF$1,FALSE)="","",VLOOKUP($B45,'Athlete Input'!$C:$H,AF$1,FALSE))) ->  | AG45: =IF($B45="","",IF(VLOOKUP($B45,'Athlete Input'!$C:$H,AG$1,FALSE)="","",VLOOKUP($B45,'Athlete Input'!$C:$H,AG$1,FALSE))) ->  | AH45: =IF($B45="","",IF(VLOOKUP($B45,'Athlete Input'!$C:$H,AH$1,FALSE)="","",VLOOKUP($B45,'Athlete Input'!$C:$H,AH$1,FALSE))) ->  | AI45: =IF($B45="","",IF(VLOOKUP($B45,'Athlete Input'!$C:$H,AI$1,FALSE)="","",VLOOKUP($B45,'Athlete Input'!$C:$H,AI$1,FALSE))) ->  | AJ45: =IF($B45="","",IF(VLOOKUP($B45,'Athlete Input'!$C:$H,AJ$1,FALSE)="","",VLOOKUP($B45,'Athlete Input'!$C:$H,AJ$1,FALSE))) ->  | AK45: =IF($B45="","",IF(VLOOKUP($B45,'Athlete Input'!$C:$H,AK$1,FALSE)="","",VLOOKUP($B45,'Athlete Input'!$C:$H,AK$1,FALSE))) ->  | AL45: =IF($B45="","",IF(VLOOKUP($B45,'Athlete Input'!$C:$H,AL$1,FALSE)="","",VLOOKUP($B45,'Athlete Input'!$C:$H,AL$1,FALSE))) ->  | AM45: =IF(B45="","zz",'Athlete Input'!D48) -> Watt
A46: 43 | B46: =IF('Athlete Input'!C49="","",'Athlete Input'!C49) -> Hannah Waugh | C46: =IF($B46="","",IF(VLOOKUP($B46,'Athlete Input'!$C:$H,C$1,FALSE)="","",VLOOKUP($B46,'Athlete Input'!$C:$H,C$1,FALSE))) ->  | D46: =IF($B46="","",IF(VLOOKUP($B46,'Athlete Input'!$C:$H,D$1,FALSE)="","",VLOOKUP($B46,'Athlete Input'!$C:$H,D$1,FALSE))) ->  | E46: =IF($B46="","",IF(VLOOKUP($B46,'Athlete Input'!$C:$H,E$1,FALSE)="","",VLOOKUP($B46,'Athlete Input'!$C:$H,E$1,FALSE))) ->  | F46: =IF($B46="","",IF(VLOOKUP($B46,'Athlete Input'!$C:$H,F$1,FALSE)="","",VLOOKUP($B46,'Athlete Input'!$C:$H,F$1,FALSE))) ->  | G46: =IF($B46="","",IF(VLOOKUP($B46,'Athlete Input'!$C:$H,G$1,FALSE)="","",VLOOKUP($B46,'Athlete Input'!$C:$H,G$1,FALSE))) ->  | H46: =IF($B46="","",IF(VLOOKUP($B46,'Athlete Input'!$C:$H,H$1,FALSE)="","",VLOOKUP($B46,'Athlete Input'!$C:$H,H$1,FALSE))) ->  | I46: =IF($B46="","",IF(VLOOKUP($B46,'Athlete Input'!$C:$H,I$1,FALSE)="","",VLOOKUP($B46,'Athlete Input'!$C:$H,I$1,FALSE))) ->  | J46: =IF($B46="","",IF(VLOOKUP($B46,'Athlete Input'!$C:$H,J$1,FALSE)="","",VLOOKUP($B46,'Athlete Input'!$C:$H,J$1,FALSE))) ->  | K46: =IF($B46="","",IF(VLOOKUP($B46,'Athlete Input'!$C:$H,K$1,FALSE)="","",VLOOKUP($B46,'Athlete Input'!$C:$H,K$1,FALSE))) ->  | L46: =IF($B46="","",IF(VLOOKUP($B46,'Athlete Input'!$C:$H,L$1,FALSE)="","",VLOOKUP($B46,'Athlete Input'!$C:$H,L$1,FALSE))) ->  | M46: =IF($B46="","",IF(VLOOKUP($B46,'Athlete Input'!$C:$H,M$1,FALSE)="","",VLOOKUP($B46,'Athlete Input'!$C:$H,M$1,FALSE))) ->  | N46: =IF($B46="","",IF(VLOOKUP($B46,'Athlete Input'!$C:$H,N$1,FALSE)="","",VLOOKUP($B46,'Athlete Input'!$C:$H,N$1,FALSE))) ->  | O46: =IF($B46="","",IF(VLOOKUP($B46,'Athlete Input'!$C:$H,O$1,FALSE)="","",VLOOKUP($B46,'Athlete Input'!$C:$H,O$1,FALSE))) ->  | P46: =IF($B46="","",IF(VLOOKUP($B46,'Athlete Input'!$C:$H,P$1,FALSE)="","",VLOOKUP($B46,'Athlete Input'!$C:$H,P$1,FALSE))) ->  | Q46: =IF($B46="","",IF(VLOOKUP($B46,'Athlete Input'!$C:$H,Q$1,FALSE)="","",VLOOKUP($B46,'Athlete Input'!$C:$H,Q$1,FALSE))) ->  | R46: =IF($B46="","",IF(VLOOKUP($B46,'Athlete Input'!$C:$H,R$1,FALSE)="","",VLOOKUP($B46,'Athlete Input'!$C:$H,R$1,FALSE))) ->  | S46: =IF($B46="","",IF(VLOOKUP($B46,'Athlete Input'!$C:$H,S$1,FALSE)="","",VLOOKUP($B46,'Athlete Input'!$C:$H,S$1,FALSE))) ->  | T46: =IF($B46="","",IF(VLOOKUP($B46,'Athlete Input'!$C:$H,T$1,FALSE)="","",VLOOKUP($B46,'Athlete Input'!$C:$H,T$1,FALSE))) ->  | U46: =IF($B46="","",IF(VLOOKUP($B46,'Athlete Input'!$C:$H,U$1,FALSE)="","",VLOOKUP($B46,'Athlete Input'!$C:$H,U$1,FALSE))) ->  | V46: =IF($B46="","",IF(VLOOKUP($B46,'Athlete Input'!$C:$H,V$1,FALSE)="","",VLOOKUP($B46,'Athlete Input'!$C:$H,V$1,FALSE))) ->  | W46: =IF($B46="","",IF(VLOOKUP($B46,'Athlete Input'!$C:$H,W$1,FALSE)="","",VLOOKUP($B46,'Athlete Input'!$C:$H,W$1,FALSE))) ->  | X46: =IF($B46="","",IF(VLOOKUP($B46,'Athlete Input'!$C:$H,X$1,FALSE)="","",VLOOKUP($B46,'Athlete Input'!$C:$H,X$1,FALSE))) ->  | Y46: =IF($B46="","",IF(VLOOKUP($B46,'Athlete Input'!$C:$H,Y$1,FALSE)="","",VLOOKUP($B46,'Athlete Input'!$C:$H,Y$1,FALSE))) ->  | Z46: =IF($B46="","",IF(VLOOKUP($B46,'Athlete Input'!$C:$H,Z$1,FALSE)="","",VLOOKUP($B46,'Athlete Input'!$C:$H,Z$1,FALSE))) ->  | AA46: =IF($B46="","",IF(VLOOKUP($B46,'Athlete Input'!$C:$H,AA$1,FALSE)="","",VLOOKUP($B46,'Athlete Input'!$C:$H,AA$1,FALSE))) ->  | AB46: =IF($B46="","",IF(VLOOKUP($B46,'Athlete Input'!$C:$H,AB$1,FALSE)="","",VLOOKUP($B46,'Athlete Input'!$C:$H,AB$1,FALSE))) ->  | AC46: =IF($B46="","",IF(VLOOKUP($B46,'Athlete Input'!$C:$H,AC$1,FALSE)="","",VLOOKUP($B46,'Athlete Input'!$C:$H,AC$1,FALSE))) ->  | AD46: =IF($B46="","",IF(VLOOKUP($B46,'Athlete Input'!$C:$H,AD$1,FALSE)="","",VLOOKUP($B46,'Athlete Input'!$C:$H,AD$1,FALSE))) ->  | AE46: =IF($B46="","",IF(VLOOKUP($B46,'Athlete Input'!$C:$H,AE$1,FALSE)="","",VLOOKUP($B46,'Athlete Input'!$C:$H,AE$1,FALSE))) ->  | AF46: =IF($B46="","",IF(VLOOKUP($B46,'Athlete Input'!$C:$H,AF$1,FALSE)="","",VLOOKUP($B46,'Athlete Input'!$C:$H,AF$1,FALSE))) ->  | AG46: =IF($B46="","",IF(VLOOKUP($B46,'Athlete Input'!$C:$H,AG$1,FALSE)="","",VLOOKUP($B46,'Athlete Input'!$C:$H,AG$1,FALSE))) ->  | AH46: =IF($B46="","",IF(VLOOKUP($B46,'Athlete Input'!$C:$H,AH$1,FALSE)="","",VLOOKUP($B46,'Athlete Input'!$C:$H,AH$1,FALSE))) ->  | AI46: =IF($B46="","",IF(VLOOKUP($B46,'Athlete Input'!$C:$H,AI$1,FALSE)="","",VLOOKUP($B46,'Athlete Input'!$C:$H,AI$1,FALSE))) ->  | AJ46: =IF($B46="","",IF(VLOOKUP($B46,'Athlete Input'!$C:$H,AJ$1,FALSE)="","",VLOOKUP($B46,'Athlete Input'!$C:$H,AJ$1,FALSE))) ->  | AK46: =IF($B46="","",IF(VLOOKUP($B46,'Athlete Input'!$C:$H,AK$1,FALSE)="","",VLOOKUP($B46,'Athlete Input'!$C:$H,AK$1,FALSE))) ->  | AL46: =IF($B46="","",IF(VLOOKUP($B46,'Athlete Input'!$C:$H,AL$1,FALSE)="","",VLOOKUP($B46,'Athlete Input'!$C:$H,AL$1,FALSE))) ->  | AM46: =IF(B46="","zz",'Athlete Input'!D49) -> Waugh
